Workbook

Sheet Veiledning
B2: NV-GHG | E2: Versjon 3.2
E3: Oppdatert 06.10.2023 | M3: Kontaktpersoner ved spørsmål eller kommentarer til verktøyet:
H4: Dette regnskapet er utarbeidet av:
H5: Navn: | M5: Nye Veier: | N5: Maarten Lohne van der Eynden, | Q5: maarten.eynden@nyeveier.no
H6: Firma: | M6: NIRAS Norge: | N6: Ragnhild Stamer Ekerholt, | Q6: raek@niras.com
H7: Stilling: | N7: Julie Gade Gørbitz, | Q7: jugg@niras.com
H8: E-post:
H9: Telefon:
H10: Kvalitetssikrer:
H11: Dato utarbeidet:
B13: Introduksjon
B14: NV-GHG er et verktøy for å beregne klimagassutslipp fra veiprosjekter i en tidlig fase. Verktøyet er utviklet av NIRAS Norge AS for Nye Veier AS. I tilfeller der det er tvetydigheter eller motstridende innhold i den norske og engelske utgaven av verktøyet, er det den norske utgaven som gjelder. Verktøyet har tre hovedformål: - Baseline (beregne baseline for nye prosjekter på det tidspunktet strekningen tildeles Nye Veier) - Budsjett (klimagassbudsjett for planlagt bygget løsning - for enkelte strekninger vil dette påkreves av entreprenør) - Resultat (beregning av klimagassutslipp fra ferdig bygget løsning - for enkelte strekninger vil dette påkreves av entreprenør) Verktøyet er ment å gi en god oversikt over de viktigste kildene til prosjektets totale klimagassutslipp, samt formidle utslippsdrivende prosesser og aktiviteter på en tydelig måte, slik at tiltak kan iverksettes der potensialet for utslippsreduksjoner er størst. Det er lagt stor vekt på at verktøyet skal være brukervennlig, både for byggherre, rådgiver og entreprenør. Det er derfor kun nødvendig å fylle inn data i fanen 'Prosjektbeskrivelse og inndata'. Dersom brukeren av verktøyet ønsker å legge inn prosjektspesifikke verdier ut over dette, kan dette gjøres i fanene 'Transport og energibehov', 'Beregningsfaktorer' og 'Utslippsfaktorer'. Alle faner der det er mulig å gjøre endringer har grønn farge. Blå faner inneholder resultater. Generelt for alle faner gjelder at verdier legges inn i celler som er merket med hvit farge. Grønne celler inneholder informasjon og standardverdier og lyseblå celler inneholder formler, og det skal derfor ikke gjøres endringer i verken grønne eller lyseblå celler.
B26: De ulike fanene
B27: Prosjektbeskrivelse og inndata
B28: Her legges det inn informasjon om lengder, arealer og mengder for å kunne beregne klimagassutslipp i prosjektet. Verktøyet vil kunne estimere klimagassutslipp basert på informasjonen i denne fanen alene. I tabellen 'Om strekningen' legges det inn overordnet informasjon om strekningen som kreves for å kunne beregne samlede mengder. I tabellen 'Arealbruksendringer' fylles det inn prosentvis fordeling mellom de ulike arealtypene som beslaglegges i prosjektet. Summen av disse skal være 100 %. I tabellen 'Inndata' legges det inn mer detaljert informasjon om ulike konstruksjoner, massehåndtering, veityper, osv. Enheter velges fra nedtrekksmenyen.
B31: Resultat
B32: Resultatene er fremstilt i tabeller og grafisk i resultatfanen. Tallene hentes fra beregningsfanen.
B34: Sensitivitetsanalyse
B35: Sensitivitetsanalysen viser hvilke utslag en endring i én innsatsfaktor vil gi på totale utslipp. Sensitivitetsanalysen gir dermed et bilde på hvilke tiltak og endringer som vil ha størst effekt på det totale klimagassutslippet, både negativt og positivt.
B37: Beregninger
B38: Beregningsfanen samler all informasjon fra 'Prosjektbeskrivelse og inndata' og de ulike enhets- og faktorfanene. Her multipliseres mengder og aktiviteter med utslippsfaktorene slik at vi sitter igjen med klimagassutslipp knyttet til de ulike hoved- og underaktivitetene. Beregningsfanen skiller mellom byggefase og drift, slik at det fremkommer tydelig hvilke utslipp som er knyttet til byggeperioden (år 0) og hvilke som er knyttet til drift og vedlikehold gjennom hele analyseperioden. Verdier fra beregningsfanen benyttes videre i resultatfanen.
B41: 16 enhetsfaner for følgende kategorier: Hovedvei, Sidevei, Anleggsvei, Tunnel enkeltløp, Tunnel dobbeltløp, Betongbru, Stålbru, Trebru, Kulvert, Vegetasjon og arealbeslag, Sprengning og pukk, Tillegg vei, Grunnstabilisering, Drift og vedlikehold, Reasfaltering, Annen betong og injeksjon
B42: Enhetsfanene bygger på informasjon fra beregningsfaktorfanen for å beregne mengder og energiforbruk for en gitt skalerbar enhet. For eksempel tar tunnelfanene utgangspunkt i valgt tunnelprofil for å beregne mengder og energibruk per meter, mens veifanene beregner per kvadratmeter slik at disse endres dynamisk med endret veibredde. Enhetsfanene inkluderer materialer, transportavstander og anleggsarbeid. Verdier fra enhetsfanene benyttes videre i beregningsfanen.
B45: Transport og energibehov
B46: Fanen samler alle beregningsfaktorer knyttet til transport, slik som arbeidshastigheter for ulike maskiner, transportavstander og energiforbruk. Alle faktorer kan tilpasses prosjektet ved å legge inn prosjektspesifikke verdier - husk å legge inn dokumentasjon i kolonnen 'Dokumentasjon prosjektspesifikke verdier'! Beregningene leser alltid verdier fra kolonnen 'Verdi benyttet i beregninger', som er linket opp mot kolonnen for standardverdi og prosjektspesifikk verdi. Standardverdiene hentes dersom cellen for prosjektspesifikke verdier står tom. Dersom det legges inn en prosjektspesifikk verdi vil denne overstyre standardverdien. Det er i tillegg mulig å skille mellom ulike brensler ved å endre prosentandeler på henholdsvis fossil diesel, biodiesel og elektrisk/hydrogen for de ulike maskintypene. Merk at effektforbruk må fylles inn dersom det benyttes elektriske maskiner.
B50: Utslippsfaktorer
B51: Fanen gir en oversik over alle utslippsfaktorer benyttet i prosjektet. Utslippsfaktorfanen blir brukt av beregningsfanen, der faktorene multipliseres med mengder for å gi et samlet resultat, fremstilt i resultatfanen. Alle standard utslippsfaktorer er ment å representere bransjestandard for hvert materiale, men på grunn av ulike produksjonsmetoder og -steder vil dette variere mellom produsenter og materialer innenfor samme materialgruppe. Faktorene kan derfor tilpasses prosjektet ved å legge inn prosjektspesifikke verdier - husk å legge inn dokumentasjon i kolonnen 'Dokumentasjon prosjektspesifikke verdier'! Vær oppmerksom på enheten til utslippsfaktorene ved bruk av prosjektspesifikke verdier. Dersom enheten til en utslippsfaktorer er i kg CO2e/kg og du ønsker å benytte en utslippsfaktor med enhet kg CO2e/m3, må denne omregnes til kg CO2/kg vha. massetettheten til det gitte materialet (se i beregningsfaktorfanen). Formel for omgjøring er som følger: Utslippsfaktor [kg CO2e/kg] = utslippsfaktor [kg CO2e/m3] / massetetthet [kg/m3]. Beregningene leser alltid verdier fra kolonnen 'Verdi benyttet i beregninger', som er linket opp mot kolonnen for standardverdi og prosjektspesifikk verdi. Standardverdiene hentes dersom cellen for prosjektspesifikke verdier står tom. Dersom det legges inn prosjektspesifikk verdi vil denne overskrive standardverdien. Dersom det benyttes prosjektspesifikke utslippsfaktorer skal disse dokumenteres med en gyldig EPD.
B58: Beregningsfaktorer
B59: Fanen samler alle beregningsfaktorer som ikke er knyttet til transport, slik som massetettheter, materialtykkelser, levetider, osv. Alle faktorer kan tilpasses prosjektet ved å legge inn prosjektspesifikke verdier - husk å legge inn dokumentasjon i kolonnen 'Dokumentasjon prosjektspesifikke verdier'! Beregningene leser alltid verdier fra kolonnen 'Verdi benyttet i beregninger', som er linket opp mot kolonnen for standardverdi og prosjektspesifikk verdi. Standardverdiene hentes dersom cellen for prosjektspesifikke verdier står tom. Dersom det legges inn prosjektspesifikk verdi vil denne overskrive standardverdien.
B63: Enheter
B64: Følgende enheter benyttes i regneverktøyet:
B66: Forkortelse | C66: Betydning | D66: Kategori | E66: Kommentar
B67: km | C67: Kilometer | D67: Avstand
B68: m | C68: Meter | D68: Avstand
B69: h | C69: Time | D69: Tid
B70: t | C70: Tonn | D70: Vekt
B71: kg | C71: Kilogram | D71: Vekt
B72: tkm | C72: Tonnkilometer | D72: Transportarbeid | E72: Én tonnkilometer tilsvarer å frakte ett tonn last én kilometer
B73: L | C73: Liter | D73: Volum
B74: m3 | C74: Kubikkmeter | D74: Volum
B75: m2 | C75: Kvadratmeter | D75: Areal
B76: kWh | C76: Kilowattimer | D76: Energi | E76: Elektrisk energi
B77: kW | C77: Kilowatt | D77: Effekt | E77: Elektrisk effekt
B78: stk | C78: Stykk | D78: Mengde
B79: år | C79: År | D79: Tid
B80: ÅDT | C80: Årsdøgntrafikk | D80: Mengde

Sheet Prosjektbeskrivelse og inndata
B2: Om strekningen | J2: Inndata
B3: Prosjektinformasjon | C3: Mengde | D3: Beskrivelse | G3: Kommentar | J3: Kalkylepost (fra anslagsrapport) | K3: Beskrivelse | L3: Mengde | M3: Definert enhet (velges fra nedtrekksmeny) | N3: Kommentar
B4: Lengde hovedstrekning [m] | C4: =F37 -> 0 | D4: Summen av hovedvei, tunnel og bru
B5: Gjennomsnittlig bredde på anleggsbelte [m] | C5: 80 | D5: Til beregning av vegetasjonsrydding | G5: 80 som standard for firefeltsvei. Endre til 60 m for tofeltsvei. For utvidelse av tofelts- til firefeltsvei beholdes 80 m, men andel allerede utbygd areal hensyntas i naturtypetabellen
B6: Antall enkeltløpstunneler | D6: Til beregning av tunnelportaler
B7: Antall dobbeltløpstunneler | D7: Til beregning av tunnelportaler
B8: Antall kulverter | D8: Til beregning av anleggsarbeid
B9: Gjennomsnittsbredde hovedvei [m]
B10: Gjennomsnittsbredde sidevei [m]
B11: Gjennomsnittsbredde anleggsvei [m]
B12: Gjennomsnittsbredde betongbruer [m]
B13: Gjennomsnittsbredde stålbruer [m]
B14: Gjennomsnittsbredde trebruer [m]
B15: Gjennomsnittsbredde kulvert [m] | C15: 10 | D15: Til beregning av betongforbruk og anleggsarbeid | G15: 10 som standard
B16: Analyseperiode [år] | C16: 60 | D16: Standard 60 år, maks 60 år.
B17: ÅDT | D17: Gjennomsnittlig ÅDT, opprinnelig
B18: Delta ÅDT | D18: Endring i ÅDT fra opprinnelig strekning
B19: Belysning hovedvei | C19: Ja | D19: Er hovedvei belyst
B20: Belysning sidevei | C20: Nei | D20: Er sidevei belyst
B22: Arealbruksendringer | D22: Kommentar
B23: Totalt arealbeslag [m2] | C23: =C5*E37-C40 -> 0 | D23: Som standard beregnet som bredde anleggsbelte gange total lengde vei i dagen minus vei i dagen i eksisterende trase. Evt. arealbeslag fra sideveier må legges til.
B25: Naturtype | C25: Andel [%] | D25: Kommentar
B26: Skog - lav bonitet
B27: Skog - middels bonitet
B28: Skog - høy bonitet
B29: Myr
B30: Jordbruksareal
B31: Utbygd areal | V31: Fjerning av vegetasjonsdekke (m2) | W31: m2
B32: Sum | C32: =SUM(C26:C31) -> 0 | D32: Må være 100 %! | V32: Sprengning i dagen (fm3) | W32: fm3
B33: Dersom boniteten er ukjent skal skogarealer føres på 'middels bonitet' | V33: Sprengning tunnel (fm3) | W33: fm3
V34: Jordmasser til linja (m3) | W34: m3
B35: Prosentfordeling mellom tunnel, bru og vei i dagen på hovedstrekning | V35: Jordmasser til deponi (m3) | W35: m3
C36: Tunnel | D36: Bru | E36: Vei i dagen | F36: Totalt | V36: Sprengstein (intern) til linja (fm3) | W36: fm3
B37: Lengde [m] | F37: =C37+D37+E37 -> 0 | V37: Sprengstein (intern) til deponi (fm3) | W37: fm3
B38: Andel [%] | C38: =IFERROR(C37/C4,0) -> 0 | D38: =IFERROR(D37/C4,0) -> 0 | E38: =IFERROR(E37/(C4),0) -> 0 | F38: =C38+D38+E38 -> 0 | V38: Sprengstein (intern) til linja via pukkverk (fm3) | W38: fm3
V39: Pukk ekstern (m3) | W39: m3
B40: Hvorav vei i dagen i eksisterende trasé [m] | D40: Regnes som utbygd areal for beregning av arealbeslag | V40: Hovedvei (m) | W40: m
V41: Sidevei (m) | W41: m
B42: Kontroll massebalanse steinmasser - kun til kontrollformål, ikke utfylling! | V42: Anleggsvei (m) | W42: m
B43: Total mengde sprengstein fra sprengning (fm3) | C43: =SUMIF(M4:M110,V33,L4:L110)+SUMIF(M4:M110,V32,L4:L110) -> 0 | V43: Betongbru (m) | W43: m
B44: Total mengde intern sprengstein håndtert (fm3) | C44: =SUMIF(M4:M110,V36,L4:L110)+SUMIF(M4:M110,V37,L4:L110)+SUMIF(M4:M110,V38,L4:L110) -> 0 | V44: Stålbru (m) | W44: m
B45: Avvik intern sprengstein håndtert | C45: =C44-C43 -> 0 | D45: Bør ikke være avvik. | V45: Trebru (m) | W45: m
B46: Estimert totalbehov pukk (m3) | C46: =(Beregningsfaktorer!D26+Beregningsfaktorer!D27)*(Beregninger!C49*C9+Beregninger!C60*C10+Beregninger!C123*Beregningsfaktorer!D60+Beregninger!C142*Beregningsfaktorer!D61*2)+Beregningsfaktorer!D26*(Beregninger!C71*C11) -> 0 | D46: Antar forsterknings- og frostsikringslag på alle veier og i tunneler, utenom anleggsvei som bare har forsterkningslag. | V46: Tunnel enkeltløp (m) | W46: m
B47: Sum intern sprengstein til linja (m3) | C47: =(SUMIF(M4:M110,V36,L4:L110)+SUMIF(M4:M110,V38,L4:L110))*Beregningsfaktorer!D52 -> 0 | D47: NB - omgjort til lm3 tilsvarende grovknust pukk | V47: Tunnel dobbeltløp (m) | W47: m
B48: Sum ekstern pukk | C48: =SUMIF(M4:M110,V39,L4:L110) -> 0 | V48: Sement til injeksjon (ikke inkl. vann) (kg) | W48: kg
B49: Avvik ekstern pukk | C49: =C47+C48-C46 -> 0 | D49: Avvik kan aksepteres dersom mengder avviker fra standardberegninger/behov for pukk til fyllinger etc. | V49: Betongkulvert (m2) | W49: m2
B50: Fordeling av totalt behov for pukk mellom fin- og grovknust pukk endres i beregningsfaktorfane | V50: Grunnstabilisering med kalksementpeler (kg) | W50: kg
V51: Støyskjerm (m) | W51: m
V52: Mur (m) | W52: m
V53: Annen betong (m3) | W53: m3
V57: Belysning valg
V58: Ja
V59: Nei

Sheet Transport og energibehov
B2: Størrelse | C2: Enhet | D2: Verdi benyttet i beregninger | E2: Standardverdi | F2: Prosjekt-spesifikk verdi | G2: Enhet | H2: Verdi benyttet i beregninger | I2: Standardverdi | J2: Prosjekt-spesifikk verdi | K2: Enhet | L2: Andel el/ hydrogen | M2: Andel biodiesel | N2: Andel diesel | O2: Kommentar | P2: Dokumentasjon standardverdi | Q2: Dokumentasjon prosjektspesifikke verdier | R2: Evt. lenke for dokumentasjon
B3: Transportavstand materialer [én vei]
B4: Transport i linja | C4: km | D4: =IF(F4="",E4,F4) -> 0 | E4: =('Prosjektbeskrivelse og inndata'!F37/2000) -> 0 | O4: Alle transportavstander er samkjørt med VegLCA. Disse verdiene er meget generelle og det anbefales å benytte prosjektspesifikke verdier så langt det er mulig. | P4: Beregnes som halvparten av linja.
B5: Transport til deponi/lager | C5: km | D5: =IF(F5="",E5,F5) -> 20 | E5: 20 | P5: Estimert basert på erfaringstall
B6: Transport til pukkverk | C6: km | D6: 20 | E6: 20 | P6: Estimert basert på erfaringstall
B7: Asfaltbetong (Agb) og skjelettasfalt (Ska) | C7: km | D7: 50 | E7: 50 | P7: Estimert basert på erfaringstall
B8: Asfaltert grus (Ag) | C8: km | D8: 50 | E8: 50 | P8: Estimert basert på erfaringstall
B9: Pukk til frost- og forsterkningslag | C9: km | D9: 50 | E9: 50 | P9: Estimert basert på erfaringstall
B10: Betong | C10: km | D10: 50 | E10: 50 | P10: Estimert basert på erfaringstall
B11: Stål | C11: km | D11: 1600 | E11: 1600 | P11: Estimert basert på erfaringstall
B12: Armeringsstål | C12: km | D12: 1600 | E12: 1600 | P12: Estimert basert på erfaringstall
B13: Fuktsikring bru (Topeka) | C13: km | D13: 50 | E13: 50 | P13: Estimert basert på erfaringstall
B14: Frostsikringselementer tunnel | C14: km | D14: 200 | E14: 200 | P14: Estimert basert på erfaringstall
B15: Salt | C15: km | D15: 500 | E15: 500 | P15: Samme verdi som VegLCA. Løselig basert på typiske land for import av salt. SaltImportøren importerer hovedsakelig fra Europa og Middelhavsområdet, CG Rieber fra Tyskland, Nederland og Israel og Mesta fra blant annet Tunisia, Italia, Danmark og Marokko. | R15: SaltImport: https://produktguiden.veier24.no/products/62-saltimport-asCG Rieber: https://www.gcrieber-salt.no/markeder/veivedlikehold/ Mesta: https://www.miljoklagenemnda.no/assets/files/Sak_2014_2_mesta.pdf
B16: Treverk (limtre) | C16: km | D16: 500 | E16: 500 | P16: Samme verdi som VegLCA.
B17: Naturstein | C17: km | D17: 500 | E17: 500 | P17: Samme verdi som VegLCA.
B18: Kalksement | C18: km | D18: =IF(F18="",E18,F18) -> 500 | E18: 500 | P18: Samme verdi som VegLCA.
B19: Plastmembran | C19: km | D19: =IF(F19="",E19,F19) -> 1600 | E19: 1600 | P19: Samme verdi som VegLCA.
B20: Sprøytebetong | C20: km | D20: 50 | E20: 50 | P20: Samme verdi som VegLCA.
B21: PE-skum | C21: km | D21: =IF(F21="",E21,F21) -> 50 | E21: 50 | P21: Samme verdi som VegLCA.
B22: Fiberarmering til sprøytebetong | C22: km | D22: 50 | E22: 50 | P22: Samme verdi som VegLCA.
B23: Armeringsnett til sprøytebetong | C23: km | D23: 1600 | E23: 1600 | P23: Samme verdi som VegLCA.
B24: Sement | C24: km | D24: =IF(F24="",E24,F24) -> 500 | E24: 500 | P24: Samme verdi som VegLCA.
B25: Energiforbruk og -kilder massetransport (snitt inkl. returkjøring) | C25: Diesel (liter pr. km/lastens størrelse i tonn) | G25: Elektrisitet (kWh pr. km/lastens størrelse i tonn) | K25: Fordeling mellom brensler
B26: Massetransport i linja | C26: L/tkm | D26: =IF(F26="",E26,F26) -> 0.03 | E26: 0.03 | G26: kWh/tkm | H26: =IF(J26="",0,J26) -> 0 | I26: Ingen standardverdi | K26: % | L26: 0 | M26: 0.1 | N26: =1-L26-M26 -> 0.9 | O26: Basert på statistikk for veitransport. | P26: Samkjørt med VegLCA.
B27: Massetransport til deponi/lager | C27: L/tkm | D27: =IF(F27="",E27,F27) -> 0.03 | E27: 0.03 | G27: kWh/tkm | H27: =IF(J27="",0,J27) -> 0 | I27: Ingen standardverdi | K27: % | L27: 0 | M27: 0.1 | N27: =1-L27-M27 -> 0.9 | O27: Basert på statistikk for veitransport. | P27: Samkjørt med VegLCA.
B28: Massetransport til pukkverk | C28: L/tkm | D28: 0.03 | E28: 0.03 | G28: kWh/tkm | H28: 0 | I28: Ingen standardverdi | K28: % | L28: 0 | M28: 0.17 | N28: 0.83 | O28: Basert på statistikk for veitransport. | P28: Samkjørt med VegLCA.
B29: Energiforbruk og -kilder materialtransport (snitt inkl. returkjøring) | C29: Diesel (liter pr. km/lastens størrelse i tonn) | G29: Elektrisitet (kWh pr. km/lastens størrelse i tonn) | K29: Fordeling mellom brensler
B30: Asfaltbetong (Agb) og skjelettasfalt (Ska) | C30: L/tkm | D30: 0.03 | E30: 0.03 | G30: kWh/tkm | H30: 0 | I30: Ingen standardverdi | K30: % | L30: 0 | M30: 0.17 | N30: 0.83 | O30: Basert på statistikk for veitransport. | P30: Samkjørt med VegLCA.
B31: Asfaltert grus (Ag) | C31: L/tkm | D31: =IF(F31="",E31,F31) -> 0.03 | E31: 0.03 | G31: kWh/tkm | H31: 0 | I31: Ingen standardverdi | K31: % | L31: 0 | M31: 0.17 | N31: 0.83 | O31: Basert på statistikk for veitransport. | P31: Samkjørt med VegLCA.
B32: Pukk til frost- og forsterkningslag | C32: L/tkm | D32: 0.03 | E32: 0.03 | G32: kWh/tkm | H32: =IF(J32="",0,J32) -> 0 | I32: Ingen standardverdi | K32: % | L32: 0 | M32: 0.17 | N32: 0.83 | O32: Basert på statistikk for veitransport. | P32: Samkjørt med VegLCA.
B33: Betong | C33: L/tkm | D33: =IF(F33="",E33,F33) -> 0.03 | E33: 0.03 | G33: kWh/tkm | H33: =IF(J33="",0,J33) -> 0 | I33: Ingen standardverdi | K33: % | L33: 0 | M33: 0.17 | N33: 0.83 | O33: Basert på statistikk for veitransport. | P33: Samkjørt med VegLCA.
B34: Stål | C34: L/tkm | D34: =IF(F34="",E34,F34) -> 0.03 | E34: 0.03 | G34: kWh/tkm | H34: =IF(J34="",0,J34) -> 0 | I34: Ingen standardverdi | K34: % | L34: 0 | M34: 0.17 | N34: 0.83 | O34: Basert på statistikk for veitransport. | P34: Samkjørt med VegLCA.
B35: Armeringsstål | C35: L/tkm | D35: =IF(F35="",E35,F35) -> 0.03 | E35: 0.03 | G35: kWh/tkm | H35: 0 | I35: Ingen standardverdi | K35: % | L35: 0 | M35: 0.17 | N35: 0.83 | O35: Basert på statistikk for veitransport. | P35: Samkjørt med VegLCA.
B36: Topeka | C36: L/tkm | D36: =IF(F36="",E36,F36) -> 0.03 | E36: 0.03 | G36: kWh/tkm | H36: 0 | I36: Ingen standardverdi | K36: % | L36: 0 | M36: 0.17 | N36: 0.83 | O36: Basert på statistikk for veitransport. | P36: Samkjørt med VegLCA.
B37: Frostsikringselementer tunnel | C37: L/tkm | D37: 0.03 | E37: 0.03 | G37: kWh/tkm | H37: 0 | I37: Ingen standardverdi | K37: % | L37: 0 | M37: 0.17 | N37: 0.83 | O37: Basert på statistikk for veitransport. | P37: Samkjørt med VegLCA.
B38: Transport av andre masser/materialer med lastebil | C38: L/tkm | D38: 0.03 | E38: 0.03 | G38: kWh/tkm | H38: =IF(J38="",0,J38) -> 0 | I38: Ingen standardverdi | K38: % | L38: 0 | M38: 0.17 | N38: =1-L38-M38 -> 0.83 | O38: Basert på statistikk for veitransport. | P38: Samkjørt med VegLCA.
B39: Treverk (limtre) | C39: L/tkm | D39: =IF(F39="",E39,F39) -> 0.03 | E39: 0.03 | G39: kWh/tkm | H39: =IF(J39="",0,J39) -> 0 | I39: Ingen standardverdi | K39: % | L39: 0 | M39: 0.17 | N39: =1-L39-M39 -> 0.83 | O39: Basert på statistikk for veitransport. | P39: Samkjørt med VegLCA.
B40: Naturstein | C40: L/tkm | D40: 0.03 | E40: 0.03 | G40: kWh/tkm | H40: 0 | I40: Ingen standardverdi | K40: % | L40: 0 | M40: 0.17 | N40: 0.83 | O40: Basert på statistikk for veitransport. | P40: Samkjørt med VegLCA.
B41: Kalksement | C41: L/tkm | D41: =IF(F41="",E41,F41) -> 0.03 | E41: 0.03 | G41: kWh/tkm | H41: =IF(J41="",0,J41) -> 0 | I41: Ingen standardverdi | K41: % | L41: 0 | M41: 0.17 | N41: =1-L41-M41 -> 0.83 | O41: Basert på statistikk for veitransport. | P41: Samkjørt med VegLCA.
B42: Plastmembran | C42: L/tkm | D42: =IF(F42="",E42,F42) -> 0.03 | E42: 0.03 | G42: kWh/tkm | H42: =IF(J42="",0,J42) -> 0 | I42: Ingen standardverdi | K42: % | L42: 0 | M42: 0.17 | N42: =1-L42-M42 -> 0.83 | O42: Basert på statistikk for veitransport. | P42: Samkjørt med VegLCA.
B43: Sprøytebetong | C43: L/tkm | D43: 0.03 | E43: 0.03 | G43: kWh/tkm | H43: 0 | I43: Ingen standardverdi | K43: % | L43: 0 | M43: 0.17 | N43: 0.83 | O43: Basert på statistikk for veitransport. | P43: Samkjørt med VegLCA.
B44: PE-skum | C44: L/tkm | D44: =IF(F44="",E44,F44) -> 0.03 | E44: 0.03 | G44: kWh/tkm | H44: =IF(J44="",0,J44) -> 0 | I44: Ingen standardverdi | K44: % | L44: 0 | M44: 0.17 | N44: =1-L44-M44 -> 0.83 | O44: Basert på statistikk for veitransport. | P44: Samkjørt med VegLCA.
B45: Fiberarmering til sprøytebetong | C45: L/tkm | D45: 0.03 | E45: 0.03 | G45: kWh/tkm | H45: 0 | I45: Ingen standardverdi | K45: % | L45: 0 | M45: 0.17 | N45: 0.83 | O45: Basert på statistikk for veitransport. | P45: Samkjørt med VegLCA.
B46: Armeringsnett til sprøytebetong | C46: L/tkm | D46: =IF(F46="",E46,F46) -> 0.03 | E46: 0.03 | G46: kWh/tkm | H46: =IF(J46="",0,J46) -> 0 | I46: Ingen standardverdi | K46: % | L46: 0 | M46: 0.17 | N46: =1-L46-M46 -> 0.83 | O46: Basert på statistikk for veitransport. | P46: Samkjørt med VegLCA.
B47: Sement | C47: L/tkm | D47: =IF(F47="",E47,F47) -> 0.03 | E47: 0.03 | G47: kWh/tkm | H47: =IF(J47="",0,J47) -> 0 | I47: Ingen standardverdi | K47: % | L47: 0 | M47: 0.17 | N47: =1-L47-M47 -> 0.83 | O47: Basert på statistikk for veitransport. | P47: Samkjørt med VegLCA.
B48: Energiforbruk og -kilder anleggsarbeid | C48: Diesel | G48: Elektrisitet | K48: Fordeling mellom brensler
B49: Energiforbruk veivals | C49: L/h | D49: =IF(F49="",E49,F49) -> 3 | E49: 3 | G49: kW | H49: =IF(J49="",0,J49) -> 0 | I49: Ingen standardverdi | K49: % | L49: 0 | M49: 0.1 | N49: =1-M49-L49 -> 0.9 | P49: NIRAS' erfaringstall.
B50: Energiforbruk traktor | C50: L/h | D50: 5 | E50: 5 | G50: kW | H50: =IF(J50="",0,J50) -> 0 | I50: Ingen standardverdi | K50: % | L50: 0 | M50: 0.17 | N50: =1-M50-L50 -> 0.83 | P50: NIRAS' erfaringstall.
B51: Energiforbruk asfaltutlegger | C51: L/h | D51: 3 | E51: 3 | G51: kW | H51: 0 | I51: Ingen standardverdi | K51: % | L51: 0 | M51: 0.1 | N51: 0.9 | P51: NIRAS' erfaringstall.
B52: Energiforbruk gravemaskin | C52: L/h | D52: 20 | E52: 20 | G52: kW | H52: 0 | I52: Ingen standardverdi | K52: % | L52: 0 | M52: 0.1 | N52: 0.9 | P52: NIRAS' erfaringstall.
B53: Energiforbruk grovknuser | C53: L/h | D53: 25 | E53: 25 | G53: kW | H53: 0 | I53: Ingen standardverdi | K53: % | L53: 0 | M53: 0.1 | N53: 0.9 | P53: NIRAS' erfaringstall.
B54: Energiforbruk finknuser | C54: L/h | D54: =IF(F54="",E54,F54) -> 25 | E54: 25 | G54: kW | H54: 0 | I54: Ingen standardverdi | K54: % | L54: 0 | M54: 0.1 | N54: 0.9 | P54: NIRAS' erfaringstall.
B55: Energiforbruk tårnkran til bru og kulvert | C55: L/h | D55: =IF(F55="",0,F55) -> 0 | E55: Ingen standardverdi | G55: kW | H55: =IF(J55="",I55,J55) -> 48.6 | I55: 48.6 | K55: % | L55: 1 | M55: 0 | N55: =1-M55-L55 -> 0 | O55: Dersom ikke annet er oppgitt, benytt 100 % el | P55: Datablad Potain MDT 178 - 54 kVA. Antar PF 0,9.
B56: Energiforbruk veimerking | C56: L/m | D56: =IF(F56="",E56,F56) -> 0.0059 | E56: 0.0059 | G56: kW | H56: =IF(J56="",0,J56) -> 0 | I56: Ingen standardverdi | K56: % | L56: 0 | M56: 0.1 | N56: 0.9 | P56: NIRAS' erfaringstall.
B57: Energiforbruk etablering av grøft | C57: L/m | D57: 40 | E57: 40 | G57: kWh/m | H57: 0 | I57: Ingen standardverdi | K57: % | L57: 0 | M57: 0.1 | N57: 0.9 | P57: Straume, Krogsæter, NOTAT: Utredning og kravspesifikasjon til EFFEKT 6.6, Del 3: Videreutvikling av Klimamodulen. Lukket grøft til drenering "Grave grøfteprofil, nedsetting kummer, planering for rør i grøft og stikkrenner, omfylling og gjenfylling. 1 maskintime pr meter grøft"
B58: Energiforbruk anleggsarbeid autovern | C58: L/m | D58: 0.4 | E58: 0.4 | G58: kWh/m | H58: =IF(J58="",0,J58) -> 0 | I58: Ingen standardverdi | K58: % | L58: 0 | M58: 0.1 | N58: 0.9 | P58: Antar at aggregat bakpå en lastebil bruker 4 L/t på utsetting av autovern, og at det legges 80 m autovern per dag for fire-felts vei. Én dag defineres som 8 timer. Da får man 32 liter diesel/dag. 32 liter diesel per dag / 80 m autovern per dag => 0,4 liter diesel/m. Tallet er verifisert av Marianne Gjerde i Arvid Gjerde AS, som i mailkommunikasjon den 14.04.20 sier at deres pelerigg bruker 0,42 liter pr meter montert rekkverk i snitt på ett år.
B59: Energiforbruk hjullaster/traktor til kantklipp | C59: L/h | D59: 7.5 | E59: 7.5 | G59: kW | H59: 0 | I59: Ingen standardverdi | K59: % | L59: 0 | M59: 0.17 | N59: =1-M59-L59 -> 0.83 | P59: NIRAS' erfaringstall.
B60: Energiforbruk hjullaster/traktor til feiing | C60: L/h | D60: =IF(F60="",E60,F60) -> 7.5 | E60: 7.5 | G60: kW | H60: 0 | I60: Ingen standardverdi | K60: % | L60: 0 | M60: 0.17 | N60: 0.83 | O60: Forbruk er per felt. | P60: NIRAS' erfaringstall.
B61: Energiforbruk saltbil | C61: L/km | D61: 0.64 | E61: 0.64 | G61: kWh/km | H61: 0 | I61: Ingen standardverdi | K61: % | L61: 0 | M61: 0.17 | N61: 0.83 | O61: Forbruk er per to felt. | P61: Gjennomsnitt for vintervedlikeholdskjøretøy fra "Life cycle assessment of winter road maintenance", Vignisdottir et. Al, The International Journal of Life Cycle Assessment (2020)
B62: Energiforbruk brøytebil | C62: L/km | D62: 0.64 | E62: 0.64 | G62: kWh/km | H62: 0 | I62: Ingen standardverdi | K62: % | L62: 0 | M62: 0.17 | N62: 0.83 | O62: Forbruk er per brøyterunde. | P62: Gjennomsnitt for vintervedlikeholdskjøretøy fra "Life cycle assessment of winter road maintenance", Vignisdottir et. Al, The International Journal of Life Cycle Assessment (2020)
B63: Energiforbruk montering av støyskjerm | C63: L/m | D63: 0.5 | E63: 0.5 | G63: kWh/m | H63: 0 | I63: Ingen standardverdi | K63: % | L63: 0 | M63: 0.1 | N63: 0.9 | P63: Erfaringstall fra produsent.
B64: Energiforbruk hullboring til injeksjon | C64: L/m | D64: =IF(F64="",E64,F64) -> 0.6 | E64: 0.6 | G64: kWh/m | H64: 0 | I64: Ingen standardverdi | K64: % | L64: 0 | M64: 0.1 | N64: 0.9 | O64: Samkjørt med VegLCA. | P64: Kålås Iversen, O. M. (2013).
B65: Energiforbruk nedboring av kalksementpeler | C65: L/kg | D65: =IF(F65="",E65,F65) -> 0.003574545962 | E65: 0.003574545962 | G65: kWh/kg | H65: 0 | I65: Ingen standardverdi | K65: % | L65: 0 | M65: 0.1 | N65: 0.9 | O65: Samkjørt med VegLCA. | P65: Miljøbudsjett for over- og underbygning, Ski stasjon. UOS-90-A-20123. 116384 liter diesel på 32559 tonn KS peler.
B66: Arbeidshastighet anleggsmaskiner
B67: Arbeidshastighet veivals | C67: t/h | D67: =IF(F67="",E67,F67) -> 75 | E67: 75 | O67: Faktoren er satt for å få ca. samme dieselforbruk som i VegLCA: 0,04 L/m2 asfalt lagt. | P67: Samkjøringsprosjektet mellom NV-GHG og VegLCA
B68: Arbeidshastighet traktor | C68: t/h | D68: 300 | E68: 300 | P68: NIRAS' erfaringstall.
B69: Arbeidshastighet asfaltutlegger | C69: t/h | D69: 3.75 | E69: 3.75 | O69: Faktoren er satt for å få ca. samme dieselforbruk som i VegLCA: 0,8 L/tonn asfalt lagt. | P69: Samkjøringsprosjektet mellom NV-GHG og VegLCA
B70: Arbeidshastighet gravemaskin | C70: t/h | D70: 150 | E70: 150 | P70: NIRAS' erfaringstall.
B71: Arbeidshastighet grovknuser | C71: t/h | D71: 125 | E71: 125 | P71: NIRAS' erfaringstall.
B72: Arbeidshastighet finknuser | C72: t/h | D72: 250 | E72: 250 | P72: NIRAS' erfaringstall.
B73: Arbeidshastighet kran første 400 m2 av bru | C73: m2/h | D73: 1.666666667 | E73: =400/240 -> 1.666666667 | O73: Verdi burde verifiseres med flere kilder. Store variasjoner avhengig av brutype, fundamenteringsforhold (geologi) og bruens størrelse. Faktoren kan sannsynligvis variere med pluss/minus 60 % avhengig av forholdene | P73: NIRAS' erfaringstall.
B74: Arbeidshastighet kran resterende del av bru | C74: m2/h | D74: 3.333333333 | E74: =400/120 -> 3.333333333 | O74: Verdi burde verifiseres med flere kilder. Store variasjoner avhengig av brutype, fundamenteringsforhold (geologi) og bruens størrelse. Faktoren kan sannsynligvis variere med pluss/minus 60 % avhengig av forholdene | P74: NIRAS' erfaringstall.
B75: Arbeidshastighet kran kulvert | C75: h/stk | D75: 18 | E75: 18 | O75: For en prefabrikert elementkulvert ca. 10 timer. For en plasstøpt ca 25 timer. Bruker 18 timer som et gjennomsnitt. Verdi burde verifiseres med flere kilder. | P75: NIRAS' erfaringstall.
B76: Arbeidshastighet gravemaskin grøfterensk | C76: m/h | D76: 300 | E76: 300 | P76: NIRAS' erfaringstall.
B77: Arbeidshastighet traktor/hjullaster feiing | C77: m/h | D77: 2000 | E77: 2000 | P77: NIRAS' erfaringstall.
B78: Arbeidshastighet traktor/hjullaster kantklipp | C78: m/h | D78: 7500 | E78: =1000/(8/60) -> 7500 | P78: Arbeidshastighet er gjennomsnitt av verdier oppgitt av Maskinimportøren den 15.04.20, som sier deres traktor til kantklipping bruker ca. 8 min på å klippe 1-1,25 m kant i 1 km
B79: Arbeidshastighet gravemaskin montering av mur | C79: m3/h | D79: =IF(F79="",E79,F79) -> 2.4 | E79: =2*Beregningsfaktorer!D95 -> 2.4 | O79: Dersom ikke annet er oppgitt antas 100 % fossil diesel | P79: Basert på 2 m2 natursteinsmur per time, estimert fra håndbok V270

Sheet Beregningsfaktorer
B2: Størrelse | C2: Enhet | D2: Verdi benyttet i beregninger | E2: Standard-verdi | F2: Prosjektspesifikk verdi | G2: Kommentar | H2: Dokumentasjon standardverdi | I2: Evt. lenke dokumentasjon standardverdi | J2: Dokumentasjon prosjektspesifikk verdi | K2: Evt. lenke dokumentasjon prosjektsesifikk verdi
B3: Massetettheter
B4: Betong | C4: kg/m3 | D4: =IF(F4="",E4,F4) -> 2400 | E4: 2400 | H4: Norsk betongforening Publikasjon 37: Lavkarbonbetong (2015)
B5: Stål, armeringsstål | C5: kg/m3 | D5: 7850 | E5: 7850 | H5: "Metode for beregning av energiforbruk og klimagassutslipp for vegprosjekter", Hammervold (2009) s. 8, Engineering Toolbox | I5: https://www.engineeringtoolbox.com/metal-alloys-densities-d_50.html
B6: Skjelettasfalt | C6: kg/m3 | D6: 2500 | E6: 2500 | H6: "Metode for beregning av energiforbruk og klimagassutslipp for vegprosjekter", Hammervold (2009) s. 34
B7: Asfaltgrusbetong | C7: kg/m3 | D7: 2500 | E7: 2500 | H7: "Metode for beregning av energiforbruk og klimagassutslipp for vegprosjekter", Hammervold (2009) s. 34
B8: Asfaltgrus | C8: kg/m3 | D8: 2400 | E8: 2400 | H8: Klimamodul EFFEKT 6.74
B9: Pukk/grus frostsikring (grovknust) | C9: kg/m3 | D9: 1550 | E9: 1550 | H9: Anbefalt verdi i samkjøringsprosjekt, snitt av minimums- og maksimumsverdi (1,4-1,7) i EPDer
B10: Pukk/grus forsterkningslag (finknust) | C10: kg/m3 | D10: 1550 | E10: 1550 | H10: Anbefalt verdi i samkjøringsprosjekt, snitt av minimums- og maksimumsverdi (1,4-1,7) i EPDer
B11: XPS | C11: kg/m3 | D11: 35 | E11: 35 | H11: VegLCA (kommunikasjon med leverandører)
B12: XPS-/betongelement til frostsikring i tunnel | C12: kg/m3 | D12: 1804.45 | E12: =_xlfn.XLOOKUP(D59,M45:M48,R45:R48,R45) -> 1804.45 | H12: EPD-er XPS-/betongelement og kun betongelement mottatt fra Ølen betong
B13: Topeka | C13: kg/m3 | D13: 2500 | E13: 2500 | H13: "Metode for beregning av energiforbruk og klimagassutslipp for vegprosjekter", Hammervold (2009) s. 34, bruker samme som asfaltbetong
B14: Jord, grus, sand og leire fra vegetasjonsrydding | C14: kg/m3 | D14: 1629.154531 | E14: =(1550+1400+19*101.971768)/3 -> 1629.154531 | H14: Snitt av grus/pukk, jord fra https://tuneutemiljo.no/jord-og-bark-salg/ og leire fra håndbok V220, s. 95. Figur 2.39 "Anbefalte jordparametere ved dimensjonering av landkar og støttemurer".
B15: Myr fra vegetasjonsrydding | C15: kg/m3 | D15: 150 | E15: 150 | H15: Utredning myr, Hadsel kommune (Asplan Viak, 2017)
B16: Fast fjell | C16: kg/m3 | D16: 2700 | E16: 2700 | G16: Samkjørt med VegLCA. | H16: Informasjon fra produsent(er).
B17: Masser fra grøfterensk | C17: kg/m3 | D17: 1400 | E17: 1400 | H17: Antar samme tetthet som jord. https://tuneutemiljo.no/jord-og-bark-salg/
B18: Treverk (limtre) | C18: kg/m3 | D18: 470 | E18: 470 | H18: EN 14080:2013
B19: Naturstein | C19: kg/m3 | D19: 2700 | E19: 2700 | G19: Samkjørt med VegLCA. | H19: Antar lik som fast fjell
B20: Sprøytebetong | C20: kg/m3 | D20: 2400 | E20: =E4 -> 2400 | H20: Antar lik som betong
B21: PE-skum | C21: kg/m3 | D21: 30 | E21: 30 | G21: Heller brukt EPD enn VegLCA "kommunikasjon med leverandører" | H21: NEPD-2915-1608-NO
B22: Materialtykkelser/-mengder
B23: Slitelag tykkelse | C23: m | D23: =IF(F23="",E23,F23) -> 0.04 | E23: 0.04 | H23: Statens Vegvesen håndbok N200 (antar ÅDT > 5000)
B24: Bindlag tykkelse | C24: m | D24: =IF(F24="",E24,F24) -> 0.04 | E24: 0.04 | H24: Statens Vegvesen håndbok N200 (antar ÅDT > 5000)
B25: Bærelag tykkelse | C25: m | D25: 0.13 | E25: 0.13 | H25: Statens Vegvesen håndbok N200
B26: Forsterkningslag tykkelse | C26: m | D26: 0.455 | E26: 0.455 | G26: Brukes kun til å estimere behov for pukk, men all pukk må legges inn manuelt i Prosjektbeskrivelse og inndata | H26: Statens Vegvesen håndbok N200
B27: Frostsikringslag vei tykkelse | C27: m | D27: 1.74 | E27: 1.74 | G27: Brukes kun til å estimere behov for pukk, men all pukk må legges inn manuelt i Prosjektbeskrivelse og inndata | H27: Statens Vegvesen håndbok N200
B28: Topeka tykkelse | C28: m | D28: 0.012 | E28: 0.012 | H28: Statens Vegvesen håndbok R762
B29: Frostsikringselement betong/XPS tunnel tykkelse | C29: m | D29: 0.2 | E29: =_xlfn.XLOOKUP(D59,M45:M48,P45:P48,0) -> 0.2 | G29: Velg frostsikring i celle F59 først! | H29: EPD-er XPS-/betongelement og kun betongelement mottatt fra Ølen betong
B30: Sprøytebetong til tunnelhvelv tykkelse | C30: m | D30: 0 | E30: =IF(OR(D59=M49,D59=M50,D59=M51,D59=M52),0.088,0) -> 0 | G30: Velg frostsikring i celle F59 først! Samkjørt med VegLCA. | H30: Informasjon fra produsent(er) jf. VegLCA.
B31: PE-skum til tunnelhvelv tykkelse | C31: m | D31: 0 | E31: =IF(OR(D59=M49,D59=M51),0.045,0) -> 0 | G31: Velg frostsikring i celle F59 først! Samkjørt med VegLCA. | H31: Informasjon fra produsent(er) jf. VegLCA.
B32: Fiberarmering til tunnelhvelv med sprøytebetong, per m3 sprøytebetong | C32: kg/m3 | D32: =IF(F32="",E32,F32) -> 0 | E32: =IF(OR(D59=M49,D59=M50),20,0) -> 0 | G32: Velg frostsikring i celle F59 først! Samkjørt med VegLCA. | H32: Informasjon fra produsent(er) jf. VegLCA.
B33: Armeringsnett til tunnelhvelv med sprøytebetong | C33: kg/m2 | D33: =IF(F33="",E33,F33) -> 0 | E33: =IF(OR(D59=M51,D59=M52),3.02,0) -> 0 | G33: Velg frostsikring i celle F59 først! Samkjørt med VegLCA. | H33: Informasjon fra produsent(er) jf. VegLCA.
B34: Plastmembran tunnel per m2 membran | C34: kg/m2 | D34: 0.696 | E34: 0.696 | G34: Samkjørt med VegLCA | H34: Informasjon fra leverandører, se NEPD-100-203-NO
B35: Betong til betongbru | C35: kg/m2 | D35: =IF(F35="",E35,F35) -> 3500 | E35: 3500 | H35: Erfaringstall fra Øystein Wiggen i Nye Veier, gitt 03.03.2022
B36: Betong til stålbru | C36: kg/m2 | D36: =IF(F36="",E36,F36) -> 2500 | E36: 2500 | H36: Erfaringstall fra Øystein Wiggen i Nye Veier, gitt 03.03.2022
B37: Betong til trebru | C37: kg/m2 | D37: =IF(F37="",E37,F37) -> 3440 | E37: 3440 | G37: Landkarene | H37: Erfaringstall fra Øystein Wiggen i Nye Veier, gitt 17.02.2022
B38: Armeringsstål til betongbru | C38: kg/m2 | D38: =IF(F38="",E38,F38) -> 210 | E38: 210 | H38: Erfaringstall fra Øystein Wiggen i Nye Veier, gitt 08.03.2022
B39: Armeringsstål til stålbru | C39: kg/m2 | D39: 100 | E39: 100 | H39: Erfaringstall fra Øystein Wiggen i Nye Veier, gitt 03.03.2022
B40: Armeringsstål til trebru | C40: kg/m2 | D40: 150 | E40: 150 | G40: Kom i tillegg til konstruksjonsstål i mail. Dette er armering i landkar. | H40: Erfaringstall fra Øystein Wiggen i Nye Veier, gitt 03.03.2022
B41: Konstruksjonsstål til betongbru | C41: kg/m2 | D41: 40 | E41: 40 | H41: Erfaringstall fra Øystein Wiggen i Nye Veier, gitt 08.03.2022
B42: Konstruksjonsstål til stålbru | C42: kg/m2 | D42: 300 | E42: 300 | H42: Erfaringstall fra Øystein Wiggen i Nye Veier, gitt 03.03.2022
B43: Konstruksjonsstål til trebru | C43: kg/m2 | D43: 60 | E43: 60 | H43: Erfaringstall fra Øystein Wiggen i Nye Veier, gitt 17.02.2022
B44: Tre til trebru | C44: kg/m2 | D44: 430 | E44: 430 | H44: Erfaringstall fra Øystein Wiggen i Nye Veier, gitt 17.02.2022 | M44: Frostsikring av tunnelhvelv valg | O44: Utslippsfaktor kg CO2/m2 | P44: Tykkelse element | Q44: Vekt kg/m2 | R44: Tetthet kg/m3 | S44: Kilde
B45: Tre til betongbru | C45: kg/m2 | D45: 420 | E45: 420 | G45: Forskaling | H45: Erfaringstall fra Øystein Wiggen i Nye Veier, gitt 03.03.2022 | M45: 150 mm betong+50 mm XPS | O45: 50.265 | P45: 0.2 | Q45: 360.89 | R45: =Q45/P45 -> 1804.45 | S45: Mottatt fra Ølen betong
B46: Tre til stålbru | C46: kg/m2 | D46: 300 | E46: 300 | G46: Forskaling | H46: Erfaringstall fra Øystein Wiggen i Nye Veier, gitt 03.03.2022 | M46: 120 mm betong+50 mm XPS | O46: 41.022 | P46: 0.17 | Q46: 287.83 | R46: =Q46/P46 -> 1693.117647 | S46: Mottatt fra Ølen betong
B47: Sikringsbolter til tunnel | C47: kg/m | D47: 44 | E47: 44 | G47: Gjelder for tunnelprofil T9,5 | H47: "Metode for beregning av energiforbruk og klimagassutslipp for vegprosjekter", Hammervold (2009) s. 8 i vedlegg 1 | M47: 150 mm betong | O47: 44.365 | P47: 0.15 | Q47: 359.34 | R47: 2395.6 | S47: https://www.epd-norge.no/getfile.php/1315314-1613396866/EPDer/Byggevarer/Betongvarer/NEPD-2422-1218_Veggelement-inklusiv-armering--A1---A4---klasse-B---t---150mm.pdf
B48: Sprengstoff til sprengning i dagen | C48: kg/fm3 | D48: 1 | E48: 1 | G48: EFFEKT og Metoderapport oppgir ikke kilden de har brukt, og verdien bør derfor sokumenteres bedre i samtlige verktøy | H48: "Metode for beregning av energiforbruk og klimagassutslipp for vegprosjekter", Hammervold (2009) og dokumentasjon EFFEKT 2015 (SVV Rapport 358) | M48: 120 mm betong | O48: 35.12 | P48: 0.12 | Q48: 286.28 | R48: 2385.666667 | S48: https://www.epd-norge.no/getfile.php/1317144-1615563819/EPDer/Byggevarer/Betongvarer/NEPD-2650-1358_Veggelement-inklusiv-armering--A1---A4---klasse-B---t---120mm.pdf
B49: Sprengstoff til sprengning tunnel | C49: kg/fm3 | D49: 2.2 | E49: 2.2 | G49: EFFEKT og Metoderapport oppgir ikke kilden de har brukt, og verdien bør derfor sokumenteres bedre i samtlige verktøy | H49: "Metode for beregning av energiforbruk og klimagassutslipp for vegprosjekter", Hammervold (2009) og dokumentasjon EFFEKT 2015 (SVV Rapport 358) | M49: Fiberarmert sprøytebetong+PE-skum
B50: Steinmasser | M50: Fiberarmert sprøytebetong
B51: Andel pukk som er finknust (resten antas grovknust) | C51: % | D51: 0 | E51: =IFERROR(Beregningsfaktorer!D26*(Beregninger!C49*'Prosjektbeskrivelse og inndata'!C9+Beregninger!C60*'Prosjektbeskrivelse og inndata'!C10+Beregninger!C123*Beregningsfaktorer!D60+Beregninger!C142*Beregningsfaktorer!D61*2+Beregninger!C71*'Prosjektbeskrivelse og inndata'!C11)/((Beregningsfaktorer!D26+Beregningsfaktorer!D27)*(Beregninger!C49*'Prosjektbeskrivelse og inndata'!C9+Beregninger!C60*'Prosjektbeskrivelse og inndata'!C10+Beregninger!C123*Beregningsfaktorer!D60+Beregninger!C142*Beregningsfaktorer!D61*2)+Beregningsfaktorer!D26*(Beregninger!C71*'Prosjektbeskrivelse og inndata'!C11)),0) -> 0 | G51: Standardverdi beregnet basert på estimert behov for finknust pukk til forsterkningslag delt på totalt behov for pukk til forsterknings- og frostsikringslag | H51: - | M51: Sprøytebetong+armeringsnett+PE-skum
B52: Omgjøringsfaktor fm3-->m3 for sprengstein--> grovknust pukk | C52: - | D52: 1.741935484 | E52: =D16/D9 -> 1.741935484 | M52: Sprøytebetong+armeringsnett
B53: Kulverter
B54: Betongtykkelse kulvertelementer | C54: m | D54: =IF(F54="",E54,F54) -> 0.24 | E54: 0.24 | H54: Prefabrikkerte kulvertelementer, Statens vegvesen | I54: https://www.vegvesen.no/fag/teknologi/bruer/bruprosjektering/prefabrikkerte-kulvertelementer/_attachment/1361322?_ts=15d081de438&fast_title=Grunnlag%2C+beregningsforutsetninger+og+eksempel.pdf
B55: Høyde på kulverter | C55: m | D55: =IF(F55="",E55,F55) -> 3.2 | E55: 3.2 | H55: Prefabrikkerte kulvertelementer, Statens vegvesen | I55: https://www.vegvesen.no/fag/teknologi/bruer/bruprosjektering/prefabrikkerte-kulvertelementer/_attachment/1361322?_ts=15d081de438&fast_title=Grunnlag%2C+beregningsforutsetninger+og+eksempel.pdf
B56: Forholdstall mellom betong og armering | C56: kg/kg | D56: 13 | E56: 13 | H56: Tar utgangspunkt i "Metode for beregning av energiforbruk og klimagassutslipp for vegprosjekter", Hammervold (2009), s. 8 i Vedlegg 1, der andelen betong er 13 ganger høyere enn andelen armering for samme volum.
B57: Arbeidshastighet tårnkran | C57: h/stk | D57: =IF(F57="",E57,F57) -> 18 | E57: 18 | H57: NIRAS' erfaringstall
B58: Tunneler | M58: Tunnelprofil | N58: Teoretisk sprengningsprofil | P58: Normalprofil | R58: Veibredder
B59: Frostsikring av tunnelhvelv type | C59: - | D59: =IF(F59="",E59,F59) -> 150 mm betong+50 mm XPS | E59: 150 mm betong+50 mm XPS | F59: 150 mm betong+50 mm XPS | G59: Velg prosjektspesifikk verdi fra rullgardinmeny. 150 mm betong + 50 mm XPS brukes som standard hvis frostsikring ikke er kjent.
B60: Tunnelprofil enkeltløp | C60: - | D60: 10.5 | E60: 10.5 | H60: Typisk tunnelprofil | N60: Areal [m2] | O60: Buelengde [m] | P60: Areal [m2] | Q60: Buelengde [m] | R60: Kjørebane [m] | S60: Skulder [m]
B61: Tunnelprofil dobbeltløp | C61: - | D61: =IF(F61="",E61,F61) -> 9.5 | E61: 9.5 | H61: Typisk tunnelprofil | M61: 4 | N61: 20.32 | O61: 12.13 | P61: 13.57 | Q61: 9.85 | R61: 3 | S61: 1
B62: Betongmengde per portal enkeltløp | C62: m3/stk | D62: 357.6140684 | E62: =VLOOKUP(D60,M61:O72,3,FALSE)/O65*340 -> 357.6140684 | G62: Gjelder standard tunnel med portallengde 13 m på hver side | H62: "Metode for beregning av energiforbruk og klimagassutslipp for vegprosjekter", Hammervold (2009), s. 8 i Vedlegg 1. | M62: 5.5 | N62: 39.1 | O62: 17.12 | P62: 29.72 | Q62: 14.55 | R62: 3.5 | S62: 2
B63: Betongmengde per portal dobbeltløp | C63: m3/stk | D63: 340 | E63: =VLOOKUP(D61,M61:O72,3,FALSE)/O65*340 -> 340 | G63: Gjelder standard tunnel med portallengde 13 m på hver side | H63: "Metode for beregning av energiforbruk og klimagassutslipp for vegprosjekter", Hammervold (2009), s. 8 i Vedlegg 1. | M63: 7.5 | N63: 51.56 | O63: 18.88 | P63: 40.46 | Q63: 16.3 | R63: 5 | S63: 2.5
B64: Armering per portal enkeltløp | C64: kg/stk | D64: 65211.97719 | E64: =VLOOKUP(D60,M61:O72,3,FALSE)/O65*62000 -> 65211.97719 | G64: Gjelder standard tunnel med portallengde 13 m på hver side | H64: "Metode for beregning av energiforbruk og klimagassutslipp for vegprosjekter", Hammervold (2009), s. 8 i Vedlegg 1. | M64: 8.5 | N64: 61.92 | O64: 20.56 | P64: 49.66 | Q64: 17.99 | R64: 6.5 | S64: 2
B65: Armering per portal dobbeltløp | C65: kg/stk | D65: 62000 | E65: =VLOOKUP(D61,M61:O72,3,FALSE)/O65*62000 -> 62000 | G65: Gjelder standard tunnel med portallengde 13 m på hver side | H65: Metode for beregning av energiforbruk og klimagassutslipp for vegprosjekter, Hammervold (2009), s. 8 i Vedlegg 1. | M65: 9.5 | N65: 66.62 | O65: 21.04 | P65: 53.61 | Q65: 18.46 | R65: 7 | S65: 2.5
B66: Andel under sjø for enkeltløpstunnel | C66: % | D66: =IF(F66="",E66,F66) -> 0 | E66: 0 | G66: For beregning av strømforbruk vifter og pumper | H66: - | M66: 10.5 | N66: 74.59 | O66: 22.13 | P66: 60.64 | Q66: 19.55 | R66: 8 | S66: 2.5
B67: Andel under sjø for dobbeltløpstunnel | C67: % | D67: =IF(F67="",E67,F67) -> 0 | E67: 0 | G67: For beregning av strømforbruk vifter og pumper | H67: - | M67: 11.5 | N67: 85.92 | O67: 23.75 | P67: 70.89 | Q67: 21.18 | R67: 9.5 | S67: 2
B68: Injeksjonssement per m borehull (ikke inkl. vann) | C68: kg/m | D68: =IF(F68="",E68,F68) -> 2.1 | E68: 2.1 | G68: Brukes til å estimere totalt antall meter hull borret. Forutsatt borehulldiameter 51 mm og vann/sement-forhold på 0,75. | H68: "Miljø- og samfunnstjenlige tunneler, Delprosjekt C: Tetteteknikk, Berginjeksjon." Statens vegvesen internrapport 2151, år 2000.
B69: Drift- og vedlikeholdsintervaller | M69: 12.5 | N69: 91.32 | O69: 24.32 | P69: 75.49 | Q69: 21.73 | R69: 10 | S69: 2.5
B70: Utskiftningsintervall reasfaltering hovedvei | C70: år | D70: =IF(F70="",E70,F70) -> 15 | E70: =((IF('Prosjektbeskrivelse og inndata'!C17<=1500,15,0)+IF(AND('Prosjektbeskrivelse og inndata'!C17>1500,'Prosjektbeskrivelse og inndata'!C17<=3000),14,0)+IF(AND('Prosjektbeskrivelse og inndata'!C17>3000,'Prosjektbeskrivelse og inndata'!C17<=5000),11,0)+IF(AND('Prosjektbeskrivelse og inndata'!C17>5000,'Prosjektbeskrivelse og inndata'!C17<=10000),8,0)+IF(AND('Prosjektbeskrivelse og inndata'!C17>10000,'Prosjektbeskrivelse og inndata'!C17<=15000),6,0))+IF(AND('Prosjektbeskrivelse og inndata'!C17>15000,'Prosjektbeskrivelse og inndata'!C17<=20000),5,0)+IF(AND('Prosjektbeskrivelse og inndata'!C17>20000,'Prosjektbeskrivelse og inndata'!C17<=25000),4,0)+IF('Prosjektbeskrivelse og inndata'!C17>25000,3,0)) -> 15 | H70: Formel basert på VegLCA | M70: 13 | N70: 95.69 | O70: 24.86 | P70: 79.39 | Q70: 22.28 | R70: 10.5 | S70: 2.5
B71: Utskiftningsintervall reasfaltering sidedvei | C71: år | D71: 14 | E71: 14 | H71: Antatt ÅDT mellom 1500 og 3000 | M71: 13.5 | N71: 100.52 | O71: 25.46 | P71: 83.73 | Q71: 22.88 | R71: 11 | S71: 2.5
B72: Utskiftningsintervall autovern | C72: år | D72: 30 | E72: 30 | H72: Håndbok N101 Rekkverk og vegens sideområder (2014) s. 63 | M72: 14 | N72: 104.58 | O72: 25.96 | P72: 87.35 | Q72: 23.88 | R72: 11.5 | S72: 2.5
B73: Utskiftningsintervall lyktestolper | C73: år | D73: 25 | E73: 25 | H73: SVV rapport nr.646, 2016: Energibesparende vegbelysning.
B74: Driftsintervall kantklipp | C74: år | D74: 1 | E74: 1 | H74: NIRAS' erfaringstall.
B75: Driftsintervall grøfterensk | C75: år | D75: 3 | E75: 3 | H75: NIRAS' erfaringstall.
B76: Driftsintervall feiing | C76: år | D76: 1 | E76: 1 | H76: NIRAS' erfaringstall.
B77: Driftsintervall salting | C77: år | D77: 1 | E77: 1 | H77: NIRAS' erfaringstall.
B78: Driftsintervall brøyting | C78: år | D78: 1 | E78: 1 | H78: NIRAS' erfaringstall.
B79: Reasfaltering, drift og vedlikehold
B80: Andel til reasfaltering | C80: % | D80: =IF(F80="",E80,F80) -> 0.65 | E80: 0.65 | H80: Klimamodul EFFEKT 6.6 (2014)
B81: Elforbruk belysning i dagen | C81: kWh/(stk*år) | D81: =IF(F81="",E81,F81) -> 480 | E81: =32000/(E104*2) -> 480 | H81: LED er standard. Iht. SVV rapport 646 "Energibesparende vegbelysning" (2016), s. 20, har et middels effektivt LED-armatur et energibehov lik 32 MWh for større hovedveg utenfor bynære områder. Antar det gjelder for to belysningsrekker.
B82: Elforbruk belysning i tunnel | C82: kWh/(lm*år) | D82: =IF(F82="",E82,F82) -> 34 | E82: 34 | H82: Antar likt som for vei i dagen basert på at det er det som gjøres i "Metode for beregning av energiforbruk og klimagassutslipp for vegprosjekter", Hammervold (2009) og dokumentasjon for EFFEKT 6.6
B83: Elforbruk viftedrift oversjøisk enkeltløpstunnel | C83: kWh/(ÅDT*km*år) | D83: =IF(F83="",E83,F83) -> 3.7 | E83: 3.7 | G83: Bruker samme formel som tunnel dobbeltløp | H83: "Metode for beregning av energiforbruk og klimagassutslipp for vegprosjekter", Hammervold (2009) s. 46
B84: Elforbruk viftedrift undersjøisk enkeltløpstunnel | C84: kWh/(ÅDT*km*år) | D84: 14.6 | E84: 14.6 | G84: Bruker samme formel som tunnel dobbeltløp | H84: "Metode for beregning av energiforbruk og klimagassutslipp for vegprosjekter", Hammervold (2009) s. 46
B85: Elforbruk viftedrift oversjøisk dobbeltløpstunnel | C85: kWh/(ÅDT*km*år) | D85: 3.7 | E85: 3.7 | H85: "Metode for beregning av energiforbruk og klimagassutslipp for vegprosjekter", Hammervold (2009) s. 46
B86: Elforbruk viftedrift undersjøisk dobbeltløpstunnel | C86: kWh/(ÅDT*km*år) | D86: 14.6 | E86: 14.6 | H86: "Metode for beregning av energiforbruk og klimagassutslipp for vegprosjekter", Hammervold (2009) s. 46
B87: Elforbruk pumpedrift oversjøisk tunnel | C87: kWh/(m*år) | D87: 0 | E87: 0 | G87: Per tunnelløp | H87: "Metode for beregning av energiforbruk og klimagassutslipp for vegprosjekter", Hammervold (2009) s. 45/46
B88: Elforbruk pumpedrift undersjøisk tunnel | C88: kWh/(m*år) | D88: 18 | E88: 18 | G88: Per tunnelløp | H88: "Metode for beregning av energiforbruk og klimagassutslipp for vegprosjekter", Hammervold (2009) s. 45/46
B89: Saltforbruk | C89: tonn/(km*år) | D89: =IF(F89="",E89,F89) -> 10.5 | E89: 10.5 | H89: Mengderapportering vinteren 2018/2019, SVV rapport 362. Landsgjennomsnitt for riksvei
B90: Km brøyting per km vei per år | C90: km/(km*år) | D90: =IF(F90="",E90,F90) -> 724.7 | E90: 724.7 | H90: Mengderapportering vinteren 2018/2019, SVV rapport 362. Landsgjennomsnitt for riksvei
B91: Km salting per km vei per år for tofelt | C91: km/(km*år) | D91: =IF(F91="",E91,F91) -> 100 | E91: 100 | G91: Salter to felt per tur | H91: NIRAS' erfaringstall.
B92: Renset volum ved grøfterensk | C92: m3/m | D92: =IF(F92="",E92,F92) -> 0.133 | E92: 0.133 | H92: NIRAS' erfaringstall.
B93: Murer og støyskjermer
B94: Tykkelse mur betong | C94: m | D94: =IF(F94="",E94,F94) -> 0.5 | E94: 0.5 | G94: Harmonisert med VegLCA. | H94: Basert på erfaringstall fra Vianova.
B95: Tykkelse mur naturstein | C95: m | D95: =IF(F95="",E95,F95) -> 1.2 | E95: 1.2 | G95: Harmonisert med VegLCA. | H95: Basert på erfaringstall fra produsenter.
B96: Høyde mur | C96: m | D96: =IF(F96="",E96,F96) -> 2.5 | E96: 2.5 | G96: Antatt lik som støyskjerm.
B97: Andel av murer som naturstein (resten antas betong) | C97: % | D97: =IF(F97="",E97,F97) -> 0 | E97: 0 | G97: Angi andel av total lengde, f.esk. 10 m natursteinmur og 90 m betongmur gir 10 % | H97: Betong er standard
B98: Tykkelse tre støyskjerm | C98: m | D98: 0.1 | E98: 0.1 | G98: Harmonisert med VegLCA. | H98: Basert på informasjon fra produsenter.
B99: Høyde støyskjerm | C99: m | D99: 2.5 | E99: 2.5 | G99: Harmonisert med VegLCA. | H99: Basert på informasjon fra produsenter.
B100: Mengde stål per meter støyskjerm | C100: kg | D100: 23.5 | E100: 23.5 | H100: Basert på informasjon fra produsenter.
B101: Mengde betong per meter støyskjerm | C101: kg | D101: 84 | E101: 84 | H101: Basert på informasjon fra produsenter.
B102: Annet
B103: Lyktestolper inkludert fundament | C103: kg/stk | D103: =IF(F103="",E103,F103) -> 152 | E103: 152 | H103: Fra Vik Ørsta AS produktkatalog 2022; "Ettergivende HE, varmforsinket mast" [8 m, Ø76]. Art.nr. 3893408 (101 kg) og "Ørsta HE-fundament for RS-mast" Art.nr. 3523240C (51 kg).
B104: Antall lyktestolper per belysningsrekke per km hovedvei | C104: stk/km | D104: =IF('Prosjektbeskrivelse og inndata'!C19="Nei",0,IF(F104="",E104,F104)) -> 33.33333333 | E104: =1000/30 -> 33.33333333 | H104: LED er standard. Iht. SVV rapport 646 "Energibesparende vegbelysning" (2016) er masteavstanden 25-35 meter for større hovedveer utenfor bynære områder.
B105: Antall lyktestolper per belysningsrekke per km sidevei | C105: stk/km | D105: =IF('Prosjektbeskrivelse og inndata'!C20="Nei",0,IF(F105="",E105,F105)) -> 0 | E105: =1000/30 -> 33.33333333 | H105: LED er standard. Iht. SVV rapport 646 "Energibesparende vegbelysning" (2016) er masteavstanden 25-35 meter for større hovedveier utenfor bynære områder.
B106: Autovern | C106: kg/m | D106: =IF(F106="",E106,F106) -> 16.86 | E106: 16.86 | G106: Stålet har krav til fasthet, men gjenvinningsgrad og leverandør kan variere da de handler inn stål i bulk på et stort stålmarked. Ikke noe "finere" kvalitet på stålet til rekkverk enn stålet på autovern. For firefeltsvei må rekkverkmengden ganges med 4. | H106: Forutsetter styrkeklasse H1 ihht. tabell 3.1 og rundskriv om rekkverk 110 km/t. Forenkler til å beregne med samme rekkverkstandard på bruer. Tar utgangspunkt i Vik Ørsta "Vik EP H1 CC4" vegrekkverk, med vekt 16,86 kg/m. (Stolpene er medregnet i oppgitt vekt per meter, ref mail med Vik Ørsta den 09.02.2022).
B107: Antall kjørefelt enkeltløpstunnel | C107: stk | D107: 2 | E107: 2 | G107: Brukes til å beregne behov for salting og feiing. | H107: NIRAS' erfaringstall.
B108: Antall kjørefelt dobbeltløpstunnel | C108: stk | D108: 4 | E108: 4 | G108: Brukes til å beregne behov for salting og feiing. | H108: NIRAS' erfaringstall.
B109: Antall kjørefelt hovedvei | C109: stk | D109: 4 | E109: 4 | G109: Brukes til å beregne behov for salting og feiing. | H109: NIRAS' erfaringstall.
B110: Antall kjørefelt sidevei | C110: stk | D110: 2 | E110: 2 | G110: Brukes til å beregne behov for salting og feiing. | H110: NIRAS' erfaringstall.
B111: Antall belysningsrekker hovedvei | C111: stk | D111: 2 | E111: 2 | H111: NIRAS' erfaringstall.
B112: Antall belysningsrekker sidevei | C112: stk | D112: 1 | E112: 1 | H112: NIRAS' erfaringstall.
B113: Antall autovern hovedvei | C113: stk | D113: 4 | E113: 4 | H113: NIRAS' erfaringstall.
B114: Antall autovern sidevei | C114: stk | D114: 2 | E114: 2 | H114: NIRAS' erfaringstall.
B115: Antall grøfter hovedvei | C115: stk | D115: 3 | E115: 3 | H115: NIRAS' erfaringstall.
B116: Antall grøfter sidevei | C116: stk | D116: 2 | E116: 2 | H116: NIRAS' erfaringstall.
B117: Antall veimerkinger hovedvei | C117: stk | D117: 5 | E117: 5 | H117: NIRAS' erfaringstall.
B118: Antall veimerkinger sidevei | C118: stk | D118: 3 | E118: 3 | H118: NIRAS' erfaringstall.
B119: Tykkelse på vegetasjonslag som fjernes | C119: m | D119: 0.3 | E119: 0.3 | H119: NIRAS' erfaringstall.

Sheet Utslippsfaktorer
B2: Innsatsfaktor | C2: Enhet | D2: Utslippsfaktor brukt i beregninger | E2: Standard utslippsfaktor | F2: Prosjektspesifikk utslippsfaktor | G2: Kommentar | H2: Dokumentasjon standardverdi | I2: Dokumentasjon prosjektspesifikk verdi
B3: Materialer
B4: Aluminium | C4: kg CO2e/kg | D4: =IF(F4="",E4,F4) -> - | E4: - | G4: Brukes ikke i denne versjonen
B5: Armeringsstål | C5: kg CO2e/kg | D5: =IF(F5="",E5,F5) -> 0.5663 | E5: 0.5663 | G5: Samkjørt med VegLCA | H5: Gjennomsnitt av 10 EPDer publisert hos EPD-norge i 2021
B6: Asfaltgrusbetong (Agb) | C6: kg CO2e/kg | D6: 0.0451 | E6: 0.0451 | G6: Samkjørt med VegLCA | H6: Basert på Statens vegvesens drift- og vedlikeholdskontrakter, gjennomsnitt av EPD'er fra 2019 og 2020.
B7: Skjelettasfalt (Ska) | C7: kg CO2e/kg | D7: =IF(F7="",E7,F7) -> 0.061 | E7: 0.061 | G7: Samkjørt med VegLCA | H7: 6 % bitumen. Energibruk produksjon satt lik som for Asfaltgrusbetong og asfaltbetong
B8: Asfaltgrus (Ag) | C8: kg CO2e/kg | D8: 0.0341 | E8: 0.0341 | G8: Samkjørt med VegLCA | H8: Basert på Statens vegvesens drift- og vedlikeholdskontrakter, gjennomsnitt av EPD'er fra 2019 og 2020.
B9: Pukk grovknust | C9: kg CO2e/kg | D9: 0.002673333333 | E9: 0.002673333333 | H9: Snitt av EPD NEPD-1602-632-NO, NEPD-1537-527-NO, NEPD-1886-824-NO. 2. knusetrinn
B10: Pukk finknust | C10: kg CO2e/kg | D10: =IF(F10="",E10,F10) -> 0.00315 | E10: 0.00315 | G10: Samkjørt med VegLCA | H10: Snitt av EPD NEPD-1602-632-NO, NEPD-1537-527-NO, NEPD-1886-824-NO. 3. knusetrinn
B11: Topeka | C11: kg CO2e/kg | D11: =IF(F11="",E11,F11) -> 0.052 | E11: 0.052 | G11: Samkjørt med VegLCA | H11: Kopi av "mastic asphalt production CH", bitumeninnhold (pitch) endret fra 8 til 12% og endret til norsk elmiks.
B12: Betong | C12: kg CO2e/kg | D12: 0.1375 | E12: 0.1375 | G12: Baseline: =410/2400 | H12: NB 37 (2019). Bransjereferanse for B35. NB 37 sier at ved omgjøring fra kg/kg til kg/m3 skal densiteten 2400 kg/m3 brukes. | I12: =330/2400 -> 0.1375
B13: PE-skum | C13: kg CO2e/m2 | D13: 14.6 | E13: =IFERROR(14.6*Beregningsfaktorer!D31/Beregningsfaktorer!E31,14.6) -> 14.6 | G13: Bruker heller EPD enn ecoinvent som i VegLCA. Utslippsfaktor regnes ut basert på tykkelse av PE-skum. | H13: NEPD-2915-1608-NO
B14: Salt | C14: kg CO2e/kg | D14: 0.07788333333 | E14: 0.07788333333 | H14: A1-A3 snitt av NEPD-3859-2812-NO, NEPD-2702-1405-NO, NEPD-3934-2893-NO, NEPD-4159-3399-NO, NEPD-3935-2893-NO, NEPD-3858-2812-NO
B15: Sprøytebetong | C15: kg CO2e/kg | D15: 0.1375 | E15: =330/2400 -> 0.1375 | G15: Samkjørt med VegLCA | H15: Tilsvarende normalbetong, B35, bransjereferanse.
B16: Stål | C16: kg CO2e/kg | D16: 2.1038 | E16: 2.1038 | H16: Gjennomsnitt av tre EPD'er på det norske markedet; NEPD-1914-839-EN (A1-A3), NEPD-1915-839-EN (A1-A3) og NEPD-1928-851-SE (A1-A3)
B17: XPS | C17: kg CO2e/m2 | D17: 3.7 | E17: 3.7 | H17: NEPD-396-274-NO (A1-A3). Sundolitt, Brødrene Sunde AS. 33mm tykkelse
B18: XPS-/betongelement | C18: kg CO2e/m2 | D18: 50.265 | E18: =_xlfn.XLOOKUP(Beregningsfaktorer!D59,Beregningsfaktorer!M45:M48,Beregningsfaktorer!O45:O48,Beregningsfaktorer!O45) -> 50.265 | H18: EPD-er XPS-/betongelement og kun betongelement mottatt fra Ølen betong
B19: Treverk (limtre) | C19: kg CO2e/kg | D19: 0.1570744681 | E19: =73.825/Beregningsfaktorer!D18 -> 0.1570744681 | G19: Samme metodikk som VegLCA, men det har ikke vært mulig å regne ut samme verdi som VegLCA. Benyttet nyere EPD-er. | H19: A1-A3 fossil GWP, snitt av EPD NEPD-1576-605-NO, NEPD-1577-605, NEPD-2531-1274-NO, NEPD-2783-1438-NO
B20: Naturstein | C20: kg CO2e/kg | D20: 0.11233625 | E20: 0.11233625 | G20: Samme metodikk som VegLCA, men det har ikke vært mulig å regne ut samme verdi som VegLCA. Benyttet nyere EPD-er. | H20: A1-A3 snitt av NEPD-2907-1588-NO, NEPD-2908-1588-NO, NEPD-2561-1288-NO, NEPD-2560-1289-NO, NEPD-2559-1290-NO, NEPD-2558-1291-NO, NEPD-2557-1297-NO, NEPD-2556-1293-NO, NEPD-1673-671-NO, NEPD-1585-609-NO, NEPD-1584-609-NO
B21: Kalk | C21: kg CO2e/kg | D21: =IF(F21="",E21,F21) -> 1.045 | E21: 1.045 | G21: Bruker heller EPD enn ecoinvent som i VegLCA. | H21: A1-A3 snitt av NEPD-3312-1950-NO og NEPD-3314-1952-NO
B22: Kalksement | C22: kg CO2e/kg | D22: 0.9000970833 | E22: =E21*0.5+E25*0.5 -> 0.9000970833 | H22: Beregnet som 50/50 kalk og sement CEM I.
B23: Plastmembran | C23: kg CO2e/m2 | D23: 4.243333333 | E23: 4.243333333 | G23: Samme metodikk som VegLCA, men fjernet utgått EPD. | H23: A1-A3 snitt av NEPD-2478-1224-NO, NEPD-1611-637-EN og NEPD-1303-425-EN
B24: Fiberarmering | C24: kg CO2e/kg | D24: 0.77066 | E24: 0.77066 | G24: Antar stålfiber | H24: A1-A3 NEPD-1383-447-NO
B25: Sement | C25: kg CO2e/kg | D25: =IF(F25="",E25,F25) -> 0.7551941667 | E25: 0.7551941667 | G25: Cem I. Samme metodikk som VegLCA, men det har ikke vært mulig å regne ut samme verdi som VegLCA. Benyttet nyere EPD-er. | H25: A1-A3 snitt av NEPD-3121-1779-EN, NEPD-3122-1778-EN, NEPD-3119-1781-EN, NEPD-2337-1064-NO, NEPD-2278-1028-NO, NEPD-2277-1028-NO, NEPD-2276-1028-NO, NEPD-2208-993-NO, NEPD-2205-1014-NO, NEPD-1539-528-NO, NEPD-1438-489-NO, NEPD-1426-468-EN
B26: Energi
B27: Biodiesel (WTT) | C27: kg CO2e/liter | D27: 1.92 | E27: 1.92 | H27: NS-EN 16258:2012. Tabell A.1 Biodiesel "well to tank"
B28: Fossil diesel forbrenning (TTW) | C28: kg CO2e/liter | D28: 2.67 | E28: 2.67 | H28: NS-EN 16258:2012. Tabell A.1 Diesel "tank to wheel"
B29: Fossil diesel (WTW) | C29: kg CO2e/liter | D29: 3.24 | E29: 3.24 | H29: NS-EN 16258-2012. Tabell A.1 Diesel "well to wheel"
B30: Sprengstoff (CTG) | C30: kg CO2e/kg | D30: 1.26 | E30: 1.26 | H30: Gjennomsnitt av 10 EPDer for sprengstoff på den norske markedet.
B31: Sprengstoff detonering | C31: kg CO2e/kg | D31: 0.1114 | E31: 0.1114 | H31: Gjennomsnitt av 10 EPDer for sprengstoff på den norske markedet.
B32: Elektrisitet anleggsfase, norsk miks | C32: kg CO2e/kWh | D32: =IF(F32="",E32,F32) -> 0.019 | E32: 0.019 | H32: https://www.nve.no/energi/energisystem/kraftproduksjon/hvor-kommer-stroemmen-fra/
B33: Elektrisitet 55 år, europeisk miks | C33: kg CO2e/kWh | D33: =IF(F33="",E33,F33) -> 0.1153 | E33: 0.1153 | H33: Utslippsfaktorer er utarbeidet med utgangspunkt i samme datagrunnlag som er benyttet i NS3720:2018 Metode for klimagassberegninger for bygninger; som er basert på statistikk fra Eurostat, EEA, SSB og EUs Roadmap 2015.
B34: Arealbruk
B35: Skog - lav bonitet | C35: kg CO2e/m2 | D35: =IF(F35="",E35,F35) -> 60 | E35: 60 | H35: «Metoder for å beregne klimagassutslipp fra arealbeslag» (Statens vegvesen, Nye Veier AS, Bane NOR SF, Jernbanedirektoratet, Kystverket, Avinor AS og Miljødirektoratet, 2022). Tabell 9.
B36: Skog - middels bonitet | C36: kg CO2e/m2 | D36: =IF(F36="",E36,F36) -> 71 | E36: 71 | H36: «Metoder for å beregne klimagassutslipp fra arealbeslag» (Statens vegvesen, Nye Veier AS, Bane NOR SF, Jernbanedirektoratet, Kystverket, Avinor AS og Miljødirektoratet, 2022). Tabell 9.
B37: Skog - høy bonitet | C37: kg CO2e/m2 | D37: =IF(F37="",E37,F37) -> 84 | E37: 84 | H37: «Metoder for å beregne klimagassutslipp fra arealbeslag» (Statens vegvesen, Nye Veier AS, Bane NOR SF, Jernbanedirektoratet, Kystverket, Avinor AS og Miljødirektoratet, 2022). Tabell 9.
B38: Myr | C38: kg CO2e/m2 | D38: =IF(F38="",E38,F38) -> 337 | E38: 337 | G38: For myr tar kilderapporten utgangspunkt i 2 m dyp myr. Tidligere utslippsfaktor på 201,9 kg CO2e/m2 tok utgangspunkt i 1 m dyp myr. | H38: «Metoder for å beregne klimagassutslipp fra arealbeslag» (Statens vegvesen, Nye Veier AS, Bane NOR SF, Jernbanedirektoratet, Kystverket, Avinor AS og Miljødirektoratet, 2022). Tabell 9.
B39: Jordbruksareal | C39: kg CO2e/m2 | D39: =IF(F39="",E39,F39) -> 43 | E39: 43 | G39: Inkl. innmarksbeite | H39: «Metoder for å beregne klimagassutslipp fra arealbeslag» (Statens vegvesen, Nye Veier AS, Bane NOR SF, Jernbanedirektoratet, Kystverket, Avinor AS og Miljødirektoratet, 2022). Tabell 9.

Sheet Resultat
B3: Tabell 1: Utslipp over livsløpet i tonn CO2e
B4: Kategori | C4: Totalt over analyseperiode | D4: År i livsløpet
D5: 0 | E5: 1 | F5: 2 | G5: 3 | H5: 4 | I5: 5 | J5: 6 | K5: 7 | L5: 8 | M5: 9 | N5: 10 | O5: 11 | P5: 12 | Q5: 13 | R5: 14 | S5: 15 | T5: 16 | U5: 17 | V5: 18 | W5: 19 | X5: 20 | Y5: 21 | Z5: 22 | AA5: 23 | AB5: 24 | AC5: 25 | AD5: 26 | AE5: 27 | AF5: 28 | AG5: 29 | AH5: 30 | AI5: 31 | AJ5: 32 | AK5: 33 | AL5: 34 | AM5: 35 | AN5: 36 | AO5: 37 | AP5: 38 | AQ5: 39 | AR5: 40 | AS5: 41 | AT5: 42 | AU5: 43 | AV5: 44 | AW5: 45 | AX5: 46 | AY5: 47 | AZ5: 48 | BA5: 49 | BB5: 50 | BC5: 51 | BD5: 52 | BE5: 53 | BF5: 54 | BG5: 55 | BH5: 56 | BI5: 57 | BJ5: 58 | BK5: 59 | BL5: 60
B6: Byggefase | C6: =SUM(D6:BL6) -> 0 | D6: =IFERROR(SUMIF(Beregninger!G:G,"År 0",Beregninger!M:M),"Ikke definert") -> 0 | E6: 0 | F6: 0 | G6: 0 | H6: 0 | I6: 0 | J6: 0 | K6: 0 | L6: 0 | M6: 0 | N6: 0 | O6: 0 | P6: 0 | Q6: 0 | R6: 0 | S6: 0 | T6: 0 | U6: 0 | V6: 0 | W6: 0 | X6: 0 | Y6: 0 | Z6: 0 | AA6: 0 | AB6: 0 | AC6: 0 | AD6: 0 | AE6: 0 | AF6: 0 | AG6: 0 | AH6: 0 | AI6: 0 | AJ6: 0 | AK6: 0 | AL6: 0 | AM6: 0 | AN6: 0 | AO6: 0 | AP6: 0 | AQ6: 0 | AR6: 0 | AS6: 0 | AT6: 0 | AU6: 0 | AV6: 0 | AW6: 0 | AX6: 0 | AY6: 0 | AZ6: 0 | BA6: 0 | BB6: 0 | BC6: 0 | BD6: 0 | BE6: 0 | BF6: 0 | BG6: 0 | BH6: 0 | BI6: 0 | BJ6: 0 | BK6: 0 | BL6: 0
B7: Arealbruk | C7: =SUM(D7:BL7) -> 0 | D7: =C144 -> 0 | E7: 0 | F7: 0 | G7: 0 | H7: 0 | I7: 0 | J7: 0 | K7: 0 | L7: 0 | M7: 0 | N7: 0 | O7: 0 | P7: 0 | Q7: 0 | R7: 0 | S7: 0 | T7: 0 | U7: 0 | V7: 0 | W7: 0 | X7: 0 | Y7: 0 | Z7: 0 | AA7: 0 | AB7: 0 | AC7: 0 | AD7: 0 | AE7: 0 | AF7: 0 | AG7: 0 | AH7: 0 | AI7: 0 | AJ7: 0 | AK7: 0 | AL7: 0 | AM7: 0 | AN7: 0 | AO7: 0 | AP7: 0 | AQ7: 0 | AR7: 0 | AS7: 0 | AT7: 0 | AU7: 0 | AV7: 0 | AW7: 0 | AX7: 0 | AY7: 0 | AZ7: 0 | BA7: 0 | BB7: 0 | BC7: 0 | BD7: 0 | BE7: 0 | BF7: 0 | BG7: 0 | BH7: 0 | BI7: 0 | BJ7: 0 | BK7: 0 | BL7: 0
B8: Drift | C8: 0 | D8: 0 | E8: =IF(E5<='Prosjektbeskrivelse og inndata'!$C$16,SUMIFS(Beregninger!O$206:O$423,Beregninger!$H$206:$H$423,Resultat!$B8),0) -> 0 | F8: =IF(F5<='Prosjektbeskrivelse og inndata'!$C$16,SUMIFS(Beregninger!P$206:P$423,Beregninger!$H$206:$H$423,Resultat!$B8),0) -> 0 | G8: =IF(G5<='Prosjektbeskrivelse og inndata'!$C$16,SUMIFS(Beregninger!Q$206:Q$423,Beregninger!$H$206:$H$423,Resultat!$B8),0) -> 0 | H8: =IF(H5<='Prosjektbeskrivelse og inndata'!$C$16,SUMIFS(Beregninger!R$206:R$423,Beregninger!$H$206:$H$423,Resultat!$B8),0) -> 0 | I8: =IF(I5<='Prosjektbeskrivelse og inndata'!$C$16,SUMIFS(Beregninger!S$206:S$423,Beregninger!$H$206:$H$423,Resultat!$B8),0) -> 0 | J8: =IF(J5<='Prosjektbeskrivelse og inndata'!$C$16,SUMIFS(Beregninger!T$206:T$423,Beregninger!$H$206:$H$423,Resultat!$B8),0) -> 0 | K8: =IF(K5<='Prosjektbeskrivelse og inndata'!$C$16,SUMIFS(Beregninger!U$206:U$423,Beregninger!$H$206:$H$423,Resultat!$B8),0) -> 0 | L8: =IF(L5<='Prosjektbeskrivelse og inndata'!$C$16,SUMIFS(Beregninger!V$206:V$423,Beregninger!$H$206:$H$423,Resultat!$B8),0) -> 0 | M8: =IF(M5<='Prosjektbeskrivelse og inndata'!$C$16,SUMIFS(Beregninger!W$206:W$423,Beregninger!$H$206:$H$423,Resultat!$B8),0) -> 0 | N8: =IF(N5<='Prosjektbeskrivelse og inndata'!$C$16,SUMIFS(Beregninger!X$206:X$423,Beregninger!$H$206:$H$423,Resultat!$B8),0) -> 0 | O8: =IF(O5<='Prosjektbeskrivelse og inndata'!$C$16,SUMIFS(Beregninger!Y$206:Y$423,Beregninger!$H$206:$H$423,Resultat!$B8),0) -> 0 | P8: =IF(P5<='Prosjektbeskrivelse og inndata'!$C$16,SUMIFS(Beregninger!Z$206:Z$423,Beregninger!$H$206:$H$423,Resultat!$B8),0) -> 0 | Q8: =IF(Q5<='Prosjektbeskrivelse og inndata'!$C$16,SUMIFS(Beregninger!AA$206:AA$423,Beregninger!$H$206:$H$423,Resultat!$B8),0) -> 0 | R8: =IF(R5<='Prosjektbeskrivelse og inndata'!$C$16,SUMIFS(Beregninger!AB$206:AB$423,Beregninger!$H$206:$H$423,Resultat!$B8),0) -> 0 | S8: =IF(S5<='Prosjektbeskrivelse og inndata'!$C$16,SUMIFS(Beregninger!AC$206:AC$423,Beregninger!$H$206:$H$423,Resultat!$B8),0) -> 0 | T8: =IF(T5<='Prosjektbeskrivelse og inndata'!$C$16,SUMIFS(Beregninger!AD$206:AD$423,Beregninger!$H$206:$H$423,Resultat!$B8),0) -> 0 | U8: =IF(U5<='Prosjektbeskrivelse og inndata'!$C$16,SUMIFS(Beregninger!AE$206:AE$423,Beregninger!$H$206:$H$423,Resultat!$B8),0) -> 0 | V8: =IF(V5<='Prosjektbeskrivelse og inndata'!$C$16,SUMIFS(Beregninger!AF$206:AF$423,Beregninger!$H$206:$H$423,Resultat!$B8),0) -> 0 | W8: =IF(W5<='Prosjektbeskrivelse og inndata'!$C$16,SUMIFS(Beregninger!AG$206:AG$423,Beregninger!$H$206:$H$423,Resultat!$B8),0) -> 0 | X8: =IF(X5<='Prosjektbeskrivelse og inndata'!$C$16,SUMIFS(Beregninger!AH$206:AH$423,Beregninger!$H$206:$H$423,Resultat!$B8),0) -> 0 | Y8: =IF(Y5<='Prosjektbeskrivelse og inndata'!$C$16,SUMIFS(Beregninger!AI$206:AI$423,Beregninger!$H$206:$H$423,Resultat!$B8),0) -> 0 | Z8: =IF(Z5<='Prosjektbeskrivelse og inndata'!$C$16,SUMIFS(Beregninger!AJ$206:AJ$423,Beregninger!$H$206:$H$423,Resultat!$B8),0) -> 0 | AA8: =IF(AA5<='Prosjektbeskrivelse og inndata'!$C$16,SUMIFS(Beregninger!AK$206:AK$423,Beregninger!$H$206:$H$423,Resultat!$B8),0) -> 0 | AB8: =IF(AB5<='Prosjektbeskrivelse og inndata'!$C$16,SUMIFS(Beregninger!AL$206:AL$423,Beregninger!$H$206:$H$423,Resultat!$B8),0) -> 0 | AC8: =IF(AC5<='Prosjektbeskrivelse og inndata'!$C$16,SUMIFS(Beregninger!AM$206:AM$423,Beregninger!$H$206:$H$423,Resultat!$B8),0) -> 0 | AD8: =IF(AD5<='Prosjektbeskrivelse og inndata'!$C$16,SUMIFS(Beregninger!AN$206:AN$423,Beregninger!$H$206:$H$423,Resultat!$B8),0) -> 0 | AE8: =IF(AE5<='Prosjektbeskrivelse og inndata'!$C$16,SUMIFS(Beregninger!AO$206:AO$423,Beregninger!$H$206:$H$423,Resultat!$B8),0) -> 0 | AF8: =IF(AF5<='Prosjektbeskrivelse og inndata'!$C$16,SUMIFS(Beregninger!AP$206:AP$423,Beregninger!$H$206:$H$423,Resultat!$B8),0) -> 0 | AG8: =IF(AG5<='Prosjektbeskrivelse og inndata'!$C$16,SUMIFS(Beregninger!AQ$206:AQ$423,Beregninger!$H$206:$H$423,Resultat!$B8),0) -> 0 | AH8: =IF(AH5<='Prosjektbeskrivelse og inndata'!$C$16,SUMIFS(Beregninger!AR$206:AR$423,Beregninger!$H$206:$H$423,Resultat!$B8),0) -> 0 | AI8: =IF(AI5<='Prosjektbeskrivelse og inndata'!$C$16,SUMIFS(Beregninger!AS$206:AS$423,Beregninger!$H$206:$H$423,Resultat!$B8),0) -> 0 | AJ8: =IF(AJ5<='Prosjektbeskrivelse og inndata'!$C$16,SUMIFS(Beregninger!AT$206:AT$423,Beregninger!$H$206:$H$423,Resultat!$B8),0) -> 0 | AK8: =IF(AK5<='Prosjektbeskrivelse og inndata'!$C$16,SUMIFS(Beregninger!AU$206:AU$423,Beregninger!$H$206:$H$423,Resultat!$B8),0) -> 0 | AL8: =IF(AL5<='Prosjektbeskrivelse og inndata'!$C$16,SUMIFS(Beregninger!AV$206:AV$423,Beregninger!$H$206:$H$423,Resultat!$B8),0) -> 0 | AM8: =IF(AM5<='Prosjektbeskrivelse og inndata'!$C$16,SUMIFS(Beregninger!AW$206:AW$423,Beregninger!$H$206:$H$423,Resultat!$B8),0) -> 0 | AN8: =IF(AN5<='Prosjektbeskrivelse og inndata'!$C$16,SUMIFS(Beregninger!AX$206:AX$423,Beregninger!$H$206:$H$423,Resultat!$B8),0) -> 0 | AO8: =IF(AO5<='Prosjektbeskrivelse og inndata'!$C$16,SUMIFS(Beregninger!AY$206:AY$423,Beregninger!$H$206:$H$423,Resultat!$B8),0) -> 0 | AP8: =IF(AP5<='Prosjektbeskrivelse og inndata'!$C$16,SUMIFS(Beregninger!AZ$206:AZ$423,Beregninger!$H$206:$H$423,Resultat!$B8),0) -> 0 | AQ8: =IF(AQ5<='Prosjektbeskrivelse og inndata'!$C$16,SUMIFS(Beregninger!BA$206:BA$423,Beregninger!$H$206:$H$423,Resultat!$B8),0) -> 0 | AR8: =IF(AR5<='Prosjektbeskrivelse og inndata'!$C$16,SUMIFS(Beregninger!BB$206:BB$423,Beregninger!$H$206:$H$423,Resultat!$B8),0) -> 0 | AS8: =IF(AS5<='Prosjektbeskrivelse og inndata'!$C$16,SUMIFS(Beregninger!BC$206:BC$423,Beregninger!$H$206:$H$423,Resultat!$B8),0) -> 0 | AT8: =IF(AT5<='Prosjektbeskrivelse og inndata'!$C$16,SUMIFS(Beregninger!BD$206:BD$423,Beregninger!$H$206:$H$423,Resultat!$B8),0) -> 0 | AU8: =IF(AU5<='Prosjektbeskrivelse og inndata'!$C$16,SUMIFS(Beregninger!BE$206:BE$423,Beregninger!$H$206:$H$423,Resultat!$B8),0) -> 0 | AV8: =IF(AV5<='Prosjektbeskrivelse og inndata'!$C$16,SUMIFS(Beregninger!BF$206:BF$423,Beregninger!$H$206:$H$423,Resultat!$B8),0) -> 0 | AW8: =IF(AW5<='Prosjektbeskrivelse og inndata'!$C$16,SUMIFS(Beregninger!BG$206:BG$423,Beregninger!$H$206:$H$423,Resultat!$B8),0) -> 0 | AX8: =IF(AX5<='Prosjektbeskrivelse og inndata'!$C$16,SUMIFS(Beregninger!BH$206:BH$423,Beregninger!$H$206:$H$423,Resultat!$B8),0) -> 0 | AY8: =IF(AY5<='Prosjektbeskrivelse og inndata'!$C$16,SUMIFS(Beregninger!BI$206:BI$423,Beregninger!$H$206:$H$423,Resultat!$B8),0) -> 0 | AZ8: =IF(AZ5<='Prosjektbeskrivelse og inndata'!$C$16,SUMIFS(Beregninger!BJ$206:BJ$423,Beregninger!$H$206:$H$423,Resultat!$B8),0) -> 0 | BA8: =IF(BA5<='Prosjektbeskrivelse og inndata'!$C$16,SUMIFS(Beregninger!BK$206:BK$423,Beregninger!$H$206:$H$423,Resultat!$B8),0) -> 0 | BB8: =IF(BB5<='Prosjektbeskrivelse og inndata'!$C$16,SUMIFS(Beregninger!BL$206:BL$423,Beregninger!$H$206:$H$423,Resultat!$B8),0) -> 0 | BC8: =IF(BC5<='Prosjektbeskrivelse og inndata'!$C$16,SUMIFS(Beregninger!BM$206:BM$423,Beregninger!$H$206:$H$423,Resultat!$B8),0) -> 0 | BD8: =IF(BD5<='Prosjektbeskrivelse og inndata'!$C$16,SUMIFS(Beregninger!BN$206:BN$423,Beregninger!$H$206:$H$423,Resultat!$B8),0) -> 0 | BE8: =IF(BE5<='Prosjektbeskrivelse og inndata'!$C$16,SUMIFS(Beregninger!BO$206:BO$423,Beregninger!$H$206:$H$423,Resultat!$B8),0) -> 0 | BF8: =IF(BF5<='Prosjektbeskrivelse og inndata'!$C$16,SUMIFS(Beregninger!BP$206:BP$423,Beregninger!$H$206:$H$423,Resultat!$B8),0) -> 0 | BG8: =IF(BG5<='Prosjektbeskrivelse og inndata'!$C$16,SUMIFS(Beregninger!BQ$206:BQ$423,Beregninger!$H$206:$H$423,Resultat!$B8),0) -> 0 | BH8: =IF(BH5<='Prosjektbeskrivelse og inndata'!$C$16,SUMIFS(Beregninger!BR$206:BR$423,Beregninger!$H$206:$H$423,Resultat!$B8),0) -> 0 | BI8: =IF(BI5<='Prosjektbeskrivelse og inndata'!$C$16,SUMIFS(Beregninger!BS$206:BS$423,Beregninger!$H$206:$H$423,Resultat!$B8),0) -> 0 | BJ8: =IF(BJ5<='Prosjektbeskrivelse og inndata'!$C$16,SUMIFS(Beregninger!BT$206:BT$423,Beregninger!$H$206:$H$423,Resultat!$B8),0) -> 0 | BK8: =IF(BK5<='Prosjektbeskrivelse og inndata'!$C$16,SUMIFS(Beregninger!BU$206:BU$423,Beregninger!$H$206:$H$423,Resultat!$B8),0) -> 0 | BL8: =IF(BL5<='Prosjektbeskrivelse og inndata'!$C$16,SUMIFS(Beregninger!BV$206:BV$423,Beregninger!$H$206:$H$423,Resultat!$B8),0) -> 0
B9: Vedlikehold | C9: 0 | D9: 0 | E9: =IF(E5<='Prosjektbeskrivelse og inndata'!$C$16,SUMIFS(Beregninger!O$206:O$423,Beregninger!$H$206:$H$423,Resultat!$B9),0) -> 0 | F9: =IF(F5<='Prosjektbeskrivelse og inndata'!$C$16,SUMIFS(Beregninger!P$206:P$423,Beregninger!$H$206:$H$423,Resultat!$B9),0) -> 0 | G9: =IF(G5<='Prosjektbeskrivelse og inndata'!$C$16,SUMIFS(Beregninger!Q$206:Q$423,Beregninger!$H$206:$H$423,Resultat!$B9),0) -> 0 | H9: =IF(H5<='Prosjektbeskrivelse og inndata'!$C$16,SUMIFS(Beregninger!R$206:R$423,Beregninger!$H$206:$H$423,Resultat!$B9),0) -> 0 | I9: =IF(I5<='Prosjektbeskrivelse og inndata'!$C$16,SUMIFS(Beregninger!S$206:S$423,Beregninger!$H$206:$H$423,Resultat!$B9),0) -> 0 | J9: =IF(J5<='Prosjektbeskrivelse og inndata'!$C$16,SUMIFS(Beregninger!T$206:T$423,Beregninger!$H$206:$H$423,Resultat!$B9),0) -> 0 | K9: =IF(K5<='Prosjektbeskrivelse og inndata'!$C$16,SUMIFS(Beregninger!U$206:U$423,Beregninger!$H$206:$H$423,Resultat!$B9),0) -> 0 | L9: =IF(L5<='Prosjektbeskrivelse og inndata'!$C$16,SUMIFS(Beregninger!V$206:V$423,Beregninger!$H$206:$H$423,Resultat!$B9),0) -> 0 | M9: =IF(M5<='Prosjektbeskrivelse og inndata'!$C$16,SUMIFS(Beregninger!W$206:W$423,Beregninger!$H$206:$H$423,Resultat!$B9),0) -> 0 | N9: =IF(N5<='Prosjektbeskrivelse og inndata'!$C$16,SUMIFS(Beregninger!X$206:X$423,Beregninger!$H$206:$H$423,Resultat!$B9),0) -> 0 | O9: =IF(O5<='Prosjektbeskrivelse og inndata'!$C$16,SUMIFS(Beregninger!Y$206:Y$423,Beregninger!$H$206:$H$423,Resultat!$B9),0) -> 0 | P9: =IF(P5<='Prosjektbeskrivelse og inndata'!$C$16,SUMIFS(Beregninger!Z$206:Z$423,Beregninger!$H$206:$H$423,Resultat!$B9),0) -> 0 | Q9: =IF(Q5<='Prosjektbeskrivelse og inndata'!$C$16,SUMIFS(Beregninger!AA$206:AA$423,Beregninger!$H$206:$H$423,Resultat!$B9),0) -> 0 | R9: =IF(R5<='Prosjektbeskrivelse og inndata'!$C$16,SUMIFS(Beregninger!AB$206:AB$423,Beregninger!$H$206:$H$423,Resultat!$B9),0) -> 0 | S9: =IF(S5<='Prosjektbeskrivelse og inndata'!$C$16,SUMIFS(Beregninger!AC$206:AC$423,Beregninger!$H$206:$H$423,Resultat!$B9),0) -> 0 | T9: =IF(T5<='Prosjektbeskrivelse og inndata'!$C$16,SUMIFS(Beregninger!AD$206:AD$423,Beregninger!$H$206:$H$423,Resultat!$B9),0) -> 0 | U9: =IF(U5<='Prosjektbeskrivelse og inndata'!$C$16,SUMIFS(Beregninger!AE$206:AE$423,Beregninger!$H$206:$H$423,Resultat!$B9),0) -> 0 | V9: =IF(V5<='Prosjektbeskrivelse og inndata'!$C$16,SUMIFS(Beregninger!AF$206:AF$423,Beregninger!$H$206:$H$423,Resultat!$B9),0) -> 0 | W9: =IF(W5<='Prosjektbeskrivelse og inndata'!$C$16,SUMIFS(Beregninger!AG$206:AG$423,Beregninger!$H$206:$H$423,Resultat!$B9),0) -> 0 | X9: =IF(X5<='Prosjektbeskrivelse og inndata'!$C$16,SUMIFS(Beregninger!AH$206:AH$423,Beregninger!$H$206:$H$423,Resultat!$B9),0) -> 0 | Y9: =IF(Y5<='Prosjektbeskrivelse og inndata'!$C$16,SUMIFS(Beregninger!AI$206:AI$423,Beregninger!$H$206:$H$423,Resultat!$B9),0) -> 0 | Z9: =IF(Z5<='Prosjektbeskrivelse og inndata'!$C$16,SUMIFS(Beregninger!AJ$206:AJ$423,Beregninger!$H$206:$H$423,Resultat!$B9),0) -> 0 | AA9: =IF(AA5<='Prosjektbeskrivelse og inndata'!$C$16,SUMIFS(Beregninger!AK$206:AK$423,Beregninger!$H$206:$H$423,Resultat!$B9),0) -> 0 | AB9: =IF(AB5<='Prosjektbeskrivelse og inndata'!$C$16,SUMIFS(Beregninger!AL$206:AL$423,Beregninger!$H$206:$H$423,Resultat!$B9),0) -> 0 | AC9: =IF(AC5<='Prosjektbeskrivelse og inndata'!$C$16,SUMIFS(Beregninger!AM$206:AM$423,Beregninger!$H$206:$H$423,Resultat!$B9),0) -> 0 | AD9: =IF(AD5<='Prosjektbeskrivelse og inndata'!$C$16,SUMIFS(Beregninger!AN$206:AN$423,Beregninger!$H$206:$H$423,Resultat!$B9),0) -> 0 | AE9: =IF(AE5<='Prosjektbeskrivelse og inndata'!$C$16,SUMIFS(Beregninger!AO$206:AO$423,Beregninger!$H$206:$H$423,Resultat!$B9),0) -> 0 | AF9: =IF(AF5<='Prosjektbeskrivelse og inndata'!$C$16,SUMIFS(Beregninger!AP$206:AP$423,Beregninger!$H$206:$H$423,Resultat!$B9),0) -> 0 | AG9: =IF(AG5<='Prosjektbeskrivelse og inndata'!$C$16,SUMIFS(Beregninger!AQ$206:AQ$423,Beregninger!$H$206:$H$423,Resultat!$B9),0) -> 0 | AH9: =IF(AH5<='Prosjektbeskrivelse og inndata'!$C$16,SUMIFS(Beregninger!AR$206:AR$423,Beregninger!$H$206:$H$423,Resultat!$B9),0) -> 0 | AI9: =IF(AI5<='Prosjektbeskrivelse og inndata'!$C$16,SUMIFS(Beregninger!AS$206:AS$423,Beregninger!$H$206:$H$423,Resultat!$B9),0) -> 0 | AJ9: =IF(AJ5<='Prosjektbeskrivelse og inndata'!$C$16,SUMIFS(Beregninger!AT$206:AT$423,Beregninger!$H$206:$H$423,Resultat!$B9),0) -> 0 | AK9: =IF(AK5<='Prosjektbeskrivelse og inndata'!$C$16,SUMIFS(Beregninger!AU$206:AU$423,Beregninger!$H$206:$H$423,Resultat!$B9),0) -> 0 | AL9: =IF(AL5<='Prosjektbeskrivelse og inndata'!$C$16,SUMIFS(Beregninger!AV$206:AV$423,Beregninger!$H$206:$H$423,Resultat!$B9),0) -> 0 | AM9: =IF(AM5<='Prosjektbeskrivelse og inndata'!$C$16,SUMIFS(Beregninger!AW$206:AW$423,Beregninger!$H$206:$H$423,Resultat!$B9),0) -> 0 | AN9: =IF(AN5<='Prosjektbeskrivelse og inndata'!$C$16,SUMIFS(Beregninger!AX$206:AX$423,Beregninger!$H$206:$H$423,Resultat!$B9),0) -> 0 | AO9: =IF(AO5<='Prosjektbeskrivelse og inndata'!$C$16,SUMIFS(Beregninger!AY$206:AY$423,Beregninger!$H$206:$H$423,Resultat!$B9),0) -> 0 | AP9: =IF(AP5<='Prosjektbeskrivelse og inndata'!$C$16,SUMIFS(Beregninger!AZ$206:AZ$423,Beregninger!$H$206:$H$423,Resultat!$B9),0) -> 0 | AQ9: =IF(AQ5<='Prosjektbeskrivelse og inndata'!$C$16,SUMIFS(Beregninger!BA$206:BA$423,Beregninger!$H$206:$H$423,Resultat!$B9),0) -> 0 | AR9: =IF(AR5<='Prosjektbeskrivelse og inndata'!$C$16,SUMIFS(Beregninger!BB$206:BB$423,Beregninger!$H$206:$H$423,Resultat!$B9),0) -> 0 | AS9: =IF(AS5<='Prosjektbeskrivelse og inndata'!$C$16,SUMIFS(Beregninger!BC$206:BC$423,Beregninger!$H$206:$H$423,Resultat!$B9),0) -> 0 | AT9: =IF(AT5<='Prosjektbeskrivelse og inndata'!$C$16,SUMIFS(Beregninger!BD$206:BD$423,Beregninger!$H$206:$H$423,Resultat!$B9),0) -> 0 | AU9: =IF(AU5<='Prosjektbeskrivelse og inndata'!$C$16,SUMIFS(Beregninger!BE$206:BE$423,Beregninger!$H$206:$H$423,Resultat!$B9),0) -> 0 | AV9: =IF(AV5<='Prosjektbeskrivelse og inndata'!$C$16,SUMIFS(Beregninger!BF$206:BF$423,Beregninger!$H$206:$H$423,Resultat!$B9),0) -> 0 | AW9: =IF(AW5<='Prosjektbeskrivelse og inndata'!$C$16,SUMIFS(Beregninger!BG$206:BG$423,Beregninger!$H$206:$H$423,Resultat!$B9),0) -> 0 | AX9: =IF(AX5<='Prosjektbeskrivelse og inndata'!$C$16,SUMIFS(Beregninger!BH$206:BH$423,Beregninger!$H$206:$H$423,Resultat!$B9),0) -> 0 | AY9: =IF(AY5<='Prosjektbeskrivelse og inndata'!$C$16,SUMIFS(Beregninger!BI$206:BI$423,Beregninger!$H$206:$H$423,Resultat!$B9),0) -> 0 | AZ9: =IF(AZ5<='Prosjektbeskrivelse og inndata'!$C$16,SUMIFS(Beregninger!BJ$206:BJ$423,Beregninger!$H$206:$H$423,Resultat!$B9),0) -> 0 | BA9: =IF(BA5<='Prosjektbeskrivelse og inndata'!$C$16,SUMIFS(Beregninger!BK$206:BK$423,Beregninger!$H$206:$H$423,Resultat!$B9),0) -> 0 | BB9: =IF(BB5<='Prosjektbeskrivelse og inndata'!$C$16,SUMIFS(Beregninger!BL$206:BL$423,Beregninger!$H$206:$H$423,Resultat!$B9),0) -> 0 | BC9: =IF(BC5<='Prosjektbeskrivelse og inndata'!$C$16,SUMIFS(Beregninger!BM$206:BM$423,Beregninger!$H$206:$H$423,Resultat!$B9),0) -> 0 | BD9: =IF(BD5<='Prosjektbeskrivelse og inndata'!$C$16,SUMIFS(Beregninger!BN$206:BN$423,Beregninger!$H$206:$H$423,Resultat!$B9),0) -> 0 | BE9: =IF(BE5<='Prosjektbeskrivelse og inndata'!$C$16,SUMIFS(Beregninger!BO$206:BO$423,Beregninger!$H$206:$H$423,Resultat!$B9),0) -> 0 | BF9: =IF(BF5<='Prosjektbeskrivelse og inndata'!$C$16,SUMIFS(Beregninger!BP$206:BP$423,Beregninger!$H$206:$H$423,Resultat!$B9),0) -> 0 | BG9: =IF(BG5<='Prosjektbeskrivelse og inndata'!$C$16,SUMIFS(Beregninger!BQ$206:BQ$423,Beregninger!$H$206:$H$423,Resultat!$B9),0) -> 0 | BH9: =IF(BH5<='Prosjektbeskrivelse og inndata'!$C$16,SUMIFS(Beregninger!BR$206:BR$423,Beregninger!$H$206:$H$423,Resultat!$B9),0) -> 0 | BI9: =IF(BI5<='Prosjektbeskrivelse og inndata'!$C$16,SUMIFS(Beregninger!BS$206:BS$423,Beregninger!$H$206:$H$423,Resultat!$B9),0) -> 0 | BJ9: =IF(BJ5<='Prosjektbeskrivelse og inndata'!$C$16,SUMIFS(Beregninger!BT$206:BT$423,Beregninger!$H$206:$H$423,Resultat!$B9),0) -> 0 | BK9: =IF(BK5<='Prosjektbeskrivelse og inndata'!$C$16,SUMIFS(Beregninger!BU$206:BU$423,Beregninger!$H$206:$H$423,Resultat!$B9),0) -> 0 | BL9: =IF(BL5<='Prosjektbeskrivelse og inndata'!$C$16,SUMIFS(Beregninger!BV$206:BV$423,Beregninger!$H$206:$H$423,Resultat!$B9),0) -> 0
B10: Reasfaltering | C10: 0 | D10: 0 | E10: =IF(E5<='Prosjektbeskrivelse og inndata'!$C$16,SUMIFS(Beregninger!O$206:O$423,Beregninger!$H$206:$H$423,Resultat!$B10),0) -> 0 | F10: =IF(F5<='Prosjektbeskrivelse og inndata'!$C$16,SUMIFS(Beregninger!P$206:P$423,Beregninger!$H$206:$H$423,Resultat!$B10),0) -> 0 | G10: =IF(G5<='Prosjektbeskrivelse og inndata'!$C$16,SUMIFS(Beregninger!Q$206:Q$423,Beregninger!$H$206:$H$423,Resultat!$B10),0) -> 0 | H10: =IF(H5<='Prosjektbeskrivelse og inndata'!$C$16,SUMIFS(Beregninger!R$206:R$423,Beregninger!$H$206:$H$423,Resultat!$B10),0) -> 0 | I10: =IF(I5<='Prosjektbeskrivelse og inndata'!$C$16,SUMIFS(Beregninger!S$206:S$423,Beregninger!$H$206:$H$423,Resultat!$B10),0) -> 0 | J10: =IF(J5<='Prosjektbeskrivelse og inndata'!$C$16,SUMIFS(Beregninger!T$206:T$423,Beregninger!$H$206:$H$423,Resultat!$B10),0) -> 0 | K10: =IF(K5<='Prosjektbeskrivelse og inndata'!$C$16,SUMIFS(Beregninger!U$206:U$423,Beregninger!$H$206:$H$423,Resultat!$B10),0) -> 0 | L10: =IF(L5<='Prosjektbeskrivelse og inndata'!$C$16,SUMIFS(Beregninger!V$206:V$423,Beregninger!$H$206:$H$423,Resultat!$B10),0) -> 0 | M10: =IF(M5<='Prosjektbeskrivelse og inndata'!$C$16,SUMIFS(Beregninger!W$206:W$423,Beregninger!$H$206:$H$423,Resultat!$B10),0) -> 0 | N10: =IF(N5<='Prosjektbeskrivelse og inndata'!$C$16,SUMIFS(Beregninger!X$206:X$423,Beregninger!$H$206:$H$423,Resultat!$B10),0) -> 0 | O10: =IF(O5<='Prosjektbeskrivelse og inndata'!$C$16,SUMIFS(Beregninger!Y$206:Y$423,Beregninger!$H$206:$H$423,Resultat!$B10),0) -> 0 | P10: =IF(P5<='Prosjektbeskrivelse og inndata'!$C$16,SUMIFS(Beregninger!Z$206:Z$423,Beregninger!$H$206:$H$423,Resultat!$B10),0) -> 0 | Q10: =IF(Q5<='Prosjektbeskrivelse og inndata'!$C$16,SUMIFS(Beregninger!AA$206:AA$423,Beregninger!$H$206:$H$423,Resultat!$B10),0) -> 0 | R10: =IF(R5<='Prosjektbeskrivelse og inndata'!$C$16,SUMIFS(Beregninger!AB$206:AB$423,Beregninger!$H$206:$H$423,Resultat!$B10),0) -> 0 | S10: =IF(S5<='Prosjektbeskrivelse og inndata'!$C$16,SUMIFS(Beregninger!AC$206:AC$423,Beregninger!$H$206:$H$423,Resultat!$B10),0) -> 0 | T10: =IF(T5<='Prosjektbeskrivelse og inndata'!$C$16,SUMIFS(Beregninger!AD$206:AD$423,Beregninger!$H$206:$H$423,Resultat!$B10),0) -> 0 | U10: =IF(U5<='Prosjektbeskrivelse og inndata'!$C$16,SUMIFS(Beregninger!AE$206:AE$423,Beregninger!$H$206:$H$423,Resultat!$B10),0) -> 0 | V10: =IF(V5<='Prosjektbeskrivelse og inndata'!$C$16,SUMIFS(Beregninger!AF$206:AF$423,Beregninger!$H$206:$H$423,Resultat!$B10),0) -> 0 | W10: =IF(W5<='Prosjektbeskrivelse og inndata'!$C$16,SUMIFS(Beregninger!AG$206:AG$423,Beregninger!$H$206:$H$423,Resultat!$B10),0) -> 0 | X10: =IF(X5<='Prosjektbeskrivelse og inndata'!$C$16,SUMIFS(Beregninger!AH$206:AH$423,Beregninger!$H$206:$H$423,Resultat!$B10),0) -> 0 | Y10: =IF(Y5<='Prosjektbeskrivelse og inndata'!$C$16,SUMIFS(Beregninger!AI$206:AI$423,Beregninger!$H$206:$H$423,Resultat!$B10),0) -> 0 | Z10: =IF(Z5<='Prosjektbeskrivelse og inndata'!$C$16,SUMIFS(Beregninger!AJ$206:AJ$423,Beregninger!$H$206:$H$423,Resultat!$B10),0) -> 0 | AA10: =IF(AA5<='Prosjektbeskrivelse og inndata'!$C$16,SUMIFS(Beregninger!AK$206:AK$423,Beregninger!$H$206:$H$423,Resultat!$B10),0) -> 0 | AB10: =IF(AB5<='Prosjektbeskrivelse og inndata'!$C$16,SUMIFS(Beregninger!AL$206:AL$423,Beregninger!$H$206:$H$423,Resultat!$B10),0) -> 0 | AC10: =IF(AC5<='Prosjektbeskrivelse og inndata'!$C$16,SUMIFS(Beregninger!AM$206:AM$423,Beregninger!$H$206:$H$423,Resultat!$B10),0) -> 0 | AD10: =IF(AD5<='Prosjektbeskrivelse og inndata'!$C$16,SUMIFS(Beregninger!AN$206:AN$423,Beregninger!$H$206:$H$423,Resultat!$B10),0) -> 0 | AE10: =IF(AE5<='Prosjektbeskrivelse og inndata'!$C$16,SUMIFS(Beregninger!AO$206:AO$423,Beregninger!$H$206:$H$423,Resultat!$B10),0) -> 0 | AF10: =IF(AF5<='Prosjektbeskrivelse og inndata'!$C$16,SUMIFS(Beregninger!AP$206:AP$423,Beregninger!$H$206:$H$423,Resultat!$B10),0) -> 0 | AG10: =IF(AG5<='Prosjektbeskrivelse og inndata'!$C$16,SUMIFS(Beregninger!AQ$206:AQ$423,Beregninger!$H$206:$H$423,Resultat!$B10),0) -> 0 | AH10: =IF(AH5<='Prosjektbeskrivelse og inndata'!$C$16,SUMIFS(Beregninger!AR$206:AR$423,Beregninger!$H$206:$H$423,Resultat!$B10),0) -> 0 | AI10: =IF(AI5<='Prosjektbeskrivelse og inndata'!$C$16,SUMIFS(Beregninger!AS$206:AS$423,Beregninger!$H$206:$H$423,Resultat!$B10),0) -> 0 | AJ10: =IF(AJ5<='Prosjektbeskrivelse og inndata'!$C$16,SUMIFS(Beregninger!AT$206:AT$423,Beregninger!$H$206:$H$423,Resultat!$B10),0) -> 0 | AK10: =IF(AK5<='Prosjektbeskrivelse og inndata'!$C$16,SUMIFS(Beregninger!AU$206:AU$423,Beregninger!$H$206:$H$423,Resultat!$B10),0) -> 0 | AL10: =IF(AL5<='Prosjektbeskrivelse og inndata'!$C$16,SUMIFS(Beregninger!AV$206:AV$423,Beregninger!$H$206:$H$423,Resultat!$B10),0) -> 0 | AM10: =IF(AM5<='Prosjektbeskrivelse og inndata'!$C$16,SUMIFS(Beregninger!AW$206:AW$423,Beregninger!$H$206:$H$423,Resultat!$B10),0) -> 0 | AN10: =IF(AN5<='Prosjektbeskrivelse og inndata'!$C$16,SUMIFS(Beregninger!AX$206:AX$423,Beregninger!$H$206:$H$423,Resultat!$B10),0) -> 0 | AO10: =IF(AO5<='Prosjektbeskrivelse og inndata'!$C$16,SUMIFS(Beregninger!AY$206:AY$423,Beregninger!$H$206:$H$423,Resultat!$B10),0) -> 0 | AP10: =IF(AP5<='Prosjektbeskrivelse og inndata'!$C$16,SUMIFS(Beregninger!AZ$206:AZ$423,Beregninger!$H$206:$H$423,Resultat!$B10),0) -> 0 | AQ10: =IF(AQ5<='Prosjektbeskrivelse og inndata'!$C$16,SUMIFS(Beregninger!BA$206:BA$423,Beregninger!$H$206:$H$423,Resultat!$B10),0) -> 0 | AR10: =IF(AR5<='Prosjektbeskrivelse og inndata'!$C$16,SUMIFS(Beregninger!BB$206:BB$423,Beregninger!$H$206:$H$423,Resultat!$B10),0) -> 0 | AS10: =IF(AS5<='Prosjektbeskrivelse og inndata'!$C$16,SUMIFS(Beregninger!BC$206:BC$423,Beregninger!$H$206:$H$423,Resultat!$B10),0) -> 0 | AT10: =IF(AT5<='Prosjektbeskrivelse og inndata'!$C$16,SUMIFS(Beregninger!BD$206:BD$423,Beregninger!$H$206:$H$423,Resultat!$B10),0) -> 0 | AU10: =IF(AU5<='Prosjektbeskrivelse og inndata'!$C$16,SUMIFS(Beregninger!BE$206:BE$423,Beregninger!$H$206:$H$423,Resultat!$B10),0) -> 0 | AV10: =IF(AV5<='Prosjektbeskrivelse og inndata'!$C$16,SUMIFS(Beregninger!BF$206:BF$423,Beregninger!$H$206:$H$423,Resultat!$B10),0) -> 0 | AW10: =IF(AW5<='Prosjektbeskrivelse og inndata'!$C$16,SUMIFS(Beregninger!BG$206:BG$423,Beregninger!$H$206:$H$423,Resultat!$B10),0) -> 0 | AX10: =IF(AX5<='Prosjektbeskrivelse og inndata'!$C$16,SUMIFS(Beregninger!BH$206:BH$423,Beregninger!$H$206:$H$423,Resultat!$B10),0) -> 0 | AY10: =IF(AY5<='Prosjektbeskrivelse og inndata'!$C$16,SUMIFS(Beregninger!BI$206:BI$423,Beregninger!$H$206:$H$423,Resultat!$B10),0) -> 0 | AZ10: =IF(AZ5<='Prosjektbeskrivelse og inndata'!$C$16,SUMIFS(Beregninger!BJ$206:BJ$423,Beregninger!$H$206:$H$423,Resultat!$B10),0) -> 0 | BA10: =IF(BA5<='Prosjektbeskrivelse og inndata'!$C$16,SUMIFS(Beregninger!BK$206:BK$423,Beregninger!$H$206:$H$423,Resultat!$B10),0) -> 0 | BB10: =IF(BB5<='Prosjektbeskrivelse og inndata'!$C$16,SUMIFS(Beregninger!BL$206:BL$423,Beregninger!$H$206:$H$423,Resultat!$B10),0) -> 0 | BC10: =IF(BC5<='Prosjektbeskrivelse og inndata'!$C$16,SUMIFS(Beregninger!BM$206:BM$423,Beregninger!$H$206:$H$423,Resultat!$B10),0) -> 0 | BD10: =IF(BD5<='Prosjektbeskrivelse og inndata'!$C$16,SUMIFS(Beregninger!BN$206:BN$423,Beregninger!$H$206:$H$423,Resultat!$B10),0) -> 0 | BE10: =IF(BE5<='Prosjektbeskrivelse og inndata'!$C$16,SUMIFS(Beregninger!BO$206:BO$423,Beregninger!$H$206:$H$423,Resultat!$B10),0) -> 0 | BF10: =IF(BF5<='Prosjektbeskrivelse og inndata'!$C$16,SUMIFS(Beregninger!BP$206:BP$423,Beregninger!$H$206:$H$423,Resultat!$B10),0) -> 0 | BG10: =IF(BG5<='Prosjektbeskrivelse og inndata'!$C$16,SUMIFS(Beregninger!BQ$206:BQ$423,Beregninger!$H$206:$H$423,Resultat!$B10),0) -> 0 | BH10: =IF(BH5<='Prosjektbeskrivelse og inndata'!$C$16,SUMIFS(Beregninger!BR$206:BR$423,Beregninger!$H$206:$H$423,Resultat!$B10),0) -> 0 | BI10: =IF(BI5<='Prosjektbeskrivelse og inndata'!$C$16,SUMIFS(Beregninger!BS$206:BS$423,Beregninger!$H$206:$H$423,Resultat!$B10),0) -> 0 | BJ10: =IF(BJ5<='Prosjektbeskrivelse og inndata'!$C$16,SUMIFS(Beregninger!BT$206:BT$423,Beregninger!$H$206:$H$423,Resultat!$B10),0) -> 0 | BK10: =IF(BK5<='Prosjektbeskrivelse og inndata'!$C$16,SUMIFS(Beregninger!BU$206:BU$423,Beregninger!$H$206:$H$423,Resultat!$B10),0) -> 0 | BL10: =IF(BL5<='Prosjektbeskrivelse og inndata'!$C$16,SUMIFS(Beregninger!BV$206:BV$423,Beregninger!$H$206:$H$423,Resultat!$B10),0) -> 0
B11: Totalt | C11: =SUMIF($D$5:$BL$5,"<=" & 'Prosjektbeskrivelse og inndata'!$C$16,D11:BL11) -> 0 | D11: =SUM(D6:D10) -> 0 | E11: 0 | F11: 0 | G11: 0 | H11: 0 | I11: 0 | J11: 0 | K11: 0 | L11: 0 | M11: 0 | N11: 0 | O11: 0 | P11: 0 | Q11: 0 | R11: 0 | S11: 0 | T11: 0 | U11: 0 | V11: 0 | W11: 0 | X11: 0 | Y11: 0 | Z11: 0 | AA11: 0 | AB11: 0 | AC11: 0 | AD11: 0 | AE11: 0 | AF11: 0 | AG11: 0 | AH11: 0 | AI11: 0 | AJ11: =SUM(AJ6:AJ10) -> 0 | AK11: 0 | AL11: 0 | AM11: 0 | AN11: 0 | AO11: 0 | AP11: 0 | AQ11: 0 | AR11: 0 | AS11: 0 | AT11: 0 | AU11: 0 | AV11: 0 | AW11: 0 | AX11: 0 | AY11: 0 | AZ11: 0 | BA11: 0 | BB11: 0 | BC11: 0 | BD11: 0 | BE11: 0 | BF11: 0 | BG11: 0 | BH11: 0 | BI11: 0 | BJ11: 0 | BK11: 0 | BL11: 0
B38: Tabell 2: Utslipp fordelt på fysiske enheter og fase (i tonn CO2e)
B39: Kategori | C39: Betong | D39: Stål | E39: Armeringsstål | F39: Asfalt | G39: Tre | H39: Vann- og frostsikring tunnel | I39: Sprengning | J39: Pukk og stein | K39: Kalksement | L39: Diesel | M39: Salt | N39: Elektrisitet | O39: Arealbruk | P39: Total
B40: Vei i dagen | C40: =SUMIFS(Beregninger!M:M,Beregninger!H:H,B40,Beregninger!I:I,Resultat!C39) -> 0 | D40: =SUMIFS(Beregninger!M:M,Beregninger!H:H,Resultat!B40,Beregninger!I:I,D39) -> 0 | E40: =SUMIFS(Beregninger!M:M,Beregninger!H:H,Resultat!B40,Beregninger!I:I,E39) -> 0 | F40: =SUMIFS(Beregninger!M:M,Beregninger!H:H,Resultat!B40,Beregninger!I:I,F39) -> 0 | G40: =SUMIFS(Beregninger!M:M,Beregninger!H:H,Resultat!B40,Beregninger!I:I,G39) -> 0 | H40: =SUMIFS(Beregninger!M:M,Beregninger!H:H,Resultat!B40,Beregninger!I:I,H39) -> 0 | I40: =SUMIFS(Beregninger!M:M,Beregninger!H:H,Resultat!B40,Beregninger!I:I,I39) -> 0 | J40: =SUMIFS(Beregninger!M:M,Beregninger!H:H,Resultat!B40,Beregninger!I:I,J39) -> 0 | K40: =SUMIFS(Beregninger!M:M,Beregninger!H:H,Resultat!B40,Beregninger!I:I,K39) -> 0 | L40: =SUMIFS(Beregninger!M:M,Beregninger!H:H,B40,Beregninger!I:I,L39)+SUMIFS(Beregninger!M:M,Beregninger!H:H,B40,Beregninger!I:I,Beregninger!I5) -> 0 | M40: =SUMIFS(Beregninger!M:M,Beregninger!H:H,Resultat!B40,Beregninger!I:I,M39) -> 0 | N40: =SUMIFS(Beregninger!M:M,Beregninger!H:H,Resultat!B40,Beregninger!I:I,N39) -> 0 | O40: =C144 -> 0 | P40: =SUM(C40:O40) -> 0
B41: Tunnel | C41: =SUMIFS(Beregninger!M:M,Beregninger!H:H,B41,Beregninger!I:I,Resultat!C39) -> 0 | D41: =SUMIFS(Beregninger!M:M,Beregninger!H:H,B41,Beregninger!I:I,D39) -> 0 | E41: =SUMIFS(Beregninger!M:M,Beregninger!H:H,B41,Beregninger!I:I,Resultat!E39) -> 0 | F41: =SUMIFS(Beregninger!M:M,Beregninger!H:H,B41,Beregninger!I:I,F39) -> 0 | G41: =SUMIFS(Beregninger!M:M,Beregninger!H:H,B41,Beregninger!I:I,G39) -> 0 | H41: =SUMIFS(Beregninger!M:M,Beregninger!H:H,B41,Beregninger!I:I,H39) -> 0 | I41: =SUMIFS(Beregninger!M:M,Beregninger!H:H,B41,Beregninger!I:I,I39) -> 0 | J41: =SUMIFS(Beregninger!M:M,Beregninger!H:H,B41,Beregninger!I:I,J39) -> 0 | K41: =SUMIFS(Beregninger!M:M,Beregninger!H:H,B41,Beregninger!I:I,K39) -> 0 | L41: =SUMIFS(Beregninger!M:M,Beregninger!H:H,B41,Beregninger!I:I,L39)+SUMIFS(Beregninger!M:M,Beregninger!H:H,B41,Beregninger!I:I,Beregninger!I5) -> 0 | M41: =SUMIFS(Beregninger!M:M,Beregninger!H:H,B41,Beregninger!I:I,M39) -> 0 | N41: =SUMIFS(Beregninger!M:M,Beregninger!H:H,B41,Beregninger!I:I,N39) -> 0 | O41: 0 | P41: =SUM(C41:O41) -> 0
B42: Bru | C42: =SUMIFS(Beregninger!M:M,Beregninger!H:H,B42,Beregninger!I:I,Resultat!C39) -> 0 | D42: =SUMIFS(Beregninger!M:M,Beregninger!H:H,B42,Beregninger!I:I,D39) -> 0 | E42: =SUMIFS(Beregninger!M:M,Beregninger!H:H,B42,Beregninger!I:I,E39) -> 0 | F42: =SUMIFS(Beregninger!M:M,Beregninger!H:H,B42,Beregninger!I:I,F39) -> 0 | G42: =SUMIFS(Beregninger!M:M,Beregninger!H:H,B42,Beregninger!I:I,G39) -> 0 | H42: =SUMIFS(Beregninger!M:M,Beregninger!H:H,B42,Beregninger!I:I,H39) -> 0 | I42: =SUMIFS(Beregninger!M:M,Beregninger!H:H,B42,Beregninger!I:I,I39) -> 0 | J42: =SUMIFS(Beregninger!M:M,Beregninger!H:H,B42,Beregninger!I:I,J39) -> 0 | K42: =SUMIFS(Beregninger!M:M,Beregninger!H:H,B42,Beregninger!I:I,K39) -> 0 | L42: =SUMIFS(Beregninger!M:M,Beregninger!H:H,B42,Beregninger!I:I,L39)+SUMIFS(Beregninger!M:M,Beregninger!H:H,B42,Beregninger!I:I,Beregninger!I5) -> 0 | M42: =SUMIFS(Beregninger!M:M,Beregninger!H:H,B42,Beregninger!I:I,M39) -> 0 | N42: =SUMIFS(Beregninger!M:M,Beregninger!H:H,B42,Beregninger!I:I,N39) -> 0 | O42: 0 | P42: =SUM(C42:O42) -> 0
B43: Kulvert | C43: =SUMIFS(Beregninger!M:M,Beregninger!H:H,B43,Beregninger!I:I,C39) -> 0 | D43: =SUMIFS(Beregninger!M:M,Beregninger!H:H,B43,Beregninger!I:I,D39) -> 0 | E43: =SUMIFS(Beregninger!M:M,Beregninger!H:H,B43,Beregninger!I:I,E39) -> 0 | F43: =SUMIFS(Beregninger!M:M,Beregninger!H:H,B43,Beregninger!I:I,F39) -> 0 | G43: =SUMIFS(Beregninger!M:M,Beregninger!H:H,B43,Beregninger!I:I,G39) -> 0 | H43: =SUMIFS(Beregninger!M:M,Beregninger!H:H,B43,Beregninger!I:I,H39) -> 0 | I43: =SUMIFS(Beregninger!M:M,Beregninger!H:H,B43,Beregninger!I:I,I39) -> 0 | J43: =SUMIFS(Beregninger!M:M,Beregninger!H:H,B43,Beregninger!I:I,J39) -> 0 | K43: =SUMIFS(Beregninger!M:M,Beregninger!H:H,B43,Beregninger!I:I,K39) -> 0 | L43: =SUMIFS(Beregninger!M:M,Beregninger!H:H,B43,Beregninger!I:I,L39)+SUMIFS(Beregninger!M:M,Beregninger!H:H,B43,Beregninger!I:I,Beregninger!I5) -> 0 | M43: =SUMIFS(Beregninger!M:M,Beregninger!H:H,B43,Beregninger!I:I,M39) -> 0 | N43: =SUMIFS(Beregninger!M:M,Beregninger!H:H,B43,Beregninger!I:I,N39) -> 0 | O43: 0 | P43: =SUM(C43:O43) -> 0
B44: Pukk | C44: =SUMIFS(Beregninger!$M:$M,Beregninger!$H:$H,$B44,Beregninger!$I:$I,C39) -> 0 | D44: =SUMIFS(Beregninger!$M:$M,Beregninger!$H:$H,$B44,Beregninger!$I:$I,D39) -> 0 | E44: =SUMIFS(Beregninger!$M:$M,Beregninger!$H:$H,$B44,Beregninger!$I:$I,E39) -> 0 | F44: =SUMIFS(Beregninger!$M:$M,Beregninger!$H:$H,$B44,Beregninger!$I:$I,F39) -> 0 | G44: =SUMIFS(Beregninger!$M:$M,Beregninger!$H:$H,$B44,Beregninger!$I:$I,G39) -> 0 | H44: =SUMIFS(Beregninger!$M:$M,Beregninger!$H:$H,$B44,Beregninger!$I:$I,H39) -> 0 | I44: =SUMIFS(Beregninger!$M:$M,Beregninger!$H:$H,$B44,Beregninger!$I:$I,I39) -> 0 | J44: =SUMIFS(Beregninger!M:M,Beregninger!H:H,B44,Beregninger!I:I,J39) -> 0 | K44: =SUMIFS(Beregninger!M:M,Beregninger!H:H,B44,Beregninger!I:I,K39) -> 0 | L44: =SUMIFS(Beregninger!$M:$M,Beregninger!$H:$H,$B44,Beregninger!$I:$I,L39)+SUMIFS(Beregninger!M:M,Beregninger!H:H,B44,Beregninger!I:I,Beregninger!I5) -> 0 | M44: =SUMIFS(Beregninger!$M:$M,Beregninger!$H:$H,$B44,Beregninger!$I:$I,M39) -> 0 | N44: =SUMIFS(Beregninger!$M:$M,Beregninger!$H:$H,$B44,Beregninger!$I:$I,N39) -> 0 | O44: =SUMIFS(Beregninger!$M:$M,Beregninger!$H:$H,$B44,Beregninger!$I:$I,O39) -> 0 | P44: 0
B45: Byggefase | C45: =SUM(C40:C44) -> 0 | D45: =SUM(D40:D44) -> 0 | E45: 0 | F45: 0 | G45: =SUM(G40:G44) -> 0 | H45: 0 | I45: 0 | J45: 0 | K45: 0 | L45: 0 | M45: 0 | N45: 0 | O45: 0 | P45: 0
B46: Arealbruk | C46: 0 | D46: 0 | E46: 0 | F46: 0 | G46: 0 | H46: 0 | I46: 0 | J46: 0 | K46: 0 | L46: 0 | M46: 0 | N46: 0 | O46: =SUM(O40:O44) -> 0 | P46: 0
B47: Byggefase med arealbruk | C47: =SUM(C40:C44) -> 0 | D47: =SUM(D40:D44) -> 0 | E47: =SUM(E40:E44) -> 0 | F47: 0 | G47: =SUM(G40:G44) -> 0 | H47: 0 | I47: 0 | J47: 0 | K47: 0 | L47: 0 | M47: 0 | N47: 0 | O47: 0 | P47: 0
B48: Drift og vedlikehold totalt | C48: =SUMIF(Beregninger!$I$206:$I$423,Resultat!C39,Beregninger!$N$206:$N$423) -> 0 | D48: =SUMIF(Beregninger!$I$206:$I$423,Resultat!D39,Beregninger!$N$206:$N$423) -> 0 | E48: =SUMIF(Beregninger!$I$206:$I$423,Resultat!E39,Beregninger!$N$206:$N$423) -> 0 | F48: =SUMIF(Beregninger!$I$206:$I$423,Resultat!F39,Beregninger!$N$206:$N$423) -> 0 | G48: =SUMIF(Beregninger!$I$206:$I$423,Resultat!G39,Beregninger!$N$206:$N$423) -> 0 | H48: =SUMIF(Beregninger!$I$206:$I$423,Resultat!H39,Beregninger!$N$206:$N$423) -> 0 | I48: =SUMIF(Beregninger!$I$206:$I$423,Resultat!I39,Beregninger!$N$206:$N$423) -> 0 | J48: =SUMIF(Beregninger!$I$206:$I$423,Resultat!J39,Beregninger!$N$206:$N$423) -> 0 | K48: =SUMIF(Beregninger!$I$206:$I$423,Resultat!K39,Beregninger!$N$206:$N$423) -> 0 | L48: =SUMIF(Beregninger!$I$206:$I$423,L39,Beregninger!$N$206:$N$423)+SUMIF(Beregninger!$I$206:$I$423,Beregninger!I208,Beregninger!$N$206:$N$423) -> 0 | M48: =SUMIF(Beregninger!$I$206:$I$423,Resultat!M39,Beregninger!$N$206:$N$423) -> 0 | N48: =SUMIF(Beregninger!$I$206:$I$423,Resultat!N39,Beregninger!$N$206:$N$423) -> 0 | O48: =SUMIF(Beregninger!$I$206:$I$423,Resultat!O39,Beregninger!$N$206:$N$423) -> 0 | P48: 0
B49: Totalt | C49: =SUM(C47:C48) -> 0 | D49: =SUM(D47:D48) -> 0 | E49: 0 | F49: 0 | G49: =SUM(G47:G48) -> 0 | H49: 0 | I49: 0 | J49: 0 | K49: 0 | L49: =SUM(L47:L48) -> 0 | M49: =SUM(M47:M48) -> 0 | N49: =SUM(N47:N48) -> 0 | O49: =SUM(O47:O48) -> 0 | P49: 0
B50: Prosent av byggefase | C50: =IFERROR(C45/P45,"Ikke relevant") -> Ikke relevant | D50: =IFERROR(D45/P45,"Ikke relevant") -> Ikke relevant | E50: =IFERROR(E45/P45,"Ikke relevant") -> Ikke relevant | F50: =IFERROR(F45/P45,"Ikke relevant") -> Ikke relevant | G50: =IFERROR(G45/P45,"Ikke relevant") -> Ikke relevant | H50: =IFERROR(H45/P45,"Ikke relevant") -> Ikke relevant | I50: =IFERROR(I45/P45,"Ikke relevant") -> Ikke relevant | J50: =IFERROR(J45/P45,"Ikke relevant") -> Ikke relevant | K50: =IFERROR(K45/P45,"Ikke relevant") -> Ikke relevant | L50: =IFERROR(L45/P45,"Ikke relevant") -> Ikke relevant | M50: =IFERROR(M45/P45,"Ikke relevant") -> Ikke relevant | N50: =IFERROR(N45/P45,"Ikke relevant") -> Ikke relevant | O50: =IFERROR(O45/P45,"Ikke relevant") -> Ikke relevant | P50: =IFERROR(SUM(C50:O50),"Ikke relevant") -> 0
B51: Prosent av d&v-fase | C51: =IFERROR(C48/P48,"Ikke relevant") -> Ikke relevant | D51: =IFERROR(D48/P48,"Ikke relevant") -> Ikke relevant | E51: =IFERROR(E48/P48,"Ikke relevant") -> Ikke relevant | F51: =IFERROR(F48/P48,"Ikke relevant") -> Ikke relevant | G51: =IFERROR(G48/P48,"Ikke relevant") -> Ikke relevant | H51: =IFERROR(H48/P48,"Ikke relevant") -> Ikke relevant | I51: =IFERROR(I48/P48,"Ikke relevant") -> Ikke relevant | J51: =IFERROR(J48/P48,"Ikke relevant") -> Ikke relevant | K51: =IFERROR(K48/P48,"Ikke relevant") -> Ikke relevant | L51: =IFERROR(L48/P48,"Ikke relevant") -> Ikke relevant | M51: =IFERROR(M48/P48,"Ikke relevant") -> Ikke relevant | N51: =IFERROR(N48/P48,"Ikke relevant") -> Ikke relevant | O51: =IFERROR(O48/P48,"Ikke relevant") -> Ikke relevant | P51: =IFERROR(SUM(C51:O51),"Ikke relevant") -> 0
E78: NB! Dersom enkelte innsatsfaktorer er så små at de ikke vises i prosentfordelingen, fjern disse fra figur ved å velge 'select data'.
B80: Tabell 3: Detaljer ved drift- og vedlikeholdsutslipp (i tonn CO2e)
B81: Kategori | C81: Vei i dagen | D81: Tunnel | E81: Bru | F81: Kulvert | G81: Sum
B82: Drift | C82: =SUMIFS(Beregninger!N$206:N$287,Beregninger!H$206:H$287,B82) -> 0 | D82: =SUMIFS(Beregninger!N$384:N$423,Beregninger!H$384:H$423,B82) -> 0 | E82: =SUMIFS(Beregninger!N$288:N$383,Beregninger!H$288:H$383,B82) -> 0 | G82: =SUM(C82:F82) -> 0
B83: Vedlikehold | C83: =SUMIFS(Beregninger!N$206:N$287,Beregninger!H$206:H$287,B83) -> 0 | D83: =SUMIFS(Beregninger!N$384:N$423,Beregninger!H$384:H$423,B83) -> 0 | E83: =SUMIFS(Beregninger!N$288:N$383,Beregninger!H$288:H$383,B83) -> 0 | G83: =SUM(C83:F83) -> 0
B84: Reasfaltering | C84: =SUMIFS(Beregninger!N$206:N$287,Beregninger!H$206:H$287,B84) -> 0 | D84: =SUMIFS(Beregninger!N$384:N$423,Beregninger!H$384:H$423,B84) -> 0 | E84: =SUMIFS(Beregninger!N$288:N$383,Beregninger!H$288:H$383,B84) -> 0 | G84: =SUM(C84:F84) -> 0
B85: Sum | C85: =SUM(C82:C84) -> 0 | D85: =SUM(D82:D84) -> 0 | E85: =SUM(E82:E84) -> 0 | G85: =SUM(G82:G84) -> 0
B100: Tabell 4: Direkte utslipp knyttet til diesel og sprengning (i tonn CO2e)
B101: Byggefase | E101: Drift- og vedlikeholdsfase
B102: Fjerning av vegetasjon | E102: Drift
B103: Fjerning av vegetasjonsdekke | D103: =(Beregninger!M4)/Utslippsfaktorer!D29*Utslippsfaktorer!D28 -> 0 | E103: Kantklipp | H103: =(Beregninger!N213+Beregninger!N254)/Utslippsfaktorer!D29*Utslippsfaktorer!D28 -> 0
B104: Sum fjerning av vegetasjon | D104: =D103 -> 0 | E104: Grøfterensk og jordtransport | H104: =(Beregninger!N216+Beregninger!N219+Beregninger!N257+Beregninger!N260)/Utslippsfaktorer!D29*Utslippsfaktorer!D28 -> 0
B105: Transport av masser | E105: Feiing | H105: =(Beregninger!N222+Beregninger!N263+Beregninger!N295+Beregninger!N327+Beregninger!N359+Beregninger!N391+Beregninger!N411)/Utslippsfaktorer!D29*Utslippsfaktorer!D28 -> 0
B106: Jordmasser til linja | D106: =(Beregninger!M17)/Utslippsfaktorer!D29*Utslippsfaktorer!D28 -> 0 | E106: Salting | H106: =(Beregninger!N225+Beregninger!N266+Beregninger!N298+Beregninger!N330+Beregninger!N362)/Utslippsfaktorer!D29*Utslippsfaktorer!D28 -> 0
B107: Jordmasser deponi | D107: =(Beregninger!M20)/Utslippsfaktorer!D29*Utslippsfaktorer!D28 -> 0 | E107: Brøyting | H107: =(Beregninger!N232+Beregninger!N273+Beregninger!N305+Beregninger!N337+Beregninger!N369)/Utslippsfaktorer!D29*Utslippsfaktorer!D28 -> 0
B108: Sprengstein til linja | D108: =(Beregninger!M23)/Utslippsfaktorer!D29*Utslippsfaktorer!D28 -> 0 | E108: Sum drift | H108: =SUM(H103:H107) -> 0
B109: Sprengstein til deponi | D109: =(Beregninger!M29)/Utslippsfaktorer!D29*Utslippsfaktorer!D28 -> 0 | E109: Vedlikehold
B110: Sprengstein til linja via pukkverk | D110: =(Beregninger!M35)/Utslippsfaktorer!D29*Utslippsfaktorer!D28 -> 0 | E110: Utskiftning av lyktestolper - ikke beregnet i dagens verktøy
B111: Sum transport av masser | D111: =SUM(D106:D110) -> 0 | E111: Utskiftning av autovern | H111: =(Beregninger!N236+Beregninger!N277+Beregninger!N309+Beregninger!N341+Beregninger!N373+Beregninger!N395+Beregninger!N415)/Utslippsfaktorer!D29*Utslippsfaktorer!D28 -> 0
B112: Anleggsarbeid | E112: Sum vedlikehold | H112: =SUM(H110:H111) -> 0
B113: Anleggsarbeid vei i dagen | D113: =(Beregninger!M57+Beregninger!M68+Beregninger!M75+Beregninger!M180+Beregninger!M188+Beregninger!M197)/Utslippsfaktorer!D29*Utslippsfaktorer!D28 -> 0 | E113: Reasfaltering
B114: Anleggsarbeid bru | D114: =(Beregninger!M90+Beregninger!M105+Beregninger!M120)/Utslippsfaktorer!D29*Utslippsfaktorer!D28 -> 0 | E114: Utskiftning av asfalt | H114: =(Beregninger!N210+Beregninger!N251+Beregninger!N292+Beregninger!N324+Beregninger!N356+Beregninger!N388+Beregninger!N408)/Utslippsfaktorer!D29*Utslippsfaktorer!D28 -> 0
B115: Anleggsarbeid tunnel | D115: =(Beregninger!M139+Beregninger!M158+Beregninger!M165)/Utslippsfaktorer!D29*Utslippsfaktorer!D28 -> 0 | E115: Sum reasfaltering | H115: =H114 -> 0
B116: Anleggsarbeid kulvert | D116: =Beregninger!M173/Utslippsfaktorer!D29*Utslippsfaktorer!D28 -> 0 | E116: Sum drift- og vedlikeholdsfase | H116: =H108+H112+H115 -> 0
B117: Anleggsarbeid pukk | D117: =(Beregninger!M26+Beregninger!M32+Beregninger!M38+Beregninger!M46)/Utslippsfaktorer!D29*Utslippsfaktorer!D28 -> 0
B118: Sum anleggsarbeid | D118: =SUM(D113:D117) -> 0
B119: Sprengning
B120: Sprengning i dagen | D120: =Beregninger!M8 -> 0
B121: Sprengning tunnel | D121: =Beregninger!M13 -> 0
B122: Anleggsarbeid knyttet til sprengning | D122: =(Beregninger!M9+Beregninger!M14)/Utslippsfaktorer!D29*Utslippsfaktorer!D28 -> 0
B123: Sum sprengning | D123: =SUM(D120:D122) -> 0
B124: Sum byggefase | D124: =D104+D111+D118+D123 -> 0 | E124: Direkte utslipp fra bygging, drift og vedlikehold | H124: =D124+H116 -> 0
B128: Tabell 5: Andel direkte utslipp av totale utslipp
B129: Andel av byggefase | D129: =IFERROR(D124/P45,"Ikke relevant") -> Ikke relevant
B130: Andel av drift- og vedlikeholdsfase | D130: =IFERROR(H116/P48,"Ikke relevant") -> Ikke relevant
B131: Andel direkte utslipp | D131: =IFERROR(H124/P49,"Ikke relevant") -> Ikke relevant
B132: Andel indirekte utslipp | D132: =IFERROR(1-D131,"Ikke relevant") -> Ikke relevant
B136: Tabell 7: Utslipp fra arealbruksendringer
B137: Arealtype | C137: tonn CO2e
B138: Skog - lav bonitet | C138: =(('Prosjektbeskrivelse og inndata'!C23*'Prosjektbeskrivelse og inndata'!C26)*Utslippsfaktorer!D35)/1000 -> 0
B139: Skog - middels bonitet | C139: =(('Prosjektbeskrivelse og inndata'!C23*'Prosjektbeskrivelse og inndata'!C27)*Utslippsfaktorer!D36)/1000 -> 0
B140: Skog - høy bonitet | C140: =(('Prosjektbeskrivelse og inndata'!C23*'Prosjektbeskrivelse og inndata'!C28)*Utslippsfaktorer!D37)/1000 -> 0
B141: Myr | C141: =(('Prosjektbeskrivelse og inndata'!C23*'Prosjektbeskrivelse og inndata'!C29)*Utslippsfaktorer!D38)/1000 -> 0
B142: Jordbruksareal | C142: =(('Prosjektbeskrivelse og inndata'!C23*'Prosjektbeskrivelse og inndata'!C30)*Utslippsfaktorer!D39)/1000 -> 0
B143: Utbygd areal | C143: -
B144: Sum | C144: =SUM(C138:C143) -> 0
B145: Utbygd areal settes lik 0
F162: Tabell 6: Direkte utslipp i ikke-kvotepliktig sektor
F163: Byggefase | I163: =D104+D111+D118 -> 0
F164: Drift- og vedlikeholdsfase | I164: =H108+H112+H115 -> 0
F165: Sum bygge- og drift og vedlikeholdsfase | I165: =SUM(I163:I164) -> 0
F166: I denne sammenhengen er dette summen av direkte utslipp minus direkte utslipp fra sprengning.

Sheet Sensitivitetsanalyse
B2: Sensitivitetsanalyse
E3: Endring i faktor
E4: -0.5 | F4: -0.4 | G4: -0.3 | H4: -0.2 | I4: -0.1 | J4: 0 | K4: 0.1 | L4: 0.2 | M4: 0.3 | N4: 0.4 | O4: 0.5
B5: Opprinnelige utslipp
B6: Innsatsfaktorer | D6: Opprinnelige utslipp [tonn CO2e] | E6: Ny sum byggefase
B7: Utslipp byggefase | P7: Diff -10 %
B8: Betong | D8: =Resultat!C45 -> 0 | E8: =$D$20+$D8*E$4 -> 0 | F8: 0 | G8: 0 | H8: 0 | I8: 0 | J8: 0 | K8: 0 | L8: 0 | M8: 0 | N8: 0 | O8: 0 | P8: =J8-I8 -> 0
B9: Stål | D9: =Resultat!D45 -> 0 | E9: 0 | F9: 0 | G9: 0 | H9: 0 | I9: 0 | J9: 0 | K9: 0 | L9: 0 | M9: 0 | N9: 0 | O9: 0 | P9: =J9-I9 -> 0
B10: Armeringsstål | D10: =Resultat!E45 -> 0 | E10: 0 | F10: 0 | G10: 0 | H10: 0 | I10: 0 | J10: 0 | K10: 0 | L10: 0 | M10: 0 | N10: 0 | O10: 0 | P10: 0
B11: Asfalt | D11: =Resultat!F45 -> 0 | E11: 0 | F11: 0 | G11: 0 | H11: 0 | I11: 0 | J11: 0 | K11: 0 | L11: 0 | M11: 0 | N11: 0 | O11: 0 | P11: 0
B12: Tre | D12: =Resultat!G45 -> 0 | E12: 0 | F12: 0 | G12: 0 | H12: 0 | I12: 0 | J12: 0 | K12: 0 | L12: 0 | M12: 0 | N12: 0 | O12: 0 | P12: 0
B13: Vann- og frostsikring tunnel | D13: =Resultat!H45 -> 0 | E13: 0 | F13: 0 | G13: 0 | H13: 0 | I13: 0 | J13: 0 | K13: 0 | L13: 0 | M13: 0 | N13: 0 | O13: 0 | P13: 0
B14: Sprengning | D14: =Resultat!I45 -> 0 | E14: 0 | F14: 0 | G14: 0 | H14: 0 | I14: 0 | J14: 0 | K14: 0 | L14: 0 | M14: 0 | N14: 0 | O14: 0 | P14: 0
B15: Pukk og stein | D15: =Resultat!J45 -> 0 | E15: 0 | F15: 0 | G15: 0 | H15: 0 | I15: 0 | J15: 0 | K15: 0 | L15: 0 | M15: 0 | N15: 0 | O15: 0 | P15: 0
B16: Kalksement | D16: =Resultat!K45 -> 0 | E16: 0 | F16: 0 | G16: 0 | H16: 0 | I16: 0 | J16: 0 | K16: 0 | L16: 0 | M16: 0 | N16: 0 | O16: 0 | P16: 0
B17: Diesel | D17: =Resultat!L45 -> 0 | E17: 0 | F17: 0 | G17: 0 | H17: 0 | I17: 0 | J17: 0 | K17: 0 | L17: 0 | M17: 0 | N17: 0 | O17: 0 | P17: 0
B18: Salt | D18: =Resultat!M45 -> 0 | E18: 0 | F18: 0 | G18: 0 | H18: 0 | I18: 0 | J18: 0 | K18: 0 | L18: 0 | M18: 0 | N18: 0 | O18: 0 | P18: 0
B19: Elektrisitet | D19: =Resultat!N45 -> 0 | E19: 0 | F19: 0 | G19: 0 | H19: 0 | I19: 0 | J19: 0 | K19: 0 | L19: 0 | M19: 0 | N19: 0 | O19: 0 | P19: 0
B20: Sum byggefase | D20: =SUM(D8:D19) -> 0
B21: Utslipp driftsfase | E21: Ny sum driftsfase
B22: Betong | D22: =Resultat!C48 -> 0 | E22: =$D$31+$D22*E$4 -> 0 | F22: 0 | G22: 0 | H22: 0 | I22: 0 | J22: 0 | K22: 0 | L22: 0 | M22: 0 | N22: 0 | O22: 0 | P22: =J22-I22 -> 0
B23: Stål | D23: =Resultat!D48 -> 0 | E23: 0 | F23: 0 | G23: 0 | H23: 0 | I23: 0 | J23: 0 | K23: 0 | L23: 0 | M23: 0 | N23: 0 | O23: 0 | P23: =J23-I23 -> 0
B24: Armeringsstål | D24: =Resultat!E48 -> 0 | E24: 0 | F24: 0 | G24: 0 | H24: 0 | I24: 0 | J24: 0 | K24: 0 | L24: 0 | M24: 0 | N24: 0 | O24: 0 | P24: 0
B25: Asfalt | D25: =Resultat!F48 -> 0 | E25: 0 | F25: 0 | G25: 0 | H25: 0 | I25: 0 | J25: 0 | K25: 0 | L25: 0 | M25: 0 | N25: 0 | O25: 0 | P25: 0
B26: Vann- og frostsikring tunnel | D26: =Resultat!H48 -> 0 | E26: 0 | F26: 0 | G26: 0 | H26: 0 | I26: 0 | J26: 0 | K26: 0 | L26: 0 | M26: 0 | N26: 0 | O26: 0 | P26: 0
B27: Sprengning | D27: =Resultat!I48 -> 0 | E27: 0 | F27: 0 | G27: 0 | H27: 0 | I27: 0 | J27: 0 | K27: 0 | L27: 0 | M27: 0 | N27: 0 | O27: 0 | P27: 0
B28: Diesel | D28: =Resultat!L48 -> 0 | E28: 0 | F28: 0 | G28: 0 | H28: 0 | I28: 0 | J28: 0 | K28: 0 | L28: 0 | M28: 0 | N28: 0 | O28: 0 | P28: 0
B29: Salt | D29: =Resultat!M48 -> 0 | E29: 0 | F29: 0 | G29: 0 | H29: 0 | I29: 0 | J29: 0 | K29: 0 | L29: 0 | M29: 0 | N29: 0 | O29: 0 | P29: 0
B30: Elektrisitet | D30: =Resultat!N48 -> 0 | E30: 0 | F30: 0 | G30: 0 | H30: 0 | I30: 0 | J30: 0 | K30: 0 | L30: 0 | M30: 0 | N30: 0 | O30: 0 | P30: 0
B31: Sum driftsfase | D31: =SUM(D22:D30) -> 0

Sheet Beregninger
B1: Definert enhet | C1: Summert fra inndata | D1: Fysisk faktor input | E1: Summert output | F1: Fysisk enhet output | G1: Livsløp | H1: Element | I1: Innsatstype | J1: Tag utslippsfaktor | K1: Utslippsfaktor | L1: Enhet | M1: Tonn CO2e
A2: Byggefase
B4: Fjerning av vegetasjonsdekke (m2) | C4: =SUMIF('Prosjektbeskrivelse og inndata'!$M:$M,B4,'Prosjektbeskrivelse og inndata'!$L:$L) -> 0 | D4: Anleggsarbeid diesel | E4: =C4*'Vegetasjon og arealbeslag'!F11 -> 0 | F4: liter diesel | G4: År 0 | H4: Vei i dagen | I4: Diesel | J4: =Utslippsfaktorer!B29 -> Fossil diesel (WTW) | K4: =SUMIF(Utslippsfaktorer!B:B,Beregninger!J4,Utslippsfaktorer!D:D) -> 3.24 | L4: =VLOOKUP(J4,Utslippsfaktorer!B:C,2,FALSE) -> kg CO2e/liter | M4: =(E4*K4)/1000 -> 0
D5: Anleggsarbeid biodiesel | E5: =C4*'Vegetasjon og arealbeslag'!G11 -> 0 | F5: liter biodiesel | G5: År 0 | H5: Vei i dagen | I5: Biodiesel | J5: =Utslippsfaktorer!B27 -> Biodiesel (WTT) | K5: =SUMIF(Utslippsfaktorer!B:B,Beregninger!J5,Utslippsfaktorer!D:D) -> 1.92 | L5: =VLOOKUP(J5,Utslippsfaktorer!B:C,2,FALSE) -> kg CO2e/liter | M5: =(E5*K5)/1000 -> 0
D6: Anleggsarbeid elektrisk/hydrogen | E6: =C4*'Vegetasjon og arealbeslag'!H11 -> 0 | F6: kWh | G6: År 0 | H6: Vei i dagen | I6: Elektrisitet | J6: =Utslippsfaktorer!B32 -> Elektrisitet anleggsfase, norsk miks | K6: =SUMIF(Utslippsfaktorer!B:B,Beregninger!J6,Utslippsfaktorer!D:D) -> 0.019 | L6: =VLOOKUP(J6,Utslippsfaktorer!B:C,2,FALSE) -> kg CO2e/kWh | M6: =(E6*K6)/1000 -> 0
B7: Sprengning i dagen (fm3) | C7: =SUMIF('Prosjektbeskrivelse og inndata'!$M:$M,B7,'Prosjektbeskrivelse og inndata'!$L:$L) -> 0 | D7: Sprengstoff (indirekte utslipp) | E7: =C7*'Sprengning og pukk'!D6 -> 0 | F7: kg tovex | G7: År 0 | H7: Vei i dagen | I7: Sprengning | J7: =Utslippsfaktorer!B30 -> Sprengstoff (CTG) | K7: =SUMIF(Utslippsfaktorer!B:B,Beregninger!J7,Utslippsfaktorer!D:D) -> 1.26 | L7: =VLOOKUP(J7,Utslippsfaktorer!B:C,2,FALSE) -> kg CO2e/kg | M7: 0
D8: Sprengstoff (direkte utslipp) | E8: =C7*'Sprengning og pukk'!D6 -> 0 | F8: kg tovex | G8: År 0 | H8: Vei i dagen | I8: Sprengning | J8: =Utslippsfaktorer!B31 -> Sprengstoff detonering | K8: =SUMIF(Utslippsfaktorer!B:B,Beregninger!J8,Utslippsfaktorer!D:D) -> 0.1114 | L8: =VLOOKUP(J8,Utslippsfaktorer!B:C,2,FALSE) -> kg CO2e/kg | M8: 0
D9: Anleggsarbeid diesel | E9: =C7*'Sprengning og pukk'!E16 -> 0 | F9: liter diesel | G9: År 0 | H9: Vei i dagen | I9: Diesel | J9: =Utslippsfaktorer!B29 -> Fossil diesel (WTW) | K9: =SUMIF(Utslippsfaktorer!B:B,Beregninger!J9,Utslippsfaktorer!D:D) -> 3.24 | L9: =VLOOKUP(J9,Utslippsfaktorer!B:C,2,FALSE) -> kg CO2e/liter | M9: 0
D10: Anleggsarbeid biodiesel | E10: =C7*'Sprengning og pukk'!F16 -> 0 | F10: liter biodiesel | G10: År 0 | H10: Vei i dagen | I10: Biodiesel | J10: =Utslippsfaktorer!B27 -> Biodiesel (WTT) | K10: =SUMIF(Utslippsfaktorer!B:B,Beregninger!J10,Utslippsfaktorer!D:D) -> 1.92 | L10: =VLOOKUP(J10,Utslippsfaktorer!B:C,2,FALSE) -> kg CO2e/liter | M10: 0
D11: Anleggsarbeid elektrisk/hydrogen | E11: =C7*'Sprengning og pukk'!G16 -> 0 | F11: kWh | G11: År 0 | H11: Vei i dagen | I11: Elektrisitet | J11: =Utslippsfaktorer!B32 -> Elektrisitet anleggsfase, norsk miks | K11: =SUMIF(Utslippsfaktorer!B:B,Beregninger!J11,Utslippsfaktorer!D:D) -> 0.019 | L11: =VLOOKUP(J11,Utslippsfaktorer!B:C,2,FALSE) -> kg CO2e/kWh | M11: 0
B12: Sprengning tunnel (fm3) | C12: =SUMIF('Prosjektbeskrivelse og inndata'!$M:$M,B12,'Prosjektbeskrivelse og inndata'!$L:$L) -> 0 | D12: Sprengstoff (indirekte utslipp) | E12: =C12*'Sprengning og pukk'!D5 -> 0 | F12: kg tovex | G12: År 0 | H12: Tunnel | I12: Sprengning | J12: =Utslippsfaktorer!B30 -> Sprengstoff (CTG) | K12: =SUMIF(Utslippsfaktorer!B:B,Beregninger!J12,Utslippsfaktorer!D:D) -> 1.26 | L12: =VLOOKUP(J12,Utslippsfaktorer!B:C,2,FALSE) -> kg CO2e/kg | M12: 0
D13: Sprengstoff (direkte utslipp) | E13: =C12*'Sprengning og pukk'!D5 -> 0 | F13: kg tovex | G13: År 0 | H13: Tunnel | I13: Sprengning | J13: =Utslippsfaktorer!B31 -> Sprengstoff detonering | K13: =SUMIF(Utslippsfaktorer!B:B,Beregninger!J13,Utslippsfaktorer!D:D) -> 0.1114 | L13: =VLOOKUP(J13,Utslippsfaktorer!B:C,2,FALSE) -> kg CO2e/kg | M13: 0
D14: Anleggsarbeid diesel | E14: =C12*'Sprengning og pukk'!E16 -> 0 | F14: liter diesel | G14: År 0 | H14: Tunnel | I14: Diesel | J14: =Utslippsfaktorer!B29 -> Fossil diesel (WTW) | K14: =SUMIF(Utslippsfaktorer!B:B,Beregninger!J14,Utslippsfaktorer!D:D) -> 3.24 | L14: =VLOOKUP(J14,Utslippsfaktorer!B:C,2,FALSE) -> kg CO2e/liter | M14: 0
D15: Anleggsarbeid biodiesel | E15: =C12*'Sprengning og pukk'!F16 -> 0 | F15: liter biodiesel | G15: År 0 | H15: Tunnel | I15: Biodiesel | J15: =Utslippsfaktorer!B27 -> Biodiesel (WTT) | K15: =SUMIF(Utslippsfaktorer!B:B,Beregninger!J15,Utslippsfaktorer!D:D) -> 1.92 | L15: =VLOOKUP(J15,Utslippsfaktorer!B:C,2,FALSE) -> kg CO2e/liter | M15: 0
D16: Anleggsarbeid elektrisk/hydrogen | E16: =C12*'Sprengning og pukk'!G16 -> 0 | F16: kWh | G16: År 0 | H16: Tunnel | I16: Elektrisitet | J16: =Utslippsfaktorer!B32 -> Elektrisitet anleggsfase, norsk miks | K16: =SUMIF(Utslippsfaktorer!B:B,Beregninger!J16,Utslippsfaktorer!D:D) -> 0.019 | L16: =VLOOKUP(J16,Utslippsfaktorer!B:C,2,FALSE) -> kg CO2e/kWh | M16: 0
B17: Jordmasser til linja (m3) | C17: =SUMIF('Prosjektbeskrivelse og inndata'!$M:$M,B17,'Prosjektbeskrivelse og inndata'!$L:$L) -> 0 | D17: Transport diesel | E17: =C17*'Vegetasjon og arealbeslag'!F5/Beregningsfaktorer!D119 -> 0 | F17: liter diesel | G17: År 0 | H17: Vei i dagen | I17: Diesel | J17: =Utslippsfaktorer!B29 -> Fossil diesel (WTW) | K17: =SUMIF(Utslippsfaktorer!B:B,Beregninger!J17,Utslippsfaktorer!D:D) -> 3.24 | L17: =VLOOKUP(J17,Utslippsfaktorer!B:C,2,FALSE) -> kg CO2e/liter | M17: 0
D18: Transport biodiesel | E18: =C17*'Vegetasjon og arealbeslag'!G5/Beregningsfaktorer!D119 -> 0 | F18: liter biodiesel | G18: År 0 | H18: Vei i dagen | I18: Biodiesel | J18: =Utslippsfaktorer!B27 -> Biodiesel (WTT) | K18: =SUMIF(Utslippsfaktorer!B:B,Beregninger!J18,Utslippsfaktorer!D:D) -> 1.92 | L18: =VLOOKUP(J18,Utslippsfaktorer!B:C,2,FALSE) -> kg CO2e/liter | M18: 0
D19: Transport elektrisk/hydrogen | E19: =C17*'Vegetasjon og arealbeslag'!H5/Beregningsfaktorer!D119 -> 0 | F19: kWh | G19: År 0 | H19: Vei i dagen | I19: Elektrisitet | J19: =Utslippsfaktorer!B32 -> Elektrisitet anleggsfase, norsk miks | K19: =SUMIF(Utslippsfaktorer!B:B,Beregninger!J19,Utslippsfaktorer!D:D) -> 0.019 | L19: =VLOOKUP(J19,Utslippsfaktorer!B:C,2,FALSE) -> kg CO2e/kWh | M19: 0
B20: Jordmasser til deponi (m3) | C20: =SUMIF('Prosjektbeskrivelse og inndata'!$M:$M,B20,'Prosjektbeskrivelse og inndata'!$L:$L) -> 0 | D20: Transport diesel | E20: =C20*'Vegetasjon og arealbeslag'!F6/Beregningsfaktorer!D119 -> 0 | F20: liter diesel | G20: År 0 | H20: Vei i dagen | I20: Diesel | J20: =Utslippsfaktorer!B29 -> Fossil diesel (WTW) | K20: =SUMIF(Utslippsfaktorer!B:B,Beregninger!J20,Utslippsfaktorer!D:D) -> 3.24 | L20: =VLOOKUP(J20,Utslippsfaktorer!B:C,2,FALSE) -> kg CO2e/liter | M20: 0
D21: Transport biodiesel | E21: =C20*'Vegetasjon og arealbeslag'!G6/Beregningsfaktorer!D119 -> 0 | F21: liter biodiesel | G21: År 0 | H21: Vei i dagen | I21: Biodiesel | J21: =Utslippsfaktorer!B27 -> Biodiesel (WTT) | K21: =SUMIF(Utslippsfaktorer!B:B,Beregninger!J21,Utslippsfaktorer!D:D) -> 1.92 | L21: =VLOOKUP(J21,Utslippsfaktorer!B:C,2,FALSE) -> kg CO2e/liter | M21: 0
D22: Transport elektrisk/hydrogen | E22: =C20*'Vegetasjon og arealbeslag'!H6/Beregningsfaktorer!D119 -> 0 | F22: kWh | G22: År 0 | H22: Vei i dagen | I22: Elektrisitet | J22: =Utslippsfaktorer!B32 -> Elektrisitet anleggsfase, norsk miks | K22: =SUMIF(Utslippsfaktorer!B:B,Beregninger!J22,Utslippsfaktorer!D:D) -> 0.019 | L22: =VLOOKUP(J22,Utslippsfaktorer!B:C,2,FALSE) -> kg CO2e/kWh | M22: 0
B23: Sprengstein (intern) til linja (fm3) | C23: =SUMIF('Prosjektbeskrivelse og inndata'!$M:$M,B23,'Prosjektbeskrivelse og inndata'!$L:$L) -> 0 | D23: Transport diesel | E23: =C23*'Sprengning og pukk'!F7 -> 0 | F23: liter diesel | G23: År 0 | H23: Pukk | I23: Diesel | J23: =Utslippsfaktorer!B29 -> Fossil diesel (WTW) | K23: =SUMIF(Utslippsfaktorer!B:B,Beregninger!J23,Utslippsfaktorer!D:D) -> 3.24 | L23: =VLOOKUP(J23,Utslippsfaktorer!B:C,2,FALSE) -> kg CO2e/liter | M23: 0
D24: Transport biodiesel | E24: =C23*'Sprengning og pukk'!G7 -> 0 | F24: liter biodiesel | G24: År 0 | H24: Pukk | I24: Biodiesel | J24: =Utslippsfaktorer!B27 -> Biodiesel (WTT) | K24: =SUMIF(Utslippsfaktorer!B:B,Beregninger!J24,Utslippsfaktorer!D:D) -> 1.92 | L24: =VLOOKUP(J24,Utslippsfaktorer!B:C,2,FALSE) -> kg CO2e/liter | M24: 0
D25: Transport elektrisk/hydrogen | E25: =C23*'Sprengning og pukk'!H7 -> 0 | F25: kWh | G25: År 0 | H25: Pukk | I25: Elektrisitet | J25: =Utslippsfaktorer!B32 -> Elektrisitet anleggsfase, norsk miks | K25: =SUMIF(Utslippsfaktorer!B:B,Beregninger!J25,Utslippsfaktorer!D:D) -> 0.019 | L25: =VLOOKUP(J25,Utslippsfaktorer!B:C,2,FALSE) -> kg CO2e/kWh | M25: 0
D26: Anleggsarbeid diesel | E26: =C23*('Sprengning og pukk'!E17+'Sprengning og pukk'!E18)+C23*'Sprengning og pukk'!E19*Beregningsfaktorer!D51 -> 0 | F26: liter diesel | G26: År 0 | H26: Pukk | I26: Diesel | J26: =Utslippsfaktorer!B29 -> Fossil diesel (WTW) | K26: =SUMIF(Utslippsfaktorer!B:B,Beregninger!J26,Utslippsfaktorer!D:D) -> 3.24 | L26: =VLOOKUP(J26,Utslippsfaktorer!B:C,2,FALSE) -> kg CO2e/liter | M26: =(E26*K26)/1000 -> 0
D27: Anleggsarbeid biodiesel | E27: =C23*('Sprengning og pukk'!F17+'Sprengning og pukk'!F18)+C23*'Sprengning og pukk'!F19*Beregningsfaktorer!D51 -> 0 | F27: liter biodiesel | G27: År 0 | H27: Pukk | I27: Biodiesel | J27: =Utslippsfaktorer!B27 -> Biodiesel (WTT) | K27: =SUMIF(Utslippsfaktorer!B:B,Beregninger!J27,Utslippsfaktorer!D:D) -> 1.92 | L27: =VLOOKUP(J27,Utslippsfaktorer!B:C,2,FALSE) -> kg CO2e/liter | M27: 0
D28: Anleggsarbeid elektrisk/hydrogen | E28: =C23*('Sprengning og pukk'!G17+'Sprengning og pukk'!G18)+C23*'Sprengning og pukk'!G19*Beregningsfaktorer!D51 -> 0 | F28: kWh | G28: År 0 | H28: Pukk | I28: Elektrisitet | J28: =Utslippsfaktorer!B32 -> Elektrisitet anleggsfase, norsk miks | K28: =SUMIF(Utslippsfaktorer!B:B,Beregninger!J28,Utslippsfaktorer!D:D) -> 0.019 | L28: =VLOOKUP(J28,Utslippsfaktorer!B:C,2,FALSE) -> kg CO2e/kWh | M28: 0
B29: Sprengstein (intern) til deponi (fm3) | C29: =SUMIF('Prosjektbeskrivelse og inndata'!$M:$M,B29,'Prosjektbeskrivelse og inndata'!$L:$L) -> 0 | D29: Transport diesel | E29: =C29*'Sprengning og pukk'!F8 -> 0 | F29: liter diesel | G29: År 0 | H29: Pukk | I29: Diesel | J29: =Utslippsfaktorer!B29 -> Fossil diesel (WTW) | K29: =SUMIF(Utslippsfaktorer!B:B,Beregninger!J29,Utslippsfaktorer!D:D) -> 3.24 | L29: =VLOOKUP(J29,Utslippsfaktorer!B:C,2,FALSE) -> kg CO2e/liter | M29: 0
D30: Transport biodiesel | E30: =C29*'Sprengning og pukk'!G8 -> 0 | F30: liter biodiesel | G30: År 0 | H30: Pukk | I30: Biodiesel | J30: =Utslippsfaktorer!B27 -> Biodiesel (WTT) | K30: =SUMIF(Utslippsfaktorer!B:B,Beregninger!J30,Utslippsfaktorer!D:D) -> 1.92 | L30: =VLOOKUP(J30,Utslippsfaktorer!B:C,2,FALSE) -> kg CO2e/liter | M30: 0
D31: Transport elektrisk/hydrogen | E31: =C29*'Sprengning og pukk'!H8 -> 0 | F31: kWh | G31: År 0 | H31: Pukk | I31: Elektrisitet | J31: =Utslippsfaktorer!B32 -> Elektrisitet anleggsfase, norsk miks | K31: =SUMIF(Utslippsfaktorer!B:B,Beregninger!J31,Utslippsfaktorer!D:D) -> 0.019 | L31: =VLOOKUP(J31,Utslippsfaktorer!B:C,2,FALSE) -> kg CO2e/kWh | M31: 0
D32: Anleggsarbeid diesel | E32: =C29*'Sprengning og pukk'!E17 -> 0 | F32: liter diesel | G32: År 0 | H32: Pukk | I32: Diesel | J32: =Utslippsfaktorer!B29 -> Fossil diesel (WTW) | K32: =SUMIF(Utslippsfaktorer!B:B,Beregninger!J32,Utslippsfaktorer!D:D) -> 3.24 | L32: =VLOOKUP(J32,Utslippsfaktorer!B:C,2,FALSE) -> kg CO2e/liter | M32: =(E32*K32)/1000 -> 0
D33: Anleggsarbeid biodiesel | E33: =C29*'Sprengning og pukk'!F17 -> 0 | F33: liter biodiesel | G33: År 0 | H33: Pukk | I33: Biodiesel | J33: =Utslippsfaktorer!B27 -> Biodiesel (WTT) | K33: =SUMIF(Utslippsfaktorer!B:B,Beregninger!J33,Utslippsfaktorer!D:D) -> 1.92 | L33: =VLOOKUP(J33,Utslippsfaktorer!B:C,2,FALSE) -> kg CO2e/liter | M33: 0
D34: Anleggsarbeid elektrisk/hydrogen | E34: =C29*'Sprengning og pukk'!G17 -> 0 | F34: kWh | G34: År 0 | H34: Pukk | I34: Elektrisitet | J34: =Utslippsfaktorer!B32 -> Elektrisitet anleggsfase, norsk miks | K34: =SUMIF(Utslippsfaktorer!B:B,Beregninger!J34,Utslippsfaktorer!D:D) -> 0.019 | L34: =VLOOKUP(J34,Utslippsfaktorer!B:C,2,FALSE) -> kg CO2e/kWh | M34: 0
B35: Sprengstein (intern) til linja via pukkverk (fm3) | C35: =SUMIF('Prosjektbeskrivelse og inndata'!$M:$M,B35,'Prosjektbeskrivelse og inndata'!$L:$L) -> 0 | D35: Transport diesel | E35: =C35*'Sprengning og pukk'!F9 -> 0 | F35: liter diesel | G35: År 0 | H35: Pukk | I35: Diesel | J35: =Utslippsfaktorer!B29 -> Fossil diesel (WTW) | K35: =SUMIF(Utslippsfaktorer!B:B,Beregninger!J35,Utslippsfaktorer!D:D) -> 3.24 | L35: =VLOOKUP(J35,Utslippsfaktorer!B:C,2,FALSE) -> kg CO2e/liter | M35: 0
D36: Transport biodiesel | E36: =C35*'Sprengning og pukk'!G9 -> 0 | F36: liter biodiesel | G36: År 0 | H36: Pukk | I36: Biodiesel | J36: =Utslippsfaktorer!B27 -> Biodiesel (WTT) | K36: =SUMIF(Utslippsfaktorer!B:B,Beregninger!J36,Utslippsfaktorer!D:D) -> 1.92 | L36: =VLOOKUP(J36,Utslippsfaktorer!B:C,2,FALSE) -> kg CO2e/liter | M36: 0
D37: Transport elektrisk/hydrogen | E37: =C35*'Sprengning og pukk'!H9 -> 0 | F37: kWh | G37: År 0 | H37: Pukk | I37: Elektrisitet | J37: =Utslippsfaktorer!B32 -> Elektrisitet anleggsfase, norsk miks | K37: =SUMIF(Utslippsfaktorer!B:B,Beregninger!J37,Utslippsfaktorer!D:D) -> 0.019 | L37: =VLOOKUP(J37,Utslippsfaktorer!B:C,2,FALSE) -> kg CO2e/kWh | M37: 0
D38: Anleggsarbeid diesel | E38: =C35*('Sprengning og pukk'!E17+'Sprengning og pukk'!E18)+C35*'Sprengning og pukk'!E19*Beregningsfaktorer!D51 -> 0 | F38: liter diesel | G38: År 0 | H38: Pukk | I38: Diesel | J38: =Utslippsfaktorer!B29 -> Fossil diesel (WTW) | K38: =SUMIF(Utslippsfaktorer!B:B,Beregninger!J38,Utslippsfaktorer!D:D) -> 3.24 | L38: =VLOOKUP(J38,Utslippsfaktorer!B:C,2,FALSE) -> kg CO2e/liter | M38: 0
D39: Anleggsarbeid biodiesel | E39: =C35*('Sprengning og pukk'!F17+'Sprengning og pukk'!F18)+C35*'Sprengning og pukk'!F19*Beregningsfaktorer!D51 -> 0 | F39: liter biodiesel | G39: År 0 | H39: Pukk | I39: Biodiesel | J39: =Utslippsfaktorer!B27 -> Biodiesel (WTT) | K39: =SUMIF(Utslippsfaktorer!B:B,Beregninger!J39,Utslippsfaktorer!D:D) -> 1.92 | L39: =VLOOKUP(J39,Utslippsfaktorer!B:C,2,FALSE) -> kg CO2e/liter | M39: 0
D40: Anleggsarbeid elektrisk/hydrogen | E40: =C35*('Sprengning og pukk'!G17+'Sprengning og pukk'!G18)+C35*'Sprengning og pukk'!G19*Beregningsfaktorer!D51 -> 0 | F40: kWh | G40: År 0 | H40: Pukk | I40: Elektrisitet | J40: =Utslippsfaktorer!B32 -> Elektrisitet anleggsfase, norsk miks | K40: =SUMIF(Utslippsfaktorer!B:B,Beregninger!J40,Utslippsfaktorer!D:D) -> 0.019 | L40: =VLOOKUP(J40,Utslippsfaktorer!B:C,2,FALSE) -> kg CO2e/kWh | M40: 0
B41: Pukk ekstern (m3) | C41: =SUMIF('Prosjektbeskrivelse og inndata'!$M:$M,B41,'Prosjektbeskrivelse og inndata'!$L:$L) -> 0 | D41: Pukk grovknust | E41: =C41*'Sprengning og pukk'!E11*(1-Beregningsfaktorer!D51) -> 0 | F41: kg pukk grovknust | G41: År 0 | H41: Pukk | I41: Pukk og stein | J41: =Utslippsfaktorer!B9 -> Pukk grovknust | K41: =SUMIF(Utslippsfaktorer!B:B,Beregninger!J41,Utslippsfaktorer!D:D) -> 0.002673333333 | L41: =VLOOKUP(J41,Utslippsfaktorer!B:C,2,FALSE) -> kg CO2e/kg | M41: =(E41*K41)/1000 -> 0
D42: Pukk finknust | E42: =C41*'Sprengning og pukk'!E11*(Beregningsfaktorer!D51) -> 0 | F42: kg pukk finknust | G42: År 0 | H42: Pukk | I42: Pukk og stein | J42: =Utslippsfaktorer!B10 -> Pukk finknust | K42: =SUMIF(Utslippsfaktorer!B:B,Beregninger!J42,Utslippsfaktorer!D:D) -> 0.00315 | L42: =VLOOKUP(J42,Utslippsfaktorer!B:C,2,FALSE) -> kg CO2e/kg | M42: 0
D43: Transport diesel | E43: =C41*'Sprengning og pukk'!F11 -> 0 | F43: liter diesel | G43: År 0 | H43: Pukk | I43: Diesel | J43: =Utslippsfaktorer!B29 -> Fossil diesel (WTW) | K43: =SUMIF(Utslippsfaktorer!B:B,Beregninger!J43,Utslippsfaktorer!D:D) -> 3.24 | L43: =VLOOKUP(J43,Utslippsfaktorer!B:C,2,FALSE) -> kg CO2e/liter | M43: 0
D44: Transport biodiesel | E44: =C41*'Sprengning og pukk'!G11 -> 0 | F44: liter biodiesel | G44: År 0 | H44: Pukk | I44: Biodiesel | J44: =Utslippsfaktorer!B27 -> Biodiesel (WTT) | K44: =SUMIF(Utslippsfaktorer!B:B,Beregninger!J44,Utslippsfaktorer!D:D) -> 1.92 | L44: =VLOOKUP(J44,Utslippsfaktorer!B:C,2,FALSE) -> kg CO2e/liter | M44: 0
D45: Transport elektrisk/hydrogen | E45: =C41*'Sprengning og pukk'!H11 -> 0 | F45: kWh | G45: År 0 | H45: Pukk | I45: Elektrisitet | J45: =Utslippsfaktorer!B32 -> Elektrisitet anleggsfase, norsk miks | K45: =SUMIF(Utslippsfaktorer!B:B,Beregninger!J45,Utslippsfaktorer!D:D) -> 0.019 | L45: =VLOOKUP(J45,Utslippsfaktorer!B:C,2,FALSE) -> kg CO2e/kWh | M45: 0
D46: Anleggsarbeid diesel | E46: =C41*'Sprengning og pukk'!E21 -> 0 | F46: liter diesel | G46: År 0 | H46: Pukk | I46: Diesel | J46: =Utslippsfaktorer!B29 -> Fossil diesel (WTW) | K46: =SUMIF(Utslippsfaktorer!B:B,Beregninger!J46,Utslippsfaktorer!D:D) -> 3.24 | L46: =VLOOKUP(J46,Utslippsfaktorer!B:C,2,FALSE) -> kg CO2e/liter | M46: =(E46*K46)/1000 -> 0
D47: Anleggsarbeid biodiesel | E47: =C41*'Sprengning og pukk'!F21 -> 0 | F47: liter biodiesel | G47: År 0 | H47: Pukk | I47: Biodiesel | J47: =Utslippsfaktorer!B27 -> Biodiesel (WTT) | K47: =SUMIF(Utslippsfaktorer!B:B,Beregninger!J47,Utslippsfaktorer!D:D) -> 1.92 | L47: =VLOOKUP(J47,Utslippsfaktorer!B:C,2,FALSE) -> kg CO2e/liter | M47: 0
D48: Anleggsarbeid elektrisk/hydrogen | E48: =C41*'Sprengning og pukk'!G21 -> 0 | F48: kWh | G48: År 0 | H48: Pukk | I48: Elektrisitet | J48: =Utslippsfaktorer!B32 -> Elektrisitet anleggsfase, norsk miks | K48: =SUMIF(Utslippsfaktorer!B:B,Beregninger!J48,Utslippsfaktorer!D:D) -> 0.019 | L48: =VLOOKUP(J48,Utslippsfaktorer!B:C,2,FALSE) -> kg CO2e/kWh | M48: 0
B49: Hovedvei (m) | C49: =SUMIF('Prosjektbeskrivelse og inndata'!$M:$M,B49,'Prosjektbeskrivelse og inndata'!$L:$L) -> 0 | D49: Slitelag skjelettasfalt (Ska) | E49: =C49*Hovedvei!D5*'Prosjektbeskrivelse og inndata'!C9 -> 0 | F49: kg skjelettasfalt | G49: År 0 | H49: Vei i dagen | I49: Asfalt | J49: =Utslippsfaktorer!B7 -> Skjelettasfalt (Ska) | K49: =SUMIF(Utslippsfaktorer!B:B,Beregninger!J49,Utslippsfaktorer!D:D) -> 0.061 | L49: =VLOOKUP(J49,Utslippsfaktorer!B:C,2,FALSE) -> kg CO2e/kg | M49: =(E49*K49)/1000 -> 0
D50: Bindlag skjelettasfalt (Ska) | E50: =C49*Hovedvei!D6*'Prosjektbeskrivelse og inndata'!C9 -> 0 | F50: kg skjelettasfalt | G50: År 0 | H50: Vei i dagen | I50: Asfalt | J50: =Utslippsfaktorer!B7 -> Skjelettasfalt (Ska) | K50: =SUMIF(Utslippsfaktorer!B:B,Beregninger!J50,Utslippsfaktorer!D:D) -> 0.061 | L50: =VLOOKUP(J50,Utslippsfaktorer!B:C,2,FALSE) -> kg CO2e/kg | M50: 0
D51: Bærelag asfaltgrus (Ag) | E51: =C49*Hovedvei!D7*'Prosjektbeskrivelse og inndata'!C9 -> 0 | F51: kg asfaltgrus | G51: År 0 | H51: Vei i dagen | I51: Asfalt | J51: =Utslippsfaktorer!B8 -> Asfaltgrus (Ag) | K51: =SUMIF(Utslippsfaktorer!B:B,Beregninger!J51,Utslippsfaktorer!D:D) -> 0.0341 | L51: =VLOOKUP(J51,Utslippsfaktorer!B:C,2,FALSE) -> kg CO2e/kg | M51: 0
D52: Lyktestolper | E52: =C49*'Tillegg vei'!D5*Beregningsfaktorer!D111 -> 0 | F52: kg stål | G52: År 0 | H52: Vei i dagen | I52: Stål | J52: =Utslippsfaktorer!B16 -> Stål | K52: =SUMIF(Utslippsfaktorer!B:B,Beregninger!J52,Utslippsfaktorer!D:D) -> 2.1038 | L52: =VLOOKUP(J52,Utslippsfaktorer!B:C,2,FALSE) -> kg CO2e/kg | M52: 0
B53: C49*((SUMMER(Hovedvei!E5:E7)*'Prosjektbeskrivelse og inndata'!C9)+('Tillegg vei'!E5*Beregningsfaktorer!D83)+('Tillegg vei'!E7*Beregningsfaktorer!D85)) | D53: Autovern/rekkverk | E53: =C49*'Tillegg vei'!D7*Beregningsfaktorer!D113 -> 0 | F53: kg stål | G53: År 0 | H53: Vei i dagen | I53: Stål | J53: =Utslippsfaktorer!B16 -> Stål | K53: =SUMIF(Utslippsfaktorer!B:B,Beregninger!J53,Utslippsfaktorer!D:D) -> 2.1038 | L53: =VLOOKUP(J53,Utslippsfaktorer!B:C,2,FALSE) -> kg CO2e/kg | M53: 0
B54: m*((summer(diesel/m2 {slitelag, bindlag og bærelag})*m{bredde hovedvei})+(L/m{diesel transport lyktestolper per belysningsrekke per m hovedvei}*{antall belysningsrekker})+(L/m{diesel transport autovern}*{antall autovern hovedvei})) | D54: Transport diesel | E54: =C49*((SUM(Hovedvei!E5:E7)*'Prosjektbeskrivelse og inndata'!C9)+('Tillegg vei'!E5*Beregningsfaktorer!D111)+('Tillegg vei'!E7*Beregningsfaktorer!D113)) -> 0 | F54: liter diesel | G54: År 0 | H54: Vei i dagen | I54: Diesel | J54: =Utslippsfaktorer!B29 -> Fossil diesel (WTW) | K54: =SUMIF(Utslippsfaktorer!B:B,Beregninger!J54,Utslippsfaktorer!D:D) -> 3.24 | L54: =VLOOKUP(J54,Utslippsfaktorer!B:C,2,FALSE) -> kg CO2e/liter | M54: 0
D55: Transport biodiesel | E55: =C49*((SUM(Hovedvei!F5:F7)*'Prosjektbeskrivelse og inndata'!C9)+('Tillegg vei'!F5*Beregningsfaktorer!D111)+('Tillegg vei'!F7*Beregningsfaktorer!D113)) -> 0 | F55: liter biodiesel | G55: År 0 | H55: Vei i dagen | I55: Biodiesel | J55: =Utslippsfaktorer!B27 -> Biodiesel (WTT) | K55: =SUMIF(Utslippsfaktorer!B:B,Beregninger!J55,Utslippsfaktorer!D:D) -> 1.92 | L55: =VLOOKUP(J55,Utslippsfaktorer!B:C,2,FALSE) -> kg CO2e/liter | M55: 0
B56: C49*((SUMMER(Hovedvei!E15:E23)*'Prosjektbeskrivelse og inndata'!C9)+('Tillegg vei'!D12*Beregningsfaktorer!D85)+('Tillegg vei'!D13*Beregningsfaktorer!D89)+('Tillegg vei'!D14*Beregningsfaktorer!D87)) | D56: Transport elektrisk/hydrogen | E56: =C49*((SUM(Hovedvei!G5:G7)*'Prosjektbeskrivelse og inndata'!C9)+('Tillegg vei'!G5*Beregningsfaktorer!D111)+('Tillegg vei'!G7*Beregningsfaktorer!D113)) -> 0 | F56: kWh | G56: År 0 | H56: Vei i dagen | I56: Elektrisitet | J56: =Utslippsfaktorer!B32 -> Elektrisitet anleggsfase, norsk miks | K56: =SUMIF(Utslippsfaktorer!B:B,Beregninger!J56,Utslippsfaktorer!D:D) -> 0.019 | L56: =VLOOKUP(J56,Utslippsfaktorer!B:C,2,FALSE) -> kg CO2e/kWh | M56: 0
B57: m*((summer(diesel/m2 {slitelag, bindlag og bærelag})*m{bredde hovedvei})+(L/m{diesel montering autovern per m vei}*{antall autovern})+(L/m{diesel veimerking}*{antall veimerkinger})+(L/m{diesel etablering av grøft}*{antall grøfter})) | D57: Anleggsarbeid diesel | E57: =C49*((SUM(Hovedvei!E13:E21)*'Prosjektbeskrivelse og inndata'!C9)+('Tillegg vei'!D18*Beregningsfaktorer!D113)+('Tillegg vei'!D19*Beregningsfaktorer!D117)+('Tillegg vei'!D20*Beregningsfaktorer!D115)) -> 0 | F57: liter diesel | G57: År 0 | H57: Vei i dagen | I57: Diesel | J57: =Utslippsfaktorer!B29 -> Fossil diesel (WTW) | K57: =SUMIF(Utslippsfaktorer!B:B,Beregninger!J57,Utslippsfaktorer!D:D) -> 3.24 | L57: =VLOOKUP(J57,Utslippsfaktorer!B:C,2,FALSE) -> kg CO2e/liter | M57: 0
D58: Anleggsarbeid biodiesel | E58: =C49*((SUM(Hovedvei!F13:F21)*'Prosjektbeskrivelse og inndata'!C9)+('Tillegg vei'!E18*Beregningsfaktorer!D113)+('Tillegg vei'!E19*Beregningsfaktorer!D117)+('Tillegg vei'!E20*Beregningsfaktorer!D115)) -> 0 | F58: liter biodiesel | G58: År 0 | H58: Vei i dagen | I58: Biodiesel | J58: =Utslippsfaktorer!B27 -> Biodiesel (WTT) | K58: =SUMIF(Utslippsfaktorer!B:B,Beregninger!J58,Utslippsfaktorer!D:D) -> 1.92 | L58: =VLOOKUP(J58,Utslippsfaktorer!B:C,2,FALSE) -> kg CO2e/liter | M58: 0
D59: Anleggsarbeid elektrisk/hydrogen | E59: =C49*((SUM(Hovedvei!G13:G21)*'Prosjektbeskrivelse og inndata'!C9)+('Tillegg vei'!F18*Beregningsfaktorer!D113)+('Tillegg vei'!F19*Beregningsfaktorer!D117)+('Tillegg vei'!F20*Beregningsfaktorer!D115)) -> 0 | F59: kWh | G59: År 0 | H59: Vei i dagen | I59: Elektrisitet | J59: =Utslippsfaktorer!B32 -> Elektrisitet anleggsfase, norsk miks | K59: =SUMIF(Utslippsfaktorer!B:B,Beregninger!J59,Utslippsfaktorer!D:D) -> 0.019 | L59: =VLOOKUP(J59,Utslippsfaktorer!B:C,2,FALSE) -> kg CO2e/kWh | M59: 0
B60: Sidevei (m) | C60: =SUMIF('Prosjektbeskrivelse og inndata'!$M:$M,B60,'Prosjektbeskrivelse og inndata'!$L:$L) -> 0 | D60: Slitelag asfaltgrusbetong (Agb) | E60: =C60*Sidevei!D5*'Prosjektbeskrivelse og inndata'!C10 -> 0 | F60: kg asfaltgrusbetong | G60: År 0 | H60: Vei i dagen | I60: Asfalt | J60: =Utslippsfaktorer!B6 -> Asfaltgrusbetong (Agb) | K60: =SUMIF(Utslippsfaktorer!B:B,Beregninger!J60,Utslippsfaktorer!D:D) -> 0.0451 | L60: =VLOOKUP(J60,Utslippsfaktorer!B:C,2,FALSE) -> kg CO2e/kg | M60: 0
D61: Bindlag asfaltgrusbetong (Agb) | E61: =C60*Sidevei!D6*'Prosjektbeskrivelse og inndata'!C10 -> 0 | F61: kg asfaltgrusbetong | G61: År 0 | H61: Vei i dagen | I61: Asfalt | J61: =Utslippsfaktorer!B6 -> Asfaltgrusbetong (Agb) | K61: =SUMIF(Utslippsfaktorer!B:B,Beregninger!J61,Utslippsfaktorer!D:D) -> 0.0451 | L61: =VLOOKUP(J61,Utslippsfaktorer!B:C,2,FALSE) -> kg CO2e/kg | M61: 0
D62: Bærelag asfaltgrus (Ag) | E62: =C60*Sidevei!D7*'Prosjektbeskrivelse og inndata'!C10 -> 0 | F62: kg asfaltgrus | G62: År 0 | H62: Vei i dagen | I62: Asfalt | J62: =Utslippsfaktorer!B8 -> Asfaltgrus (Ag) | K62: =SUMIF(Utslippsfaktorer!B:B,Beregninger!J62,Utslippsfaktorer!D:D) -> 0.0341 | L62: =VLOOKUP(J62,Utslippsfaktorer!B:C,2,FALSE) -> kg CO2e/kg | M62: 0
D63: Lyktestolper | E63: =C60*'Tillegg vei'!D6*Beregningsfaktorer!D112 -> 0 | F63: kg stål | G63: År 0 | H63: Vei i dagen | I63: Stål | J63: =Utslippsfaktorer!B16 -> Stål | K63: =SUMIF(Utslippsfaktorer!B:B,Beregninger!J63,Utslippsfaktorer!D:D) -> 2.1038 | L63: =VLOOKUP(J63,Utslippsfaktorer!B:C,2,FALSE) -> kg CO2e/kg | M63: 0
B64: C60*((SUMMER(Sidevei!E5:E7)*'Prosjektbeskrivelse og inndata'!C10)+('Tillegg vei'!E6*Beregningsfaktorer!D84)+('Tillegg vei'!E7*Beregningsfaktorer!D86)) | D64: Autovern/rekkverk | E64: =C60*'Tillegg vei'!D7*Beregningsfaktorer!D114 -> 0 | F64: kg stål | G64: År 0 | H64: Vei i dagen | I64: Stål | J64: =Utslippsfaktorer!B16 -> Stål | K64: =SUMIF(Utslippsfaktorer!B:B,Beregninger!J64,Utslippsfaktorer!D:D) -> 2.1038 | L64: =VLOOKUP(J64,Utslippsfaktorer!B:C,2,FALSE) -> kg CO2e/kg | M64: 0
B65: m*((summer(diesel/m2 {slitelag, bindlag og bærelag})*m{bredde sidevei})+(L/m{diesel transport lyktestolper per belysningsrekke per m sidevei}*{antall belysningsrekker})+(L/m{diesel transport autovern}*{antall autovern hovedvei})) | D65: Transport diesel | E65: =C60*((SUM(Sidevei!E5:E7)*'Prosjektbeskrivelse og inndata'!C10)+('Tillegg vei'!E6*Beregningsfaktorer!D112)+('Tillegg vei'!E7*Beregningsfaktorer!D114)) -> 0 | F65: liter diesel | G65: År 0 | H65: Vei i dagen | I65: Diesel | J65: =Utslippsfaktorer!B29 -> Fossil diesel (WTW) | K65: =SUMIF(Utslippsfaktorer!B:B,Beregninger!J65,Utslippsfaktorer!D:D) -> 3.24 | L65: =VLOOKUP(J65,Utslippsfaktorer!B:C,2,FALSE) -> kg CO2e/liter | M65: 0
D66: Transport biodiesel | E66: =C60*((SUM(Sidevei!F5:F7)*'Prosjektbeskrivelse og inndata'!C10)+('Tillegg vei'!F6*Beregningsfaktorer!D112)+('Tillegg vei'!F7*Beregningsfaktorer!D114)) -> 0 | F66: liter biodiesel | G66: År 0 | H66: Vei i dagen | I66: Biodiesel | J66: =Utslippsfaktorer!B27 -> Biodiesel (WTT) | K66: =SUMIF(Utslippsfaktorer!B:B,Beregninger!J66,Utslippsfaktorer!D:D) -> 1.92 | L66: =VLOOKUP(J66,Utslippsfaktorer!B:C,2,FALSE) -> kg CO2e/liter | M66: 0
B67: C60*((SUMMER(Sidevei!E15:E23)*'Prosjektbeskrivelse og inndata'!C10)+('Tillegg vei'!D12*Beregningsfaktorer!D86)+('Tillegg vei'!D13*Beregningsfaktorer!D90)+('Tillegg vei'!D14*Beregningsfaktorer!D88)) | D67: Transport elektrisk/hydrogen | E67: =C60*((SUM(Sidevei!G5:G7)*'Prosjektbeskrivelse og inndata'!C10)+('Tillegg vei'!G6*Beregningsfaktorer!D112)+('Tillegg vei'!G7*Beregningsfaktorer!D114)) -> 0 | F67: kWh | G67: År 0 | H67: Vei i dagen | I67: Elektrisitet | J67: =Utslippsfaktorer!B32 -> Elektrisitet anleggsfase, norsk miks | K67: =SUMIF(Utslippsfaktorer!B:B,Beregninger!J67,Utslippsfaktorer!D:D) -> 0.019 | L67: =VLOOKUP(J67,Utslippsfaktorer!B:C,2,FALSE) -> kg CO2e/kWh | M67: 0
B68: m*((summer(diesel/m2 {slitelag, bindlag og bærelag})*m{bredde sidevei})+(L/m{diesel montering autovern per m vei}*{antall autovern})+(L/m{diesel veimerking}*{antall veimerkinger})+(L/m{diesel etablering av grøft}*{antall grøfter})) | D68: Anleggsarbeid diesel | E68: =C60*((SUM(Sidevei!E13:E21)*'Prosjektbeskrivelse og inndata'!C10)+('Tillegg vei'!D18*Beregningsfaktorer!D114)+('Tillegg vei'!D19*Beregningsfaktorer!D118)+('Tillegg vei'!D20*Beregningsfaktorer!D116)) -> 0 | F68: liter diesel | G68: År 0 | H68: Vei i dagen | I68: Diesel | J68: =Utslippsfaktorer!B29 -> Fossil diesel (WTW) | K68: =SUMIF(Utslippsfaktorer!B:B,Beregninger!J68,Utslippsfaktorer!D:D) -> 3.24 | L68: =VLOOKUP(J68,Utslippsfaktorer!B:C,2,FALSE) -> kg CO2e/liter | M68: 0
D69: Anleggsarbeid biodiesel | E69: =C60*((SUM(Sidevei!F13:F21)*'Prosjektbeskrivelse og inndata'!C10)+('Tillegg vei'!E18*Beregningsfaktorer!D114)+('Tillegg vei'!E19*Beregningsfaktorer!D118)+('Tillegg vei'!E20*Beregningsfaktorer!D116)) -> 0 | F69: liter biodiesel | G69: År 0 | H69: Vei i dagen | I69: Biodiesel | J69: =Utslippsfaktorer!B27 -> Biodiesel (WTT) | K69: =SUMIF(Utslippsfaktorer!B:B,Beregninger!J69,Utslippsfaktorer!D:D) -> 1.92 | L69: =VLOOKUP(J69,Utslippsfaktorer!B:C,2,FALSE) -> kg CO2e/liter | M69: 0
D70: Anleggsarbeid elektrisk/hydrogen | E70: =C60*((SUM(Sidevei!G13:G21)*'Prosjektbeskrivelse og inndata'!C10)+('Tillegg vei'!F18*Beregningsfaktorer!D114)+('Tillegg vei'!F19*Beregningsfaktorer!D118)+('Tillegg vei'!F20*Beregningsfaktorer!D116)) -> 0 | F70: kWh | G70: År 0 | H70: Vei i dagen | I70: Elektrisitet | J70: =Utslippsfaktorer!B32 -> Elektrisitet anleggsfase, norsk miks | K70: =SUMIF(Utslippsfaktorer!B:B,Beregninger!J70,Utslippsfaktorer!D:D) -> 0.019 | L70: =VLOOKUP(J70,Utslippsfaktorer!B:C,2,FALSE) -> kg CO2e/kWh | M70: 0
B71: Anleggsvei (m) | C71: =SUMIF('Prosjektbeskrivelse og inndata'!$M:$M,B71,'Prosjektbeskrivelse og inndata'!$L:$L) -> 0 | D71: Bærelag asfaltgrus (Ag) | E71: =C71*Anleggsvei!D5*'Prosjektbeskrivelse og inndata'!C11 -> 0 | F71: kg asfaltgrus | G71: År 0 | H71: Vei i dagen | I71: Asfalt | J71: =Utslippsfaktorer!B8 -> Asfaltgrus (Ag) | K71: =SUMIF(Utslippsfaktorer!B:B,Beregninger!J71,Utslippsfaktorer!D:D) -> 0.0341 | L71: =VLOOKUP(J71,Utslippsfaktorer!B:C,2,FALSE) -> kg CO2e/kg | M71: 0
D72: Transport diesel | E72: =C71*Anleggsvei!E5*'Prosjektbeskrivelse og inndata'!C11 -> 0 | F72: liter diesel | G72: År 0 | H72: Vei i dagen | I72: Diesel | J72: =Utslippsfaktorer!B29 -> Fossil diesel (WTW) | K72: =SUMIF(Utslippsfaktorer!B:B,Beregninger!J72,Utslippsfaktorer!D:D) -> 3.24 | L72: =VLOOKUP(J72,Utslippsfaktorer!B:C,2,FALSE) -> kg CO2e/liter | M72: 0
D73: Transport biodiesel | E73: =C71*Anleggsvei!F5*'Prosjektbeskrivelse og inndata'!C11 -> 0 | F73: liter biodiesel | G73: År 0 | H73: Vei i dagen | I73: Biodiesel | J73: =Utslippsfaktorer!B27 -> Biodiesel (WTT) | K73: =SUMIF(Utslippsfaktorer!B:B,Beregninger!J73,Utslippsfaktorer!D:D) -> 1.92 | L73: =VLOOKUP(J73,Utslippsfaktorer!B:C,2,FALSE) -> kg CO2e/liter | M73: 0
D74: Transport elektrisk/hydrogen | E74: =C71*Anleggsvei!G5*'Prosjektbeskrivelse og inndata'!C11 -> 0 | F74: kWh | G74: År 0 | H74: Vei i dagen | I74: Elektrisitet | J74: =Utslippsfaktorer!B32 -> Elektrisitet anleggsfase, norsk miks | K74: =SUMIF(Utslippsfaktorer!B:B,Beregninger!J74,Utslippsfaktorer!D:D) -> 0.019 | L74: =VLOOKUP(J74,Utslippsfaktorer!B:C,2,FALSE) -> kg CO2e/kWh | M74: 0
D75: Anleggsarbeid diesel | E75: =C71*(SUM(Anleggsvei!E11:E13)*'Prosjektbeskrivelse og inndata'!C11) -> 0 | F75: liter diesel | G75: År 0 | H75: Vei i dagen | I75: Diesel | J75: =Utslippsfaktorer!B29 -> Fossil diesel (WTW) | K75: =SUMIF(Utslippsfaktorer!B:B,Beregninger!J75,Utslippsfaktorer!D:D) -> 3.24 | L75: =VLOOKUP(J75,Utslippsfaktorer!B:C,2,FALSE) -> kg CO2e/liter | M75: 0
D76: Anleggsarbeid biodiesel | E76: =C71*(SUM(Anleggsvei!F11:F13)*'Prosjektbeskrivelse og inndata'!C11) -> 0 | F76: liter biodiesel | G76: År 0 | H76: Vei i dagen | I76: Biodiesel | J76: =Utslippsfaktorer!B27 -> Biodiesel (WTT) | K76: =SUMIF(Utslippsfaktorer!B:B,Beregninger!J76,Utslippsfaktorer!D:D) -> 1.92 | L76: =VLOOKUP(J76,Utslippsfaktorer!B:C,2,FALSE) -> kg CO2e/liter | M76: 0
D77: Anleggsarbeid elektrisk/hydrogen | E77: =C71*(SUM(Anleggsvei!G11:G13)*'Prosjektbeskrivelse og inndata'!C11) -> 0 | F77: kWh | G77: År 0 | H77: Vei i dagen | I77: Elektrisitet | J77: =Utslippsfaktorer!B32 -> Elektrisitet anleggsfase, norsk miks | K77: =SUMIF(Utslippsfaktorer!B:B,Beregninger!J77,Utslippsfaktorer!D:D) -> 0.019 | L77: =VLOOKUP(J77,Utslippsfaktorer!B:C,2,FALSE) -> kg CO2e/kWh | M77: 0
B78: Betongbru (m) | C78: =SUMIF('Prosjektbeskrivelse og inndata'!$M:$M,B78,'Prosjektbeskrivelse og inndata'!$L:$L) -> 0 | D78: Betong | E78: =C78*Betongbru!E5*'Prosjektbeskrivelse og inndata'!C12 -> 0 | F78: kg betong | G78: År 0 | H78: Bru | I78: Betong | J78: =Utslippsfaktorer!B12 -> Betong | K78: =SUMIF(Utslippsfaktorer!B:B,Beregninger!J78,Utslippsfaktorer!D:D) -> 0.1375 | L78: =VLOOKUP(J78,Utslippsfaktorer!B:C,2,FALSE) -> kg CO2e/kg | M78: 0
D79: Armeringsstål | E79: =C78*Betongbru!E6*'Prosjektbeskrivelse og inndata'!C12 -> 0 | F79: kg armeringsstål | G79: År 0 | H79: Bru | I79: Armeringsstål | J79: =Utslippsfaktorer!B5 -> Armeringsstål | K79: =SUMIF(Utslippsfaktorer!B:B,Beregninger!J79,Utslippsfaktorer!D:D) -> 0.5663 | L79: =VLOOKUP(J79,Utslippsfaktorer!B:C,2,FALSE) -> kg CO2e/kg | M79: 0
D80: Konstruksjonsstål | E80: =C78*Betongbru!E7*'Prosjektbeskrivelse og inndata'!C12 -> 0 | F80: kg stål | G80: År 0 | H80: Bru | I80: Stål | J80: =Utslippsfaktorer!B16 -> Stål | K80: =SUMIF(Utslippsfaktorer!B:B,Beregninger!J80,Utslippsfaktorer!D:D) -> 2.1038 | L80: =VLOOKUP(J80,Utslippsfaktorer!B:C,2,FALSE) -> kg CO2e/kg | M80: 0
D81: Trevirke | E81: =C78*Betongbru!E8*'Prosjektbeskrivelse og inndata'!C12 -> 0 | F81: kg trevirke | G81: År 0 | H81: Bru | I81: Tre | J81: =Utslippsfaktorer!B19 -> Treverk (limtre) | K81: =SUMIF(Utslippsfaktorer!B:B,Beregninger!J81,Utslippsfaktorer!D:D) -> 0.1570744681 | L81: =VLOOKUP(J81,Utslippsfaktorer!B:C,2,FALSE) -> kg CO2e/kg | M81: 0
D82: Slitelag skjelettasfalt (Ska) | E82: =C78*Betongbru!E9*'Prosjektbeskrivelse og inndata'!C12 -> 0 | F82: kg skjelettasfalt | G82: År 0 | H82: Bru | I82: Asfalt | J82: =Utslippsfaktorer!B7 -> Skjelettasfalt (Ska) | K82: =SUMIF(Utslippsfaktorer!B:B,Beregninger!J82,Utslippsfaktorer!D:D) -> 0.061 | L82: =VLOOKUP(J82,Utslippsfaktorer!B:C,2,FALSE) -> kg CO2e/kg | M82: 0
D83: Bindlag skjelettasfalt (Ska) | E83: =C78*Betongbru!E10*'Prosjektbeskrivelse og inndata'!C12 -> 0 | F83: kg skjelettasfalt | G83: År 0 | H83: Bru | I83: Asfalt | J83: =Utslippsfaktorer!B7 -> Skjelettasfalt (Ska) | K83: =SUMIF(Utslippsfaktorer!B:B,Beregninger!J83,Utslippsfaktorer!D:D) -> 0.061 | L83: =VLOOKUP(J83,Utslippsfaktorer!B:C,2,FALSE) -> kg CO2e/kg | M83: 0
D84: Fuktisolering (Topeka) | E84: =C78*Betongbru!E11*'Prosjektbeskrivelse og inndata'!C12 -> 0 | F84: kg topeka | G84: År 0 | H84: Bru | I84: Asfalt | J84: =Utslippsfaktorer!B11 -> Topeka | K84: =SUMIF(Utslippsfaktorer!B:B,Beregninger!J84,Utslippsfaktorer!D:D) -> 0.052 | L84: =VLOOKUP(J84,Utslippsfaktorer!B:C,2,FALSE) -> kg CO2e/kg | M84: 0
D85: Lyktestolper | E85: =C78*'Tillegg vei'!D5*Beregningsfaktorer!D111 -> 0 | F85: kg stål | G85: År 0 | H85: Bru | I85: Stål | J85: =Utslippsfaktorer!B16 -> Stål | K85: =SUMIF(Utslippsfaktorer!B:B,Beregninger!J85,Utslippsfaktorer!D:D) -> 2.1038 | L85: =VLOOKUP(J85,Utslippsfaktorer!B:C,2,FALSE) -> kg CO2e/kg | M85: 0
D86: Autovern/rekkverk | E86: =C78*'Tillegg vei'!D7*Beregningsfaktorer!D113 -> 0 | F86: kg stål | G86: År 0 | H86: Bru | I86: Stål | J86: =Utslippsfaktorer!B16 -> Stål | K86: =SUMIF(Utslippsfaktorer!B:B,Beregninger!J86,Utslippsfaktorer!D:D) -> 2.1038 | L86: =VLOOKUP(J86,Utslippsfaktorer!B:C,2,FALSE) -> kg CO2e/kg | M86: 0
D87: Transport diesel | E87: =C78*(((SUM(Betongbru!F5:F11)*'Prosjektbeskrivelse og inndata'!C12)+(('Tillegg vei'!E5*Beregningsfaktorer!D111)+('Tillegg vei'!E7*Beregningsfaktorer!D113)))) -> 0 | F87: liter diesel | G87: År 0 | H87: Bru | I87: Diesel | J87: =Utslippsfaktorer!B29 -> Fossil diesel (WTW) | K87: =SUMIF(Utslippsfaktorer!B:B,Beregninger!J87,Utslippsfaktorer!D:D) -> 3.24 | L87: =VLOOKUP(J87,Utslippsfaktorer!B:C,2,FALSE) -> kg CO2e/liter | M87: 0
D88: Transport biodiesel | E88: =C78*(((SUM(Betongbru!G5:G11)*'Prosjektbeskrivelse og inndata'!C12)+(('Tillegg vei'!F5*Beregningsfaktorer!D111)+('Tillegg vei'!F7*Beregningsfaktorer!D113)))) -> 0 | F88: liter biodiesel | G88: År 0 | H88: Bru | I88: Biodiesel | J88: =Utslippsfaktorer!B27 -> Biodiesel (WTT) | K88: =SUMIF(Utslippsfaktorer!B:B,Beregninger!J88,Utslippsfaktorer!D:D) -> 1.92 | L88: =VLOOKUP(J88,Utslippsfaktorer!B:C,2,FALSE) -> kg CO2e/liter | M88: 0
D89: Transport elektrisk/hydrogen | E89: =C78*(((SUM(Betongbru!H5:H11)*'Prosjektbeskrivelse og inndata'!C12)+(('Tillegg vei'!G5*Beregningsfaktorer!D111)+('Tillegg vei'!G7*Beregningsfaktorer!D113)))) -> 0 | F89: kWh | G89: År 0 | H89: Bru | I89: Elektrisitet | J89: =Utslippsfaktorer!B32 -> Elektrisitet anleggsfase, norsk miks | K89: =SUMIF(Utslippsfaktorer!B:B,Beregninger!J89,Utslippsfaktorer!D:D) -> 0.019 | L89: =VLOOKUP(J89,Utslippsfaktorer!B:C,2,FALSE) -> kg CO2e/kWh | M89: =(E89*K89)/1000 -> 0
D90: Anleggsarbeid diesel | E90: =C78*(((SUM(Betongbru!E19:E28)*'Prosjektbeskrivelse og inndata'!C12)+(('Tillegg vei'!D18*Beregningsfaktorer!D113)+('Tillegg vei'!D19*Beregningsfaktorer!D117)))) -> 0 | F90: liter diesel | G90: År 0 | H90: Bru | I90: Diesel | J90: =Utslippsfaktorer!B29 -> Fossil diesel (WTW) | K90: =SUMIF(Utslippsfaktorer!B:B,Beregninger!J90,Utslippsfaktorer!D:D) -> 3.24 | L90: =VLOOKUP(J90,Utslippsfaktorer!B:C,2,FALSE) -> kg CO2e/liter | M90: 0
D91: Anleggsarbeid biodiesel | E91: =C78*(((SUM(Betongbru!F19:F28)*'Prosjektbeskrivelse og inndata'!C12)+(('Tillegg vei'!E18*Beregningsfaktorer!D113)+('Tillegg vei'!E19*Beregningsfaktorer!D117)))) -> 0 | F91: liter biodiesel | G91: År 0 | H91: Bru | I91: Biodiesel | J91: =Utslippsfaktorer!B27 -> Biodiesel (WTT) | K91: =SUMIF(Utslippsfaktorer!B:B,Beregninger!J91,Utslippsfaktorer!D:D) -> 1.92 | L91: =VLOOKUP(J91,Utslippsfaktorer!B:C,2,FALSE) -> kg CO2e/liter | M91: 0
D92: Anleggsarbeid elektrisk/hydrogen | E92: =C78*(((SUM(Betongbru!G19:G28)*'Prosjektbeskrivelse og inndata'!C12)+(('Tillegg vei'!F18*Beregningsfaktorer!D113)+('Tillegg vei'!F19*Beregningsfaktorer!D117)))) -> 0 | F92: kWh | G92: År 0 | H92: Bru | I92: Elektrisitet | J92: =Utslippsfaktorer!B32 -> Elektrisitet anleggsfase, norsk miks | K92: =SUMIF(Utslippsfaktorer!B:B,Beregninger!J92,Utslippsfaktorer!D:D) -> 0.019 | L92: =VLOOKUP(J92,Utslippsfaktorer!B:C,2,FALSE) -> kg CO2e/kWh | M92: 0
B93: Stålbru (m) | C93: =SUMIF('Prosjektbeskrivelse og inndata'!$M:$M,B93,'Prosjektbeskrivelse og inndata'!$L:$L) -> 0 | D93: Betong | E93: =C93*Stålbru!E5*'Prosjektbeskrivelse og inndata'!C13 -> 0 | F93: kg betong | G93: År 0 | H93: Bru | I93: Betong | J93: =Utslippsfaktorer!B12 -> Betong | K93: =SUMIF(Utslippsfaktorer!B:B,Beregninger!J93,Utslippsfaktorer!D:D) -> 0.1375 | L93: =VLOOKUP(J93,Utslippsfaktorer!B:C,2,FALSE) -> kg CO2e/kg | M93: 0
D94: Armeringsstål | E94: =C93*Stålbru!E6*'Prosjektbeskrivelse og inndata'!C13 -> 0 | F94: kg armeringsstål | G94: År 0 | H94: Bru | I94: Armeringsstål | J94: =Utslippsfaktorer!B5 -> Armeringsstål | K94: =SUMIF(Utslippsfaktorer!B:B,Beregninger!J94,Utslippsfaktorer!D:D) -> 0.5663 | L94: =VLOOKUP(J94,Utslippsfaktorer!B:C,2,FALSE) -> kg CO2e/kg | M94: 0
D95: Konstruksjonsstål | E95: =C93*Stålbru!E7*'Prosjektbeskrivelse og inndata'!C13 -> 0 | F95: kg stål | G95: År 0 | H95: Bru | I95: Stål | J95: =Utslippsfaktorer!B16 -> Stål | K95: =SUMIF(Utslippsfaktorer!B:B,Beregninger!J95,Utslippsfaktorer!D:D) -> 2.1038 | L95: =VLOOKUP(J95,Utslippsfaktorer!B:C,2,FALSE) -> kg CO2e/kg | M95: 0
D96: Trevirke | E96: =C93*Stålbru!E8*'Prosjektbeskrivelse og inndata'!C13 -> 0 | F96: kg trevirke | G96: År 0 | H96: Bru | I96: Tre | J96: =Utslippsfaktorer!B19 -> Treverk (limtre) | K96: =SUMIF(Utslippsfaktorer!B:B,Beregninger!J96,Utslippsfaktorer!D:D) -> 0.1570744681 | L96: =VLOOKUP(J96,Utslippsfaktorer!B:C,2,FALSE) -> kg CO2e/kg | M96: 0
D97: Slitelag skjelettasfalt (Ska) | E97: =C93*Stålbru!E9*'Prosjektbeskrivelse og inndata'!C13 -> 0 | F97: kg skjelettasfalt | G97: År 0 | H97: Bru | I97: Asfalt | J97: =Utslippsfaktorer!B7 -> Skjelettasfalt (Ska) | K97: =SUMIF(Utslippsfaktorer!B:B,Beregninger!J97,Utslippsfaktorer!D:D) -> 0.061 | L97: =VLOOKUP(J97,Utslippsfaktorer!B:C,2,FALSE) -> kg CO2e/kg | M97: 0
D98: Bindlag skjelettasfalt (Ska) | E98: =C93*Stålbru!E10*'Prosjektbeskrivelse og inndata'!C13 -> 0 | F98: kg skjelettasfalt | G98: År 0 | H98: Bru | I98: Asfalt | J98: =Utslippsfaktorer!B7 -> Skjelettasfalt (Ska) | K98: =SUMIF(Utslippsfaktorer!B:B,Beregninger!J98,Utslippsfaktorer!D:D) -> 0.061 | L98: =VLOOKUP(J98,Utslippsfaktorer!B:C,2,FALSE) -> kg CO2e/kg | M98: 0
D99: Fuktisolering (Topeka) | E99: =C93*Stålbru!E11*'Prosjektbeskrivelse og inndata'!C13 -> 0 | F99: kg topeka | G99: År 0 | H99: Bru | I99: Asfalt | J99: =Utslippsfaktorer!B11 -> Topeka | K99: =SUMIF(Utslippsfaktorer!B:B,Beregninger!J99,Utslippsfaktorer!D:D) -> 0.052 | L99: =VLOOKUP(J99,Utslippsfaktorer!B:C,2,FALSE) -> kg CO2e/kg | M99: 0
D100: Lyktestolper | E100: =C93*'Tillegg vei'!D5*Beregningsfaktorer!D111 -> 0 | F100: kg stål | G100: År 0 | H100: Bru | I100: Stål | J100: =Utslippsfaktorer!B16 -> Stål | K100: =SUMIF(Utslippsfaktorer!B:B,Beregninger!J100,Utslippsfaktorer!D:D) -> 2.1038 | L100: =VLOOKUP(J100,Utslippsfaktorer!B:C,2,FALSE) -> kg CO2e/kg | M100: 0
D101: Autovern/rekkverk | E101: =C93*'Tillegg vei'!D7*Beregningsfaktorer!D113 -> 0 | F101: kg stål | G101: År 0 | H101: Bru | I101: Stål | J101: =Utslippsfaktorer!B16 -> Stål | K101: =SUMIF(Utslippsfaktorer!B:B,Beregninger!J101,Utslippsfaktorer!D:D) -> 2.1038 | L101: =VLOOKUP(J101,Utslippsfaktorer!B:C,2,FALSE) -> kg CO2e/kg | M101: 0
D102: Transport diesel | E102: =C93*(SUM(Stålbru!F5:F11)*'Prosjektbeskrivelse og inndata'!C13+('Tillegg vei'!E5*Beregningsfaktorer!D111)+('Tillegg vei'!E7*Beregningsfaktorer!D113)) -> 0 | F102: liter diesel | G102: År 0 | H102: Bru | I102: Diesel | J102: =Utslippsfaktorer!B29 -> Fossil diesel (WTW) | K102: =SUMIF(Utslippsfaktorer!B:B,Beregninger!J102,Utslippsfaktorer!D:D) -> 3.24 | L102: =VLOOKUP(J102,Utslippsfaktorer!B:C,2,FALSE) -> kg CO2e/liter | M102: 0
D103: Transport biodiesel | E103: =C93*(((SUM(Stålbru!G5:G11)*'Prosjektbeskrivelse og inndata'!C13)+(('Tillegg vei'!F5*Beregningsfaktorer!D111)+('Tillegg vei'!F7*Beregningsfaktorer!D113)))) -> 0 | F103: liter biodiesel | G103: År 0 | H103: Bru | I103: Biodiesel | J103: =Utslippsfaktorer!B27 -> Biodiesel (WTT) | K103: =SUMIF(Utslippsfaktorer!B:B,Beregninger!J103,Utslippsfaktorer!D:D) -> 1.92 | L103: =VLOOKUP(J103,Utslippsfaktorer!B:C,2,FALSE) -> kg CO2e/liter | M103: 0
D104: Transport elektrisk/hydrogen | E104: =C93*(((SUM(Stålbru!H5:H11)*'Prosjektbeskrivelse og inndata'!C13)+(('Tillegg vei'!G5*Beregningsfaktorer!D111)+('Tillegg vei'!G7*Beregningsfaktorer!D113)))) -> 0 | F104: kWh | G104: År 0 | H104: Bru | I104: Elektrisitet | J104: =Utslippsfaktorer!B32 -> Elektrisitet anleggsfase, norsk miks | K104: =SUMIF(Utslippsfaktorer!B:B,Beregninger!J104,Utslippsfaktorer!D:D) -> 0.019 | L104: =VLOOKUP(J104,Utslippsfaktorer!B:C,2,FALSE) -> kg CO2e/kWh | M104: 0
D105: Anleggsarbeid diesel | E105: =C93*(((SUM(Stålbru!E19:E28)*'Prosjektbeskrivelse og inndata'!C13)+(('Tillegg vei'!D18*Beregningsfaktorer!D113)+('Tillegg vei'!D19*Beregningsfaktorer!D117)))) -> 0 | F105: liter diesel | G105: År 0 | H105: Bru | I105: Diesel | J105: =Utslippsfaktorer!B29 -> Fossil diesel (WTW) | K105: =SUMIF(Utslippsfaktorer!B:B,Beregninger!J105,Utslippsfaktorer!D:D) -> 3.24 | L105: =VLOOKUP(J105,Utslippsfaktorer!B:C,2,FALSE) -> kg CO2e/liter | M105: 0
D106: Anleggsarbeid biodiesel | E106: =C93*(((SUM(Stålbru!F19:F28)*'Prosjektbeskrivelse og inndata'!C13)+(('Tillegg vei'!E18*Beregningsfaktorer!D113)+('Tillegg vei'!E19*Beregningsfaktorer!D117)))) -> 0 | F106: liter biodiesel | G106: År 0 | H106: Bru | I106: Biodiesel | J106: =Utslippsfaktorer!B27 -> Biodiesel (WTT) | K106: =SUMIF(Utslippsfaktorer!B:B,Beregninger!J106,Utslippsfaktorer!D:D) -> 1.92 | L106: =VLOOKUP(J106,Utslippsfaktorer!B:C,2,FALSE) -> kg CO2e/liter | M106: 0
D107: Anleggsarbeid elektrisk/hydrogen | E107: =C93*(((SUM(Stålbru!G17:G28)*'Prosjektbeskrivelse og inndata'!C13)+(('Tillegg vei'!F18*Beregningsfaktorer!D113)+('Tillegg vei'!F19*Beregningsfaktorer!D117)))) -> 0 | F107: kWh | G107: År 0 | H107: Bru | I107: Elektrisitet | J107: =Utslippsfaktorer!B32 -> Elektrisitet anleggsfase, norsk miks | K107: =SUMIF(Utslippsfaktorer!B:B,Beregninger!J107,Utslippsfaktorer!D:D) -> 0.019 | L107: =VLOOKUP(J107,Utslippsfaktorer!B:C,2,FALSE) -> kg CO2e/kWh | M107: 0
B108: Trebru (m) | C108: =SUMIF('Prosjektbeskrivelse og inndata'!$M:$M,B108,'Prosjektbeskrivelse og inndata'!$L:$L) -> 0 | D108: Betong | E108: =C108*Trebru!E5*'Prosjektbeskrivelse og inndata'!C14 -> 0 | F108: kg betong | G108: År 0 | H108: Bru | I108: Betong | J108: =Utslippsfaktorer!B12 -> Betong | K108: =SUMIF(Utslippsfaktorer!B:B,Beregninger!J108,Utslippsfaktorer!D:D) -> 0.1375 | L108: =VLOOKUP(J108,Utslippsfaktorer!B:C,2,FALSE) -> kg CO2e/kg | M108: =(E108*K108)/1000 -> 0
D109: Armeringsstål | E109: =C108*Trebru!E6*'Prosjektbeskrivelse og inndata'!C14 -> 0 | F109: kg armeringsstål | G109: År 0 | H109: Bru | I109: Armeringsstål | J109: =Utslippsfaktorer!B5 -> Armeringsstål | K109: =SUMIF(Utslippsfaktorer!B:B,Beregninger!J109,Utslippsfaktorer!D:D) -> 0.5663 | L109: =VLOOKUP(J109,Utslippsfaktorer!B:C,2,FALSE) -> kg CO2e/kg | M109: 0
D110: Konstruksjonsstål | E110: =C108*Trebru!E7*'Prosjektbeskrivelse og inndata'!C14 -> 0 | F110: kg stål | G110: År 0 | H110: Bru | I110: Stål | J110: =Utslippsfaktorer!B16 -> Stål | K110: =SUMIF(Utslippsfaktorer!B:B,Beregninger!J110,Utslippsfaktorer!D:D) -> 2.1038 | L110: =VLOOKUP(J110,Utslippsfaktorer!B:C,2,FALSE) -> kg CO2e/kg | M110: 0
D111: Trevirke | E111: =C108*Trebru!E8*'Prosjektbeskrivelse og inndata'!C14 -> 0 | F111: kg trevirke | G111: År 0 | H111: Bru | I111: Tre | J111: =Utslippsfaktorer!B19 -> Treverk (limtre) | K111: =SUMIF(Utslippsfaktorer!B:B,Beregninger!J111,Utslippsfaktorer!D:D) -> 0.1570744681 | L111: =VLOOKUP(J111,Utslippsfaktorer!B:C,2,FALSE) -> kg CO2e/kg | M111: 0
D112: Slitelag skjelettasfalt (Ska) | E112: =C108*Trebru!E9*'Prosjektbeskrivelse og inndata'!C14 -> 0 | F112: kg skjelettasfalt | G112: År 0 | H112: Bru | I112: Asfalt | J112: =Utslippsfaktorer!B7 -> Skjelettasfalt (Ska) | K112: =SUMIF(Utslippsfaktorer!B:B,Beregninger!J112,Utslippsfaktorer!D:D) -> 0.061 | L112: =VLOOKUP(J112,Utslippsfaktorer!B:C,2,FALSE) -> kg CO2e/kg | M112: 0
D113: Bindlag skjelettasfalt (Ska) | E113: =C108*Trebru!E10*'Prosjektbeskrivelse og inndata'!C14 -> 0 | F113: kg skjelettasfalt | G113: År 0 | H113: Bru | I113: Asfalt | J113: =Utslippsfaktorer!B7 -> Skjelettasfalt (Ska) | K113: =SUMIF(Utslippsfaktorer!B:B,Beregninger!J113,Utslippsfaktorer!D:D) -> 0.061 | L113: =VLOOKUP(J113,Utslippsfaktorer!B:C,2,FALSE) -> kg CO2e/kg | M113: 0
D114: Fuktisolering (Topeka) | E114: =C108*Trebru!E11*'Prosjektbeskrivelse og inndata'!C14 -> 0 | F114: kg topeka | G114: År 0 | H114: Bru | I114: Asfalt | J114: =Utslippsfaktorer!B11 -> Topeka | K114: =SUMIF(Utslippsfaktorer!B:B,Beregninger!J114,Utslippsfaktorer!D:D) -> 0.052 | L114: =VLOOKUP(J114,Utslippsfaktorer!B:C,2,FALSE) -> kg CO2e/kg | M114: 0
D115: Lyktestolper | E115: =C108*'Tillegg vei'!D5*Beregningsfaktorer!D111 -> 0 | F115: kg stål | G115: År 0 | H115: Bru | I115: Stål | J115: =Utslippsfaktorer!B16 -> Stål | K115: =SUMIF(Utslippsfaktorer!B:B,Beregninger!J115,Utslippsfaktorer!D:D) -> 2.1038 | L115: =VLOOKUP(J115,Utslippsfaktorer!B:C,2,FALSE) -> kg CO2e/kg | M115: 0
D116: Autovern/rekkverk | E116: =C108*'Tillegg vei'!D7*Beregningsfaktorer!D113 -> 0 | F116: kg stål | G116: År 0 | H116: Bru | I116: Stål | J116: =Utslippsfaktorer!B16 -> Stål | K116: =SUMIF(Utslippsfaktorer!B:B,Beregninger!J116,Utslippsfaktorer!D:D) -> 2.1038 | L116: =VLOOKUP(J116,Utslippsfaktorer!B:C,2,FALSE) -> kg CO2e/kg | M116: 0
D117: Transport diesel | E117: =C108*(SUM(Trebru!F5:F11)*'Prosjektbeskrivelse og inndata'!C14+('Tillegg vei'!E5*Beregningsfaktorer!D111)+('Tillegg vei'!E7*Beregningsfaktorer!D113)) -> 0 | F117: liter diesel | G117: År 0 | H117: Bru | I117: Diesel | J117: =Utslippsfaktorer!B29 -> Fossil diesel (WTW) | K117: =SUMIF(Utslippsfaktorer!B:B,Beregninger!J117,Utslippsfaktorer!D:D) -> 3.24 | L117: =VLOOKUP(J117,Utslippsfaktorer!B:C,2,FALSE) -> kg CO2e/liter | M117: 0
D118: Transport biodiesel | E118: =C108*(((SUM(Trebru!G5:G11)*'Prosjektbeskrivelse og inndata'!C14)+(('Tillegg vei'!F5*Beregningsfaktorer!D111)+('Tillegg vei'!F7*Beregningsfaktorer!D113)))) -> 0 | F118: liter biodiesel | G118: År 0 | H118: Bru | I118: Biodiesel | J118: =Utslippsfaktorer!B27 -> Biodiesel (WTT) | K118: =SUMIF(Utslippsfaktorer!B:B,Beregninger!J118,Utslippsfaktorer!D:D) -> 1.92 | L118: =VLOOKUP(J118,Utslippsfaktorer!B:C,2,FALSE) -> kg CO2e/liter | M118: 0
D119: Transport elektrisk/hydrogen | E119: =C108*(((SUM(Trebru!H5:H11)*'Prosjektbeskrivelse og inndata'!C14)+(('Tillegg vei'!G5*Beregningsfaktorer!D111)+('Tillegg vei'!G7*Beregningsfaktorer!D113)))) -> 0 | F119: kWh | G119: År 0 | H119: Bru | I119: Elektrisitet | J119: =Utslippsfaktorer!B32 -> Elektrisitet anleggsfase, norsk miks | K119: =SUMIF(Utslippsfaktorer!B:B,Beregninger!J119,Utslippsfaktorer!D:D) -> 0.019 | L119: =VLOOKUP(J119,Utslippsfaktorer!B:C,2,FALSE) -> kg CO2e/kWh | M119: 0
D120: Anleggsarbeid diesel | E120: =C108*(SUM(Trebru!E19:E28)*'Prosjektbeskrivelse og inndata'!C14+('Tillegg vei'!D18*Beregningsfaktorer!D113)+('Tillegg vei'!D19*Beregningsfaktorer!D117)) -> 0 | F120: liter diesel | G120: År 0 | H120: Bru | I120: Diesel | J120: =Utslippsfaktorer!B29 -> Fossil diesel (WTW) | K120: =SUMIF(Utslippsfaktorer!B:B,Beregninger!J120,Utslippsfaktorer!D:D) -> 3.24 | L120: =VLOOKUP(J120,Utslippsfaktorer!B:C,2,FALSE) -> kg CO2e/liter | M120: 0
D121: Anleggsarbeid biodiesel | E121: =C108*(SUM(Trebru!F19:F28)*'Prosjektbeskrivelse og inndata'!C14+('Tillegg vei'!E18*Beregningsfaktorer!D113)+('Tillegg vei'!E19*Beregningsfaktorer!D117)) -> 0 | F121: liter biodiesel | G121: År 0 | H121: Bru | I121: Biodiesel | J121: =Utslippsfaktorer!B27 -> Biodiesel (WTT) | K121: =SUMIF(Utslippsfaktorer!B:B,Beregninger!J121,Utslippsfaktorer!D:D) -> 1.92 | L121: =VLOOKUP(J121,Utslippsfaktorer!B:C,2,FALSE) -> kg CO2e/liter | M121: 0
D122: Anleggsarbeid elektrisk/hydrogen | E122: =C108*(SUM(Trebru!G17:G28)*'Prosjektbeskrivelse og inndata'!C14+('Tillegg vei'!F18*Beregningsfaktorer!D113)+('Tillegg vei'!F19*Beregningsfaktorer!D117)) -> 0 | F122: kWh | G122: År 0 | H122: Bru | I122: Elektrisitet | J122: =Utslippsfaktorer!B32 -> Elektrisitet anleggsfase, norsk miks | K122: =SUMIF(Utslippsfaktorer!B:B,Beregninger!J122,Utslippsfaktorer!D:D) -> 0.019 | L122: =VLOOKUP(J122,Utslippsfaktorer!B:C,2,FALSE) -> kg CO2e/kWh | M122: 0
B123: Tunnel enkeltløp (m) | C123: =SUMIF('Prosjektbeskrivelse og inndata'!$M:$M,B123,'Prosjektbeskrivelse og inndata'!$L:$L) -> 0 | D123: Betong | E123: =C123*'Tunnel enkeltløp'!F10 -> 0 | F123: kg betong | G123: År 0 | H123: Tunnel | I123: Betong | J123: =Utslippsfaktorer!B12 -> Betong | K123: =SUMIF(Utslippsfaktorer!B:B,Beregninger!J123,Utslippsfaktorer!D:D) -> 0.1375 | L123: =VLOOKUP(J123,Utslippsfaktorer!B:C,2,FALSE) -> kg CO2e/kg | M123: 0 | O123: =E123*2 -> 0
D124: Armeringsstål | E124: =C123*'Tunnel enkeltløp'!F11 -> 0 | F124: kg armeringsstål | G124: År 0 | H124: Tunnel | I124: Armeringsstål | J124: =Utslippsfaktorer!B5 -> Armeringsstål | K124: =SUMIF(Utslippsfaktorer!B:B,Beregninger!J124,Utslippsfaktorer!D:D) -> 0.5663 | L124: =VLOOKUP(J124,Utslippsfaktorer!B:C,2,FALSE) -> kg CO2e/kg | M124: 0 | O124: =E124*2 -> 0
D125: Sikringsbolter | E125: =C123*'Tunnel enkeltløp'!F12 -> 0 | F125: kg stål | G125: År 0 | H125: Tunnel | I125: Stål | J125: =Utslippsfaktorer!B16 -> Stål | K125: =SUMIF(Utslippsfaktorer!B:B,Beregninger!J125,Utslippsfaktorer!D:D) -> 2.1038 | L125: =VLOOKUP(J125,Utslippsfaktorer!B:C,2,FALSE) -> kg CO2e/kg | M125: 0 | O125: 0
D126: Frostsikringselementer | E126: =C123*'Tunnel enkeltløp'!G13 -> 0 | F126: m2 isolasjon | G126: År 0 | H126: Tunnel | I126: Vann- og frostsikring tunnel | J126: =Utslippsfaktorer!B18 -> XPS-/betongelement | K126: =SUMIF(Utslippsfaktorer!B:B,Beregninger!J126,Utslippsfaktorer!D:D) -> 50.265 | L126: =VLOOKUP(J126,Utslippsfaktorer!B:C,2,FALSE) -> kg CO2e/m2 | M126: =(E126*K126)/1000 -> 0 | O126: =E126*2 -> 0
D127: Sprøytebetong | E127: =C123*'Tunnel enkeltløp'!F14 -> 0 | F127: kg sprøytebetong | G127: År 0 | H127: Tunnel | I127: Vann- og frostsikring tunnel | J127: =Utslippsfaktorer!B15 -> Sprøytebetong | K127: =SUMIF(Utslippsfaktorer!B:B,Beregninger!J127,Utslippsfaktorer!D:D) -> 0.1375 | L127: =VLOOKUP(J127,Utslippsfaktorer!B:C,2,FALSE) -> kg CO2e/kg | M127: =(E127*K127)/1000 -> 0 | O127: 0
D128: PE-skum | E128: =C123*'Tunnel enkeltløp'!G15 -> 0 | F128: m2 PE-skum | G128: År 0 | H128: Tunnel | I128: Vann- og frostsikring tunnel | J128: =Utslippsfaktorer!B13 -> PE-skum | K128: =SUMIF(Utslippsfaktorer!B:B,Beregninger!J128,Utslippsfaktorer!D:D) -> 14.6 | L128: =VLOOKUP(J128,Utslippsfaktorer!B:C,2,FALSE) -> kg CO2e/m2 | M128: 0 | O128: 0
D129: Fiberarmering | E129: =C123*'Tunnel enkeltløp'!F16 -> 0 | F129: kg fiberarmering | G129: År 0 | H129: Tunnel | I129: Vann- og frostsikring tunnel | J129: =Utslippsfaktorer!B24 -> Fiberarmering | K129: =SUMIF(Utslippsfaktorer!B:B,Beregninger!J129,Utslippsfaktorer!D:D) -> 0.77066 | L129: =VLOOKUP(J129,Utslippsfaktorer!B:C,2,FALSE) -> kg CO2e/kg | M129: =(E129*K129)/1000 -> 0 | O129: =E129*2 -> 0
D130: Armeringsnett | E130: =C123*'Tunnel enkeltløp'!F17 -> 0 | F130: kg armeringsstål | G130: År 0 | H130: Tunnel | I130: Vann- og frostsikring tunnel | J130: =Utslippsfaktorer!B5 -> Armeringsstål | K130: =SUMIF(Utslippsfaktorer!B:B,Beregninger!J130,Utslippsfaktorer!D:D) -> 0.5663 | L130: =VLOOKUP(J130,Utslippsfaktorer!B:C,2,FALSE) -> kg CO2e/kg | M130: =(E130*K130)/1000 -> 0 | O130: =E130*2 -> 0
D131: Plastmembran | E131: =C123*'Tunnel enkeltløp'!G18 -> 0 | F131: m2 membran | G131: År 0 | H131: Tunnel | I131: Vann- og frostsikring tunnel | J131: =Utslippsfaktorer!B23 -> Plastmembran | K131: =SUMIF(Utslippsfaktorer!B:B,Beregninger!J131,Utslippsfaktorer!D:D) -> 4.243333333 | L131: =VLOOKUP(J131,Utslippsfaktorer!B:C,2,FALSE) -> kg CO2e/m2 | M131: 0 | O131: 0
D132: Slitelag skjelettasfalt (Ska) | E132: =C123*'Tunnel enkeltløp'!F19 -> 0 | F132: kg skjelettasfalt | G132: År 0 | H132: Tunnel | I132: Asfalt | J132: =Utslippsfaktorer!B7 -> Skjelettasfalt (Ska) | K132: =SUMIF(Utslippsfaktorer!B:B,Beregninger!J132,Utslippsfaktorer!D:D) -> 0.061 | L132: =VLOOKUP(J132,Utslippsfaktorer!B:C,2,FALSE) -> kg CO2e/kg | M132: 0 | O132: 0
D133: Bindlag skjelettasfalt (Ska) | E133: =C123*'Tunnel enkeltløp'!F20 -> 0 | F133: kg skjelettasfalt | G133: År 0 | H133: Tunnel | I133: Asfalt | J133: =Utslippsfaktorer!B7 -> Skjelettasfalt (Ska) | K133: =SUMIF(Utslippsfaktorer!B:B,Beregninger!J133,Utslippsfaktorer!D:D) -> 0.061 | L133: =VLOOKUP(J133,Utslippsfaktorer!B:C,2,FALSE) -> kg CO2e/kg | M133: 0 | O133: 0
D134: Bærelag asfaltgrus (Ag) | E134: =C123*'Tunnel enkeltløp'!F21 -> 0 | F134: kg asfaltgrus | G134: År 0 | H134: Tunnel | I134: Asfalt | J134: =Utslippsfaktorer!B8 -> Asfaltgrus (Ag) | K134: =SUMIF(Utslippsfaktorer!B:B,Beregninger!J134,Utslippsfaktorer!D:D) -> 0.0341 | L134: =VLOOKUP(J134,Utslippsfaktorer!B:C,2,FALSE) -> kg CO2e/kg | M134: 0 | O134: 0
D135: Autovern/rekkverk | E135: =C123*'Tillegg vei'!D7*Beregningsfaktorer!D113 -> 0 | F135: kg stål | G135: År 0 | H135: Tunnel | I135: Stål | J135: =Utslippsfaktorer!B16 -> Stål | K135: =SUMIF(Utslippsfaktorer!B:B,Beregninger!J135,Utslippsfaktorer!D:D) -> 2.1038 | L135: =VLOOKUP(J135,Utslippsfaktorer!B:C,2,FALSE) -> kg CO2e/kg | M135: 0 | O135: 0
D136: Transport diesel | E136: =C123*(SUM('Tunnel enkeltløp'!H10:H21)+('Tillegg vei'!E7*Beregningsfaktorer!D113)) -> 0 | F136: liter diesel | G136: År 0 | H136: Tunnel | I136: Diesel | J136: =Utslippsfaktorer!B29 -> Fossil diesel (WTW) | K136: =SUMIF(Utslippsfaktorer!B:B,Beregninger!J136,Utslippsfaktorer!D:D) -> 3.24 | L136: =VLOOKUP(J136,Utslippsfaktorer!B:C,2,FALSE) -> kg CO2e/liter | M136: 0 | O136: 0
D137: Transport biodiesel | E137: =C123*(SUM('Tunnel enkeltløp'!I10:I21)+('Tillegg vei'!F7*Beregningsfaktorer!D113)) -> 0 | F137: liter biodiesel | G137: År 0 | H137: Tunnel | I137: Biodiesel | J137: =Utslippsfaktorer!B27 -> Biodiesel (WTT) | K137: =SUMIF(Utslippsfaktorer!B:B,Beregninger!J137,Utslippsfaktorer!D:D) -> 1.92 | L137: =VLOOKUP(J137,Utslippsfaktorer!B:C,2,FALSE) -> kg CO2e/liter | M137: 0 | O137: 0
D138: Transport elektrisk/hydrogen | E138: =C123*(SUM('Tunnel enkeltløp'!J10:J21)+('Tillegg vei'!G7*Beregningsfaktorer!D113)) -> 0 | F138: kWh | G138: År 0 | H138: Tunnel | I138: Elektrisitet | J138: =Utslippsfaktorer!B32 -> Elektrisitet anleggsfase, norsk miks | K138: =SUMIF(Utslippsfaktorer!B:B,Beregninger!J138,Utslippsfaktorer!D:D) -> 0.019 | L138: =VLOOKUP(J138,Utslippsfaktorer!B:C,2,FALSE) -> kg CO2e/kWh | M138: 0 | O138: 0
D139: Anleggsarbeid diesel | E139: =C123*(Beregningsfaktorer!D60*SUM('Tunnel enkeltløp'!E27:E35)+('Tillegg vei'!D18*Beregningsfaktorer!D113)+('Tillegg vei'!D19*Beregningsfaktorer!D117)) -> 0 | F139: liter diesel | G139: År 0 | H139: Tunnel | I139: Diesel | J139: =Utslippsfaktorer!B29 -> Fossil diesel (WTW) | K139: =SUMIF(Utslippsfaktorer!B:B,Beregninger!J139,Utslippsfaktorer!D:D) -> 3.24 | L139: =VLOOKUP(J139,Utslippsfaktorer!B:C,2,FALSE) -> kg CO2e/liter | M139: 0 | O139: 0
D140: Anleggsarbeid biodiesel | E140: =C123*(Beregningsfaktorer!D60*SUM('Tunnel enkeltløp'!F27:F35)+('Tillegg vei'!E18*Beregningsfaktorer!D113)+('Tillegg vei'!E19*Beregningsfaktorer!D117)) -> 0 | F140: liter biodiesel | G140: År 0 | H140: Tunnel | I140: Biodiesel | J140: =Utslippsfaktorer!B27 -> Biodiesel (WTT) | K140: =SUMIF(Utslippsfaktorer!B:B,Beregninger!J140,Utslippsfaktorer!D:D) -> 1.92 | L140: =VLOOKUP(J140,Utslippsfaktorer!B:C,2,FALSE) -> kg CO2e/liter | M140: 0 | O140: 0
D141: Anleggsarbeid elektrisk/hydrogen | E141: =C123*(Beregningsfaktorer!D60*SUM('Tunnel enkeltløp'!G27:G35)+('Tillegg vei'!F18*Beregningsfaktorer!D113)+('Tillegg vei'!F19*Beregningsfaktorer!D117)) -> 0 | F141: kWh | G141: År 0 | H141: Tunnel | I141: Elektrisitet | J141: =Utslippsfaktorer!B32 -> Elektrisitet anleggsfase, norsk miks | K141: =SUMIF(Utslippsfaktorer!B:B,Beregninger!J141,Utslippsfaktorer!D:D) -> 0.019 | L141: =VLOOKUP(J141,Utslippsfaktorer!B:C,2,FALSE) -> kg CO2e/kWh | M141: 0 | O141: 0
B142: Tunnel dobbeltløp (m) | C142: =SUMIF('Prosjektbeskrivelse og inndata'!$M:$M,B142,'Prosjektbeskrivelse og inndata'!$L:$L) -> 0 | D142: Betong | E142: =C142*'Tunnel dobbeltløp'!F10*2 -> 0 | F142: kg betong | G142: År 0 | H142: Tunnel | I142: Betong | J142: =Utslippsfaktorer!B12 -> Betong | K142: =SUMIF(Utslippsfaktorer!B:B,Beregninger!J142,Utslippsfaktorer!D:D) -> 0.1375 | L142: =VLOOKUP(J142,Utslippsfaktorer!B:C,2,FALSE) -> kg CO2e/kg | M142: 0
D143: Armeringsstål | E143: =C142*'Tunnel dobbeltløp'!F11*2 -> 0 | F143: kg armeringsstål | G143: År 0 | H143: Tunnel | I143: Armeringsstål | J143: =Utslippsfaktorer!B5 -> Armeringsstål | K143: =SUMIF(Utslippsfaktorer!B:B,Beregninger!J143,Utslippsfaktorer!D:D) -> 0.5663 | L143: =VLOOKUP(J143,Utslippsfaktorer!B:C,2,FALSE) -> kg CO2e/kg | M143: 0
D144: Sikringsbolter | E144: =C142*'Tunnel dobbeltløp'!F12*2 -> 0 | F144: kg stål | G144: År 0 | H144: Tunnel | I144: Stål | J144: =Utslippsfaktorer!B16 -> Stål | K144: =SUMIF(Utslippsfaktorer!B:B,Beregninger!J144,Utslippsfaktorer!D:D) -> 2.1038 | L144: =VLOOKUP(J144,Utslippsfaktorer!B:C,2,FALSE) -> kg CO2e/kg | M144: 0
D145: Frostsikringselementer | E145: =C142*'Tunnel dobbeltløp'!G13*2 -> 0 | F145: m2 isolasjon | G145: År 0 | H145: Tunnel | I145: Vann- og frostsikring tunnel | J145: =Utslippsfaktorer!B18 -> XPS-/betongelement | K145: =SUMIF(Utslippsfaktorer!B:B,Beregninger!J145,Utslippsfaktorer!D:D) -> 50.265 | L145: =VLOOKUP(J145,Utslippsfaktorer!B:C,2,FALSE) -> kg CO2e/m2 | M145: 0
D146: Sprøytebetong | E146: =2*C142*'Tunnel dobbeltløp'!F14 -> 0 | F146: kg sprøytebetong | G146: År 0 | H146: Tunnel | I146: Vann- og frostsikring tunnel | J146: Sprøytebetong | K146: =SUMIF(Utslippsfaktorer!B:B,Beregninger!J146,Utslippsfaktorer!D:D) -> 0.1375 | L146: =VLOOKUP(J146,Utslippsfaktorer!B:C,2,FALSE) -> kg CO2e/kg | M146: =(E146*K146)/1000 -> 0
D147: PE-skum | E147: =2*C142*'Tunnel dobbeltløp'!G15 -> 0 | F147: m2 PE-skum | G147: År 0 | H147: Tunnel | I147: Vann- og frostsikring tunnel | J147: =Utslippsfaktorer!B13 -> PE-skum | K147: =SUMIF(Utslippsfaktorer!B:B,Beregninger!J147,Utslippsfaktorer!D:D) -> 14.6 | L147: =VLOOKUP(J147,Utslippsfaktorer!B:C,2,FALSE) -> kg CO2e/m2 | M147: 0
D148: Fiberarmering | E148: =2*C142*'Tunnel dobbeltløp'!F16 -> 0 | F148: kg fiberarmering | G148: År 0 | H148: Tunnel | I148: Vann- og frostsikring tunnel | J148: =Utslippsfaktorer!B24 -> Fiberarmering | K148: =SUMIF(Utslippsfaktorer!B:B,Beregninger!J148,Utslippsfaktorer!D:D) -> 0.77066 | L148: =VLOOKUP(J148,Utslippsfaktorer!B:C,2,FALSE) -> kg CO2e/kg | M148: =(E148*K148)/1000 -> 0
D149: Armeringsnett | E149: =2*C142*'Tunnel dobbeltløp'!F17 -> 0 | F149: kg armeringsstål | G149: År 0 | H149: Tunnel | I149: Vann- og frostsikring tunnel | J149: =Utslippsfaktorer!B5 -> Armeringsstål | K149: =SUMIF(Utslippsfaktorer!B:B,Beregninger!J149,Utslippsfaktorer!D:D) -> 0.5663 | L149: =VLOOKUP(J149,Utslippsfaktorer!B:C,2,FALSE) -> kg CO2e/kg | M149: 0
D150: Plastmembran | E150: =C142*'Tunnel dobbeltløp'!G18*2 -> 0 | F150: m2 membran | G150: År 0 | H150: Tunnel | I150: Vann- og frostsikring tunnel | J150: =Utslippsfaktorer!B23 -> Plastmembran | K150: =SUMIF(Utslippsfaktorer!B:B,Beregninger!J150,Utslippsfaktorer!D:D) -> 4.243333333 | L150: =VLOOKUP(J150,Utslippsfaktorer!B:C,2,FALSE) -> kg CO2e/m2 | M150: 0
D151: Slitelag skjelettasfalt (Ska) | E151: =C142*'Tunnel dobbeltløp'!F19*2 -> 0 | F151: kg skjelettasfalt | G151: År 0 | H151: Tunnel | I151: Asfalt | J151: =Utslippsfaktorer!B7 -> Skjelettasfalt (Ska) | K151: =SUMIF(Utslippsfaktorer!B:B,Beregninger!J151,Utslippsfaktorer!D:D) -> 0.061 | L151: =VLOOKUP(J151,Utslippsfaktorer!B:C,2,FALSE) -> kg CO2e/kg | M151: 0
D152: Bindlag skjelettasfalt (Ska) | E152: =C142*'Tunnel dobbeltløp'!F20*2 -> 0 | F152: kg skjelettasfalt | G152: År 0 | H152: Tunnel | I152: Asfalt | J152: =Utslippsfaktorer!B7 -> Skjelettasfalt (Ska) | K152: =SUMIF(Utslippsfaktorer!B:B,Beregninger!J152,Utslippsfaktorer!D:D) -> 0.061 | L152: =VLOOKUP(J152,Utslippsfaktorer!B:C,2,FALSE) -> kg CO2e/kg | M152: 0
D153: Bærelag asfaltgrus (Ag) | E153: =C142*'Tunnel dobbeltløp'!F21*2 -> 0 | F153: kg asfaltgrus | G153: År 0 | H153: Tunnel | I153: Asfalt | J153: =Utslippsfaktorer!B8 -> Asfaltgrus (Ag) | K153: =SUMIF(Utslippsfaktorer!B:B,Beregninger!J153,Utslippsfaktorer!D:D) -> 0.0341 | L153: =VLOOKUP(J153,Utslippsfaktorer!B:C,2,FALSE) -> kg CO2e/kg | M153: 0
D154: Autovern/rekkverk | E154: =C142*'Tillegg vei'!D7*Beregningsfaktorer!D113 -> 0 | F154: kg stål | G154: År 0 | H154: Tunnel | I154: Stål | J154: =Utslippsfaktorer!B16 -> Stål | K154: =SUMIF(Utslippsfaktorer!B:B,Beregninger!J154,Utslippsfaktorer!D:D) -> 2.1038 | L154: =VLOOKUP(J154,Utslippsfaktorer!B:C,2,FALSE) -> kg CO2e/kg | M154: 0
D155: Transport diesel | E155: =C142*(SUM('Tunnel dobbeltløp'!H10:H21)+('Tillegg vei'!E7*Beregningsfaktorer!D113/2))*2 -> 0 | F155: liter diesel | G155: År 0 | H155: Tunnel | I155: Diesel | J155: =Utslippsfaktorer!B29 -> Fossil diesel (WTW) | K155: =SUMIF(Utslippsfaktorer!B:B,Beregninger!J155,Utslippsfaktorer!D:D) -> 3.24 | L155: =VLOOKUP(J155,Utslippsfaktorer!B:C,2,FALSE) -> kg CO2e/liter | M155: 0
D156: Transport biodiesel | E156: =C142*(SUM('Tunnel dobbeltløp'!I10:I21)+('Tillegg vei'!F7*Beregningsfaktorer!D113/2))*2 -> 0 | F156: liter biodiesel | G156: År 0 | H156: Tunnel | I156: Biodiesel | J156: =Utslippsfaktorer!B27 -> Biodiesel (WTT) | K156: =SUMIF(Utslippsfaktorer!B:B,Beregninger!J156,Utslippsfaktorer!D:D) -> 1.92 | L156: =VLOOKUP(J156,Utslippsfaktorer!B:C,2,FALSE) -> kg CO2e/liter | M156: 0
D157: Transport elektrisk/hydrogen | E157: =C142*(SUM('Tunnel dobbeltløp'!J10:J21)+('Tillegg vei'!G7*Beregningsfaktorer!D113/2))*2 -> 0 | F157: kWh | G157: År 0 | H157: Tunnel | I157: Elektrisitet | J157: =Utslippsfaktorer!B32 -> Elektrisitet anleggsfase, norsk miks | K157: =SUMIF(Utslippsfaktorer!B:B,Beregninger!J157,Utslippsfaktorer!D:D) -> 0.019 | L157: =VLOOKUP(J157,Utslippsfaktorer!B:C,2,FALSE) -> kg CO2e/kWh | M157: 0
D158: Anleggsarbeid diesel | E158: =2*C142*(Beregningsfaktorer!D61*SUM('Tunnel dobbeltløp'!E27:E35)+('Tillegg vei'!D18*Beregningsfaktorer!D113/2)+('Tillegg vei'!D19*Beregningsfaktorer!D117/2)) -> 0 | F158: liter diesel | G158: År 0 | H158: Tunnel | I158: Diesel | J158: =Utslippsfaktorer!B29 -> Fossil diesel (WTW) | K158: =SUMIF(Utslippsfaktorer!B:B,Beregninger!J158,Utslippsfaktorer!D:D) -> 3.24 | L158: =VLOOKUP(J158,Utslippsfaktorer!B:C,2,FALSE) -> kg CO2e/liter | M158: 0
D159: Anleggsarbeid biodiesel | E159: =2*C142*(Beregningsfaktorer!D61*SUM('Tunnel dobbeltløp'!F27:F35)+('Tillegg vei'!E18*Beregningsfaktorer!D113/2)+('Tillegg vei'!E19*Beregningsfaktorer!D117)) -> 0 | F159: liter biodiesel | G159: År 0 | H159: Tunnel | I159: Biodiesel | J159: =Utslippsfaktorer!B27 -> Biodiesel (WTT) | K159: =SUMIF(Utslippsfaktorer!B:B,Beregninger!J159,Utslippsfaktorer!D:D) -> 1.92 | L159: =VLOOKUP(J159,Utslippsfaktorer!B:C,2,FALSE) -> kg CO2e/liter | M159: 0
D160: Anleggsarbeid elektrisk/hydrogen | E160: =2*C142*(Beregningsfaktorer!D61*SUM('Tunnel dobbeltløp'!G27:G35)+('Tillegg vei'!F18*Beregningsfaktorer!D113/2)+('Tillegg vei'!F19*Beregningsfaktorer!D117)) -> 0 | F160: kWh | G160: År 0 | H160: Tunnel | I160: Elektrisitet | J160: =Utslippsfaktorer!B32 -> Elektrisitet anleggsfase, norsk miks | K160: =SUMIF(Utslippsfaktorer!B:B,Beregninger!J160,Utslippsfaktorer!D:D) -> 0.019 | L160: =VLOOKUP(J160,Utslippsfaktorer!B:C,2,FALSE) -> kg CO2e/kWh | M160: 0
B161: Sement til injeksjon (ikke inkl. vann) (kg) | C161: =SUMIF('Prosjektbeskrivelse og inndata'!$M:$M,B161,'Prosjektbeskrivelse og inndata'!$L:$L) -> 0 | D161: Sement | E161: =C161 -> 0 | F161: kg sement | G161: År 0 | H161: Tunnel | I161: Vann- og frostsikring tunnel | J161: =Utslippsfaktorer!B25 -> Sement | K161: =SUMIF(Utslippsfaktorer!B:B,Beregninger!J161,Utslippsfaktorer!D:D) -> 0.7551941667 | L161: =VLOOKUP(J161,Utslippsfaktorer!B:C,2,FALSE) -> kg CO2e/kg | M161: =(E161*K161)/1000 -> 0
D162: Transport diesel | E162: =Beregninger!C161*'Annen betong og injeksjon'!E7 -> 0 | F162: liter diesel | G162: År 0 | H162: Tunnel | I162: Diesel | J162: =Utslippsfaktorer!B29 -> Fossil diesel (WTW) | K162: =SUMIF(Utslippsfaktorer!B:B,Beregninger!J162,Utslippsfaktorer!D:D) -> 3.24 | L162: =VLOOKUP(J162,Utslippsfaktorer!B:C,2,FALSE) -> kg CO2e/liter | M162: =(E162*K162)/1000 -> 0
D163: Transport biodiesel | E163: =Beregninger!C161*'Annen betong og injeksjon'!F7 -> 0 | F163: liter biodiesel | G163: År 0 | H163: Tunnel | I163: Biodiesel | J163: =Utslippsfaktorer!B27 -> Biodiesel (WTT) | K163: =SUMIF(Utslippsfaktorer!B:B,Beregninger!J163,Utslippsfaktorer!D:D) -> 1.92 | L163: =VLOOKUP(J163,Utslippsfaktorer!B:C,2,FALSE) -> kg CO2e/liter | M163: 0
D164: Transport elektrisk/hydrogen | E164: =Beregninger!C161*'Annen betong og injeksjon'!G7 -> 0 | F164: kWh | G164: År 0 | H164: Tunnel | I164: Elektrisitet | J164: =Utslippsfaktorer!B32 -> Elektrisitet anleggsfase, norsk miks | K164: =SUMIF(Utslippsfaktorer!B:B,Beregninger!J164,Utslippsfaktorer!D:D) -> 0.019 | L164: =VLOOKUP(J164,Utslippsfaktorer!B:C,2,FALSE) -> kg CO2e/kWh | M164: 0
D165: Anleggsarbeid diesel | E165: =C161*'Annen betong og injeksjon'!E12 -> 0 | F165: liter diesel | G165: År 0 | H165: Tunnel | I165: Diesel | J165: =Utslippsfaktorer!B29 -> Fossil diesel (WTW) | K165: =SUMIF(Utslippsfaktorer!B:B,Beregninger!J165,Utslippsfaktorer!D:D) -> 3.24 | L165: =VLOOKUP(J165,Utslippsfaktorer!B:C,2,FALSE) -> kg CO2e/liter | M165: 0
D166: Anleggsarbeid biodiesel | E166: =C161*'Annen betong og injeksjon'!F12 -> 0 | F166: liter biodiesel | G166: År 0 | H166: Tunnel | I166: Biodiesel | J166: =Utslippsfaktorer!B27 -> Biodiesel (WTT) | K166: =SUMIF(Utslippsfaktorer!B:B,Beregninger!J166,Utslippsfaktorer!D:D) -> 1.92 | L166: =VLOOKUP(J166,Utslippsfaktorer!B:C,2,FALSE) -> kg CO2e/liter | M166: 0
D167: Anleggsarbeid elektrisk/hydrogen | E167: =C161*'Annen betong og injeksjon'!G12 -> 0 | F167: kWh | G167: År 0 | H167: Tunnel | I167: Elektrisitet | J167: =Utslippsfaktorer!B32 -> Elektrisitet anleggsfase, norsk miks | K167: =SUMIF(Utslippsfaktorer!B:B,Beregninger!J167,Utslippsfaktorer!D:D) -> 0.019 | L167: =VLOOKUP(J167,Utslippsfaktorer!B:C,2,FALSE) -> kg CO2e/kWh | M167: 0
B168: Betongkulvert (m2) | C168: =SUMIF('Prosjektbeskrivelse og inndata'!$M:$M,B168,'Prosjektbeskrivelse og inndata'!$L:$L) -> 0 | D168: Betong | E168: =C168*Kulvert!E5 -> 0 | F168: kg betong | G168: År 0 | H168: Kulvert | I168: Betong | J168: =Utslippsfaktorer!B12 -> Betong | K168: =SUMIF(Utslippsfaktorer!B:B,Beregninger!J168,Utslippsfaktorer!D:D) -> 0.1375 | L168: =VLOOKUP(J168,Utslippsfaktorer!B:C,2,FALSE) -> kg CO2e/kg | M168: 0
D169: Armeringsstål | E169: =C168*Kulvert!E6 -> 0 | F169: kg armeringsstål | G169: År 0 | H169: Kulvert | I169: Armeringsstål | J169: =Utslippsfaktorer!B5 -> Armeringsstål | K169: =SUMIF(Utslippsfaktorer!B:B,Beregninger!J169,Utslippsfaktorer!D:D) -> 0.5663 | L169: =VLOOKUP(J169,Utslippsfaktorer!B:C,2,FALSE) -> kg CO2e/kg | M169: 0
D170: Transport diesel | E170: =C168*SUM(Kulvert!F5:F6) -> 0 | F170: liter diesel | G170: År 0 | H170: Kulvert | I170: Diesel | J170: =Utslippsfaktorer!B29 -> Fossil diesel (WTW) | K170: =SUMIF(Utslippsfaktorer!B:B,Beregninger!J170,Utslippsfaktorer!D:D) -> 3.24 | L170: =VLOOKUP(J170,Utslippsfaktorer!B:C,2,FALSE) -> kg CO2e/liter | M170: 0
D171: Transport biodiesel | E171: =C168*(SUM(Kulvert!G5:G6)) -> 0 | F171: liter biodiesel | G171: År 0 | H171: Kulvert | I171: Biodiesel | J171: =Utslippsfaktorer!B27 -> Biodiesel (WTT) | K171: =SUMIF(Utslippsfaktorer!B:B,Beregninger!J171,Utslippsfaktorer!D:D) -> 1.92 | L171: =VLOOKUP(J171,Utslippsfaktorer!B:C,2,FALSE) -> kg CO2e/liter | M171: 0
D172: Transport elektrisk/hydrogen | E172: =C168*(SUM(Kulvert!H5:H6)) -> 0 | F172: kWh | G172: År 0 | H172: Kulvert | I172: Elektrisitet | J172: =Utslippsfaktorer!B32 -> Elektrisitet anleggsfase, norsk miks | K172: =SUMIF(Utslippsfaktorer!B:B,Beregninger!J172,Utslippsfaktorer!D:D) -> 0.019 | L172: =VLOOKUP(J172,Utslippsfaktorer!B:C,2,FALSE) -> kg CO2e/kWh | M172: 0
D173: Anleggsarbeid diesel | F173: liter diesel | G173: År 0 | H173: Kulvert | I173: Diesel | J173: =Utslippsfaktorer!B29 -> Fossil diesel (WTW) | K173: =SUMIF(Utslippsfaktorer!B:B,Beregninger!J173,Utslippsfaktorer!D:D) -> 3.24 | L173: =VLOOKUP(J173,Utslippsfaktorer!B:C,2,FALSE) -> kg CO2e/liter | M173: 0
D174: Anleggsarbeid biodiesel | F174: liter biodiesel | G174: År 0 | H174: Kulvert | I174: Biodiesel | J174: =Utslippsfaktorer!B27 -> Biodiesel (WTT) | K174: =SUMIF(Utslippsfaktorer!B:B,Beregninger!J174,Utslippsfaktorer!D:D) -> 1.92 | L174: =VLOOKUP(J174,Utslippsfaktorer!B:C,2,FALSE) -> kg CO2e/liter | M174: 0
D175: Anleggsarbeid elektrisk/hydrogen | E175: ='Prosjektbeskrivelse og inndata'!C8*Kulvert!G11 -> 0 | F175: kWh | G175: År 0 | H175: Kulvert | I175: Elektrisitet | J175: =Utslippsfaktorer!B32 -> Elektrisitet anleggsfase, norsk miks | K175: =SUMIF(Utslippsfaktorer!B:B,Beregninger!J175,Utslippsfaktorer!D:D) -> 0.019 | L175: =VLOOKUP(J175,Utslippsfaktorer!B:C,2,FALSE) -> kg CO2e/kWh | M175: 0
B176: Grunnstabilisering med kalksementpeler (kg) | C176: =SUMIF('Prosjektbeskrivelse og inndata'!$M:$M,B176,'Prosjektbeskrivelse og inndata'!$L:$L) -> 0 | D176: Kalksement | E176: =C176 -> 0 | F176: kg kalksement | G176: År 0 | H176: Vei i dagen | I176: Kalksement | J176: =Utslippsfaktorer!B22 -> Kalksement | K176: =SUMIF(Utslippsfaktorer!B:B,Beregninger!J176,Utslippsfaktorer!D:D) -> 0.9000970833 | L176: =VLOOKUP(J176,Utslippsfaktorer!B:C,2,FALSE) -> kg CO2e/kg | M176: 0
D177: Transport diesel | E177: =C176*Grunnstabilisering!D5 -> 0 | F177: liter diesel | G177: År 0 | H177: Vei i dagen | I177: Diesel | J177: =Utslippsfaktorer!B29 -> Fossil diesel (WTW) | K177: =SUMIF(Utslippsfaktorer!B:B,Beregninger!J177,Utslippsfaktorer!D:D) -> 3.24 | L177: =VLOOKUP(J177,Utslippsfaktorer!B:C,2,FALSE) -> kg CO2e/liter | M177: 0
D178: Transport biodiesel | E178: =C176*Grunnstabilisering!E5 -> 0 | F178: liter biodiesel | G178: År 0 | H178: Vei i dagen | I178: Biodiesel | J178: =Utslippsfaktorer!B27 -> Biodiesel (WTT) | K178: =SUMIF(Utslippsfaktorer!B:B,Beregninger!J178,Utslippsfaktorer!D:D) -> 1.92 | L178: =VLOOKUP(J178,Utslippsfaktorer!B:C,2,FALSE) -> kg CO2e/liter | M178: 0
D179: Transport elektrisk/hydrogen | E179: =C176*Grunnstabilisering!F5 -> 0 | F179: kWh | G179: År 0 | H179: Vei i dagen | I179: Elektrisitet | J179: =Utslippsfaktorer!B32 -> Elektrisitet anleggsfase, norsk miks | K179: =SUMIF(Utslippsfaktorer!B:B,Beregninger!J179,Utslippsfaktorer!D:D) -> 0.019 | L179: =VLOOKUP(J179,Utslippsfaktorer!B:C,2,FALSE) -> kg CO2e/kWh | M179: 0
D180: Anleggsarbeid diesel | E180: =C176*Grunnstabilisering!D11 -> 0 | F180: liter diesel | G180: År 0 | H180: Vei i dagen | I180: Diesel | J180: =Utslippsfaktorer!B29 -> Fossil diesel (WTW) | K180: =SUMIF(Utslippsfaktorer!B:B,Beregninger!J180,Utslippsfaktorer!D:D) -> 3.24 | L180: =VLOOKUP(J180,Utslippsfaktorer!B:C,2,FALSE) -> kg CO2e/liter | M180: 0
D181: Anleggsarbeid biodiesel | E181: =C176*Grunnstabilisering!E11 -> 0 | F181: liter biodiesel | G181: År 0 | H181: Vei i dagen | I181: Biodiesel | J181: =Utslippsfaktorer!B27 -> Biodiesel (WTT) | K181: =SUMIF(Utslippsfaktorer!B:B,Beregninger!J181,Utslippsfaktorer!D:D) -> 1.92 | L181: =VLOOKUP(J181,Utslippsfaktorer!B:C,2,FALSE) -> kg CO2e/liter | M181: 0
D182: Anleggsarbeid elektrisk/hydrogen | E182: =C176*Grunnstabilisering!F11 -> 0 | F182: kWh | G182: År 0 | H182: Vei i dagen | I182: Elektrisitet | J182: =Utslippsfaktorer!B32 -> Elektrisitet anleggsfase, norsk miks | K182: =SUMIF(Utslippsfaktorer!B:B,Beregninger!J182,Utslippsfaktorer!D:D) -> 0.019 | L182: =VLOOKUP(J182,Utslippsfaktorer!B:C,2,FALSE) -> kg CO2e/kWh | M182: 0
B183: Mur (m) | C183: =SUMIF('Prosjektbeskrivelse og inndata'!$M:$M,B183,'Prosjektbeskrivelse og inndata'!$L:$L) -> 0 | D183: Betong | E183: =C183*'Tillegg vei'!D12 -> 0 | F183: kg betong | G183: År 0 | H183: Vei i dagen | I183: Betong | J183: =Utslippsfaktorer!B12 -> Betong | K183: =SUMIF(Utslippsfaktorer!B:B,Beregninger!J183,Utslippsfaktorer!D:D) -> 0.1375 | L183: =VLOOKUP(J183,Utslippsfaktorer!B:C,2,FALSE) -> kg CO2e/kg | M183: =(E183*K183)/1000 -> 0
D184: Naturstein | E184: =C183*'Tillegg vei'!D13 -> 0 | F184: kg naturstein | G184: År 0 | H184: Vei i dagen | I184: Pukk og stein | J184: =Utslippsfaktorer!B20 -> Naturstein | K184: =SUMIF(Utslippsfaktorer!B:B,Beregninger!J184,Utslippsfaktorer!D:D) -> 0.11233625 | L184: =VLOOKUP(J184,Utslippsfaktorer!B:C,2,FALSE) -> kg CO2e/kg | M184: 0
D185: Transport diesel | E185: =Beregninger!C183*SUM('Tillegg vei'!E12:E13) -> 0 | F185: liter diesel | G185: År 0 | H185: Vei i dagen | I185: Diesel | J185: =Utslippsfaktorer!B29 -> Fossil diesel (WTW) | K185: =SUMIF(Utslippsfaktorer!B:B,Beregninger!J185,Utslippsfaktorer!D:D) -> 3.24 | L185: =VLOOKUP(J185,Utslippsfaktorer!B:C,2,FALSE) -> kg CO2e/liter | M185: 0
D186: Transport biodiesel | E186: =Beregninger!C183*SUM('Tillegg vei'!F12:F13) -> 0 | F186: liter biodiesel | G186: År 0 | H186: Vei i dagen | I186: Biodiesel | J186: =Utslippsfaktorer!B27 -> Biodiesel (WTT) | K186: =SUMIF(Utslippsfaktorer!B:B,Beregninger!J186,Utslippsfaktorer!D:D) -> 1.92 | L186: =VLOOKUP(J186,Utslippsfaktorer!B:C,2,FALSE) -> kg CO2e/liter | M186: 0
D187: Transport elektrisk/hydrogen | E187: =Beregninger!C183*SUM('Tillegg vei'!G12:G13) -> 0 | F187: kWh | G187: År 0 | H187: Vei i dagen | I187: Elektrisitet | J187: =Utslippsfaktorer!B32 -> Elektrisitet anleggsfase, norsk miks | K187: =SUMIF(Utslippsfaktorer!B:B,Beregninger!J187,Utslippsfaktorer!D:D) -> 0.019 | L187: =VLOOKUP(J187,Utslippsfaktorer!B:C,2,FALSE) -> kg CO2e/kWh | M187: 0
D188: Anleggsarbeid diesel | E188: =C183*'Tillegg vei'!D22 -> 0 | F188: liter diesel | G188: År 0 | H188: Vei i dagen | I188: Diesel | J188: =Utslippsfaktorer!B29 -> Fossil diesel (WTW) | K188: =SUMIF(Utslippsfaktorer!B:B,Beregninger!J188,Utslippsfaktorer!D:D) -> 3.24 | L188: =VLOOKUP(J188,Utslippsfaktorer!B:C,2,FALSE) -> kg CO2e/liter | M188: 0
D189: Anleggsarbeid biodiesel | E189: =C183*'Tillegg vei'!E22 -> 0 | F189: liter biodiesel | G189: År 0 | H189: Vei i dagen | I189: Biodiesel | J189: =Utslippsfaktorer!B27 -> Biodiesel (WTT) | K189: =SUMIF(Utslippsfaktorer!B:B,Beregninger!J189,Utslippsfaktorer!D:D) -> 1.92 | L189: =VLOOKUP(J189,Utslippsfaktorer!B:C,2,FALSE) -> kg CO2e/liter | M189: 0
D190: Anleggsarbeid elektrisk/hydrogen | E190: =C183*'Tillegg vei'!F22 -> 0 | F190: kWh | G190: År 0 | H190: Vei i dagen | I190: Elektrisitet | J190: =Utslippsfaktorer!B32 -> Elektrisitet anleggsfase, norsk miks | K190: =SUMIF(Utslippsfaktorer!B:B,Beregninger!J190,Utslippsfaktorer!D:D) -> 0.019 | L190: =VLOOKUP(J190,Utslippsfaktorer!B:C,2,FALSE) -> kg CO2e/kWh | M190: 0
B191: Støyskjerm (m) | C191: =SUMIF('Prosjektbeskrivelse og inndata'!$M:$M,B191,'Prosjektbeskrivelse og inndata'!$L:$L) -> 0 | D191: Trevirke | E191: =C191*'Tillegg vei'!D9 -> 0 | F191: kg trevirke | G191: År 0 | H191: Vei i dagen | I191: Tre | J191: =Utslippsfaktorer!B19 -> Treverk (limtre) | K191: =SUMIF(Utslippsfaktorer!B:B,Beregninger!J191,Utslippsfaktorer!D:D) -> 0.1570744681 | L191: =VLOOKUP(J191,Utslippsfaktorer!B:C,2,FALSE) -> kg CO2e/kg | M191: 0
D192: Stål | E192: =C191*'Tillegg vei'!D10 -> 0 | F192: kg stål | G192: År 0 | H192: Vei i dagen | I192: Stål | J192: =Utslippsfaktorer!B16 -> Stål | K192: =SUMIF(Utslippsfaktorer!B:B,Beregninger!J192,Utslippsfaktorer!D:D) -> 2.1038 | L192: =VLOOKUP(J192,Utslippsfaktorer!B:C,2,FALSE) -> kg CO2e/kg | M192: 0
D193: Betong | E193: =C191*'Tillegg vei'!D11 -> 0 | F193: kg betong | G193: År 0 | H193: Vei i dagen | I193: Betong | J193: =Utslippsfaktorer!B12 -> Betong | K193: =SUMIF(Utslippsfaktorer!B:B,Beregninger!J193,Utslippsfaktorer!D:D) -> 0.1375 | L193: =VLOOKUP(J193,Utslippsfaktorer!B:C,2,FALSE) -> kg CO2e/kg | M193: =(E193*K193)/1000 -> 0
D194: Transport diesel | E194: =C191*SUM('Tillegg vei'!E9:E11) -> 0 | F194: liter diesel | G194: År 0 | H194: Vei i dagen | I194: Diesel | J194: =Utslippsfaktorer!B29 -> Fossil diesel (WTW) | K194: =SUMIF(Utslippsfaktorer!B:B,Beregninger!J194,Utslippsfaktorer!D:D) -> 3.24 | L194: =VLOOKUP(J194,Utslippsfaktorer!B:C,2,FALSE) -> kg CO2e/liter | M194: 0
D195: Transport biodiesel | E195: =C191*SUM('Tillegg vei'!F9:F10) -> 0 | F195: liter biodiesel | G195: År 0 | H195: Vei i dagen | I195: Biodiesel | J195: =Utslippsfaktorer!B27 -> Biodiesel (WTT) | K195: =SUMIF(Utslippsfaktorer!B:B,Beregninger!J195,Utslippsfaktorer!D:D) -> 1.92 | L195: =VLOOKUP(J195,Utslippsfaktorer!B:C,2,FALSE) -> kg CO2e/liter | M195: 0
D196: Transport elektrisk/hydrogen | E196: =C191*SUM('Tillegg vei'!G9:G11) -> 0 | F196: kWh | G196: År 0 | H196: Vei i dagen | I196: Elektrisitet | J196: =Utslippsfaktorer!B32 -> Elektrisitet anleggsfase, norsk miks | K196: =SUMIF(Utslippsfaktorer!B:B,Beregninger!J196,Utslippsfaktorer!D:D) -> 0.019 | L196: =VLOOKUP(J196,Utslippsfaktorer!B:C,2,FALSE) -> kg CO2e/kWh | M196: 0
D197: Anleggsarbeid diesel | E197: =C191*'Tillegg vei'!D21 -> 0 | F197: liter diesel | G197: År 0 | H197: Vei i dagen | I197: Diesel | J197: =Utslippsfaktorer!B29 -> Fossil diesel (WTW) | K197: =SUMIF(Utslippsfaktorer!B:B,Beregninger!J197,Utslippsfaktorer!D:D) -> 3.24 | L197: =VLOOKUP(J197,Utslippsfaktorer!B:C,2,FALSE) -> kg CO2e/liter | M197: 0
D198: Anleggsarbeid biodiesel | E198: =C191*'Tillegg vei'!E21 -> 0 | F198: liter biodiesel | G198: År 0 | H198: Vei i dagen | I198: Biodiesel | J198: =Utslippsfaktorer!B27 -> Biodiesel (WTT) | K198: =SUMIF(Utslippsfaktorer!B:B,Beregninger!J198,Utslippsfaktorer!D:D) -> 1.92 | L198: =VLOOKUP(J198,Utslippsfaktorer!B:C,2,FALSE) -> kg CO2e/liter | M198: 0
D199: Anleggsarbeid elektrisk/hydrogen | E199: =C191*'Tillegg vei'!F21 -> 0 | F199: kWh | G199: År 0 | H199: Vei i dagen | I199: Elektrisitet | J199: =Utslippsfaktorer!B32 -> Elektrisitet anleggsfase, norsk miks | K199: =SUMIF(Utslippsfaktorer!B:B,Beregninger!J199,Utslippsfaktorer!D:D) -> 0.019 | L199: =VLOOKUP(J199,Utslippsfaktorer!B:C,2,FALSE) -> kg CO2e/kWh | M199: 0
B200: Annen betong (m3) | C200: =SUMIF('Prosjektbeskrivelse og inndata'!$M:$M,B200,'Prosjektbeskrivelse og inndata'!$L:$L) -> 0 | D200: Betong | E200: =C200*'Annen betong og injeksjon'!D5 -> 0 | F200: kg betong | G200: År 0 | H200: Vei i dagen | I200: Betong | J200: =Utslippsfaktorer!B12 -> Betong | K200: =SUMIF(Utslippsfaktorer!B:B,Beregninger!J200,Utslippsfaktorer!D:D) -> 0.1375 | L200: =VLOOKUP(J200,Utslippsfaktorer!B:C,2,FALSE) -> kg CO2e/kg | M200: 0
D201: Transport diesel | E201: =C200*'Annen betong og injeksjon'!E5 -> 0 | F201: liter diesel | G201: År 0 | H201: Vei i dagen | I201: Diesel | J201: =Utslippsfaktorer!B29 -> Fossil diesel (WTW) | K201: =SUMIF(Utslippsfaktorer!B:B,Beregninger!J201,Utslippsfaktorer!D:D) -> 3.24 | L201: =VLOOKUP(J201,Utslippsfaktorer!B:C,2,FALSE) -> kg CO2e/liter | M201: 0
... 222 more rows

Sheet Tunnel enkeltløp
B1: Tunnel enkeltløp
B2: Bakgrunnsdata
B3: Samlet lengde enkeltløpstunneler [m] | C3: =Beregninger!C123 -> 0 | D3: (Hentes fra inndataark/beregninger)
B4: Antall enkeltløpstunneler | C4: ='Prosjektbeskrivelse og inndata'!C6 -> 0
B5: Tunnelprofil | C5: =Beregningsfaktorer!D60 -> 10.5
B7: Materialer og transport
B8: Kategori | C8: Materialtype | D8: Materialmengder | H8: Transport | K8: Kommentar
D9: Volum per areal [m3/m2 veiareal] | E9: Masse per areal [kg/m2 veiareal] | F9: Mengde material [kg/m tunnel] | G9: Mengde material [m2/m tunnel] | H9: Mengde diesel [L/m tunnel] | I9: Mengde bio [L/m tunnel] | J9: Mengde el [kWh/m tunnel]
B10: Konstruksjon | C10: Betongportal | D10: =IFERROR((Beregningsfaktorer!D62*2*C4)/(Beregningsfaktorer!D60*'Tunnel enkeltløp'!C3),0) -> 0 | E10: =D10*Beregningsfaktorer!D4 -> 0 | F10: =E10*Beregningsfaktorer!D60 -> 0 | H10: =(F10/1000)*'Transport og energibehov'!D33*'Transport og energibehov'!D10*'Transport og energibehov'!N33 -> 0 | I10: =(F10/1000)*'Transport og energibehov'!D33*'Transport og energibehov'!D10*'Transport og energibehov'!M33 -> 0 | J10: =(F10/1000)*'Transport og energibehov'!H33*'Transport og energibehov'!D10*'Transport og energibehov'!L33 -> 0
C11: Armering portal | E11: =IFERROR((Beregningsfaktorer!D64*2*C4)/(Beregningsfaktorer!D60*'Tunnel enkeltløp'!C3),0) -> 0 | F11: =E11*Beregningsfaktorer!D60 -> 0 | H11: =(F11/1000)*'Transport og energibehov'!D35*'Transport og energibehov'!D12*'Transport og energibehov'!N35 -> 0 | I11: =(F11/1000)*'Transport og energibehov'!D35*'Transport og energibehov'!D12*'Transport og energibehov'!M35 -> 0 | J11: =(F11/1000)*'Transport og energibehov'!H35*'Transport og energibehov'!D12*'Transport og energibehov'!L35 -> 0
C12: Sikringsbolter | E12: =Beregningsfaktorer!D47/9.5 -> 4.631578947 | F12: =Beregningsfaktorer!D47*(Beregningsfaktorer!D60/9.5) -> 48.63157895 | H12: =(F12/1000)*'Transport og energibehov'!D34*'Transport og energibehov'!D11*'Transport og energibehov'!N34 -> 1.937482105 | I12: =(F12/1000)*'Transport og energibehov'!D34*'Transport og energibehov'!D11*'Transport og energibehov'!M34 -> 0.3968336842 | J12: =(F12/1000)*'Transport og energibehov'!H34*'Transport og energibehov'!D11*'Transport og energibehov'!L34 -> 0 | K12: Beregning hentet fra metoderapport
B13: Frost- og fuktsikring hvelv | C13: XPS-/betongelement | E13: =(VLOOKUP(C5,Beregningsfaktorer!M61:S72,3,FALSE)*Beregningsfaktorer!D12*Beregningsfaktorer!D29)/C5 -> 760.6186381 | F13: =E13*C5 -> 7986.4957 | G13: =IF(E13=0,0,VLOOKUP(C5,Beregningsfaktorer!M61:S72,3,FALSE)) -> 22.13 | H13: =(F13/1000)*'Transport og energibehov'!D37*'Transport og energibehov'!D14*'Transport og energibehov'!N37 -> 39.77274859 | I13: =(F13/1000)*'Transport og energibehov'!D37*'Transport og energibehov'!D14*'Transport og energibehov'!M37 -> 8.146225614 | J13: =(F13/1000)*'Transport og energibehov'!H37*'Transport og energibehov'!D14*'Transport og energibehov'!L37 -> 0
C14: Sprøytebetong | D14: =_xlfn.XLOOKUP(C5,Beregningsfaktorer!M61:M72,Beregningsfaktorer!O61:O72,Beregningsfaktorer!O66)*Beregningsfaktorer!D30/C5 -> 0 | E14: =D14*Beregningsfaktorer!D20 -> 0 | F14: =E14*C5 -> 0 | G14: =IF(E14=0,0,_xlfn.XLOOKUP(C5,Beregningsfaktorer!M61:M72,Beregningsfaktorer!O61:O72,Beregningsfaktorer!O66)) -> 0 | H14: =(F14/1000)*'Transport og energibehov'!D43*'Transport og energibehov'!D20*'Transport og energibehov'!N43 -> 0 | I14: =(F14/1000)*'Transport og energibehov'!D43*'Transport og energibehov'!D20*'Transport og energibehov'!M43 -> 0 | J14: =(F14/1000)*'Transport og energibehov'!H43*'Transport og energibehov'!D20*'Transport og energibehov'!L43 -> 0
C15: PE-skum | D15: =_xlfn.XLOOKUP(C5,Beregningsfaktorer!M61:M72,Beregningsfaktorer!O61:O72,Beregningsfaktorer!O66)*Beregningsfaktorer!D31/'Tunnel enkeltløp'!C5 -> 0 | E15: =D15*Beregningsfaktorer!D21 -> 0 | F15: =E15*C5 -> 0 | G15: =IF(E15=0,0,_xlfn.XLOOKUP(C5,Beregningsfaktorer!M61:M72,Beregningsfaktorer!O61:O72,Beregningsfaktorer!O66)) -> 0 | H15: =(F15/1000)*'Transport og energibehov'!D44*'Transport og energibehov'!D21*'Transport og energibehov'!N44 -> 0 | I15: =(F15/1000)*'Transport og energibehov'!D44*'Transport og energibehov'!D21*'Transport og energibehov'!M44 -> 0 | J15: =(F15/1000)*'Transport og energibehov'!H44*'Transport og energibehov'!D21*'Transport og energibehov'!L44 -> 0
C16: Fiberarmering | E16: =D14*Beregningsfaktorer!D32 -> 0 | F16: =E16*C5 -> 0 | H16: =(F16/1000)*'Transport og energibehov'!D45*'Transport og energibehov'!D22*'Transport og energibehov'!N45 -> 0 | I16: =(F16/1000)*'Transport og energibehov'!D45*'Transport og energibehov'!D22*'Transport og energibehov'!M45 -> 0 | J16: =(F16/1000)*'Transport og energibehov'!H45*'Transport og energibehov'!D22*'Transport og energibehov'!L45 -> 0
C17: Armeringsnett | E17: =_xlfn.XLOOKUP(C5,Beregningsfaktorer!M61:M72,Beregningsfaktorer!O61:O72,Beregningsfaktorer!O66)/C5*Beregningsfaktorer!D33 -> 0 | F17: =E17*C5 -> 0 | G17: =IF(E17=0,0,_xlfn.XLOOKUP(C5,Beregningsfaktorer!M61:M72,Beregningsfaktorer!O61:O72,Beregningsfaktorer!O66)) -> 0 | H17: =(F17/1000)*'Transport og energibehov'!D46*'Transport og energibehov'!D23*'Transport og energibehov'!N46 -> 0 | I17: =(F17/1000)*'Transport og energibehov'!D46*'Transport og energibehov'!D23*'Transport og energibehov'!M46 -> 0 | J17: =(F17/1000)*'Transport og energibehov'!H46*'Transport og energibehov'!D23*'Transport og energibehov'!L46 -> 0
C18: Plastmembran | E18: =_xlfn.XLOOKUP(C5,Beregningsfaktorer!M61:M72,Beregningsfaktorer!O61:O72,Beregningsfaktorer!O66)*Beregningsfaktorer!D34/C5 -> 1.466902857 | F18: =E18*C5 -> 15.40248 | G18: =_xlfn.XLOOKUP(C5,Beregningsfaktorer!M61:M72,Beregningsfaktorer!O61:O72,Beregningsfaktorer!O66) -> 22.13 | H18: =(F18/1000)*'Transport og energibehov'!D42*'Transport og energibehov'!D19*'Transport og energibehov'!N42 -> 0.6136348032 | I18: =(F18/1000)*'Transport og energibehov'!D42*'Transport og energibehov'!D19*'Transport og energibehov'!M42 -> 0.1256842368 | J18: =(F18/1000)*'Transport og energibehov'!H42*'Transport og energibehov'!D19*'Transport og energibehov'!L42 -> 0
B19: Veioverbygning | C19: Slitelag (Ska) | D19: =Beregningsfaktorer!D23 -> 0.04 | E19: =Beregningsfaktorer!D7*D19 -> 100 | F19: =E19*Beregningsfaktorer!D60 -> 1050 | H19: =(F19/1000)*'Transport og energibehov'!D30*'Transport og energibehov'!D7*'Transport og energibehov'!N30 -> 1.30725 | I19: =(F19/1000)*'Transport og energibehov'!D30*'Transport og energibehov'!D7*'Transport og energibehov'!M30 -> 0.26775 | J19: =(F19/1000)*'Transport og energibehov'!H30*'Transport og energibehov'!D7*'Transport og energibehov'!L30 -> 0
C20: Bindlag (Ska) | D20: =Beregningsfaktorer!D24 -> 0.04 | E20: =Beregningsfaktorer!D7*D20 -> 100 | F20: =E20*Beregningsfaktorer!D60 -> 1050 | H20: =(F20/1000)*'Transport og energibehov'!D30*'Transport og energibehov'!D7*'Transport og energibehov'!N30 -> 1.30725 | I20: =(F20/1000)*'Transport og energibehov'!D30*'Transport og energibehov'!D7*'Transport og energibehov'!M30 -> 0.26775 | J20: =(F20/1000)*'Transport og energibehov'!H30*'Transport og energibehov'!D7*'Transport og energibehov'!L30 -> 0
C21: Bærelag (Ag) | D21: =Beregningsfaktorer!D25 -> 0.13 | E21: =Beregningsfaktorer!D8*D21 -> 312 | F21: =E21*Beregningsfaktorer!D60 -> 3276 | H21: =(F21/1000)*'Transport og energibehov'!D31*'Transport og energibehov'!D8*'Transport og energibehov'!N31 -> 4.07862 | I21: =(F21/1000)*'Transport og energibehov'!D31*'Transport og energibehov'!D8*'Transport og energibehov'!M31 -> 0.83538 | J21: =(F21/1000)*'Transport og energibehov'!H31*'Transport og energibehov'!D8*'Transport og energibehov'!L31 -> 0
B24: Anleggsarbeid
B25: Kategori | C25: Maskintype | D25: Anleggsarbeid | H25: Kommentar
D26: Anleggsarbeid [m2/h] | E26: Mengde diesel [L/m2 veiareal] | F26: Mengde bio [L/m2 veiareal] | G26: Mengde el [kWh/m2 veiareal]
B27: Slitelag | C27: Veivals | D27: =('Transport og energibehov'!D67*1000)/E19 -> 750 | E27: =('Transport og energibehov'!D49/D27)*'Transport og energibehov'!N49 -> 0.0036 | F27: =('Transport og energibehov'!D49/D27)*'Transport og energibehov'!M49 -> 0.0004 | G27: =('Transport og energibehov'!H49/D27)*'Transport og energibehov'!L49 -> 0
C28: Traktor | D28: =('Transport og energibehov'!D68*1000)/E19 -> 3000 | E28: =('Transport og energibehov'!D50/D28)*'Transport og energibehov'!N50 -> 0.001383333333 | F28: =('Transport og energibehov'!D50/D28)*'Transport og energibehov'!M50 -> 0.0002833333333 | G28: =('Transport og energibehov'!H50/D28)*'Transport og energibehov'!L50 -> 0
C29: Asfaltutlegger | D29: =('Transport og energibehov'!D69*1000)/E19 -> 37.5 | E29: =('Transport og energibehov'!D51/D29)*'Transport og energibehov'!N51 -> 0.072 | F29: =('Transport og energibehov'!D51/D29)*'Transport og energibehov'!M51 -> 0.008 | G29: =('Transport og energibehov'!H51/D29)*'Transport og energibehov'!L51 -> 0
B30: Bindlag | C30: Veivals | D30: =('Transport og energibehov'!D67*1000)/E20 -> 750 | E30: =('Transport og energibehov'!D49/D30)*'Transport og energibehov'!N49 -> 0.0036 | F30: =('Transport og energibehov'!D49/D30)*'Transport og energibehov'!M49 -> 0.0004 | G30: =('Transport og energibehov'!H49/D30)*'Transport og energibehov'!L49 -> 0
C31: Traktor | D31: =('Transport og energibehov'!D68*1000)/E20 -> 3000 | E31: =('Transport og energibehov'!D50/D31)*'Transport og energibehov'!N50 -> 0.001383333333 | F31: =('Transport og energibehov'!D50/D31)*'Transport og energibehov'!M50 -> 0.0002833333333 | G31: =('Transport og energibehov'!H50/D31)*'Transport og energibehov'!L50 -> 0
C32: Asfaltutlegger | D32: =('Transport og energibehov'!D69*1000)/E20 -> 37.5 | E32: =('Transport og energibehov'!D51/D32)*'Transport og energibehov'!N51 -> 0.072 | F32: =('Transport og energibehov'!D51/D32)*'Transport og energibehov'!M51 -> 0.008 | G32: =('Transport og energibehov'!H51/D32)*'Transport og energibehov'!L51 -> 0
B33: Bærelag | C33: Veivals | D33: =('Transport og energibehov'!D67*1000)/E21 -> 240.3846154 | E33: =('Transport og energibehov'!D49/D33)*'Transport og energibehov'!N49 -> 0.011232 | F33: =('Transport og energibehov'!D49/D33)*'Transport og energibehov'!M49 -> 0.001248 | G33: =('Transport og energibehov'!H49/D33)*'Transport og energibehov'!L49 -> 0
C34: Traktor | D34: =('Transport og energibehov'!D68*1000)/E21 -> 961.5384615 | E34: =('Transport og energibehov'!D50/D34)*'Transport og energibehov'!N50 -> 0.004316 | F34: =('Transport og energibehov'!D50/D34)*'Transport og energibehov'!M50 -> 0.000884 | G34: =('Transport og energibehov'!H50/D34)*'Transport og energibehov'!L50 -> 0
C35: Asfaltutlegger | D35: =('Transport og energibehov'!D69*1000)/E21 -> 12.01923077 | E35: =('Transport og energibehov'!D51/D35)*'Transport og energibehov'!N51 -> 0.22464 | F35: =('Transport og energibehov'!D51/D35)*'Transport og energibehov'!M51 -> 0.02496 | G35: =('Transport og energibehov'!H51/D35)*'Transport og energibehov'!L51 -> 0

Sheet Tunnel dobbeltløp
B1: Tunnel dobbeltløp
B2: Bakgrunnsdata
B3: Samlet lengde dobbeltløpstunneler [m] | C3: =Beregninger!C142 -> 0 | D3: (Hentes fra inndataark/beregninger)
B4: Antall dobbeltløpstunneler | C4: ='Prosjektbeskrivelse og inndata'!C7 -> 0
B5: Tunnelprofil | C5: =Beregningsfaktorer!D61 -> 9.5
B7: Materialer og transport
B8: Kategori | C8: Materialtype | D8: Materialmengder per løp | H8: Transport per løp | K8: Kommentar
D9: Volum per areal [m3/m2 veiareal] | E9: Masse per areal [kg/m2 veiareal] | F9: Mengde material [kg/m tunnel] | G9: Mengde material [m2/m tunnel] | H9: Mengde diesel [L/m tunnel] | I9: Mengde bio [L/m tunnel] | J9: Mengde el [kWh/m tunnel]
B10: Konstruksjon | C10: Betongportal | D10: =IFERROR((Beregningsfaktorer!D63*2*C4)/(Beregningsfaktorer!D61*C3),0) -> 0 | E10: =D10*Beregningsfaktorer!D4 -> 0 | F10: =E10*Beregningsfaktorer!D61 -> 0 | H10: =(F10/1000)*'Transport og energibehov'!D33*'Transport og energibehov'!D10*'Transport og energibehov'!N33 -> 0 | I10: =(F10/1000)*'Transport og energibehov'!D33*'Transport og energibehov'!D10*'Transport og energibehov'!M33 -> 0 | J10: =(F10/1000)*'Transport og energibehov'!H33*'Transport og energibehov'!D10*'Transport og energibehov'!L33 -> 0
C11: Armering portal | E11: =IFERROR((Beregningsfaktorer!D65*2*C4)/(Beregningsfaktorer!D61*C3),0) -> 0 | F11: =E11*Beregningsfaktorer!D61 -> 0 | H11: =(F11/1000)*'Transport og energibehov'!D35*'Transport og energibehov'!D12*'Transport og energibehov'!N35 -> 0 | I11: =(F11/1000)*'Transport og energibehov'!D35*'Transport og energibehov'!D12*'Transport og energibehov'!M35 -> 0 | J11: =(F11/1000)*'Transport og energibehov'!H35*'Transport og energibehov'!D12*'Transport og energibehov'!L35 -> 0
C12: Sikringsbolter | E12: =Beregningsfaktorer!D47/9.5 -> 4.631578947 | F12: =Beregningsfaktorer!D47*(Beregningsfaktorer!D61/9.5) -> 44 | H12: =(F12/1000)*'Transport og energibehov'!D34*'Transport og energibehov'!D11*'Transport og energibehov'!N34 -> 1.75296 | I12: =(F12/1000)*'Transport og energibehov'!D34*'Transport og energibehov'!D11*'Transport og energibehov'!M34 -> 0.35904 | J12: =(F12/1000)*'Transport og energibehov'!H34*'Transport og energibehov'!D11*'Transport og energibehov'!L34 -> 0 | K12: Beregning hentet fra metoderapport
B13: Frost- og fuktsikring hvelv | C13: XPS-/betongelement | E13: =(VLOOKUP(C5,Beregningsfaktorer!M61:S72,3,FALSE)*Beregningsfaktorer!D12*Beregningsfaktorer!D29)/C5 -> 799.2763789 | F13: =E13*C5 -> 7593.1256 | G13: =IF(E13=0,0,VLOOKUP(C5,Beregningsfaktorer!M61:S72,3,FALSE)) -> 21.04 | H13: =(F13/1000)*'Transport og energibehov'!D37*'Transport og energibehov'!D14*'Transport og energibehov'!N37 -> 37.81376549 | I13: =(F13/1000)*'Transport og energibehov'!D37*'Transport og energibehov'!D14*'Transport og energibehov'!M37 -> 7.744988112 | J13: =(F13/1000)*'Transport og energibehov'!D37*'Transport og energibehov'!D14*'Transport og energibehov'!L37 -> 0
C14: Sprøytebetong | D14: =_xlfn.XLOOKUP(C5,Beregningsfaktorer!M61:M72,Beregningsfaktorer!O61:O72,Beregningsfaktorer!O66)*Beregningsfaktorer!D30/'Tunnel enkeltløp'!C5 -> 0 | E14: =D14*Beregningsfaktorer!D20 -> 0 | F14: =E14*C5 -> 0 | G14: =IF(E14=0,0,_xlfn.XLOOKUP(C5,Beregningsfaktorer!M61:M72,Beregningsfaktorer!O61:O72,Beregningsfaktorer!O66)) -> 0 | H14: =(F14/1000)*'Transport og energibehov'!D43*'Transport og energibehov'!D20*'Transport og energibehov'!N43 -> 0 | I14: =(F14/1000)*'Transport og energibehov'!D43*'Transport og energibehov'!D20*'Transport og energibehov'!M43 -> 0 | J14: =(F14/1000)*'Transport og energibehov'!H43*'Transport og energibehov'!D20*'Transport og energibehov'!L43 -> 0
C15: PE-skum | D15: =_xlfn.XLOOKUP(C5,Beregningsfaktorer!M61:M72,Beregningsfaktorer!O61:O72,Beregningsfaktorer!O66)*Beregningsfaktorer!D31/'Tunnel enkeltløp'!C5 -> 0 | E15: =D15*Beregningsfaktorer!D21 -> 0 | F15: =E15*C5 -> 0 | G15: =IF(E15=0,0,_xlfn.XLOOKUP(C5,Beregningsfaktorer!M61:M72,Beregningsfaktorer!O61:O72,Beregningsfaktorer!O66)) -> 0 | H15: =(F15/1000)*'Transport og energibehov'!D44*'Transport og energibehov'!D21*'Transport og energibehov'!N44 -> 0 | I15: =(F15/1000)*'Transport og energibehov'!D44*'Transport og energibehov'!D21*'Transport og energibehov'!M44 -> 0 | J15: =(F15/1000)*'Transport og energibehov'!H44*'Transport og energibehov'!D21*'Transport og energibehov'!L44 -> 0
C16: Fiberarmering | E16: =D14*Beregningsfaktorer!D32 -> 0 | F16: =E16*C5 -> 0 | H16: =(F16/1000)*'Transport og energibehov'!D45*'Transport og energibehov'!D22*'Transport og energibehov'!N45 -> 0 | I16: =(F16/1000)*'Transport og energibehov'!D45*'Transport og energibehov'!D22*'Transport og energibehov'!M45 -> 0 | J16: =(F16/1000)*'Transport og energibehov'!H45*'Transport og energibehov'!D22*'Transport og energibehov'!L45 -> 0
C17: Armeringsnett | E17: =_xlfn.XLOOKUP(C5,Beregningsfaktorer!M61:M72,Beregningsfaktorer!O61:O72,Beregningsfaktorer!O66)/C5*Beregningsfaktorer!D33 -> 0 | F17: =E17*C5 -> 0 | G17: =IF(E17=0,0,_xlfn.XLOOKUP(C5,Beregningsfaktorer!M61:M72,Beregningsfaktorer!O61:O72,Beregningsfaktorer!O66)) -> 0 | H17: =(F17/1000)*'Transport og energibehov'!D46*'Transport og energibehov'!D23*'Transport og energibehov'!N46 -> 0 | I17: =(F17/1000)*'Transport og energibehov'!D46*'Transport og energibehov'!D23*'Transport og energibehov'!M46 -> 0 | J17: =(F17/1000)*'Transport og energibehov'!H46*'Transport og energibehov'!D23*'Transport og energibehov'!L46 -> 0
C18: Plastmembran | E18: =_xlfn.XLOOKUP(C5,Beregningsfaktorer!M61:M72,Beregningsfaktorer!O61:O72,Beregningsfaktorer!O66)*Beregningsfaktorer!D34/C5 -> 1.541456842 | F18: =E18*C5 -> 14.64384 | G18: =_xlfn.XLOOKUP(C5,Beregningsfaktorer!M61:M72,Beregningsfaktorer!O61:O72,Beregningsfaktorer!O66) -> 21.04 | H18: =(F18/1000)*'Transport og energibehov'!D42*'Transport og energibehov'!D19*'Transport og energibehov'!N42 -> 0.5834105856 | I18: =(F18/1000)*'Transport og energibehov'!D42*'Transport og energibehov'!D19*'Transport og energibehov'!M42 -> 0.1194937344 | J18: =(F18/1000)*'Transport og energibehov'!H42*'Transport og energibehov'!D19*'Transport og energibehov'!L42 -> 0
B19: Veioverbygning | C19: Slitelag (Ska) | D19: =Beregningsfaktorer!D23 -> 0.04 | E19: =Beregningsfaktorer!D7*D19 -> 100 | F19: =E19*Beregningsfaktorer!D61 -> 950 | H19: =(F19/1000)*'Transport og energibehov'!D30*'Transport og energibehov'!D7*'Transport og energibehov'!N30 -> 1.18275 | I19: =(F19/1000)*'Transport og energibehov'!D30*'Transport og energibehov'!D7*'Transport og energibehov'!M30 -> 0.24225 | J19: =(F19/1000)*'Transport og energibehov'!H30*'Transport og energibehov'!D7*'Transport og energibehov'!L30 -> 0
C20: Bindlag (Ska) | D20: =Beregningsfaktorer!D24 -> 0.04 | E20: =Beregningsfaktorer!D7*D20 -> 100 | F20: =E20*Beregningsfaktorer!D61 -> 950 | H20: =(F20/1000)*'Transport og energibehov'!D30*'Transport og energibehov'!D7*'Transport og energibehov'!N30 -> 1.18275 | I20: =(F20/1000)*'Transport og energibehov'!D30*'Transport og energibehov'!D7*'Transport og energibehov'!M30 -> 0.24225 | J20: =(F20/1000)*'Transport og energibehov'!H30*'Transport og energibehov'!D7*'Transport og energibehov'!L30 -> 0
C21: Bærelag (Ag) | D21: =Beregningsfaktorer!D25 -> 0.13 | E21: =Beregningsfaktorer!D8*D21 -> 312 | F21: =E21*Beregningsfaktorer!D61 -> 2964 | H21: =(F21/1000)*'Transport og energibehov'!D31*'Transport og energibehov'!D8*'Transport og energibehov'!N31 -> 3.69018 | I21: =(F21/1000)*'Transport og energibehov'!D31*'Transport og energibehov'!D8*'Transport og energibehov'!M31 -> 0.75582 | J21: =(F21/1000)*'Transport og energibehov'!H31*'Transport og energibehov'!D8*'Transport og energibehov'!L31 -> 0
B24: Anleggsarbeid
B25: Kategori | C25: Maskintype | D25: Anleggsarbeid [m2/h] | H25: Kommentar
D26: Anleggsarbeid [m2/h] | E26: Mengde diesel [L/m2 veiareal] | F26: Mengde bio [L/m2 veiareal] | G26: Mengde el [kWh/m2 veiareal]
B27: Slitelag | C27: Veivals | D27: =('Transport og energibehov'!D67*1000)/E19 -> 750 | E27: =('Transport og energibehov'!D49/D27)*'Transport og energibehov'!N49 -> 0.0036 | F27: =('Transport og energibehov'!D49/D27)*'Transport og energibehov'!M49 -> 0.0004 | G27: =('Transport og energibehov'!H49/D27)*'Transport og energibehov'!L49 -> 0
C28: Traktor | D28: =('Transport og energibehov'!D68*1000)/E19 -> 3000 | E28: =('Transport og energibehov'!D50/D28)*'Transport og energibehov'!N50 -> 0.001383333333 | F28: =('Transport og energibehov'!D50/D28)*'Transport og energibehov'!M50 -> 0.0002833333333 | G28: =('Transport og energibehov'!H50/D28)*'Transport og energibehov'!L50 -> 0
C29: Asfaltutlegger | D29: =('Transport og energibehov'!D69*1000)/E19 -> 37.5 | E29: =('Transport og energibehov'!D51/D29)*'Transport og energibehov'!N51 -> 0.072 | F29: =('Transport og energibehov'!D51/D29)*'Transport og energibehov'!M51 -> 0.008 | G29: =('Transport og energibehov'!H51/D29)*'Transport og energibehov'!L51 -> 0
B30: Bindlag | C30: Veivals | D30: =('Transport og energibehov'!D67*1000)/E20 -> 750 | E30: =('Transport og energibehov'!D49/D30)*'Transport og energibehov'!N49 -> 0.0036 | F30: =('Transport og energibehov'!D49/D30)*'Transport og energibehov'!M49 -> 0.0004 | G30: =('Transport og energibehov'!H49/D30)*'Transport og energibehov'!L49 -> 0
C31: Traktor | D31: =('Transport og energibehov'!D68*1000)/E20 -> 3000 | E31: =('Transport og energibehov'!D50/D31)*'Transport og energibehov'!N50 -> 0.001383333333 | F31: =('Transport og energibehov'!D50/D31)*'Transport og energibehov'!M50 -> 0.0002833333333 | G31: =('Transport og energibehov'!H50/D31)*'Transport og energibehov'!L50 -> 0
C32: Asfaltutlegger | D32: =('Transport og energibehov'!D69*1000)/E20 -> 37.5 | E32: =('Transport og energibehov'!D51/D32)*'Transport og energibehov'!N51 -> 0.072 | F32: =('Transport og energibehov'!D51/D32)*'Transport og energibehov'!M51 -> 0.008 | G32: =('Transport og energibehov'!H51/D32)*'Transport og energibehov'!L51 -> 0
B33: Bærelag | C33: Veivals | D33: =('Transport og energibehov'!D67*1000)/E21 -> 240.3846154 | E33: =('Transport og energibehov'!D49/D33)*'Transport og energibehov'!N49 -> 0.011232 | F33: =('Transport og energibehov'!D49/D33)*'Transport og energibehov'!M49 -> 0.001248 | G33: =('Transport og energibehov'!H49/D33)*'Transport og energibehov'!L49 -> 0
C34: Traktor | D34: =('Transport og energibehov'!D68*1000)/E21 -> 961.5384615 | E34: =('Transport og energibehov'!D50/D34)*'Transport og energibehov'!N50 -> 0.004316 | F34: =('Transport og energibehov'!D50/D34)*'Transport og energibehov'!M50 -> 0.000884 | G34: =('Transport og energibehov'!H50/D34)*'Transport og energibehov'!L50 -> 0
C35: Asfaltutlegger | D35: =('Transport og energibehov'!D69*1000)/E21 -> 12.01923077 | E35: =('Transport og energibehov'!D51/D35)*'Transport og energibehov'!N51 -> 0.22464 | F35: =('Transport og energibehov'!D51/D35)*'Transport og energibehov'!M51 -> 0.02496 | G35: =('Transport og energibehov'!H51/D35)*'Transport og energibehov'!L51 -> 0

Sheet Hovedvei
B2: Materialer og transport
B3: Kategori | C3: Materialmengder | E3: Transport | H3: Kommentar
C4: Volum per areal [m3/m2] | D4: Masse per areal [kg/m2] | E4: Mengde diesel [L/m2] | F4: Mengde bio [L/m2] | G4: Mengde el [kWh/m2]
B5: Slitelag (Ska) | C5: =Beregningsfaktorer!D23 -> 0.04 | D5: =C5*Beregningsfaktorer!D6 -> 100 | E5: =(D5/1000)*'Transport og energibehov'!D30*'Transport og energibehov'!D7*'Transport og energibehov'!N30 -> 0.1245 | F5: =(D5/1000)*'Transport og energibehov'!D30*'Transport og energibehov'!D7*'Transport og energibehov'!M30 -> 0.0255 | G5: =(D5/1000)*'Transport og energibehov'!H30*'Transport og energibehov'!D7*'Transport og energibehov'!L30 -> 0
B6: Bindlag (Ska) | C6: =Beregningsfaktorer!D24 -> 0.04 | D6: =C6*Beregningsfaktorer!D7 -> 100 | E6: =(D6/1000)*'Transport og energibehov'!D30*'Transport og energibehov'!D7*'Transport og energibehov'!N30 -> 0.1245 | F6: =(D6/1000)*'Transport og energibehov'!D30*'Transport og energibehov'!D7*'Transport og energibehov'!M30 -> 0.0255 | G6: =(D6/1000)*'Transport og energibehov'!H30*'Transport og energibehov'!D7*'Transport og energibehov'!L30 -> 0
B7: Bærelag (Ag) | C7: =Beregningsfaktorer!D25 -> 0.13 | D7: =C7*Beregningsfaktorer!D8 -> 312 | E7: =(D7/1000)*'Transport og energibehov'!D31*'Transport og energibehov'!D8*'Transport og energibehov'!N31 -> 0.38844 | F7: =(D7/1000)*'Transport og energibehov'!D31*'Transport og energibehov'!D8*'Transport og energibehov'!M31 -> 0.07956 | G7: =(D7/1000)*'Transport og energibehov'!H31*'Transport og energibehov'!D8*'Transport og energibehov'!L31 -> 0
B10: Anleggsarbeid
B11: Kategori | C11: Maskintype | D11: Anleggsarbeid | H11: Kommentar
D12: Anleggsarbeid [m2/h] | E12: Mengde diesel [L/m2] | F12: Mengde bio [L/m2] | G12: Mengde el [kWh/m2]
B13: Slitelag | C13: Veivals | D13: =('Transport og energibehov'!D67*1000)/D5 -> 750 | E13: =('Transport og energibehov'!D49/D13)*'Transport og energibehov'!N49 -> 0.0036 | F13: =('Transport og energibehov'!D49/D13)*'Transport og energibehov'!M49 -> 0.0004 | G13: =('Transport og energibehov'!H49/D13)*'Transport og energibehov'!L49 -> 0
C14: Traktor | D14: =('Transport og energibehov'!D68*1000)/D5 -> 3000 | E14: =('Transport og energibehov'!D50/D14)*'Transport og energibehov'!N50 -> 0.001383333333 | F14: =('Transport og energibehov'!D50/D14)*'Transport og energibehov'!M50 -> 0.0002833333333 | G14: =('Transport og energibehov'!H50/D14)*'Transport og energibehov'!L50 -> 0
C15: Asfaltutlegger | D15: =('Transport og energibehov'!D69*1000)/D5 -> 37.5 | E15: =('Transport og energibehov'!D51/D15)*'Transport og energibehov'!N51 -> 0.072 | F15: =('Transport og energibehov'!D51/D15)*'Transport og energibehov'!M51 -> 0.008 | G15: =('Transport og energibehov'!H51/D15)*'Transport og energibehov'!L51 -> 0
B16: Bindlag | C16: Veivals | D16: =('Transport og energibehov'!D67*1000)/D6 -> 750 | E16: =('Transport og energibehov'!D49/D16)*'Transport og energibehov'!N49 -> 0.0036 | F16: =('Transport og energibehov'!D49/D16)*'Transport og energibehov'!M49 -> 0.0004 | G16: =('Transport og energibehov'!H49/D16)*'Transport og energibehov'!L49 -> 0
C17: Traktor | D17: =('Transport og energibehov'!D68*1000)/D6 -> 3000 | E17: =('Transport og energibehov'!D50/D17)*'Transport og energibehov'!N50 -> 0.001383333333 | F17: =('Transport og energibehov'!D50/D17)*'Transport og energibehov'!M50 -> 0.0002833333333 | G17: =('Transport og energibehov'!H50/D17)*'Transport og energibehov'!L50 -> 0
C18: Asfaltutlegger | D18: =('Transport og energibehov'!D69*1000)/D6 -> 37.5 | E18: =('Transport og energibehov'!D51/D18)*'Transport og energibehov'!N51 -> 0.072 | F18: =('Transport og energibehov'!D51/D18)*'Transport og energibehov'!M51 -> 0.008 | G18: =('Transport og energibehov'!H51/D18)*'Transport og energibehov'!L51 -> 0
B19: Bærelag | C19: Veivals | D19: =('Transport og energibehov'!D67*1000)/D7 -> 240.3846154 | E19: =('Transport og energibehov'!D49/D19)*'Transport og energibehov'!N49 -> 0.011232 | F19: =('Transport og energibehov'!D49/D19)*'Transport og energibehov'!M49 -> 0.001248 | G19: =('Transport og energibehov'!H49/D19)*'Transport og energibehov'!L49 -> 0
C20: Traktor | D20: =('Transport og energibehov'!D68*1000)/D7 -> 961.5384615 | E20: =('Transport og energibehov'!D50/D20)*'Transport og energibehov'!N50 -> 0.004316 | F20: =('Transport og energibehov'!D50/D20)*'Transport og energibehov'!M50 -> 0.000884 | G20: =('Transport og energibehov'!H50/D20)*'Transport og energibehov'!L50 -> 0
C21: Asfaltutlegger | D21: =('Transport og energibehov'!D69*1000)/D7 -> 12.01923077 | E21: =('Transport og energibehov'!D51/D21)*'Transport og energibehov'!N51 -> 0.22464 | F21: =('Transport og energibehov'!D51/D21)*'Transport og energibehov'!M51 -> 0.02496 | G21: =('Transport og energibehov'!H51/D21)*'Transport og energibehov'!L51 -> 0

Sheet Sidevei
B2: Materialer og transport
B3: Kategori | C3: Materialmengder | E3: Transport | H3: Kommentar
C4: Volum per areal [m3/m2] | D4: Masse per areal [kg/m2] | E4: Mengde diesel [L/m2] | F4: Mengde bio [L/m2] | G4: Mengde el [kWh/m2]
B5: Slitelag (Agb) | C5: =Beregningsfaktorer!D23 -> 0.04 | D5: =C5*Beregningsfaktorer!D7 -> 100 | E5: =(D5/1000)*'Transport og energibehov'!D30*'Transport og energibehov'!D7*'Transport og energibehov'!N30 -> 0.1245 | F5: =(D5/1000)*'Transport og energibehov'!D30*'Transport og energibehov'!D7*'Transport og energibehov'!M30 -> 0.0255 | G5: =(D5/1000)*'Transport og energibehov'!H30*'Transport og energibehov'!D7*'Transport og energibehov'!L30 -> 0
B6: Bindlag (Agb) | C6: =Beregningsfaktorer!D24 -> 0.04 | D6: =C6*Beregningsfaktorer!D7 -> 100 | E6: =(D6/1000)*'Transport og energibehov'!D30*'Transport og energibehov'!D7*'Transport og energibehov'!N30 -> 0.1245 | F6: =(D6/1000)*'Transport og energibehov'!D30*'Transport og energibehov'!D7*'Transport og energibehov'!M30 -> 0.0255 | G6: =(D6/1000)*'Transport og energibehov'!H30*'Transport og energibehov'!D7*'Transport og energibehov'!L30 -> 0
B7: Bærelag (Ag) | C7: =Beregningsfaktorer!D25 -> 0.13 | D7: =C7*Beregningsfaktorer!D8 -> 312 | E7: =(D7/1000)*'Transport og energibehov'!D31*'Transport og energibehov'!D8*'Transport og energibehov'!N31 -> 0.38844 | F7: =(D7/1000)*'Transport og energibehov'!D31*'Transport og energibehov'!D8*'Transport og energibehov'!M31 -> 0.07956 | G7: =(D7/1000)*'Transport og energibehov'!H31*'Transport og energibehov'!D8*'Transport og energibehov'!L31 -> 0
B10: Anleggsarbeid
B11: Kategori | C11: Maskintype | D11: Anleggsarbeid | H11: Kommentar
D12: Anleggsarbeid [m2/h] | E12: Mengde diesel [L/m2] | F12: Mengde bio [L/m2] | G12: Mengde el [kWh/m2]
B13: Slitelag | C13: Veivals | D13: =('Transport og energibehov'!D67*1000)/D5 -> 750 | E13: =('Transport og energibehov'!D49/D13)*'Transport og energibehov'!N49 -> 0.0036 | F13: =('Transport og energibehov'!D49/D13)*'Transport og energibehov'!M49 -> 0.0004 | G13: =('Transport og energibehov'!H49/D13)*'Transport og energibehov'!L49 -> 0
C14: Traktor | D14: =('Transport og energibehov'!D68*1000)/D5 -> 3000 | E14: =('Transport og energibehov'!D50/D14)*'Transport og energibehov'!N50 -> 0.001383333333 | F14: =('Transport og energibehov'!D50/D14)*'Transport og energibehov'!M50 -> 0.0002833333333 | G14: =('Transport og energibehov'!H50/D14)*'Transport og energibehov'!L50 -> 0
C15: Asfaltutlegger | D15: =('Transport og energibehov'!D69*1000)/D5 -> 37.5 | E15: =('Transport og energibehov'!D51/D15)*'Transport og energibehov'!N51 -> 0.072 | F15: =('Transport og energibehov'!D51/D15)*'Transport og energibehov'!M51 -> 0.008 | G15: =('Transport og energibehov'!H51/D15)*'Transport og energibehov'!L51 -> 0
B16: Bindlag | C16: Veivals | D16: =('Transport og energibehov'!D67*1000)/D6 -> 750 | E16: =('Transport og energibehov'!D49/D16)*'Transport og energibehov'!N49 -> 0.0036 | F16: =('Transport og energibehov'!D49/D16)*'Transport og energibehov'!M49 -> 0.0004 | G16: =('Transport og energibehov'!H49/D16)*'Transport og energibehov'!L49 -> 0
C17: Traktor | D17: =('Transport og energibehov'!D68*1000)/D6 -> 3000 | E17: =('Transport og energibehov'!D50/D17)*'Transport og energibehov'!N50 -> 0.001383333333 | F17: =('Transport og energibehov'!D50/D17)*'Transport og energibehov'!M50 -> 0.0002833333333 | G17: =('Transport og energibehov'!H50/D17)*'Transport og energibehov'!L50 -> 0
C18: Asfaltutlegger | D18: =('Transport og energibehov'!D69*1000)/D6 -> 37.5 | E18: =('Transport og energibehov'!D51/D18)*'Transport og energibehov'!N51 -> 0.072 | F18: =('Transport og energibehov'!D51/D18)*'Transport og energibehov'!M51 -> 0.008 | G18: =('Transport og energibehov'!H51/D18)*'Transport og energibehov'!L51 -> 0
B19: Bærelag | C19: Veivals | D19: =('Transport og energibehov'!D67*1000)/D7 -> 240.3846154 | E19: =('Transport og energibehov'!D49/D19)*'Transport og energibehov'!N49 -> 0.011232 | F19: =('Transport og energibehov'!D49/D19)*'Transport og energibehov'!M49 -> 0.001248 | G19: =('Transport og energibehov'!H49/D19)*'Transport og energibehov'!L49 -> 0
C20: Traktor | D20: =('Transport og energibehov'!D68*1000)/D7 -> 961.5384615 | E20: =('Transport og energibehov'!D50/D20)*'Transport og energibehov'!N50 -> 0.004316 | F20: =('Transport og energibehov'!D50/D20)*'Transport og energibehov'!M50 -> 0.000884 | G20: =('Transport og energibehov'!H50/D20)*'Transport og energibehov'!L50 -> 0
C21: Asfaltutlegger | D21: =('Transport og energibehov'!D69*1000)/D7 -> 12.01923077 | E21: =('Transport og energibehov'!D51/D21)*'Transport og energibehov'!N51 -> 0.22464 | F21: =('Transport og energibehov'!D51/D21)*'Transport og energibehov'!M51 -> 0.02496 | G21: =('Transport og energibehov'!H51/D21)*'Transport og energibehov'!L51 -> 0

Sheet Anleggsvei
B2: Materialer og transport
B3: Kategori | C3: Materialmengder | E3: Transport | H3: Kommentar
C4: Volum per areal [m3/m2] | D4: Masse per areal [kg/m2] | E4: Mengde diesel [L/m2] | F4: Mengde bio [L/m2] | G4: Mengde el [kWh/m2]
B5: Bærelag (Ag) | C5: =Beregningsfaktorer!D25 -> 0.13 | D5: =C5*Beregningsfaktorer!D8 -> 312 | E5: =(D5/1000)*'Transport og energibehov'!D31*'Transport og energibehov'!D8*'Transport og energibehov'!N31 -> 0.38844 | F5: =(D5/1000)*'Transport og energibehov'!D31*'Transport og energibehov'!D8*'Transport og energibehov'!M31 -> 0.07956 | G5: =(D5/1000)*'Transport og energibehov'!H31*'Transport og energibehov'!D8*'Transport og energibehov'!L31 -> 0
B8: Anleggsarbeid
B9: Kategori | C9: Maskintype | D9: Anleggsarbeid | H9: Kommentar
D10: Anleggsarbeid [m2/h] | E10: Mengde diesel [L/m2] | F10: Mengde bio [L/m2] | G10: Mengde el [kWh/m2]
B11: Bærelag | C11: Veivals | D11: =('Transport og energibehov'!D67*1000)/D5 -> 240.3846154 | E11: =('Transport og energibehov'!D49/D11)*'Transport og energibehov'!N49 -> 0.011232 | F11: =('Transport og energibehov'!D49/D11)*'Transport og energibehov'!M49 -> 0.001248 | G11: =('Transport og energibehov'!H49/D11)*'Transport og energibehov'!L49 -> 0
C12: Traktor | D12: =('Transport og energibehov'!D68*1000)/D5 -> 961.5384615 | E12: =('Transport og energibehov'!D50/D12)*'Transport og energibehov'!N50 -> 0.004316 | F12: =('Transport og energibehov'!D50/D12)*'Transport og energibehov'!M50 -> 0.000884 | G12: =('Transport og energibehov'!H50/D12)*'Transport og energibehov'!L50 -> 0
C13: Asfaltutlegger | D13: =('Transport og energibehov'!D69*1000)/D5 -> 12.01923077 | E13: =('Transport og energibehov'!D51/D13)*'Transport og energibehov'!N51 -> 0.22464 | F13: =('Transport og energibehov'!D51/D13)*'Transport og energibehov'!M51 -> 0.02496 | G13: =('Transport og energibehov'!H51/D13)*'Transport og energibehov'!L51 -> 0

Sheet Betongbru
B2: Materialer og transport
B3: Kategori | C3: Materialtype | D3: Materialmengder | F3: Transport | I3: Kommentar
D4: Volum per areal [m3/m2] | E4: Masse per areal [kg/m2] | F4: Mengde diesel [L/m2] | G4: Mengde bio [L/m2] | H4: Mengde el [kWh/m2]
B5: Konstruksjon | C5: Betong | E5: =Beregningsfaktorer!D35 -> 3500 | F5: =(E5/1000)*'Transport og energibehov'!D33*'Transport og energibehov'!D10*'Transport og energibehov'!N33 -> 4.3575 | G5: =(E5/1000)*'Transport og energibehov'!D33*'Transport og energibehov'!D10*'Transport og energibehov'!M33 -> 0.8925 | H5: =(E5/1000)*'Transport og energibehov'!H33*'Transport og energibehov'!D10*'Transport og energibehov'!L33 -> 0
C6: Armeringsstål | E6: =Beregningsfaktorer!D38 -> 210 | F6: =(E6/1000)*'Transport og energibehov'!D35*'Transport og energibehov'!D12*'Transport og energibehov'!N35 -> 8.3664 | G6: =(E6/1000)*'Transport og energibehov'!D35*'Transport og energibehov'!D12*'Transport og energibehov'!M35 -> 1.7136 | H6: =(E6/1000)*'Transport og energibehov'!H35*'Transport og energibehov'!D12*'Transport og energibehov'!L35 -> 0
C7: Konstruksjonsstål | E7: =Beregningsfaktorer!D41 -> 40 | F7: =(E7/1000)*'Transport og energibehov'!D34*'Transport og energibehov'!D11*'Transport og energibehov'!N34 -> 1.5936 | G7: =(E7/1000)*'Transport og energibehov'!D34*'Transport og energibehov'!D11*'Transport og energibehov'!M34 -> 0.3264 | H7: =(E7/1000)*'Transport og energibehov'!H34*'Transport og energibehov'!D11*'Transport og energibehov'!L34 -> 0
C8: Tre til forskaling | E8: =Beregningsfaktorer!D45 -> 420 | F8: =(E8/1000)*'Transport og energibehov'!D39*'Transport og energibehov'!D16*'Transport og energibehov'!N39 -> 5.229 | G8: =(E8/1000)*'Transport og energibehov'!D39*'Transport og energibehov'!D16*'Transport og energibehov'!M39 -> 1.071 | H8: =(E8/1000)*'Transport og energibehov'!H39*'Transport og energibehov'!D16*'Transport og energibehov'!L39 -> 0
B9: Veioverbygning | C9: Slitelag (Ska) | D9: =Beregningsfaktorer!D23 -> 0.04 | E9: =D9*Beregningsfaktorer!D7 -> 100 | F9: =(E9/1000)*'Transport og energibehov'!D30*'Transport og energibehov'!D7*'Transport og energibehov'!N30 -> 0.1245 | G9: =(E9/1000)*'Transport og energibehov'!D30*'Transport og energibehov'!D7*'Transport og energibehov'!M30 -> 0.0255 | H9: =(E9/1000)*'Transport og energibehov'!H30*'Transport og energibehov'!D7*'Transport og energibehov'!L30 -> 0
C10: Bindlag (Ska) | D10: =Beregningsfaktorer!D24 -> 0.04 | E10: =D10*Beregningsfaktorer!D7 -> 100 | F10: =(E10/1000)*'Transport og energibehov'!D30*'Transport og energibehov'!D7*'Transport og energibehov'!N30 -> 0.1245 | G10: =(E10/1000)*'Transport og energibehov'!D30*'Transport og energibehov'!D7*'Transport og energibehov'!M30 -> 0.0255 | H10: =(E10/1000)*'Transport og energibehov'!H30*'Transport og energibehov'!D7*'Transport og energibehov'!L30 -> 0
C11: Fuktisolasjon (Topeka) | D11: =Beregningsfaktorer!D28 -> 0.012 | E11: =D11*Beregningsfaktorer!D13 -> 30 | F11: =(E11/1000)*'Transport og energibehov'!D36*'Transport og energibehov'!D13*'Transport og energibehov'!N36 -> 0.03735 | G11: =(E11/1000)*'Transport og energibehov'!D36*'Transport og energibehov'!D13*'Transport og energibehov'!M36 -> 0.00765 | H11: =(E11/1000)*'Transport og energibehov'!H36*'Transport og energibehov'!D13*'Transport og energibehov'!L36 -> 0
B14: Anleggsarbeid
B15: Kategori | C15: Maskintype | D15: Anleggsarbeid | H15: Kommentar
D16: Arbeidshastighet [m2/h] | E16: Mengde diesel [L/m2] | F16: Mengde bio [L/m2] | G16: Mengde el [kWh/m2]
B17: Konstruksjon | C17: Kran første 400 m2 | D17: ='Transport og energibehov'!D73 -> 1.666666667 | G17: =('Transport og energibehov'!H55/D17)*'Transport og energibehov'!L55 -> 29.16 | H17: Antatt 100 % el
C18: Kran resten av bru | D18: ='Transport og energibehov'!D74 -> 3.333333333 | G18: =('Transport og energibehov'!H55/D18)*'Transport og energibehov'!L55 -> 14.58 | H18: Antatt 100 % el
C19: Gravemaskin | D19: =('Transport og energibehov'!D70*1000)/(E5+E6+E8) -> 36.31961259 | E19: =('Transport og energibehov'!D52/D19)*'Transport og energibehov'!N52 -> 0.4956 | F19: =('Transport og energibehov'!D52/D19)*'Transport og energibehov'!M52 -> 0.05506666667 | G19: =('Transport og energibehov'!H52/D19)*'Transport og energibehov'!L52 -> 0
B20: Slitelag | C20: Veivals | D20: =('Transport og energibehov'!D67*1000)/E9 -> 750 | E20: =('Transport og energibehov'!D49/D20)*'Transport og energibehov'!N49 -> 0.0036 | F20: =('Transport og energibehov'!D49/D20)*'Transport og energibehov'!M49 -> 0.0004 | G20: =('Transport og energibehov'!H49/D20)*'Transport og energibehov'!L49 -> 0
C21: Traktor | D21: =('Transport og energibehov'!D68*1000)/E9 -> 3000 | E21: =('Transport og energibehov'!D50/D21)*'Transport og energibehov'!N50 -> 0.001383333333 | F21: =('Transport og energibehov'!D50/D21)*'Transport og energibehov'!M50 -> 0.0002833333333 | G21: =('Transport og energibehov'!H50/D21)*'Transport og energibehov'!L50 -> 0
C22: Asfaltutlegger | D22: =('Transport og energibehov'!D69*1000)/E9 -> 37.5 | E22: =('Transport og energibehov'!D51/D22)*'Transport og energibehov'!N51 -> 0.072 | F22: =('Transport og energibehov'!D51/D22)*'Transport og energibehov'!M51 -> 0.008 | G22: =('Transport og energibehov'!H51/D22)*'Transport og energibehov'!L51 -> 0
B23: Bindlag | C23: Veivals | D23: =('Transport og energibehov'!D67*1000)/E10 -> 750 | E23: =('Transport og energibehov'!D49/D23)*'Transport og energibehov'!N49 -> 0.0036 | F23: =('Transport og energibehov'!D49/D23)*'Transport og energibehov'!M49 -> 0.0004 | G23: =('Transport og energibehov'!H49/D23)*'Transport og energibehov'!L49 -> 0
C24: Traktor | D24: =('Transport og energibehov'!D68*1000)/E10 -> 3000 | E24: =('Transport og energibehov'!D50/D24)*'Transport og energibehov'!N50 -> 0.001383333333 | F24: =('Transport og energibehov'!D50/D24)*'Transport og energibehov'!M50 -> 0.0002833333333 | G24: =('Transport og energibehov'!H50/D24)*'Transport og energibehov'!L50 -> 0
C25: Asfaltutlegger | D25: =('Transport og energibehov'!D69*1000)/E10 -> 37.5 | E25: =('Transport og energibehov'!D51/D25)*'Transport og energibehov'!N51 -> 0.072 | F25: =('Transport og energibehov'!D51/D25)*'Transport og energibehov'!M51 -> 0.008 | G25: =('Transport og energibehov'!H51/D25)*'Transport og energibehov'!L51 -> 0
B26: Fuktsikring | C26: Veivals | D26: =('Transport og energibehov'!D67*1000)/E11 -> 2500 | E26: =('Transport og energibehov'!D49/D26)*'Transport og energibehov'!N49 -> 0.00108 | F26: =('Transport og energibehov'!D49/D26)*'Transport og energibehov'!M49 -> 0.00012 | G26: =('Transport og energibehov'!H49/D26)*'Transport og energibehov'!L49 -> 0
C27: Traktor | D27: =('Transport og energibehov'!D68*1000)/E11 -> 10000 | E27: =('Transport og energibehov'!D50/D27)*'Transport og energibehov'!N50 -> 0.000415 | F27: =('Transport og energibehov'!D50/D27)*'Transport og energibehov'!M50 -> 8.5e-05 | G27: =('Transport og energibehov'!H50/D27)*'Transport og energibehov'!L50 -> 0
C28: Asfaltutlegger | D28: =('Transport og energibehov'!D69*1000)/E11 -> 125 | E28: =('Transport og energibehov'!D51/D28)*'Transport og energibehov'!N51 -> 0.0216 | F28: =('Transport og energibehov'!D51/D28)*'Transport og energibehov'!M51 -> 0.0024 | G28: =('Transport og energibehov'!H51/D28)*'Transport og energibehov'!L51 -> 0

Sheet Stålbru
B2: Materialer og transport
B3: Kategori | C3: Materialtype | D3: Materialmengder | F3: Transport | I3: Kommentar
D4: Volum per areal [m3/m2] | E4: Masse per areal [kg/m2] | F4: Mengde diesel [L/m2] | G4: Mengde bio [L/m2] | H4: Mengde el [kWh/m2]
B5: Konstruksjon | C5: Betong | E5: =Beregningsfaktorer!D36 -> 2500 | F5: =(E5/1000)*'Transport og energibehov'!D33*'Transport og energibehov'!D10*'Transport og energibehov'!N33 -> 3.1125 | G5: =(E5/1000)*'Transport og energibehov'!D33*'Transport og energibehov'!D10*'Transport og energibehov'!M33 -> 0.6375 | H5: =(E5/1000)*'Transport og energibehov'!H33*'Transport og energibehov'!D10*'Transport og energibehov'!L33 -> 0
C6: Armeringsstål | E6: =Beregningsfaktorer!D39 -> 100 | F6: =(E6/1000)*'Transport og energibehov'!D35*'Transport og energibehov'!D12*'Transport og energibehov'!N35 -> 3.984 | G6: =(E6/1000)*'Transport og energibehov'!D35*'Transport og energibehov'!D12*'Transport og energibehov'!M35 -> 0.816 | H6: =(E6/1000)*'Transport og energibehov'!H35*'Transport og energibehov'!D12*'Transport og energibehov'!L35 -> 0
C7: Konstruksjonsstål | E7: =Beregningsfaktorer!D42 -> 300 | F7: =(E7/1000)*'Transport og energibehov'!D34*'Transport og energibehov'!D11*'Transport og energibehov'!N34 -> 11.952 | G7: =(E7/1000)*'Transport og energibehov'!D34*'Transport og energibehov'!D11*'Transport og energibehov'!M34 -> 2.448 | H7: =(E7/1000)*'Transport og energibehov'!H34*'Transport og energibehov'!D11*'Transport og energibehov'!L34 -> 0
C8: Tre til forskaling | E8: =Beregningsfaktorer!D46 -> 300 | F8: =(E8/1000)*'Transport og energibehov'!D39*'Transport og energibehov'!D16*'Transport og energibehov'!N39 -> 3.735 | G8: =(E8/1000)*'Transport og energibehov'!D39*'Transport og energibehov'!D16*'Transport og energibehov'!M39 -> 0.765 | H8: =(E8/1000)*'Transport og energibehov'!H39*'Transport og energibehov'!D16*'Transport og energibehov'!L39 -> 0
B9: Veioverbygning | C9: Slitelag (Ska) | D9: =Beregningsfaktorer!D23 -> 0.04 | E9: =D9*Beregningsfaktorer!D7 -> 100 | F9: =(E9/1000)*'Transport og energibehov'!D30*'Transport og energibehov'!D7*'Transport og energibehov'!N30 -> 0.1245 | G9: =(E9/1000)*'Transport og energibehov'!D30*'Transport og energibehov'!D7*'Transport og energibehov'!M30 -> 0.0255 | H9: =(E9/1000)*'Transport og energibehov'!H30*'Transport og energibehov'!D7*'Transport og energibehov'!L30 -> 0
C10: Bindlag (Ska) | D10: =Beregningsfaktorer!D24 -> 0.04 | E10: =D10*Beregningsfaktorer!D7 -> 100 | F10: =(E10/1000)*'Transport og energibehov'!D30*'Transport og energibehov'!D7*'Transport og energibehov'!N30 -> 0.1245 | G10: =(E10/1000)*'Transport og energibehov'!D30*'Transport og energibehov'!D7*'Transport og energibehov'!M30 -> 0.0255 | H10: =(E10/1000)*'Transport og energibehov'!H30*'Transport og energibehov'!D7*'Transport og energibehov'!L30 -> 0
C11: Fuktisolasjon (Topeka) | D11: =Beregningsfaktorer!D28 -> 0.012 | E11: =D11*Beregningsfaktorer!D13 -> 30 | F11: =(E11/1000)*'Transport og energibehov'!D36*'Transport og energibehov'!D13*'Transport og energibehov'!N36 -> 0.03735 | G11: =(E11/1000)*'Transport og energibehov'!D36*'Transport og energibehov'!D13*'Transport og energibehov'!M36 -> 0.00765 | H11: =(E11/1000)*'Transport og energibehov'!H36*'Transport og energibehov'!D13*'Transport og energibehov'!L36 -> 0
B14: Anleggsarbeid
B15: Kategori | C15: Maskintype | D15: Anleggsarbeid | H15: Kommentar
D16: Arbeidshastighet [m2/h] | E16: Mengde diesel [L/m2] | F16: Mengde bio [L/m2] | G16: Mengde el [kWh/m2]
B17: Konstruksjon | C17: Kran første 400 m2 | D17: ='Transport og energibehov'!D73 -> 1.666666667 | G17: =('Transport og energibehov'!H55/D17)*'Transport og energibehov'!L55 -> 29.16 | H17: Antatt 100 % el
C18: Kran resten av bru | D18: ='Transport og energibehov'!D74 -> 3.333333333 | G18: =('Transport og energibehov'!H55/D18)*'Transport og energibehov'!L55 -> 14.58 | H18: Antatt 100 % el
C19: Gravemaskin | D19: =('Transport og energibehov'!D70*1000)/(E5+E6+E7+E8) -> 46.875 | E19: =('Transport og energibehov'!D52/D19)*'Transport og energibehov'!N52 -> 0.384 | F19: =('Transport og energibehov'!D52/D19)*'Transport og energibehov'!M52 -> 0.04266666667 | G19: =('Transport og energibehov'!H52/D19)*'Transport og energibehov'!L52 -> 0
B20: Slitelag | C20: Veivals | D20: =('Transport og energibehov'!D67*1000)/E9 -> 750 | E20: =('Transport og energibehov'!D49/D20)*'Transport og energibehov'!N49 -> 0.0036 | F20: =('Transport og energibehov'!D49/D20)*'Transport og energibehov'!M49 -> 0.0004 | G20: =('Transport og energibehov'!H49/D20)*'Transport og energibehov'!L49 -> 0
C21: Traktor | D21: =('Transport og energibehov'!D68*1000)/E9 -> 3000 | E21: =('Transport og energibehov'!D50/D21)*'Transport og energibehov'!N50 -> 0.001383333333 | F21: =('Transport og energibehov'!D50/D21)*'Transport og energibehov'!M50 -> 0.0002833333333 | G21: =('Transport og energibehov'!H50/D21)*'Transport og energibehov'!L50 -> 0
C22: Asfaltutlegger | D22: =('Transport og energibehov'!D69*1000)/E9 -> 37.5 | E22: =('Transport og energibehov'!D51/D22)*'Transport og energibehov'!N51 -> 0.072 | F22: =('Transport og energibehov'!D51/D22)*'Transport og energibehov'!M51 -> 0.008 | G22: =('Transport og energibehov'!H51/D22)*'Transport og energibehov'!L51 -> 0
B23: Bindlag | C23: Veivals | D23: =('Transport og energibehov'!D67*1000)/E10 -> 750 | E23: =('Transport og energibehov'!D49/D23)*'Transport og energibehov'!N49 -> 0.0036 | F23: =('Transport og energibehov'!D49/D23)*'Transport og energibehov'!M49 -> 0.0004 | G23: =('Transport og energibehov'!H49/D23)*'Transport og energibehov'!L49 -> 0
C24: Traktor | D24: =('Transport og energibehov'!D68*1000)/E10 -> 3000 | E24: =('Transport og energibehov'!D50/D24)*'Transport og energibehov'!N50 -> 0.001383333333 | F24: =('Transport og energibehov'!D50/D24)*'Transport og energibehov'!M50 -> 0.0002833333333 | G24: =('Transport og energibehov'!H50/D24)*'Transport og energibehov'!L50 -> 0
C25: Asfaltutlegger | D25: =('Transport og energibehov'!D69*1000)/E10 -> 37.5 | E25: =('Transport og energibehov'!D51/D25)*'Transport og energibehov'!N51 -> 0.072 | F25: =('Transport og energibehov'!D51/D25)*'Transport og energibehov'!M51 -> 0.008 | G25: =('Transport og energibehov'!H51/D25)*'Transport og energibehov'!L51 -> 0
B26: Fuktsikring | C26: Veivals | D26: =('Transport og energibehov'!D67*1000)/E11 -> 2500 | E26: =('Transport og energibehov'!D49/D26)*'Transport og energibehov'!N49 -> 0.00108 | F26: =('Transport og energibehov'!D49/D26)*'Transport og energibehov'!M49 -> 0.00012 | G26: =('Transport og energibehov'!H49/D26)*'Transport og energibehov'!L49 -> 0
C27: Traktor | D27: =('Transport og energibehov'!D68*1000)/E11 -> 10000 | E27: =('Transport og energibehov'!D50/D27)*'Transport og energibehov'!N50 -> 0.000415 | F27: =('Transport og energibehov'!D50/D27)*'Transport og energibehov'!M50 -> 8.5e-05 | G27: =('Transport og energibehov'!H50/D27)*'Transport og energibehov'!L50 -> 0
C28: Asfaltutlegger | D28: =('Transport og energibehov'!D69*1000)/E11 -> 125 | E28: =('Transport og energibehov'!D51/D28)*'Transport og energibehov'!N51 -> 0.0216 | F28: =('Transport og energibehov'!D51/D28)*'Transport og energibehov'!M51 -> 0.0024 | G28: =('Transport og energibehov'!H51/D28)*'Transport og energibehov'!L51 -> 0

Sheet Trebru
B2: Materialer og transport
B3: Kategori | C3: Materialtype | D3: Materialmengder | F3: Transport | I3: Kommentar
D4: Volum per areal [m3/m2] | E4: Masse per areal [kg/m2] | F4: Mengde diesel [L/m2] | G4: Mengde bio [L/m2] | H4: Mengde el [kWh/m2]
B5: Konstruksjon | C5: Betong | E5: =Beregningsfaktorer!D37 -> 3440 | F5: =(E5/1000)*'Transport og energibehov'!D33*'Transport og energibehov'!D10*'Transport og energibehov'!N33 -> 4.2828 | G5: =(E5/1000)*'Transport og energibehov'!D33*'Transport og energibehov'!D10*'Transport og energibehov'!M33 -> 0.8772 | H5: =(E5/1000)*'Transport og energibehov'!H33*'Transport og energibehov'!D10*'Transport og energibehov'!L33 -> 0
C6: Armeringsstål | E6: =Beregningsfaktorer!D40 -> 150 | F6: =(E6/1000)*'Transport og energibehov'!D35*'Transport og energibehov'!D12*'Transport og energibehov'!N35 -> 5.976 | G6: =(E6/1000)*'Transport og energibehov'!D35*'Transport og energibehov'!D12*'Transport og energibehov'!M35 -> 1.224 | H6: =(E6/1000)*'Transport og energibehov'!H35*'Transport og energibehov'!D12*'Transport og energibehov'!L35 -> 0
C7: Konstruksjonsstål | E7: =Beregningsfaktorer!D43 -> 60 | F7: =(E7/1000)*'Transport og energibehov'!D34*'Transport og energibehov'!D11*'Transport og energibehov'!N34 -> 2.3904 | G7: =(E7/1000)*'Transport og energibehov'!D34*'Transport og energibehov'!D11*'Transport og energibehov'!M34 -> 0.4896 | H7: =(E7/1000)*'Transport og energibehov'!H34*'Transport og energibehov'!D11*'Transport og energibehov'!L34 -> 0
C8: Treverk | E8: =Beregningsfaktorer!D44 -> 430 | F8: =(E8/1000)*'Transport og energibehov'!D39*'Transport og energibehov'!D16*'Transport og energibehov'!N39 -> 5.3535 | G8: =(E8/1000)*'Transport og energibehov'!D39*'Transport og energibehov'!D16*'Transport og energibehov'!M39 -> 1.0965 | H8: =(E8/1000)*'Transport og energibehov'!H39*'Transport og energibehov'!D16*'Transport og energibehov'!L39 -> 0
B9: Veioverbygning | C9: Slitelag (Ska) | D9: =Beregningsfaktorer!D23 -> 0.04 | E9: =D9*Beregningsfaktorer!D7 -> 100 | F9: =(E9/1000)*'Transport og energibehov'!D30*'Transport og energibehov'!D7*'Transport og energibehov'!N30 -> 0.1245 | G9: =(E9/1000)*'Transport og energibehov'!D30*'Transport og energibehov'!D7*'Transport og energibehov'!M30 -> 0.0255 | H9: =(E9/1000)*'Transport og energibehov'!H30*'Transport og energibehov'!D7*'Transport og energibehov'!L30 -> 0
C10: Bindlag (Ska) | D10: =Beregningsfaktorer!D24 -> 0.04 | E10: =D10*Beregningsfaktorer!D7 -> 100 | F10: =(E10/1000)*'Transport og energibehov'!D30*'Transport og energibehov'!D7*'Transport og energibehov'!N30 -> 0.1245 | G10: =(E10/1000)*'Transport og energibehov'!D30*'Transport og energibehov'!D7*'Transport og energibehov'!M30 -> 0.0255 | H10: =(E10/1000)*'Transport og energibehov'!H30*'Transport og energibehov'!D7*'Transport og energibehov'!L30 -> 0
C11: Fuktisolasjon (Topeka) | D11: =Beregningsfaktorer!D28 -> 0.012 | E11: =D11*Beregningsfaktorer!D13 -> 30 | F11: =(E11/1000)*'Transport og energibehov'!D36*'Transport og energibehov'!D13*'Transport og energibehov'!N36 -> 0.03735 | G11: =(E11/1000)*'Transport og energibehov'!D36*'Transport og energibehov'!D13*'Transport og energibehov'!M36 -> 0.00765 | H11: =(E11/1000)*'Transport og energibehov'!H36*'Transport og energibehov'!D13*'Transport og energibehov'!L36 -> 0
B14: Anleggsarbeid
B15: Kategori | C15: Maskintype | D15: Anleggsarbeid | H15: Kommentar
D16: Arbeidshastighet [m2/h] | E16: Mengde diesel [L/m2] | F16: Mengde bio [L/m2] | G16: Mengde el [kWh/m2]
B17: Konstruksjon | C17: Kran første 400 m2 | D17: ='Transport og energibehov'!D73 -> 1.666666667 | G17: =('Transport og energibehov'!H55/D17)*'Transport og energibehov'!L55 -> 29.16 | H17: Antatt 100 % el
C18: Kran resten av bru | D18: ='Transport og energibehov'!D74 -> 3.333333333 | G18: =('Transport og energibehov'!H55/D18)*'Transport og energibehov'!L55 -> 14.58 | H18: Antatt 100 % el
C19: Gravemaskin | D19: =('Transport og energibehov'!D70*1000)/(E5+E6+E7+E8) -> 36.76470588 | E19: =('Transport og energibehov'!D52/D19)*'Transport og energibehov'!N52 -> 0.4896 | F19: =('Transport og energibehov'!D52/D19)*'Transport og energibehov'!M52 -> 0.0544 | G19: =('Transport og energibehov'!H52/D19)*'Transport og energibehov'!L52 -> 0
B20: Slitelag | C20: Veivals | D20: =('Transport og energibehov'!D67*1000)/E9 -> 750 | E20: =('Transport og energibehov'!D49/D20)*'Transport og energibehov'!N49 -> 0.0036 | F20: =('Transport og energibehov'!D49/D20)*'Transport og energibehov'!M49 -> 0.0004 | G20: =('Transport og energibehov'!H49/D20)*'Transport og energibehov'!L49 -> 0
C21: Traktor | D21: =('Transport og energibehov'!D68*1000)/E9 -> 3000 | E21: =('Transport og energibehov'!D50/D21)*'Transport og energibehov'!N50 -> 0.001383333333 | F21: =('Transport og energibehov'!D50/D21)*'Transport og energibehov'!M50 -> 0.0002833333333 | G21: =('Transport og energibehov'!H50/D21)*'Transport og energibehov'!L50 -> 0
C22: Asfaltutlegger | D22: =('Transport og energibehov'!D69*1000)/E9 -> 37.5 | E22: =('Transport og energibehov'!D51/D22)*'Transport og energibehov'!N51 -> 0.072 | F22: =('Transport og energibehov'!D51/D22)*'Transport og energibehov'!M51 -> 0.008 | G22: =('Transport og energibehov'!H51/D22)*'Transport og energibehov'!L51 -> 0
B23: Bindlag | C23: Veivals | D23: =('Transport og energibehov'!D67*1000)/E10 -> 750 | E23: =('Transport og energibehov'!D49/D23)*'Transport og energibehov'!N49 -> 0.0036 | F23: =('Transport og energibehov'!D49/D23)*'Transport og energibehov'!M49 -> 0.0004 | G23: =('Transport og energibehov'!H49/D23)*'Transport og energibehov'!L49 -> 0
C24: Traktor | D24: =('Transport og energibehov'!D68*1000)/E10 -> 3000 | E24: =('Transport og energibehov'!D50/D24)*'Transport og energibehov'!N50 -> 0.001383333333 | F24: =('Transport og energibehov'!D50/D24)*'Transport og energibehov'!M50 -> 0.0002833333333 | G24: =('Transport og energibehov'!H50/D24)*'Transport og energibehov'!L50 -> 0
C25: Asfaltutlegger | D25: =('Transport og energibehov'!D69*1000)/E10 -> 37.5 | E25: =('Transport og energibehov'!D51/D25)*'Transport og energibehov'!N51 -> 0.072 | F25: =('Transport og energibehov'!D51/D25)*'Transport og energibehov'!M51 -> 0.008 | G25: =('Transport og energibehov'!H51/D25)*'Transport og energibehov'!L51 -> 0
B26: Fuktsikring | C26: Veivals | D26: =('Transport og energibehov'!D67*1000)/E11 -> 2500 | E26: =('Transport og energibehov'!D49/D26)*'Transport og energibehov'!N49 -> 0.00108 | F26: =('Transport og energibehov'!D49/D26)*'Transport og energibehov'!M49 -> 0.00012 | G26: =('Transport og energibehov'!H49/D26)*'Transport og energibehov'!L49 -> 0
C27: Traktor | D27: =('Transport og energibehov'!D68*1000)/E11 -> 10000 | E27: =('Transport og energibehov'!D50/D27)*'Transport og energibehov'!N50 -> 0.000415 | F27: =('Transport og energibehov'!D50/D27)*'Transport og energibehov'!M50 -> 8.5e-05 | G27: =('Transport og energibehov'!H50/D27)*'Transport og energibehov'!L50 -> 0
C28: Asfaltutlegger | D28: =('Transport og energibehov'!D69*1000)/E11 -> 125 | E28: =('Transport og energibehov'!D51/D28)*'Transport og energibehov'!N51 -> 0.0216 | F28: =('Transport og energibehov'!D51/D28)*'Transport og energibehov'!M51 -> 0.0024 | G28: =('Transport og energibehov'!H51/D28)*'Transport og energibehov'!L51 -> 0

Sheet Kulvert
B2: Materialer og transport
B3: Kategori | C3: Materialtype | D3: Materialmengder | F3: Transport | I3: Kommentar
D4: Volum [m3/m2 grunnflate] | E4: Masse per areal [kg/m2 grunnflate] | F4: Mengde diesel [L/m2 grunnflate] | G4: Mengde bio [L/m2 grunnflate] | H4: Mengde el [kWh/m2 grunnflate]
B5: Konstruksjon | C5: Betong | D5: =IFERROR((Beregningsfaktorer!D54*2)+(2*Beregningsfaktorer!D54*Beregningsfaktorer!D55/'Prosjektbeskrivelse og inndata'!C15),0) -> 0.6336 | E5: =(D5*Beregningsfaktorer!D4) -> 1520.64 | F5: =(E5/1000)*'Transport og energibehov'!D33*'Transport og energibehov'!D10*'Transport og energibehov'!N33 -> 1.8931968 | G5: =(E5/1000)*'Transport og energibehov'!D33*'Transport og energibehov'!D10*'Transport og energibehov'!M33 -> 0.3877632 | H5: =(E5/1000)*'Transport og energibehov'!H33*'Transport og energibehov'!D10*'Transport og energibehov'!L33 -> 0
C6: Armeringsstål | E6: =E5/Beregningsfaktorer!D56 -> 116.9723077 | F6: =(E6/1000)*'Transport og energibehov'!D35*'Transport og energibehov'!D12*'Transport og energibehov'!N35 -> 4.660176738 | G6: =(E6/1000)*'Transport og energibehov'!D35*'Transport og energibehov'!D12*'Transport og energibehov'!M35 -> 0.9544940308 | H6: =(E6/1000)*'Transport og energibehov'!H35*'Transport og energibehov'!D12*'Transport og energibehov'!L35 -> 0
B8: Anleggsarbeid
B9: Kategori | C9: Maskintype | D9: Energiforbruk | H9: Kommentar
D10: Arbeidshastighet [timer/stk] | E10: Mengde diesel [L/stk] | F10: Mengde bio [L/stk] | G10: Mengde el [kWh/stk]
B11: Konstruksjon | C11: Tårnkran | D11: =Beregningsfaktorer!D57 -> 18 | E11: - | F11: - | G11: =D11*'Transport og energibehov'!H55*'Transport og energibehov'!L55 -> 874.8

Sheet Vegetasjon og arealbeslag
B2: Transport
B3: Kategori | D3: Transport | I3: Kommentar
D4: Vekt [kg/m2] | E4: Vekt [kg/m3] | F4: Mengde diesel [L/m2] | G4: Mengde bio [L/m2] | H4: Mengde el [kWh/m2]
B5: Jord | C5: Jordmasser til linja | D5: =Beregningsfaktorer!D14*Beregningsfaktorer!D119 -> 488.7463592 | F5: =(D5/1000)*'Transport og energibehov'!D26*'Transport og energibehov'!D4*'Transport og energibehov'!N26 -> 0 | G5: =(D5/1000)*'Transport og energibehov'!D26*'Transport og energibehov'!D4*'Transport og energibehov'!M26 -> 0 | H5: =(D5/1000)*'Transport og energibehov'!H26*'Transport og energibehov'!D4*'Transport og energibehov'!L26 -> 0
C6: Jordmasser til deponi | D6: =Beregningsfaktorer!D14*Beregningsfaktorer!D119 -> 488.7463592 | F6: =(D6/1000)*'Transport og energibehov'!D27*'Transport og energibehov'!D5*'Transport og energibehov'!N27 -> 0.263923034 | G6: =(D5/1000)*'Transport og energibehov'!D27*'Transport og energibehov'!D5*'Transport og energibehov'!M27 -> 0.02932478155 | H6: =(D5/1000)*'Transport og energibehov'!H27*'Transport og energibehov'!D5*'Transport og energibehov'!L27 -> 0
B8: Anleggsarbeid
B9: Kategori | C9: Energiforbruk | I9: Kommentar
C10: Volum per areal [m3/m2] | D10: Vekt [kg/m2] | E10: Anleggsarbeid [h/m2] | F10: Mengde diesel [L/m2] | G10: Mengde bio [L/m2] | H10: Mengde el [L/m2]
B11: Fjerning av vegetasjonsdekke | C11: =Beregningsfaktorer!D119 -> 0.3 | D11: =C11*Beregningsfaktorer!D14 -> 488.7463592 | E11: =((D11/1000)/'Transport og energibehov'!D70)*2 -> 0.006516618123 | F11: =E11*'Transport og energibehov'!D52*'Transport og energibehov'!N52 -> 0.1172991262 | G11: =E11*'Transport og energibehov'!D52*'Transport og energibehov'!M52 -> 0.01303323625 | H11: =E11*'Transport og energibehov'!H52*'Transport og energibehov'!L52 -> 0 | I11: For Anleggsarbeid [time/m2]: ganger med to fordi massene også skal losses et sted.
B13: Arealbruksendringer
B14: Vegetasjonstype
C15: Mengde [m2]
B16: Fjernet skog - lav bonitet | C16: ='Prosjektbeskrivelse og inndata'!C23*'Prosjektbeskrivelse og inndata'!C26 -> 0
B17: Fjernet skog - middels bonitet | C17: ='Prosjektbeskrivelse og inndata'!C23*'Prosjektbeskrivelse og inndata'!C27 -> 0
B18: Fjernet skog - høy bonitet | C18: ='Prosjektbeskrivelse og inndata'!C23*'Prosjektbeskrivelse og inndata'!C28 -> 0
B19: Myr | C19: ='Prosjektbeskrivelse og inndata'!C23*'Prosjektbeskrivelse og inndata'!C29 -> 0
B20: Jordbruksareal | C20: ='Prosjektbeskrivelse og inndata'!C23*'Prosjektbeskrivelse og inndata'!C30 -> 0
B21: Utbygd areal | C21: ='Prosjektbeskrivelse og inndata'!C23*'Prosjektbeskrivelse og inndata'!C31 -> 0

Sheet Sprengning og pukk
B2: Materialer og transport
B3: Kategori | D3: Materialer | E3: Transport stein | I3: Kommentar
D4: Vekt tovex [kg/fm3] | E4: Vekt [kg/fm3] | F4: Mengde diesel [L/fm3] | G4: Mengde bio [L/fm3] | H4: Mengde el [kWh/fm3]
B5: Sprengning i fjell | C5: Sprengstoff | D5: =Beregningsfaktorer!D49 -> 2.2 | E5: =Beregningsfaktorer!D16*D5 -> 5940
B6: Sprengning i dagen | C6: Sprengstoff | D6: =Beregningsfaktorer!D48 -> 1 | E6: =Beregningsfaktorer!D16*D6 -> 2700
C7: Sprengstein (intern) til linja | E7: =Beregningsfaktorer!D16 -> 2700 | F7: =(E7/1000)*'Transport og energibehov'!D26*'Transport og energibehov'!D4*'Transport og energibehov'!N26 -> 0 | G7: =(E7/1000)*'Transport og energibehov'!D26*'Transport og energibehov'!D4*'Transport og energibehov'!M26 -> 0 | H7: =(E7/1000)*'Transport og energibehov'!H26*'Transport og energibehov'!D4*'Transport og energibehov'!L26 -> 0
C8: Sprengstein (intern) til deponi | E8: =Beregningsfaktorer!D16 -> 2700 | F8: =(E8/1000)*'Transport og energibehov'!D27*'Transport og energibehov'!D5*'Transport og energibehov'!N27 -> 1.458 | G8: =(E8/1000)*'Transport og energibehov'!D27*'Transport og energibehov'!D5*'Transport og energibehov'!M27 -> 0.162 | H8: =(E8/1000)*'Transport og energibehov'!H27*'Transport og energibehov'!D5*'Transport og energibehov'!L27 -> 0
C9: Sprengstein (intern) til linja via pukkverk | E9: =Beregningsfaktorer!D16 -> 2700 | F9: =(E9/1000)*'Transport og energibehov'!D28*'Transport og energibehov'!D6*'Transport og energibehov'!N28*2 -> 2.6892 | G9: =(E9/1000)*'Transport og energibehov'!D28*'Transport og energibehov'!D6*'Transport og energibehov'!M28*2 -> 0.5508 | H9: =(E9/1000)*'Transport og energibehov'!H28*'Transport og energibehov'!D6*'Transport og energibehov'!L28*2 -> 0
E10: Vekt [kg/m3] | F10: Mengde diesel [L/m3] | G10: Mengde bio [L/m3] | H10: Mengde el [kWh/m3]
B11: Ekstern pukk | C11: Pukk grovknust og finknust | E11: =Beregningsfaktorer!D9*(1-Beregningsfaktorer!D51)+Beregningsfaktorer!D10*Beregningsfaktorer!D51 -> 1550 | F11: =(E11/1000)*'Transport og energibehov'!D32*'Transport og energibehov'!D9*'Transport og energibehov'!N32 -> 1.92975 | G11: =(E11/1000)*'Transport og energibehov'!D32*'Transport og energibehov'!D9*'Transport og energibehov'!M32 -> 0.39525 | H11: =(E11/1000)*'Transport og energibehov'!H32*'Transport og energibehov'!D9*'Transport og energibehov'!L32 -> 0
B13: Anleggsarbeid
B14: Kategori | C14: Maskintype | D14: Anleggsarbeid | H14: Kommentar
D15: Vekt [kg/fm3] | E15: Mengde diesel [L/fm3] | F15: Mengde bio [L/fm3] | G15: Mengde el [kWh/fm3]
B16: Lasting av sprengstein fra linja | C16: Gravemaskin | D16: =Beregningsfaktorer!D16 -> 2700 | E16: =((D16/1000)/'Transport og energibehov'!D70)*'Transport og energibehov'!D52*'Transport og energibehov'!N52 -> 0.324 | F16: =((D16/1000)/'Transport og energibehov'!D70)*'Transport og energibehov'!D52*'Transport og energibehov'!M52 -> 0.036 | G16: =((D16/1000)/'Transport og energibehov'!D70)*'Transport og energibehov'!H52*'Transport og energibehov'!L52 -> 0
B17: Lossing/utlegging av sprengstein fra linja | C17: Gravemaskin | D17: =Beregningsfaktorer!D16 -> 2700 | E17: =((D17/1000)/'Transport og energibehov'!D70)*'Transport og energibehov'!D52*'Transport og energibehov'!N52 -> 0.324 | F17: =((D17/1000)/'Transport og energibehov'!D70)*'Transport og energibehov'!D52*'Transport og energibehov'!M52 -> 0.036 | G17: =((D17/1000)/'Transport og energibehov'!D70)*'Transport og energibehov'!H52*'Transport og energibehov'!L52 -> 0 | H17: Antatt likt som lasting
B18: Sprengstein fra linja | C18: Grovknuser | D18: =Beregningsfaktorer!D16 -> 2700 | E18: =((D18/1000)/'Transport og energibehov'!D71)*'Transport og energibehov'!D53*'Transport og energibehov'!N53 -> 0.486 | F18: =((D18/1000)/'Transport og energibehov'!D71)*'Transport og energibehov'!D53*'Transport og energibehov'!M53 -> 0.054 | G18: =((D18/1000)/'Transport og energibehov'!D71)*'Transport og energibehov'!H53*'Transport og energibehov'!L53 -> 0
B19: Sprengstein fra linja | C19: Finknuser | D19: =Beregningsfaktorer!D16 -> 2700 | E19: =((D19/1000)/'Transport og energibehov'!D72)*'Transport og energibehov'!D54*'Transport og energibehov'!N54 -> 0.243 | F19: =((D19/1000)/'Transport og energibehov'!D72)*'Transport og energibehov'!D54*'Transport og energibehov'!M54 -> 0.027 | G19: =((D18/1000)/'Transport og energibehov'!D72)*'Transport og energibehov'!H54*'Transport og energibehov'!L54 -> 0
D20: Vekt [kg/m3] | E20: Mengde diesel [L/m3] | F20: Mengde bio [L/m3] | G20: Mengde el [kWh/m3]
B21: Lossing/utlegging av ekstern pukk | C21: Gravemaskin | D21: =Beregningsfaktorer!D9*(1-Beregningsfaktorer!D51)+Beregningsfaktorer!D10*Beregningsfaktorer!D51 -> 1550 | E21: =((D21/1000)/'Transport og energibehov'!D70)*'Transport og energibehov'!D52*'Transport og energibehov'!N52 -> 0.186 | F21: =((D21/1000)/'Transport og energibehov'!D70)*'Transport og energibehov'!D52*'Transport og energibehov'!M52 -> 0.02066666667 | G21: =((D21/1000)/'Transport og energibehov'!D70)*'Transport og energibehov'!H52*'Transport og energibehov'!L52 -> 0

Sheet Tillegg vei
B2: Materialer og transport
B3: Kategori | C3: Materialtype | D3: Materialmengder | E3: Transport | H3: Kommentar
D4: Masse per veistrekning [kg/m] | E4: Mengde diesel [L/m] | F4: Mengde bio [L/m] | G4: Mengde el [kWh/m]
B5: Lyktestolper hovedstrekning | C5: Stål | D5: =Beregningsfaktorer!D103*Beregningsfaktorer!D104/1000 -> 5.066666667 | E5: =(D5/1000)*'Transport og energibehov'!D34*'Transport og energibehov'!D11*'Transport og energibehov'!N34 -> 0.201856 | F5: =(D5/1000)*'Transport og energibehov'!D34*'Transport og energibehov'!D11*'Transport og energibehov'!M34 -> 0.041344 | G5: =(D5/1000)*'Transport og energibehov'!H33*'Transport og energibehov'!D11*'Transport og energibehov'!L34 -> 0 | H5: Bare for hovedvei i dagen og bru. Per belysningsrekke.
B6: Lyktestolper sidevei | C6: Stål | D6: =Beregningsfaktorer!D103*Beregningsfaktorer!D105/1000 -> 0 | E6: =(D6/1000)*'Transport og energibehov'!D34*'Transport og energibehov'!D11*'Transport og energibehov'!N34 -> 0 | F6: =(D6/1000)*'Transport og energibehov'!D34*'Transport og energibehov'!D11*'Transport og energibehov'!M34 -> 0 | G6: =(D6/1000)*'Transport og energibehov'!H33*'Transport og energibehov'!D11*'Transport og energibehov'!L34 -> 0 | H6: Bare for sidevei i dagen. Per belysningsrekke.
B7: Autovern/rekkverk | C7: Stål | D7: =Beregningsfaktorer!D106 -> 16.86 | E7: =(D7/1000)*'Transport og energibehov'!D34*'Transport og energibehov'!D11*'Transport og energibehov'!N34 -> 0.6717024 | F7: =(D7/1000)*'Transport og energibehov'!D34*'Transport og energibehov'!D11*'Transport og energibehov'!M34 -> 0.1375776 | G7: =(D7/1000)*'Transport og energibehov'!H33*'Transport og energibehov'!D11*'Transport og energibehov'!L34 -> 0 | H7: Per autovern
D8: Masse per mur/skjerm [kg/m] | E8: Mengde diesel [L/m] | F8: Mengde bio [L/m] | G8: Mengde el [kWh/m]
B9: Støyskjerm | C9: Tre | D9: =Beregningsfaktorer!D98*Beregningsfaktorer!D99*Beregningsfaktorer!D18 -> 117.5 | E9: =(D9/1000)*'Transport og energibehov'!D39*'Transport og energibehov'!D16*'Transport og energibehov'!N39 -> 1.462875 | F9: =(D9/1000)*'Transport og energibehov'!D39*'Transport og energibehov'!D16*'Transport og energibehov'!M39 -> 0.299625 | G9: =(D9/1000)*'Transport og energibehov'!H39*'Transport og energibehov'!D16*'Transport og energibehov'!L39 -> 0
C10: Stål | D10: =Beregningsfaktorer!D100 -> 23.5 | E10: =(D10/1000)*'Transport og energibehov'!D34*'Transport og energibehov'!D11*'Transport og energibehov'!N34 -> 0.93624 | F10: =(D10/1000)*'Transport og energibehov'!D34*'Transport og energibehov'!D11*'Transport og energibehov'!M34 -> 0.19176 | G10: =(D10/1000)*'Transport og energibehov'!H34*'Transport og energibehov'!D11*'Transport og energibehov'!L34 -> 0
C11: Betong | D11: =Beregningsfaktorer!D101 -> 84 | E11: =(D11/1000)*'Transport og energibehov'!D33*'Transport og energibehov'!D10*'Transport og energibehov'!N33 -> 0.10458 | F11: =(D11/1000)*'Transport og energibehov'!D33*'Transport og energibehov'!D10*'Transport og energibehov'!M33 -> 0.02142 | G11: =(D11/1000)*'Transport og energibehov'!H33*'Transport og energibehov'!D10*'Transport og energibehov'!L33 -> 0
B12: Mur | C12: Betong | D12: =Beregningsfaktorer!D94*Beregningsfaktorer!D96*Beregningsfaktorer!D4*(1-Beregningsfaktorer!D97) -> 3000 | E12: =(D12/1000)*'Transport og energibehov'!D33*'Transport og energibehov'!D10*'Transport og energibehov'!N33 -> 3.735 | F12: =(D12/1000)*'Transport og energibehov'!D33*'Transport og energibehov'!D10*'Transport og energibehov'!M33 -> 0.765 | G12: =(D12/1000)*'Transport og energibehov'!H33*'Transport og energibehov'!D10*'Transport og energibehov'!L33 -> 0 | H12: Basert på andel betongmur per meter mur
C13: Naturstein | D13: =Beregningsfaktorer!D95*Beregningsfaktorer!D96*Beregningsfaktorer!D19*Beregningsfaktorer!D97 -> 0 | E13: =(D13/1000)*'Transport og energibehov'!D40*'Transport og energibehov'!D17*'Transport og energibehov'!N40 -> 0 | F13: =(D13/1000)*'Transport og energibehov'!D40*'Transport og energibehov'!D17*'Transport og energibehov'!M40 -> 0 | G13: =(D13/1000)*'Transport og energibehov'!H40*'Transport og energibehov'!D17*'Transport og energibehov'!L40 -> 0 | H13: Basert på andel natursteinsmur per meter mur
B15: Anleggsarbeid
B16: Kategori | C16: Maskintype | D16: Energiforbruk | G16: Kommentar
D17: Mengde diesel [L/m] | E17: Mengde bio [L/m] | F17: Mengde el [kWh/m]
B18: Montering av autovern/rekkverk | C18: Pelerigg/lastebil | D18: ='Transport og energibehov'!D58*'Transport og energibehov'!N58 -> 0.36 | E18: ='Transport og energibehov'!D58*'Transport og energibehov'!M58 -> 0.04 | F18: ='Transport og energibehov'!H58*'Transport og energibehov'!L58 -> 0 | G18: I beregning av klimagassutslipp antas det fire rekkverk på firefeltsvei og to rekkverk på tofeltsvei
B19: Veimerking | C19: Formerkebil (pickup) | D19: ='Transport og energibehov'!D56*'Transport og energibehov'!N56 -> 0.00531 | E19: ='Transport og energibehov'!D56*'Transport og energibehov'!M56 -> 0.00059 | F19: ='Transport og energibehov'!H56*'Transport og energibehov'!L56 -> 0
B20: Etablering av grøft | C20: Gravemaskin | D20: ='Transport og energibehov'!D57*'Transport og energibehov'!N57 -> 36 | E20: ='Transport og energibehov'!D57*'Transport og energibehov'!M57 -> 4 | F20: ='Transport og energibehov'!H57*'Transport og energibehov'!L57 -> 0
B21: Montering av støyskjerm | C21: Spesialmaskin | D21: ='Transport og energibehov'!D63*'Transport og energibehov'!N63 -> 0.45 | E21: ='Transport og energibehov'!D63*'Transport og energibehov'!M63 -> 0.05 | F21: ='Transport og energibehov'!H63*'Transport og energibehov'!L63 -> 0
B22: Montering av mur | C22: Gravemaskin | D22: ='Transport og energibehov'!D52/('Transport og energibehov'!D79*(Beregningsfaktorer!D4/1000*(1-Beregningsfaktorer!D97)+Beregningsfaktorer!D19/1000*Beregningsfaktorer!D97))*(D12+D13)/1000*'Transport og energibehov'!N52 -> 9.375 | E22: ='Transport og energibehov'!D52/('Transport og energibehov'!D79*(Beregningsfaktorer!D4/1000*(1-Beregningsfaktorer!D97)+Beregningsfaktorer!D19/1000*Beregningsfaktorer!D97))*(D12+D13)/1000*'Transport og energibehov'!M52 -> 1.041666667 | F22: ='Transport og energibehov'!H52/('Transport og energibehov'!D79*(Beregningsfaktorer!D4/1000*(1-Beregningsfaktorer!D97)+Beregningsfaktorer!D19/1000*Beregningsfaktorer!D97))*(D12+D13)/1000*'Transport og energibehov'!L52 -> 0 | G22: Antar gravemaskin

Sheet Drift og vedlikehold
B1: Drift og vedlikehold
B2: Bakgrunnsdata
B3: ÅDT | C3: ='Prosjektbeskrivelse og inndata'!C17 -> 0
B5: Materialer, strømforbruk og transport
B6: Hovedkategori | C6: Underkategori | D6: Type innsatsfaktor | E6: Materialmengder | F6: Transport/energiforbruk | J6: Kommentar
E7: Masse per veistrekning [kg/m] | F7: Mengde diesel [L/m] | G7: Mengde bio [L/m] | H7: Mengde el [kWh/m] | I7: Mengde el [kWh/(m*m)] | J7: Alle mengder i denne fanen er oppgitt per år. For vedlikehold som utføres med utskiftningsintervaller gjelder verdiene for de årene der det skjer vedlikehold. Anleggsvei er utelatt fra alle beregninger knyttet til drift.
B8: Kontinuerlig drift | C8: Belysning hovedvei i dagen | D8: Elektrisitet | H8: =Beregningsfaktorer!D81*Beregningsfaktorer!D104/1000 -> 16 | J8: Blir ganget med antall belysningsrekker og total lengde hovedvei i dagen og bru for å finne samlet forbruk for strekning.
C9: Belysning sidevei i dagen | D9: Elektrisitet | H9: =Beregningsfaktorer!D81*Beregningsfaktorer!D105/1000 -> 0 | J9: Blir ganget med antall belysningsrekker og total lengde sidevei i dagen for å finne samlet forbruk for strekning.
C10: Belysning tunnel | D10: Elektrisitet | H10: =Beregningsfaktorer!D82 -> 34 | J10: Blir ganget med antall løp og tunnellengde for å finne forbruk for hver tunnel.
C11: Pumpedrift enkeltløpstunnel | D11: Elektrisitet | H11: =Beregningsfaktorer!D88*Beregningsfaktorer!D66+Beregningsfaktorer!D87*(1-Beregningsfaktorer!D66) -> 0 | J11: Blir ganget med total lengde enkeltløpstunnel for å finne samlet forbruk for strekning.
C12: Pumpedrift dobbeltløpstunnel | D12: Elektrisitet | H12: =Beregningsfaktorer!D88*2*Beregningsfaktorer!D67+Beregningsfaktorer!D87*2*(1-Beregningsfaktorer!D67) -> 0 | J12: Blir ganget med total lengde dobbeltløpstunnel for å finne samlet forbruk for strekning.
C13: Viftedrift enkeltløpstunnel | D13: Elektrisitet | H13: =Beregningsfaktorer!D66*Beregningsfaktorer!D84/1000*'Drift og vedlikehold'!C3+(1-Beregningsfaktorer!D66)*Beregningsfaktorer!D83/1000*'Drift og vedlikehold'!C3 -> 0 | J13: Blir ganget med total lengde enkelttløpstunnel for å finne samlet forbruk for strekningen. Formel fra Metoderapport s. 46
C14: Viftedrift dobbeltløpstunnel | D14: Elektrisitet | H14: =Beregningsfaktorer!D67*Beregningsfaktorer!D86/1000*'Drift og vedlikehold'!C3+(1-Beregningsfaktorer!D67)*Beregningsfaktorer!D85/1000*'Drift og vedlikehold'!C3 -> 0 | J14: Blir ganget med total lengde dobbeltløpstunnel for å finne samlet forbruk for strekningen. Formel fra Metoderapport s. 46
B15: Sesongdrift | C15: Grøfterensk | D15: Jordmasser/vegetasjon | E15: =Beregningsfaktorer!D17*Beregningsfaktorer!D92 -> 186.2 | F15: =E15/1000*'Transport og energibehov'!D5*'Transport og energibehov'!D38*'Transport og energibehov'!N38 -> 0.0927276 | G15: =E15/1000*'Transport og energibehov'!D5*'Transport og energibehov'!D38*'Transport og energibehov'!M38 -> 0.0189924 | H15: =E15/1000*'Transport og energibehov'!D5*'Transport og energibehov'!H38*'Transport og energibehov'!L38 -> 0 | J15: Driftsintervall med standardverdi 3 år (kan erstattes med prosjektspesifikk verdi i beregningsfaktorfane). Blir ganget med antall grøfter og total strekningslengde for å finne samlet forbruk for strekningen.
C16: Salt | D16: Salt | E16: =Beregningsfaktorer!D89*1000/1000 -> 10.5 | F16: =E16/1000*'Transport og energibehov'!D15*'Transport og energibehov'!D38*'Transport og energibehov'!N38 -> 0.130725 | G16: =E16/1000*'Transport og energibehov'!D15*'Transport og energibehov'!D38*'Transport og energibehov'!M38 -> 0.026775 | H16: =E16/1000*'Transport og energibehov'!D15*'Transport og energibehov'!H38*'Transport og energibehov'!L38 -> 0 | J16: Blir ganget med total strekningslengde for å finne samlet forbruk for strekningen.
B17: Vedlikehold | C17: Lyktestolper hovedvei og bru utskiftning | D17: Stål | E17: =Beregningsfaktorer!D103*Beregningsfaktorer!D104/1000 -> 5.066666667 | F17: =(E17/1000)*'Transport og energibehov'!D34*'Transport og energibehov'!D11*'Transport og energibehov'!N34 -> 0.201856 | G17: =(E17/1000)*'Transport og energibehov'!D34*'Transport og energibehov'!D11*'Transport og energibehov'!M34 -> 0.041344 | H17: =(E17/1000)*'Transport og energibehov'!H33*'Transport og energibehov'!D11*'Transport og energibehov'!L34 -> 0 | J17: Utskiftningintervall gitt av levetid med standardverdi lik 30 år (kan erstattes med prosjektspesifikk verdi i beregningsfaktorfanen). Blir ganget med antall belysningsrekker og total lengde vei i dagen og bru for å finne samlet forbruk for strekningen.
C18: Lyktestolper sidevei utskiftning | D18: Stål | E18: =Beregningsfaktorer!D103*Beregningsfaktorer!D105/1000 -> 0 | F18: =(E18/1000)*'Transport og energibehov'!D34*'Transport og energibehov'!D11*'Transport og energibehov'!N34 -> 0 | G18: =(E18/1000)*'Transport og energibehov'!D34*'Transport og energibehov'!D11*'Transport og energibehov'!M34 -> 0 | H18: =(E18/1000)*'Transport og energibehov'!H33*'Transport og energibehov'!D11*'Transport og energibehov'!L34 -> 0 | J18: Utskiftningintervall gitt av levetid med standardverdi lik 30 år (kan erstattes med prosjektspesifikk verdi i beregningsfaktorfanen). Blir ganget med antall belysningsrekker og total lengde sidevei i for å finne samlet forbruk for strekningen.
C19: Autovern/rekkverk utskiftning | D19: Stål | E19: =Beregningsfaktorer!D106 -> 16.86 | F19: =(E19/1000)*'Transport og energibehov'!D34*'Transport og energibehov'!D11*'Transport og energibehov'!N34 -> 0.6717024 | G19: =(E19/1000)*'Transport og energibehov'!D34*'Transport og energibehov'!D11*'Transport og energibehov'!M34 -> 0.1375776 | H19: =(E19/1000)*'Transport og energibehov'!H33*'Transport og energibehov'!D11*'Transport og energibehov'!L34 -> 0 | J19: Utskiftningintervall gitt av levetid med standardverdi lik 30 år (kan erstattes med prosjektspesifikk verdi i beregningsfaktorfanen). Blir ganget med antall rekkverk og total strekningslengde for å finne samlet forbruk for strekningen.
B21: Anleggsarbeid
B22: Hovedkategori | C22: Kategori | D22: Maskintype | E22: Energiforbruk | H22: Kommentar
E23: Mengde diesel [L/m] | F23: Mengde bio [L/m] | G23: Mengde el [kWh/m] | H23: Alle mengder i denne fanen er oppgitt per år. For vedlikehold som utføres med utskiftningsintervaller gjelder verdiene for de årene der det skjer vedlikehold. Anleggsvei er utelatt fra alle beregninger knyttet til drift.
B24: Sesongdrift | C24: Kantklipp | D24: Hjullaster/traktor | E24: ='Transport og energibehov'!D59/'Transport og energibehov'!D78*'Transport og energibehov'!N59 -> 0.00083 | F24: ='Transport og energibehov'!D59/'Transport og energibehov'!D78*'Transport og energibehov'!M59 -> 0.00017 | G24: ='Transport og energibehov'!H59/'Transport og energibehov'!D78*'Transport og energibehov'!L59 -> 0 | H24: Blir ganget med total lengde vei i dagen og antall grøfter for å finne samlet forbruk for strekningen.
C25: Grøfterensk | D25: Gravemaskin | E25: ='Transport og energibehov'!D52/'Transport og energibehov'!D76*'Transport og energibehov'!N52 -> 0.06 | F25: ='Transport og energibehov'!D52/'Transport og energibehov'!D76*'Transport og energibehov'!M52 -> 0.006666666667 | G25: ='Transport og energibehov'!H52/'Transport og energibehov'!D76*'Transport og energibehov'!L52 -> 0 | H25: Driftsintervall med standardverdi 3 år (kan erstattes med prosjektspesifikk verdi i beregningsfaktorfane). Blir ganget med antall grøfter og total strekningslengde for å finne samlet forbruk for strekningen.
C26: Feiing | D26: Hjullaster | E26: ='Transport og energibehov'!D60/'Transport og energibehov'!D77*'Transport og energibehov'!N60 -> 0.0031125 | F26: ='Transport og energibehov'!D60/'Transport og energibehov'!D77*'Transport og energibehov'!M60 -> 0.0006375 | G26: ='Transport og energibehov'!H60/'Transport og energibehov'!D77*'Transport og energibehov'!L60 -> 0 | H26: Blir ganget med strekningslengde og antall felt for å finne samlet forbruk for hver del av strekningen.
C27: Strøing av salt | D27: Saltbil (lastebil) | E27: ='Transport og energibehov'!D61/1000*Beregningsfaktorer!D91*'Transport og energibehov'!N61 -> 0.05312 | F27: ='Transport og energibehov'!D61/1000*Beregningsfaktorer!D91*'Transport og energibehov'!M61 -> 0.01088 | G27: ='Transport og energibehov'!H61/1000*Beregningsfaktorer!D91*'Transport og energibehov'!L61 -> 0 | H27: Blir ganget med total lengde vei i dagen og bru og halvparten av antall felt for å finne samlet forbruk for hver del av strekningen (antar at to og to felt saltes).
C28: Brøyting | D28: Brøytebil | E28: ='Transport og energibehov'!D62/1000*Beregningsfaktorer!D90*'Transport og energibehov'!N62 -> 0.38496064 | F28: ='Transport og energibehov'!D62/1000*Beregningsfaktorer!D90*'Transport og energibehov'!M62 -> 0.07884736 | G28: ='Transport og energibehov'!H62/1000*Beregningsfaktorer!D90*'Transport og energibehov'!L62 -> 0 | H28: Blir ganget med total lengde vei i dagen og bru for å finne samlet forbruk for hver del av strekningen.
B29: Vedlikehold | C29: Utskiftning av autovern/rekkverk | D29: Pelerigg/lastebil | E29: ='Transport og energibehov'!D58*'Transport og energibehov'!N58 -> 0.36 | F29: ='Transport og energibehov'!D58*'Transport og energibehov'!M58 -> 0.04 | G29: ='Transport og energibehov'!H58*'Transport og energibehov'!L58 -> 0 | H29: Utskiftningintervall gitt av levetid med standardverdi lik 30 år (kan erstattes med prosjektspesifikk verdi i beregningsfaktorfanen). Blir ganget med antall rekkverk og total strekningslengde for å finne samlet forbruk for strekningen.

Sheet Reasfaltering
B1: Reasfaltering
B2: Bakgrunnsdata
B3: Andel som reasfalteres | C3: =Beregningsfaktorer!D80 -> 0.65
B5: Materialer og transport
B6: Kategori | C6: Materialmengder | E6: Transport | H6: Kommentar
C7: Volum/areal [m3/m2] | D7: Masse per areal [kg/m2] | E7: Mengde diesel [L/m2] | F7: Mengde bio [L/m2] | G7: Mengde el [kWh/m2]
B8: Slitelag (Ska) | C8: =Beregningsfaktorer!D23 -> 0.04 | D8: =C8*Beregningsfaktorer!D6*C3 -> 65 | E8: =(D8/1000)*'Transport og energibehov'!D30*'Transport og energibehov'!D7*'Transport og energibehov'!N30 -> 0.080925 | F8: =(D8/1000)*'Transport og energibehov'!D30*'Transport og energibehov'!D7*'Transport og energibehov'!M30 -> 0.016575 | G8: =(D8/1000)*'Transport og energibehov'!H30*'Transport og energibehov'!D7*'Transport og energibehov'!L30 -> 0
B9: Slitelag (Agb) | C9: =Beregningsfaktorer!D23 -> 0.04 | D9: =C9*Beregningsfaktorer!D7*C3 -> 65 | E9: =(D9/1000)*'Transport og energibehov'!D30*'Transport og energibehov'!D7*'Transport og energibehov'!N30 -> 0.080925 | F9: =(D9/1000)*'Transport og energibehov'!D30*'Transport og energibehov'!D7*'Transport og energibehov'!M30 -> 0.016575 | G9: =(D9/1000)*'Transport og energibehov'!H30*'Transport og energibehov'!D7*'Transport og energibehov'!L30 -> 0
B11: Anleggsarbeid
B12: Kategori | C12: Maskintype | D12: Anleggsarbeid | H12: Kommentar
D13: Arbeidshastighet [m2/h] | E13: Mengde diesel [L/m2] | F13: Mengde bio [L/m2] | G13: Mengde el [kWh/m2]
B14: Fjerning | C14: Gravemaskin | D14: =('Transport og energibehov'!D70*1000)/D9 -> 2307.692308 | E14: =('Transport og energibehov'!D52/D14)*'Transport og energibehov'!N52 -> 0.0078 | F14: =('Transport og energibehov'!D52/D14)*'Transport og energibehov'!M52 -> 0.0008666666667 | G14: =('Transport og energibehov'!H52/D14)*'Transport og energibehov'!L52 -> 0
B15: Asfaltering | C15: Veivals | D15: =('Transport og energibehov'!D67*1000)/D9 -> 1153.846154 | E15: =('Transport og energibehov'!D49/D15)*'Transport og energibehov'!N49 -> 0.00234 | F15: =('Transport og energibehov'!D49/D15)*'Transport og energibehov'!M49 -> 0.00026 | G15: =('Transport og energibehov'!H49/D15)*'Transport og energibehov'!L49 -> 0
C16: Traktor | D16: =('Transport og energibehov'!D68*1000)/D9 -> 4615.384615 | E16: =('Transport og energibehov'!D50/D16)*'Transport og energibehov'!N50 -> 0.0008991666667 | F16: =('Transport og energibehov'!D50/D16)*'Transport og energibehov'!M50 -> 0.0001841666667 | G16: =('Transport og energibehov'!H50/D16)*'Transport og energibehov'!L50 -> 0
C17: Asfaltutlegger | D17: =('Transport og energibehov'!D69*1000)/D9 -> 57.69230769 | E17: =('Transport og energibehov'!D51/D17)*'Transport og energibehov'!N51 -> 0.0468 | F17: =('Transport og energibehov'!D51/D17)*'Transport og energibehov'!M51 -> 0.0052 | G17: =('Transport og energibehov'!H51/D17)*'Transport og energibehov'!L51 -> 0

Sheet Beregningsfaktorer arbeidsfane (hidden)
A1: OK? | B1: Faktor | C1: Gammel verdi | D1: Enhet | E1: Fane | F1: Bruksområde | G1: Kategori | H1: Dokumentasjon gammel verdi | I1: VegLCA | J1: Dokumentasjon VegLCA | K1: Kommentar | L1: Vurdering | M1: Foreslått ny verdi | N1: Enhet | O1: Dokumentasjon verdi i oppdatert verktøy | P1: Evt. kommentar ny verdi i verktøy | Q1: Evt. lenker kilder
B2: Massetettheter
A3: OK | B3: Betong massetetthet | C3: 2400 | D3: kg/m3 | E3: Tunnel (begge) | F3: Beregning av dieselforbruk transport m.m. | G3: Massetetthet | H3: Ingen | I3: 2400 | J3: Norsk betongforening Publikasjon 37: Lavkarbonbetong (2015) | K3: Samme i VegLCA, god dokumentasjon | L3: Beholde | M3: =IF(L3="Beholde",C3,IF(L3="Fjerne","-","")) -> 2400 | N3: =IF(L3="Beholde",D3,IF(L3="Fjerne","-",IF(OR(L3="Oppdatere",L3="Legge til",L3="Bake inn i annen faktor"),D3,""))) -> kg/m3 | O3: Norsk betongforening Publikasjon 37: Lavkarbonbetong (2015)
A4: OK | B4: Armeringsstål massetetthet | C4: 7800 | D4: kg/m3 | E4: Tunnel (begge) | F4: Brukes ikke | G4: Massetetthet | H4: Ingen | I4: 7400 | J4: Densities of solids, The engineering toolbox (men denne oppgir 7850?) | K4: 7850 i metoderapport og på engineering toolbox, foreslår å bruke det. VegLCA bør vurdere oppdatering. | L4: Oppdatere | M4: 7850 | N4: =IF(L4="Beholde",D4,IF(L4="Fjerne","-",IF(OR(L4="Oppdatere",L4="Legge til",L4="Bake inn i annen faktor"),D4,""))) -> kg/m3 | O4: Metoderapport s. 8, Engineering Toolbox, https://www.engineeringtoolbox.com/metal-alloys-densities-d_50.html
A5: OK | B5: Sikringsbolter massetetthet | C5: 7800 | D5: kg/m3 | E5: Tunnel (begge) | F5: Brukes ikke | G5: Massetetthet | H5: Ingen | I5: 7400 | J5: Densities of solids, The engineering toolbox (men denne oppgir 7850?) | K5: Samme som armeringsstål - bare ha én for stål. 7850 i metoderapport og på engineering toolbox, foreslår å bruke det. VegLCA bør vurdere oppdatering. | L5: Fjerne | M5: =IF(L5="Beholde",C5,IF(L5="Fjerne","-","")) -> - | N5: - | O5: =IF(OR(L5="Fjerne",L5="Bake inn i annen faktor"),"-","") -> -
A6: OK | B6: Asfaltbetong massetetthet | C6: 2500 | D6: kg/m3 | E6: Tunnel (begge) | F6: Beregning av dieselforbruk transport m.m. | G6: Massetetthet | H6: Ingen | I6: 2500 | J6: Klimamodul EFFEKT 6.74 | K6: Til slitelag, bindlag og skulder. Anbefalt verdi etter samkjøring. Står i metoderapport s. 34. | L6: Beholde | M6: 2500 | N6: kg/m3 | O6: Metoderapport s. 34
A7: OK | B7: Asfaltgrus massetetthet | C7: 2400 | D7: kg/m3 | E7: Tunnel (begge) | F7: Beregning av dieselforbruk transport m.m. for bærelag | G7: Massetetthet | H7: Metoderapport s. 32 | I7: 2400 | J7: Klimamodul EFFEKT 6.74 | K7: Til bærelag. Verdi i metoderapport er for AP, mens Ag har 2,65. Beholder 2400 for å sørge for høyest mulig grad av samsvar | L7: Beholde | M7: 2400 | N7: kg/m3 | O7: Klimamodul EFFEKT 6.74
A8: OK | B8: Pukk/grus frostsikring massetetthet | C8: 1800 | D8: kg/m3 | F8: Beregning av dieselforbruk transport m.m. | G8: Massetetthet | H8: Ingen | I8: 1500 | J8: Forsterkningslag i kult fra metoderapport s. 32 | K8: VegLCA er ikke oppdatert etter anbefalt verdi i samkjøringsprosjekt | L8: Oppdatere | M8: 1550 | N8: kg/m3 | O8: Anbefalt verdi i samkjøringsprosjekt, snitt av minimums- og maksimumsverdi (1,4-1,7) i EPDer
A9: OK | B9: Pukk/grus forsterkningslag massetetthet | C9: 1500 | D9: kg/m3 | E9: Tunnel (begge) | F9: Beregning av dieselforbruk transport m.m. | G9: Massetetthet | H9: Forsterkningslag i kult fra metoderapport s. 32 | I9: 1500 | J9: Forsterkningslag i kult fra metoderapport s. 32 | K9: VegLCA er ikke oppdatert etter anbefalt verdi i samkjøringsprosjekt | L9: Oppdatere | M9: 1550 | N9: kg/m3 | O9: Anbefalt verdi i samkjøringsprosjekt, snitt av minimums- og maksimumsverdi (1,4-1,7) i EPDer | Q9: https://www.epd-norge.no/getfile.php/139362-1537176670/EPDer/Byggevarer/Asfalt/NEPD-1257-403_Crushed-Stone-Bergkrossprodukter_1_1.pdf | R9: https://www.epd-norge.no/getfile.php/138731-1520978061/EPDer/Byggevarer/Asfalt/527_Crushed-stone-construction-aggregate-products--Oslo-and-Baerum_no.pdf
A10: OK | B10: XPS massetetthet | C10: 25 | D10: kg/m3 | E10: Utslippsfaktorer | F10: Beregning av massetetthet XPS-/betongelement brukt til frostsikring i tunnel | G10: Massetetthet | H10: Ingen | I10: 35 | J10: Antakelser basert på produsentdata fra Foamular, PakBoard, Thermals) | K10: Oppdatere til VegLCA sin faktor for å sørge for høyest mulig grad av samsvar, i tillegg til manglende dokumentasjon for vår faktor. 35 kg/m3 samsvarer godt med informasjon på nett. | L10: Oppdatere | M10: 35 | N10: kg/m3 | O10: VegLCA (kommunikasjon med leverandører)
A11: OK | B11: XPS-/betongelement til frostsikring i tunnel massetetthet | C11: 1800 | D11: kg/m3 | E11: Tunnel (begge) | F11: Beregning av dieselforbruk transport m.m. | G11: Massetetthet | H11: Ingen | I11: IR | J11: =IF(I11="IR","-","") -> - | K11: Estimert som gjennomsnittet av massetetthetene til betong og XPS basert på EPD fra Ølen betong der elementene består av 50 mm XPS og 150 mm betong (150 * 2400 + 50 * 25)/200 = 1800 kg/m3. Usikkert hvor massetetthet til XPS er hentet fra. I samkjøringsprosjekt står det at massetetthet til XPS ikke er relevant i NIRAS' verktøy. Foreslår å heller benytte 35 kg/m3 som i VegLCA | L11: Oppdatere | M11: =(50*M10+150*M3)/(M24*1000) -> 1808.75 | N11: kg/m3 | O11: EPD XPS-/betongelement Ølen betong
A12: OK | B12: Topeka massetetthet | C12: IR | D12: kg/m3 | F12: Beregning av dieselforbruk transport m.m. | G12: Massetetthet | H12: - | I12: 2500 | J12: Samme som asfalt, dvs. Klimamodul EFFEKT | L12: Legge til | M12: 2500 | N12: kg/m3 | O12: Metoderapport s. 34, bruker samme som asfaltbetong
A13: OK | B13: Vegetasjonsdekke massetetthet | C13: 2000 | D13: kg/m3 | E13: Fjerning av vegetasjon | G13: Massetetthet | L13: Oppdatere | M13: 1300 | N13: kg/m3 | O13: Metoderapport s. 32
A14: OK | B14: Myr massetetthet | G14: Massetetthet | L14: Oppdatere | M14: 150 | N14: kg/m3 | O14: "Utredning myr", Hadsel kommune (Asplan Viak, 2017)
A15: OK | B15: Massetetthet sprengstein | C15: 2650 | D15: kg/m3 | E15: Masser | G15: Massetetthet | L15: Beholde | M15: 2650 | N15: kg/m3 | O15: Metoderapport s. 32
A16: OK | B16: Masser fra grøfterensk massetetthet | C16: 1600 | D16: kg/m3 | E16: Drift | G16: Massetetthet | L16: Oppdatere | M16: 1300 | N16: kg/m3 | O16: Metoderapport s. 32
B17: Materialtykkelser/-mengder
A18: OK | B18: Slitelag tykkelse | C18: 0.045 | D18: m | E18: Vei, tunnel (begge), bru (begge), asfalt annet | F18: Beregning av materialforbruk og transport m.m. | G18: Materialtykkelse | H18: N200 | I18: IR | J18: - | L18: Beholde | M18: 0.045 | N18: m | O18: N200
A19: OK | B19: Bindlag tykkelse | C19: 0.035 | D19: m | E19: Vei, tunnel (begge), bru (begge), asfalt annet | F19: Beregning av materialforbruk og transport m.m. | G19: Materialtykkelse | H19: N200 | I19: IR | J19: - | L19: Beholde | M19: 0.035 | N19: m | O19: N200
A20: OK | B20: Bærelag tykkelse | C20: 0.13 | D20: m | E20: Vei, tunnel (begge), bru (begge), asfalt annet | F20: Beregning av materialforbruk og transport m.m. | G20: Materialtykkelse | H20: N200 | I20: IR | J20: - | L20: Beholde | M20: 0.13 | N20: m | O20: N200
A21: OK | B21: Forsterkningslag tykkelse | C21: 0.45 | D21: m | E21: Vei, tunnel (begge), bru (begge), asfalt annet | F21: Beregning av materialforbruk og transport m.m. | G21: Materialtykkelse | H21: N200 | I21: IR | J21: - | L21: Beholde | M21: 0.45 | N21: m | O21: N200
A22: OK | B22: Frostsikringslag vei tykkelse | C22: 1,74 eller 1,09 | D22: m | E22: Vei, asfalt annet | F22: Beregning av materialforbruk og transport m.m. | G22: Materialtykkelse | H22: N200 | I22: IR | J22: - | K22: Avhenger av andel av veien plassert på fjell. Dersom fjell: 1,09. Foreslår å heller sette standard tykkelse 1,74 og evt. redusere i hht. N200 basert på klimasone og telefarlighetsklasse | L22: Oppdatere | M22: 1.74 | N22: m | O22: N200
A23: OK | B23: Topeka tykkelse | C23: IR | D23: m | E23: Bru | F23: Beregning av materialforbruk og transport m.m. | G23: Materialtykkelse | H23: - | I23: 0.012 | J23: Ikke kommentert | K23: VegLCA bruker det samme i beregningene, men det er ikke eksplisitt | L23: Legge til | M23: 0.012 | N23: m | O23: SVV Håndbok R762 | P23: R: endret fra 0,12 til 0,012, antar at det var en skrivefeil?
A24: OK | B24: Frostsikringselement tunnel tykkelse | C24: 0.2 | D24: m | E24: Tunnel (begge) | F24: Beregning av materialforbruk og transport m.m. | G24: Materialtykkelse | H24: EPD for element fra Ølen Betong | I24: IR | J24: - | K24: Standardelement til frostsikring av tunnel fra Ølen Betong, basert på EPD: Element for samferdselstunneler med 150 mm tykkelse i betong og 50 mm XPS 200 kpa isolasjon. | L24: Beholde | M24: 0.2 | N24: m | O24: EPD for element fra Ølen Betong
A25: OK | B25: Mengde sprengstoff sprengning i dagen | C25: 1 | D25: kg/fm3 | E25: Bru (begge), masser | F25: Beregning av utslipp knyttet sprenging | G25: Materialmengde | H25: Metoderapport | I25: IR | J25: =IF(I25="IR","-","") -> - | L25: Beholde | M25: =IF(L25="Beholde",C25,IF(L25="Fjerne","-","")) -> 1 | N25: kg/fm3 | O25: Metoderapport og dokumentasjon EFFEKT 2015 (SVV Rapport 358) | P25: EFFEKT og Metoderapport oppgir ikke kilden de har brukt, og verdien bør derfor sokumenteres bedre i samtlige verktøy
A26: OK | B26: Mengde sprengstoff sprengning tunnel | C26: 2.2 | D26: kg/fm3 | E26: Masser | F26: Beregning av utslipp knyttet sprenging | G26: Materialmengde | H26: NIRAS erfaringstall og rapport fra 2009 mener 2,2 kg sprengstoff | I26: IR | J26: =IF(I26="IR","-","") -> - | K26: "200% høyere sprengstofforbruk i tunnel. Antar dobbelt så mye arbeid som for vei i dagen" - stemmer ikke helt? | L26: Beholde | M26: =IF(L26="Beholde",C26,IF(L26="Fjerne","-","")) -> 2.2 | N26: kg/fm3 | O26: Metoderapport og dokumentasjon EFFEKT 2015 (SVV Rapport 358). | P26: Dette tallet ser ut til å være noe høyt sammenliknet med andre kilder på nett. EFFEKT og Metoderapport oppgir ikke kilden de har brukt, og verdien bør derfor sokumenteres bedre i samtlige verktøy
A27: OK | B27: Asfaltbetong bru tykkelse | C27: 0.08 | D27: m | E27: Bru (begge) | F27: Beregning av materialforbruk og transport m.m. | G27: Materialtykkelse | H27: Ingen | I27: IR | J27: - | K27: Naturlig å anta samme tykkelse som slitelag + bindlag på vei --> 0,08 m. Legger ikke inn en egen faktor for dette. | L27: Fjerne | M27: =IF(L27="Beholde",C27,IF(L27="Fjerne","-","")) -> - | N27: - | O27: N200 (i N400 henvises det til N200 for bindlag og slitelag)
A28: OK | B28: Fuktisolering bru mengde | C28: 1.9 | D28: kg/m2 | E28: Bru (begge) | F28: Beregning av materialforbruk og transport m.m. | G28: Materialmengde | H28: Samkjøringsprosjekt | I28: IR | J28: - | K28: Samkjøringsprosjektet sier 0,94 m2 fuktisolering per m2 bru og at laget består av polymermodifisert bitumen og sand. Erstatter med Topeka | L28: Fjerne | M28: - | N28: - | O28: =IF(OR(L28="Fjerne",L28="Bake inn i annen faktor"),"-","") -> -
A29: OK | B29: Frostsikring bru tykkelse | C29: 0.035 | D29: m | E29: Bru (begge) | F29: Beregning av materialforbruk og transport m.m. | G29: Materialtykkelse | H29: Ingen | I29: IR | J29: - | K29: "Frostsikringslag med plater av ekstrudert polystyren (XPS) Antatt tykkelse 100 mm. Tetthet: 25 kg/m3". Erstatter med Topeka | L29: Fjerne | M29: - | N29: - | O29: -
A30: OK | B30: Betongmengde til betongbru | C30: 1.14 | D30: m3/m2 | E30: Betongbru | F30: Material- og transportutslipp forbundet med betong | G30: Materialmengde | H30: Fra samkjørings-prosjekt og Metoderapport | I30: IR | J30: - | K30: Verdi ser ut til å være basert på gjennomsnitt for 10 betongbruer i fellesprosjektet E16. Finner ikke dokumentasjon på dette og velger derfor å benytte gjennomsnitt fra samtlige 12 betongbruer i Metoderapporten | L30: Oppdatere | M30: 1.29 | N30: m3/m2 | O30: Metoderapport s. 47, gjennomsnitt for samtlige betongbruer, ikke vektet etter areal av bru
A31: OK | B31: Betongmengde til stålbru | C31: 0.00094 | D31: m3/m2 | E31: Stålbru | F31: Material- og transportutslipp forbundet med betong | G31: Materialmengde | H31: Fra samkjørings-prosjekt og Metoderapport | I31: IR | J31: - | K31: Verdi ser ut til å være basert på gjennomsnitt for 10 betongbruer i fellesprosjektet E16. Finner ikke dokumentasjon på dette og velger derfor å benytte gjennomsnitt fra samtlige 8 stålbruer i Metoderapporten | L31: Oppdatere | M31: 0.743 | N31: m3/m2 | O31: Metoderapport s. 47, gjennomsnitt for samtlige stålbruer, ikke vektet etter areal av bru
A32: OK | B32: Mengde armeringsstål til betongbru | C32: 180 | D32: kg/m2 | E32: Betongbru | F32: Material- og transportutslipp forbundet med stål | G32: Materialmengde | H32: Samkjøringsprosjekt | I32: IR | J32: - | K32: Verdi ser ut til å være basert på gjennomsnitt for 10 betongbruer i fellesprosjektet E16. Finner ikke dokumentasjon på dette og velger derfor å benytte gjennomsnitt fra samtlige 12 betongbruer i Metoderapporten | L32: Oppdatere | M32: 231 | N32: kg/m2 | O32: Metoderapport s. 47, gjennomsnitt for samtlige betongbruer, ikke vektet etter areal av bru
A33: OK | B33: Mengde armeringsstål til stålbru | C33: 90 | D33: kg/m2 | E33: Stålbru | F33: Material- og transportutslipp forbundet med stål | G33: Materialmengde | H33: Samkjøringsprosjekt | I33: IR | J33: - | K33: Verdi ser ut til å være basert på gjennomsnitt for 10 betongbruer i fellesprosjektet E16. Finner ikke dokumentasjon på dette og velger derfor å benytte gjennomsnitt fra samtlige 8 stålbruer i Metoderapporten | L33: Oppdatere | M33: 125 | N33: kg/m2 | O33: Metoderapport s. 47, gjennomsnitt for samtlige stålbruer, ikke vektet etter areal av bru
A34: OK | B34: Mengde konstruksjonsstål til betongbru | C34: 18 | D34: kg/m2 | E34: Betongbru | F34: Material- og transportutslipp forbundet med stål | G34: Materialmengde | H34: Samkjøringsprosjekt | I34: IR | J34: - | K34: Verdi ser ut til å være basert på gjennomsnitt for 10 betongbruer i fellesprosjektet E16. Finner ikke dokumentasjon på dette og velger derfor å benytte gjennomsnitt fra samtlige 12 betongbruer i Metoderapporten | L34: Oppdatere | M34: 0 | N34: kg/m2 | O34: Metoderapport s. 47, gjennomsnitt for samtlige betongbruer, ikke vektet etter areal av bru
A35: OK | B35: Mengde konstruksjonsstål til stålbru | C35: 300 | D35: kg/m2 | E35: Stålbru | F35: Material- og transportutslipp forbundet med stål | G35: Materialmengde | H35: Samkjøringsprosjekt | I35: IR | J35: - | K35: Usikker på dokumentasjon på dette. Velger derfor å benytte gjennomsnitt fra samtlige 8 stålbruer i Metoderapporten | L35: Oppdatere | M35: 219 | N35: kg/m2 | O35: Metoderapport s. 47, gjennomsnitt for samtlige stålbruer, ikke vektet etter areal av bru
A36: OK | B36: Masse som må sprenges for bygging av bru | C36: 0.02 | D36: m3/m2 | E36: Bru (begge) | F36: Beregning av utslipp knyttet sprenging | G36: Materialmengde | H36: Ingen | I36: IR | J36: - | K36: Gitt i samkjøringsprosjekt, trolig basert på gjennomsnitt for 10 betongbruer i fellesprosjektet E16. Finner ikke dokumentasjon for å verifisere dette, men i mangel på andre tilgjengelige data, beholdes tallet. | L36: Fjerne | M36: =IF(L36="Beholde",C36,IF(L36="Fjerne","-","")) -> - | N36: - | O36: Samkjøring, bør verifiseres
A37: OK | B37: Mengde stål støttevegger og forankringer bru | C37: 28.7 | D37: kg/m2 | E37: Bru (begge) | F37: Material- og transportutslipp forbundet med stål | G37: Materialmengde | H37: Samkjøringsprosjekt | I37: IR | J37: - | K37: Gitt i samkjøringsprosjekt, trolig basert på gjennomsnitt for 10 betongbruer i fellesprosjektet E16. Finner ikke dokumentasjon for å verifisere dette, men i mangel på andre tilgjengelige data, beholdes tallet. Antas i samkjøringsprosjekt å være i resirkulert stål | L37: Fjerne | M37: =IF(L37="Beholde",C37,IF(L37="Fjerne","-","")) -> - | N37: - | O37: Samkjøring, bør verifiseres
A38: OK | B38: Mengde stål autovern | C38: 16.5 | D38: kg/m | E38: Vei, tunnel (begge) | F38: Material- og transportutslipp forbundet med stål | G38: Materialmengde | H38: Autovern: Håndbok N101 kriterier for valg av rekkverk. Styrkeklasse: Tabell 3,1 s. 38. Rundskriv endring N101 fartsgrense 110 km/t. Vekt: Ørsta Vik sine Vik W3-rekkverk | I38: 20 | J38: Klimodul i EFFEKT | K38: "Forutsetter styrkeklasse H1 ihht tabell 3.1 i Håndbok N101 og rundskriv om rekkverk 110 km/t. Forenkler til å beregne med samme rekkverkstandard på bruer. Ørsta Vik sine Vik W3-rekkverk veier 12,5 kg/m + 16 kg per stolpe. jf telefonsamtale representant Ørsta Vik desember 2016. Vanligvis stolper per 2 meter, men framover skal det holde med stolper per 4 meter. Stålet har krav til fasthet, men gjenvinningsgrad og leverandør kan variere da de handler inn stål i bulk på et stort stålmarked. Ikke noe "finere" kvalitet på stålet til rekkverk enn stålet på autovern Altså 12,5+4= 16,5 kg/meter. Ganget med 4 for firefelts: 66 kg/m". VegLCA er ikke oppdatert etter samkjøringsprosjekt. | L38: Beholde | M38: =IF(L38="Beholde",C38,IF(L38="Fjerne","-","")) -> 16.5 | N38: kg/m | O38: Forutsetter styrkeklasse H1 ihht. tabell 3.1 og rundskriv om rekkverk 110 km/t. Forenkler til å beregne med samme rekkverkstandard på bruer. Tar utgangspunkt i Vik Ørsta W3 siderekkverk, med vekt 12,5 kg/m + 16 kg per stolpe. jf telefonsamtale representant Ørsta Vik desember 2016. Rekkverket Vik EP H1 CC4 har stolpeavstand på 4 m -> Samlet vekt blir 12,5 + 16/4 = 16,5 kg/m. | P38: Stålet har krav til fasthet, men gjenvinningsgrad og leverandør kan variere da de handler inn stål i bulk på et stort stålmarked. Ikke noe "finere" kvalitet på stålet til rekkverk enn stålet på autovern. For firefeltsvei må rekkverkmengden ganges med 4. | Q38: https://www.vikorsta.no/vegrekkverk/vegrekkverk/vik-ep-h1-cc4/
A39: OK | B39: Vekt lyktestolper | C39: 261 | D39: kg | E39: Vei, tunnel (begge), bru (begge) | F39: Material- og transportutslipp forbundet med stål | G39: Materialmengde | H39: Høyde- og vektinformasjon om mast fra Euromast, vektinformasjon om fundament fra Vik Ørsta | I39: 90 | J39: Leverandører | K39: Verdi er summen av vekt til mast (210 kg) og fundament (51 kg). Mast er 12 m høy. Ifølge samkjøringsprosjekt skulle VegLCA oppdateres med NIRAS' verdi. Euromast finnes ikke lenger - bruker mast fra VikØrsta i tillegg til fundament. Denne veier 176 kg -> totalt 227 kg. Anbefaler at VegLCA øker sin verdi noe. | L39: Oppdatere | M39: 227 | N39: kg | O39: Produsentinformasjon fra Vik Ørsta AS. Produktkatalog 2020 s. 17 og s. 44 | Q39: https://ipaper.ipapercms.dk/Saferoad/vik-oersta/produktkatalog-lysmast/?page=22#/
A40: OK | B40: Sikringsbolter tunnel | C40: 44 | D40: kg/m | E40: Tunnel | F40: Materialutslipp forbundet med stål | G40: Materialmengde | H40: Metoderapport s. 33 | L40: Beholde | M40: 44 | N40: kg/m | O40: Metoderapport s. 8 i vedlegg 1
A41: OK | B41: Kulvertelementer tykkelse | C41: 1.18 | D41: m3/m2 | E41: Kulvert | F41: Materialutslipp forbundet med betong og stål | G41: Materialmengde | H41: Ingen | I41: IR | J41: - | K41: "Tverrsnittvolum = 31,15 m2. ref. Tegning typisk kulvert. V/A = 1,18 m3/m2. Bruker tetthet bettong 2,3 tonn/m3". Her er det mye rart. Oppdaterer verdien. Oppdaterer til å bruke tykkelse på elementer istedenfor totalt betongvolum per m2 (som inkluderer tak, gulv og vegger) | L41: Oppdatere | M41: 0.24 | N41: m3/m2 | O41: Prefabrikkerte kulvertelementer, Statens vegvesen | Q41: https://www.vegvesen.no/fag/teknologi/bruer/bruprosjektering/prefabrikkerte-kulvertelementer/_attachment/1361322?_ts=15d081de438&fast_title=Grunnlag%2C+beregningsforutsetninger+og+eksempel.pdf
A42: OK | B42: Høyde på kulvert | C42: IR | D42: m | E42: Kulvert | F42: Materialutslipp forbundet med betong og stål | G42: Materialmengde | H42: IR | I42: IR | J42: - | L42: Legge til | M42: 3.2 | N42: m | O42: Prefabrikkerte kulvertelementer, Statens vegvesen | Q42: https://www.vegvesen.no/fag/teknologi/bruer/bruprosjektering/prefabrikkerte-kulvertelementer/_attachment/1361322?_ts=15d081de438&fast_title=Grunnlag%2C+beregningsforutsetninger+og+eksempel.pdf
A43: OK | B43: Forholdstall mellom betong og armering i kulvertelementer | C43: 12.3 | D43: kg/kg | E43: Kulvert | F43: Materialutslipp forbundet med stål | G43: Materialmengde | H43: IR | I43: IR | J43: - | L43: Oppdatere | M43: 13 | N43: kg/kg | O43: Tar utgangspunkt i Metoderapprt s. 8 i vedlegg 1, der andelen betong er 13 ganger høyere enn andelen armering for samme volum.
B44: Arbeidshastigheter
B45: Arbeidshastighet veivals | C45: 300 | D45: t/h | E45: Vei, tunnel (begge), bru (begge), asfalt annet | F45: Beregning av drivstofforbruk valsing av bærelag, bindlag og slitelag | G45: Arbeidshastighet | H45: Ingen | K45: Brukes til bærelag, bindlag og slitelag -> 2,4*0,13+2,5*(0,035+0,045) = 0,512 tonn/m2 | O45: =IF(OR(L45="Fjerne",L45="Bake inn i annen faktor"),"-","") -> 
B46: Arbeidshastighet traktor | C46: 300 | D46: t/h | E46: Vei, tunnel (begge), bru (begge), asfalt annet | F46: Beregning av drivstofforbruk traktor for bærelag, bindlag og slitelag | G46: Arbeidshastighet | H46: Ingen | K46: Brukes til bærelag, bindlag og slitelag -> 2,4*0,13+2,5*(0,035+0,045) = 0,512 tonn/m2
B47: Arbeidshastighet asfaltutlegger | C47: 300 | D47: t/h | E47: Vei, tunnel (begge), bru (begge), asfalt annet | F47: Beregning av drivstofforbruk utlegging av bærelag, bindlag og slitelag | G47: Arbeidshastighet | H47: Ingen | K47: Brukes til bærelag, bindlag og slitelag -> 2,4*0,13+2,5*(0,035+0,045) = 0,512 tonn/m2
B48: Arbeidshastighet gravemaskin | C48: 150 | D48: t/h | E48: Vei, tunnel (begge), bru (begge), asfalt annet | F48: Beregning av drivstofforbruk til anlegging av forsterkningslag | G48: Arbeidshastighet | H48: Ingen | K48: Brukes til forsterkningslag -> 0,45*1,5 = 0,675 tonn/m2. Endres med endret massetetthet pukk: 0,45*1,55 =0,6975 tonn/m2
B49: Arbeidshastighet grovknuser | C49: 125 | D49: t/h | E49: Vei, tunnel (begge), bru (begge), asfalt annet | F49: Beregning av drivstofforbruk til anlegging av forsterkningslag | G49: Arbeidshastighet | H49: Ingen | K49: Brukes til forsterkningslag -> 0,45*1,5 = 0,675 tonn/m2. Endres med endret massetetthet pukk: 0,45*1,55 =0,6975 tonn/m2
B50: Arbeidshastighet finknuser | C50: 250 | D50: t/h | E50: Vei, asfalt annet | F50: Beregning av drivstofforbruk frostsikringslag | G50: Arbeidshastighet | H50: Ingen | K50: Burde denne brukes på forsterkningslag fremfor frostsikringslag?
A51: OK | B51: Arbeidshastighet tårnkran ved bygging av første 400 m2 av bru | C51: =400/240 -> 1.666666667 | D51: m2/h | E51: Bru (begge) | F51: Beregning av strømforbruk anleggsarbeid | G51: Arbeidshastighet | H51: "Niras erfaringstall" | I51: IR | L51: Beholde | M51: 1.666666667 | N51: m2/h | O51: NIRAS' erfaringstall | P51: Verdi burde verifiseres med flere kilder. Store variasjoner avhengig av brutype, fundamenteringsforhold (geologi) og bruens størrelse. Faktoren kan sannsynligvis variere med pluss/minus 60 % avhengig av forholdene
A52: OK | B52: Arbeidshastighet tårnkran ved bygging av resterende lengde bru | C52: =400/120 -> 3.333333333 | D52: m2/h | E52: Bru (begge) | F52: Beregning av strømforbruk anleggsarbeid | G52: Arbeidshastighet | H52: "Niras erfaringstall" | I52: IR | L52: Beholde | M52: 3.333333333 | N52: m2/h | O52: NIRAS' erfaringstall | P52: Verdi burde verifiseres med flere kilder. Store variasjoner avhengig av brutype, fundamenteringsforhold (geologi) og bruens størrelse. Faktoren kan sannsynligvis variere med pluss/minus 60 % avhengig av forholdene
A53: OK | B53: Arbeidshastighet tårnkran ved bygging av kulvert | C53: 18 | D53: h/kulvert | E53: Kulvert | F53: Beregning av strømforbruk anleggsarbeid | G53: Arbeidshastighet | H53: "Niras erfaringstall" | I53: IR | K53: "For en prefabrikert elementkulvert ca. 10 timer. For en plasstøpt ca 25 timer. Bruker 18 timer som et gjennomsnitt" | L53: Beholde | M53: 18 | N53: h/kulvert | O53: NIRAS' erfaringstall | P53: For en prefabrikert elementkulvert ca. 10 timer. For en plasstøpt ca 25 timer. Bruker 18 timer som et gjennomsnitt. Verdi burde verifiseres med flere kilder.
A54: OK | B54: Arbeidshastighet kantklipper | C54: 0.15625 | D54: km/h | E54: Drift | F54: Beregning av drivstofforbruk | G54: Arbeidshastighet | H54: "Niras erfaringstall" | I54: IR | K54: Antok hjullaster i gammel utgave, med en arbeidshastighet på 1250 m/dag, én dag = 8 h --> 1250/8=156,25 m/h. Virker veldig lav og er ikke dokumentert. Brukes til å beregne drivstofforbruk, og med hjullasterforbruk på 7,5 L/h, blir det 48 L/km, noe samkjøringsprosjektet kommenterer at er veldig høyt | L54: Oppdatere | M54: 7.5 | N54: km/h | O54: Gjennomsnitt av verdier oppgitt av Maskinimportøren den 15.04.20, som sier deres traktor til kantklipping bruker ca. 8 min på å klippe 1-1,25 m kant i 1 km
A55: OK | B55: Arbeidshastighet anleggsarbeid autovern | C55: 10 | D55: m/h | E55: Vei, tunnel (begge), bru (begge), asfalt annet, drift | F55: Beregning av drivstofforbruk | G55: Arbeidshastighet | H55: "Niras erfaringstall" | I55: IR | J55: - | K55: "Antar at aggregat bakpå en lastebil bruker 4 L/t på utsetting av autovern, og at det legges 80 m overn. per dag for fire-felts vei. Én dag defineres som 8 timer." Ser ut til at antakelsen om 80 m/dag gjelder for både enkeltløps- og dobbeltløpstunnel samt alle veityper. Fjerner denne mellomregningsfaktoren og baker det direkte inn i faktoren for dieselforbruk i l/m rekkverk/autovern. | L55: Bake inn i annen faktor | M55: 10 | N55: m/h | O55: =IF(OR(L55="Fjerne",L55="Bake inn i annen faktor"),"-","") -> -
A56: OK | B56: Arbeidshastighet gravemaskin grøfterensk | C56: 300 | D56: m/h | E56: Drift | F56: Beregning av drivstofforbruk | G56: Arbeidshastighet | H56: "Niras erfaringstall" | I56: IR | J56: - | K56: "Grøfterensk skjer også ca hvert 3. år, lastebil for bortkjøring og gravemaskin ca 300 m i timen i snitt. Gravemaskin 20 liter/time =>0,067 liter/meter eller 66,67 liter/km renska grøft" | L56: Beholde | M56: 300 | N56: m/h | O56: NIRAS' erfaringstall. Bør verifiseres.
B57: Arbeidshastighet hjullaster til feiing | C57: 2000 | D57: m/h | E57: Drift | F57: Beregning av drivstofforbruk | G57: Arbeidshastighet | H57: "Niras erfaringstall" | I57: IR | J57: - | L57: Beholde | M57: 2000 | N57: m/h | O57: NIRAS' erfaringstall. Bør verifiseres.
B58: Energiforbruk
B59: Dieseforbruk lastebil | C59: 0.6 | D59: l/km | E59: Drift | F59: Utslipp transport | G59: Energiforbruk | H59: "Niras erfaringstall" | K59: Saltbil bruker 0,45. Bøytebil ler oppgitt å bruke 20 % mer enn lastebil, så det tilsvarer også lastebil = 0,45.
B60: Dieselforbruk veivals | C60: 3 | D60: l/h | E60: Vei, tunnel (begge), bru (begge), asfalt annet | F60: Utslipp anleggsarbeid | G60: Energiforbruk | O60: =IF(OR(L60="Fjerne",L60="Bake inn i annen faktor"),"-","") -> 
B61: Dieselforbruk traktor | C61: 5 | D61: l/h | E61: Vei, tunnel (begge), bru (begge), asfalt annet | F61: Utslipp anleggsarbeid | G61: Energiforbruk | L61: Beholde | M61: 5 | N61: l/h | O61: =IF(OR(L61="Fjerne",L61="Bake inn i annen faktor"),"-","") -> 
B62: Dieselforbruk asfaltutlegger | C62: 3 | D62: l/h | E62: Vei, tunnel (begge), bru (begge), asfalt annet | F62: Utslipp anleggsarbeid | G62: Energiforbruk
